Workbook

Sheet Revisions
A10: Date | B10: User | C10: Note
A11: 2009-12-11 | B11: Lixin Zhao | C11: Change MS1 effectiveness to 3.5%
C12: Add diesel I4 cost for small truck.
C13: Add diesel I4 effectiveness of 20.2% to 24.9% for small truck
C14: Copy diesel I4 incremental cost and effectiveness calculation from Midsize LT
A15: 2009-12-14 | B15: Jim Tamm | C15: Update formular with negative cost for TRBDS, NAUTO and DCTAM.
A16: 2009-12-14 | B16: Lixin Zhao | C16: Update SGDI, TRBDS, NAUTO and DCTAM cost from FEV
A17: 2010-07-29 | B17: Lixin Zhao | C17: Use absolute value for BISG and Micro Hybrid
C18: Set FCV to 0 because it is not going to be used by the model for this rulemaking.
A19: 2011-04-20 | B19: Lixin Zhao | C19: New format and populate to all 12 sub classes
A20: 2011-05-02 | B20: Lixin Zhao | C20: Update effectiveness for Midsize LT for TRBDS1, TBRBDS2, CEGR1 and CEGR2
C21: Update effectiveness for Large LT for EPS, IACC1, IACC2, MHEV. Use 50% for EPS
A22: 2011-05-03 | B22: R.Harrington | C22: TRBDS1_SD effectiveness includes correction for DEAC not being availabe on 4 cylinder engines
A23: 2011-05-09 | B23: Lixin Zhao | C23: Update HEV2, PHEV20, PHEV40 and EV effectiveness.
A24: 2011-05-10 | B24: Lixin Zhao | C24: Make sure Subcompact PC, Compact PC and Small LT use dry DCT; All others except Midsize LT, Minivan LT, and Large LT use wet DCT
A25: 2011-05-12 | B25: Lixin Zhao | C25: change input year to 2021 to calculate the correct cost synergy
A26: 2012-03-22 | B26: LZ / JW | C26: updated to include mild hybrid effectivenes and costs
A27: 2012-04-12 | B27: JW | C27: updated mild hybrid to add EPS effectiveness

Sheet Inputs
B2: Model Year Basis | C2: 2021 | F2: 2009
F3: 2010
F4: 2011
F5: 2012
F6: 2013
F7: 2014
F8: 2015
F9: 2016
F10: 2017
F11: 2018
F12: 2019
F13: 2020
F14: 2021
F15: 2022
F16: 2023
F17: 2024
F18: 2025

Sheet Subcompact PC
A1: Full Engine Technology Decision Tree
B3: START
A4: Gas Engine Type | B4: I4 | BI4: 2012-2016 | BJ4: INC | BK4: % | BL4: 0.005 | BM4: $ | BN4: =INDEX('[1]Subcompact PC'!$H$379:$X$467,MATCH(BP6,'[1]Subcompact PC'!$C$379:$C$467,0),MATCH(Inputs!$C$2,'[1]Subcompact PC'!$H$378:$X$378,0)) -> 3.863783544 | BO4: 10 | BW4: 2012-2016 | BX4: INC | BY4: % | BZ4: 0.02 | CA4: $ | CB4: =INDEX('[1]Subcompact PC'!$H$379:$X$467,MATCH(CD6,'[1]Subcompact PC'!$C$379:$C$467,0),MATCH(Inputs!$C$2,'[1]Subcompact PC'!$H$378:$X$378,0))*$B$13 -> 58.09222409 | CC4: 10 | CK4: 2012-2016 | CL4: INC | CM4: % | CN4: =1-((1-CN5)/(1-BZ5)) -> 0 | CO4: $ | CP4: 0 | CQ4: L
A5: Displacement [L] | B5: 2.2 | BJ5: ABS | BK5: % | BL5: =BL4 -> 0.005 | BM5: $ | BN5: =BN4 -> 3.863783544 | BO5: L | BX5: ABS | BY5: % | BZ5: =1-((1-BL5)*(1-BZ4)) -> 0.0249 | CA5: $ | CB5: =BN5+CB4 -> 61.95600763 | CC5: L | CL5: ABS | CM5: % | CN5: =BZ5 -> 0.0249 | CO5: $ | CP5: =CB5 -> 61.95600763 | CQ5: 0
A6: Turbocharger | B6: None | BK6: Low-Friction Lubricants 1 (LUB1) - No Learning Applied | BP6: LUB1 | BY6: Engine Friction Reduction 1 (EFR1) - No Learning Applied | CD6: EFR1 | CM6: Low-Friction Lub & Engine Friction Redux 2 (LUB2_EFR2) - No Learning Applied | CR6: LUB2_EFR2
A7: EGR system | B7: External | BI7: 2017+ | BJ7: INC | BK7: % | BL7: =BL4 -> 0.005 | BM7: $ | BN7: =BN4 -> 3.863783544 | BO7: 10 | BW7: 2017+ | BX7: INC | BY7: % | BZ7: 0.02 | CA7: $ | CB7: =CB4 -> 58.09222409 | CC7: 10 | CK7: 2017+ | CL7: INC | CM7: % | CN7: =1-((1-CN8)/(1-BZ8)) -> 0.01035791201 | CO7: $ | CP7: =INDEX('[1]Subcompact PC'!$H$379:$X$467,MATCH(CR6,'[1]Subcompact PC'!$C$379:$C$467,0),MATCH(Inputs!$C$2,'[1]Subcompact PC'!$H$378:$X$378,0))*$B$13 -> 62.84073183 | CQ7: L
A8: Valvetrain | B8: SOHC/ DOHC/ OHV | BJ8: ABS | BK8: % | BL8: =BL7 -> 0.005 | BM8: $ | BN8: =BN7 -> 3.863783544 | BO8: L | BX8: ABS | BY8: % | BZ8: =1-((1-BL8)*(1-BZ7)) -> 0.0249 | CA8: $ | CB8: =BN8+CB7 -> 61.95600763 | CC8: L | CL8: ABS | CM8: % | CN8: 0.035 | CO8: $ | CP8: =CB8+CP7 -> 124.7967395 | CQ8: 33.86
A9: After Treatment | B9: 3way cat
AE11: SOHC | CP11: DOHC | EX11: OHV
A13: Cylinders | B13: =IF(B4="I4",4,IF(B4="V6",6,8)) -> 4
A14: Cylinder Banks | B14: =IF(B4="I4",1,2) -> 1 | CK14: 2012-2016 | CL14: INC | CM14: % | CN14: =CN17 -> 0.02176165803 | CO14: $ | CP14: =INDEX('[1]Subcompact PC'!$H$379:$X$467,MATCH(CR16,'[1]Subcompact PC'!$C$379:$C$467,0),MATCH(Inputs!$C$2,'[1]Subcompact PC'!$H$378:$X$378,0))*$B$14 -> 41.54962554 | CQ14: 10
CL15: ABS | CM15: % | CN15: =1-((1-CN5)*(1-CN14)) -> 0.04611979275 | CO15: $ | CP15: =CP5+CP14 -> 103.5056332 | CQ15: L
CM16: Intake Cam Phasing (ICP) - TBL | CR16: ICP
CK17: 2017+ | CL17: INC | CM17: % | CN17: =1-((1-CN18)/(1-CN8)) -> 0.02176165803 | CO17: $ | CP17: =CP14 -> 41.54962554 | CQ17: 10
CL18: ABS | CM18: % | CN18: 0.056 | CO18: $ | CP18: =CP8+CP17 -> 166.346365 | CQ18: L
A22: Notes: | B22: (1) All costs shown in $2009 | Z22: 2012-2016 | AA22: INC | AB22: % | AC22: =AC25 -> 0.0414507772 | AD22: $ | AE22: =INDEX('[1]Subcompact PC'!$H$379:$X$467,MATCH(AG24,'[1]Subcompact PC'!$C$379:$C$467,0),MATCH(Inputs!$C$2,'[1]Subcompact PC'!$H$378:$X$378,0))*$B$14 -> 41.54962554 | AF22: 10 | CK22: 2012-2016 | CL22: INC | CM22: % | CN22: =CN25 -> 0.02012711864 | CO22: $ | CP22: =INDEX('[1]Subcompact PC'!$H$379:$X$467,MATCH(CR24,'[1]Subcompact PC'!$C$379:$C$467,0),MATCH(Inputs!$C$2,'[1]Subcompact PC'!$H$378:$X$378,0))*$B$14 -> 38.52785394 | CQ22: 10
AA23: ABS | AB23: % | AC23: =1-((1-CN5)*(1-AC22)) -> 0.06531865285 | AD23: $ | AE23: =CP5+AE22 -> 103.5056332 | AF23: L | CL23: ABS | CM23: % | CN23: =1-((1-CN15)*(1-CN22)) -> 0.06531865285 | CO23: $ | CP23: =CP15+CP22 -> 142.0334871 | CQ23: L
AB24: Coupled Cam Phasing (CCPS) - TBL | AG24: CCPS | CM24: Dual Cam Phasing (DCP) - TBL | CR24: DCP
Z25: 2017+ | AA25: INC | AB25: % | AC25: =1-((1-AC26)/(1-CN8)) -> 0.0414507772 | AD25: $ | AE25: =AE22 -> 41.54962554 | AF25: 10 | CK25: 2017+ | CL25: INC | CM25: % | CN25: =1-((1-CN26)/(1-CN18)) -> 0.02012711864 | CO25: $ | CP25: =CP22 -> 38.52785394 | CQ25: 10
A26: L | AA26: ABS | AB26: % | AC26: 0.075 | AD26: $ | AE26: =CP8+AE25 -> 166.346365 | AF26: L | CL26: ABS | CM26: % | CN26: 0.075 | CO26: $ | CP26: =CP18+CP25 -> 204.8742189 | CQ26: L
A27: M
A28: H
A29: VH
Z30: 2012-2016 | AA30: INC | AB30: % | AC30: =AC33 -> 0.02810810811 | AD30: $ | AE30: =INDEX('[1]Subcompact PC'!$H$379:$X$467,MATCH(AG32,'[1]Subcompact PC'!$C$379:$C$467,0),MATCH(Inputs!$C$2,'[1]Subcompact PC'!$H$378:$X$378,0))*$B$13 -> 141.9578409 | AF30: 10 | BP30: 2012-2016 | BQ30: INC | BR30: % | BS30: =BS33 -> 0.02810810811 | BT30: $ | BU30: =INDEX('[1]Subcompact PC'!$H$379:$X$467,MATCH(BW32,'[1]Subcompact PC'!$C$379:$C$467,0),MATCH(Inputs!$C$2,'[1]Subcompact PC'!$H$378:$X$378,0))*$B$13 -> 141.9578409 | BV30: 10 | DF30: 2012-2016 | DG30: INC | DH30: % | DI30: =DI33 -> 0.03567567568 | DJ30: $ | DK30: =INDEX('[1]Subcompact PC'!$H$379:$X$467,MATCH(DM32,'[1]Subcompact PC'!$C$379:$C$467,0),MATCH(Inputs!$C$2,'[1]Subcompact PC'!$H$378:$X$378,0))*$B$13 -> 228.5253386 | DL30: 10 | EV30: 2012-2016 | EW30: INC | EX30: % | EY30: =1-((1-EY31)/(1-CN5)) -> 0.0462516665 | EZ30: $ | FA30: =INDEX('[1]Subcompact PC'!$H$379:$X$467,MATCH(FC32,'[1]Subcompact PC'!$C$379:$C$467,0),MATCH(Inputs!$C$2,'[1]Subcompact PC'!$H$378:$X$378,0)) -> 180.8502248 | FB30: 10
AA31: ABS | AB31: % | AC31: =1-((1-AC23)*(1-AC30)) -> 0.0915907772 | AD31: $ | AE31: =AE23+AE30 -> 245.4634741 | AF31: L | BQ31: ABS | BR31: % | BS31: =1-((1-CN23)*(1-BS30)) -> 0.0915907772 | BT31: $ | BU31: =CP23+BU30 -> 283.991328 | BV31: L | DG31: ABS | DH31: % | DI31: =1-((1-CN23)*(1-DI30)) -> 0.09866404145 | DJ31: $ | DK31: =CP23+DK30 -> 370.5588257 | DL31: L | EW31: ABS | EX31: % | EY31: 0.07 | EZ31: $ | FA31: =CP5+FA30 -> 242.8062325 | FB31: L
AB32: Discrete VVL (DVVLS) - TBL | AG32: DVVLS | BR32: Discrete VVL (DVVLD) - TBL | BW32: DVVLD | DH32: Continuous VVL (CVVL) - TBL | DM32: CVVL | EX32: Cylinder Deactivation (DEACO) - TBL | FC32: DEACO
Z33: 2017+ | AA33: INC | AB33: % | AC33: =1-((1-AC34)/(1-AC26)) -> 0.02810810811 | AD33: $ | AE33: =AE30 -> 141.9578409 | AF33: 10 | BP33: 2017+ | BQ33: INC | BR33: % | BS33: =1-((1-BS34)/(1-CN26)) -> 0.02810810811 | BT33: $ | BU33: =BU30 -> 141.9578409 | BV33: 10 | DF33: 2017+ | DG33: INC | DH33: % | DI33: =1-((1-DI34)/(1-CN26)) -> 0.03567567568 | DJ33: $ | DK33: =DK30 -> 228.5253386 | DL33: 10 | EV33: 2017+ | EW33: INC | EX33: % | EY33: =1-((1-EY34)/(1-CN8)) -> 0.04663212435 | EZ33: $ | FA33: =FA30 -> 180.8502248 | FB33: 10
B34: START | AA34: ABS | AB34: % | AC34: 0.101 | AD34: $ | AE34: =AE26+AE33 -> 308.3042059 | AF34: L | BQ34: ABS | BR34: % | BS34: 0.101 | BT34: $ | BU34: =CP26+BU33 -> 346.8320598 | BV34: L | DG34: ABS | DH34: % | DI34: 0.108 | DJ34: $ | DK34: =CP26+DK33 -> 433.3995575 | DL34: L | EW34: ABS | EX34: % | EY34: 0.08 | EZ34: $ | FA34: =CP8+FA33 -> 305.6469643 | FB34: L
A35: Gas Engine Type | B35: I4
A36: Displacement [L] | B36: 2.2
A37: Turbocharger | B37: None
A38: EGR system | B38: External | Z38: 2012-2016 | AA38: INC | AB38: % | AC38: =AC41 -> 0.004449388209 | AD38: $ | AE38: =INDEX('[1]Subcompact PC'!$H$379:$X$467,MATCH(AG40,'[1]Subcompact PC'!$C$379:$C$467,0),MATCH(Inputs!$C$2,'[1]Subcompact PC'!$H$378:$X$378,0)) -> 28.17691074 | AF38: 10 | BP38: 2012-2016 | BQ38: INC | BR38: % | BS38: =BS41 -> 0.004449388209 | BT38: $ | BU38: =INDEX('[1]Subcompact PC'!$H$379:$X$467,MATCH(BW40,'[1]Subcompact PC'!$C$379:$C$467,0),MATCH(Inputs!$C$2,'[1]Subcompact PC'!$H$378:$X$378,0)) -> 28.17691074 | BV38: 10 | DF38: 2012-2016 | DG38: INC | DH38: % | DI38: =DI41 -> 0 | DJ38: $ | DK38: 0 | DL38: 10 | EV38: 2012-2016 | EW38: INC | EX38: % | EY38: =1-((1-EY39)/(1-EY31)) -> 0.02150537634 | EZ38: $ | FA38: =INDEX('[1]Subcompact PC'!$H$379:$X$467,MATCH(FC40,'[1]Subcompact PC'!$C$379:$C$467,0),MATCH(Inputs!$C$2,'[1]Subcompact PC'!$H$378:$X$378,0))*$B$14 -> 45.20461721 | FB38: 10
A39: Valvetrain | B39: SOHC/ DOHC/ OHV | AA39: ABS | AB39: % | AC39: =1-((1-AC31)*(1-AC38)) -> 0.09563264249 | AD39: $ | AE39: =AE31+AE38 -> 273.6403848 | AF39: L | BQ39: ABS | BR39: % | BS39: =1-((1-BS31)*(1-BS38)) -> 0.09563264249 | BT39: $ | BU39: =BU31+BU38 -> 312.1682387 | BV39: L | DG39: ABS | DH39: % | DI39: =1-((1-DI31)*(1-DI38)) -> 0.09866404145 | DJ39: $ | DK39: =DK31+DK38 -> 370.5588257 | DL39: L | EW39: ABS | EX39: % | EY39: 0.09 | EZ39: $ | FA39: =FA31+FA38 -> 288.0108497 | FB39: L
AB40: Cylinder Deactivation (DEACS) - TBL | AG40: DEACS | BR40: Cylinder Deactivation (DEACD) - TBL | BW40: DEACD | DH40: Cylinder Deactivation (DEACD) - TBL | EX40: Coupled Cam Phasing and DVVL (VVA) - TBL | FC40: VVA
Z41: 2017+ | AA41: INC | AB41: % | AC41: =1-((1-AC42)/(1-AC34)) -> 0.004449388209 | AD41: $ | AE41: =AE38 -> 28.17691074 | AF41: 10 | BP41: 2017+ | BQ41: INC | BR41: % | BS41: =1-((1-BS42)/(1-BS34)) -> 0.004449388209 | BT41: $ | BU41: =BU38 -> 28.17691074 | BV41: 10 | DF41: 2017+ | DG41: INC | DH41: % | DI41: =1-((1-DI42)/(1-DI34)) -> 0 | DJ41: $ | DK41: =DK38 -> 0 | DL41: 10 | EV41: 2017+ | EW41: INC | EX41: % | EY41: =1-((1-EY42)/(1-EY34)) -> 0.02717391304 | EZ41: $ | FA41: =FA38 -> 45.20461721 | FB41: 10
AA42: ABS | AB42: % | AC42: 0.105 | AD42: $ | AE42: =AE34+AE41 -> 336.4811166 | AF42: L | BQ42: ABS | BR42: % | BS42: 0.105 | BT42: $ | BU42: =BU34+BU41 -> 375.0089706 | BV42: L | DG42: ABS | DH42: % | DI42: =DI34 -> 0.108 | DJ42: $ | DK42: =DK34+DK41 -> 433.3995575 | DL42: L | EW42: ABS | EX42: % | EY42: 0.105 | EZ42: $ | FA42: =FA34+FA41 -> 350.8515815 | FB42: L
Z46: 2012-2016 | AA46: INC | AB46: % | AC46: =AC49 -> 0.0156424581 | AD46: $ | AE46: =INDEX('[1]Subcompact PC'!$H$379:$X$467,MATCH(AG48,'[1]Subcompact PC'!$C$379:$C$467,0),MATCH(Inputs!$C$2,'[1]Subcompact PC'!$H$378:$X$378,0))*$B$13 -> 232.9452905 | AF46: 10 | BP46: 2012-2016 | BQ46: INC | BR46: % | BS46: =BS49 -> 0.0156424581 | BT46: $ | BU46: =INDEX('[1]Subcompact PC'!$H$379:$X$467,MATCH(BW48,'[1]Subcompact PC'!$C$379:$C$467,0),MATCH(Inputs!$C$2,'[1]Subcompact PC'!$H$378:$X$378,0))*$B$13 -> 232.9452905 | BV46: 10 | DF46: 2012-2016 | DG46: INC | DH46: % | DI46: =DI49 -> 0.01457399103 | DJ46: $ | DK46: =INDEX('[1]Subcompact PC'!$H$379:$X$467,MATCH(DM48,'[1]Subcompact PC'!$C$379:$C$467,0),MATCH(Inputs!$C$2,'[1]Subcompact PC'!$H$378:$X$378,0))*$B$13 -> 232.9452905 | DL46: 10 | EV46: 2012-2016 | EW46: INC | EX46: % | EY46: =1-((1-EY47)/(1-EY39)) -> 0.01538461538 | EZ46: $ | FA46: =INDEX('[1]Subcompact PC'!$H$379:$X$467,MATCH(FC48,'[1]Subcompact PC'!$C$379:$C$467,0),MATCH(Inputs!$C$2,'[1]Subcompact PC'!$H$378:$X$378,0))*$B$13 -> 232.9452905 | FB46: 10
AA47: ABS | AB47: % | AC47: =1-((1-AC39)*(1-AC46)) -> 0.109779171 | AD47: $ | AE47: =AE39+AE46 -> 506.5856753 | AF47: L | BQ47: ABS | BR47: % | BS47: =1-((1-BS39)*(1-BS46)) -> 0.109779171 | BT47: $ | BU47: =BU39+BU46 -> 545.1135293 | BV47: L | DG47: ABS | DH47: % | DI47: =1-((1-DI39)*(1-DI46)) -> 0.1118001036 | DJ47: $ | DK47: =DK39+DK46 -> 603.5041162 | DL47: L | EW47: ABS | EX47: % | EY47: 0.104 | EZ47: $ | FA47: =FA39+FA46 -> 520.9561402 | FB47: L
AB48: Stoichiometric GDI (SGDI) - TBL | AG48: SGDI | BR48: Stoichiometric GDI (SGDI) - TBL | BW48: SGDI | DH48: Stoichiometric GDI (SGDI) - TBL | DM48: SGDI | EX48: Stoichiometric GDI (SGDIO) - TBL | FC48: SGDIO
Z49: 2017+ | AA49: INC | AB49: % | AC49: =1-((1-AC50)/(1-AC42)) -> 0.0156424581 | AD49: $ | AE49: =AE46 -> 232.9452905 | AF49: 10 | BP49: 2017+ | BQ49: INC | BR49: % | BS49: =1-((1-BS50)/(1-BS42)) -> 0.0156424581 | BT49: $ | BU49: =BU46 -> 232.9452905 | BV49: 10 | DF49: 2017+ | DG49: INC | DH49: % | DI49: =1-((1-DI50)/(1-DI42)) -> 0.01457399103 | DJ49: $ | DK49: =DK46 -> 232.9452905 | DL49: 10 | EV49: 2017+ | EW49: INC | EX49: % | EY49: =1-((1-EY50)/(1-EY42)) -> 0.0156424581 | EZ49: $ | FA49: =FA46 -> 232.9452905 | FB49: 10
X50: From SOHC Path | AA50: ABS | AB50: % | AC50: 0.119 | AD50: $ | AE50: =AE42+AE49 -> 569.4264071 | AF50: L | BN50: From DOHC w/ DVVLD Path | BQ50: ABS | BR50: % | BS50: 0.119 | BT50: $ | BU50: =BU42+BU49 -> 607.9542611 | BV50: L | DD50: From DOHC w/ CVVL Path | DG50: ABS | DH50: % | DI50: 0.121 | DJ50: $ | DK50: =DK42+DK49 -> 666.344848 | DL50: L | ET50: From OHV w/ CDOHC Path | EW50: ABS | EX50: % | EY50: 0.119 | EZ50: $ | FA50: =FA42+FA49 -> 583.796872 | FB50: L
BE53: =BE54-$O$54 -> 0 | BG53: =BG54-$Q$54 -> -10.3509432 | BS53: =BS54-$AC$54 -> 0 | BU53: =BU54-$AE$54 -> -137.4925796 | CG53: =CG54-$AQ$54 -> 0 | CI53: =CI54-$AS$54 -> -151.06222 | CU53: =CU54-$O$54 -> -0.007173320518 | CW53: =CW54-$Q$54 -> -10.3509432 | DI53: =DI54-$AC$54 -> -0.002122936626 | DK53: =DK54-$AE$54 -> -137.4925796 | DW53: =DW54-$AQ$54 -> -0.002122936626 | DY53: =DY54-$AS$54 -> -151.06222 | EK53: =EK54-$O$54 -> 0.04788051776 | EM53: =EM54-$Q$54 -> -420.0635842 | EY53: =EY54-$AC$54 -> 0 | FA53: =FA54-$AE$54 -> 562.7541357 | FM53: =FM54-$AQ$54 -> 0 | FO53: =FO54-$AS$54 -> 523.9804211
L54: 2012-2016 | M54: INC | N54: % | O54: =O57 -> 0.0720197369 | P54: $ | Q54: =INDEX('[1]Subcompact PC'!$H$379:$X$467,MATCH(M56,'[1]Subcompact PC'!$C$379:$C$467,0),MATCH(Inputs!$C$2,'[1]Subcompact PC'!$H$378:$X$378,0)) +INDEX('[1]Subcompact PC'!$H$379:$X$467,MATCH(S56,'[1]Subcompact PC'!$C$379:$C$467,0),MATCH(Inputs!$C$2,'[1]Subcompact PC'!$H$378:$X$378,0)) -> 420.0635842 | R54: 10 | Z54: 2012-2016 | AA54: INC | AB54: % | AC54: =AC57 -> 0.06696935301 | AD54: $ | AE54: =INDEX('[1]Subcompact PC'!$H$379:$X$467,MATCH(AA56,'[1]Subcompact PC'!$C$379:$C$467,0),MATCH(Inputs!$C$2,'[1]Subcompact PC'!$H$378:$X$378,0)) +INDEX('[1]Subcompact PC'!$H$379:$X$467,MATCH(AG56,'[1]Subcompact PC'!$C$379:$C$467,0),MATCH(Inputs!$C$2,'[1]Subcompact PC'!$H$378:$X$378,0)) -> -29.2678843 | AF54: 10 | AN54: 2012-2016 | AO54: INC | AP54: % | AQ54: =AQ57 -> 0.06696935301 | AR54: $ | AS54: =INDEX('[1]Subcompact PC'!$H$379:$X$467,MATCH(AO56,'[1]Subcompact PC'!$C$379:$C$467,0),MATCH(Inputs!$C$2,'[1]Subcompact PC'!$H$378:$X$378,0)) +INDEX('[1]Subcompact PC'!$H$379:$X$467,MATCH(AU56,'[1]Subcompact PC'!$C$379:$C$467,0),MATCH(Inputs!$C$2,'[1]Subcompact PC'!$H$378:$X$378,0)) -> 523.4808405 | AT54: 10 | BB54: 2012-2016 | BC54: INC | BD54: % | BE54: =BE57 -> 0.0720197369 | BF54: $ | BG54: =INDEX('[1]Subcompact PC'!$H$530:$X$541,MATCH(BC56,'[1]Subcompact PC'!$C$530:$C$541,0),MATCH(Inputs!$C$2,'[1]Subcompact PC'!$H$529:$X$529,0)) +INDEX('[1]Subcompact PC'!$H$530:$X$541,MATCH(BI56,'[1]Subcompact PC'!$C$530:$C$541,0),MATCH(Inputs!$C$2,'[1]Subcompact PC'!$H$529:$X$529,0)) -> 409.712641 | BH54: 10 | BP54: 2012-2016 | BQ54: INC | BR54: % | BS54: =BS57 -> 0.06696935301 | BT54: $ | BU54: =INDEX('[1]Subcompact PC'!$H$530:$X$541,MATCH(BQ56,'[1]Subcompact PC'!$C$530:$C$541,0),MATCH(Inputs!$C$2,'[1]Subcompact PC'!$H$529:$X$529,0)) +INDEX('[1]Subcompact PC'!$H$530:$X$541,MATCH(BW56,'[1]Subcompact PC'!$C$530:$C$541,0),MATCH(Inputs!$C$2,'[1]Subcompact PC'!$H$529:$X$529,0)) -> -166.7604639 | BV54: 10 | CD54: 2012-2016 | CE54: INC | CF54: % | CG54: =CG57 -> 0.06696935301 | CH54: $ | CI54: =INDEX('[1]Subcompact PC'!$H$530:$X$541,MATCH(CE56,'[1]Subcompact PC'!$C$530:$C$541,0),MATCH(Inputs!$C$2,'[1]Subcompact PC'!$H$529:$X$529,0)) +INDEX('[1]Subcompact PC'!$H$530:$X$541,MATCH(CK56,'[1]Subcompact PC'!$C$530:$C$541,0),MATCH(Inputs!$C$2,'[1]Subcompact PC'!$H$529:$X$529,0)) -> 372.4186205 | CJ54: 10 | CR54: 2012-2016 | CS54: INC | CT54: % | CU54: =CU57 -> 0.06484641638 | CV54: $ | CW54: =INDEX('[1]Subcompact PC'!$H$530:$X$541,MATCH(CS56,'[1]Subcompact PC'!$C$530:$C$541,0),MATCH(Inputs!$C$2,'[1]Subcompact PC'!$H$529:$X$529,0)) +INDEX('[1]Subcompact PC'!$H$530:$X$541,MATCH(CY56,'[1]Subcompact PC'!$C$530:$C$541,0),MATCH(Inputs!$C$2,'[1]Subcompact PC'!$H$529:$X$529,0)) -> 409.712641 | CX54: 10 | DF54: 2012-2016 | DG54: INC | DH54: % | DI54: =DI57 -> 0.06484641638 | DJ54: $ | DK54: =INDEX('[1]Subcompact PC'!$H$530:$X$541,MATCH(DG56,'[1]Subcompact PC'!$C$530:$C$541,0),MATCH(Inputs!$C$2,'[1]Subcompact PC'!$H$529:$X$529,0)) +INDEX('[1]Subcompact PC'!$H$530:$X$541,MATCH(DM56,'[1]Subcompact PC'!$C$530:$C$541,0),MATCH(Inputs!$C$2,'[1]Subcompact PC'!$H$529:$X$529,0)) -> -166.7604639 | DL54: 10 | DT54: 2012-2016 | DU54: INC | DV54: % | DW54: =DW57 -> 0.06484641638 | DX54: $ | DY54: =INDEX('[1]Subcompact PC'!$H$530:$X$541,MATCH(DU56,'[1]Subcompact PC'!$C$530:$C$541,0),MATCH(Inputs!$C$2,'[1]Subcompact PC'!$H$529:$X$529,0)) +INDEX('[1]Subcompact PC'!$H$530:$X$541,MATCH(EA56,'[1]Subcompact PC'!$C$530:$C$541,0),MATCH(Inputs!$C$2,'[1]Subcompact PC'!$H$529:$X$529,0)) -> 372.4186205 | DZ54: 10 | EH54: 2012-2016 | EI54: INC | EJ54: % | EK54: =EK57 -> 0.1199002547 | EL54: $ | EM54: =INDEX('[1]Subcompact PC'!$H$530:$X$541,MATCH(EI56,'[1]Subcompact PC'!$C$530:$C$541,0),MATCH(Inputs!$C$2,'[1]Subcompact PC'!$H$529:$X$529,0)) +INDEX('[1]Subcompact PC'!$H$530:$X$541,MATCH(EO56,'[1]Subcompact PC'!$C$530:$C$541,0),MATCH(Inputs!$C$2,'[1]Subcompact PC'!$H$529:$X$529,0)) -> 0 | EN54: 10 | EV54: 2012-2016 | EW54: INC | EX54: % | EY54: =EY57 -> 0.06696935301 | EZ54: $ | FA54: =INDEX('[1]Subcompact PC'!$H$530:$X$541,MATCH(EW56,'[1]Subcompact PC'!$C$530:$C$541,0),MATCH(Inputs!$C$2,'[1]Subcompact PC'!$H$529:$X$529,0)) +INDEX('[1]Subcompact PC'!$H$530:$X$541,MATCH(FC56,'[1]Subcompact PC'!$C$530:$C$541,0),MATCH(Inputs!$C$2,'[1]Subcompact PC'!$H$529:$X$529,0)) -> 533.4862514 | FB54: 10 | FJ54: 2012-2016 | FK54: INC | FL54: % | FM54: =FM57 -> 0.06696935301 | FN54: $ | FO54: =INDEX('[1]Subcompact PC'!$H$530:$X$541,MATCH(FK56,'[1]Subcompact PC'!$C$530:$C$541,0),MATCH(Inputs!$C$2,'[1]Subcompact PC'!$H$529:$X$529,0)) +INDEX('[1]Subcompact PC'!$H$530:$X$541,MATCH(FQ56,'[1]Subcompact PC'!$C$530:$C$541,0),MATCH(Inputs!$C$2,'[1]Subcompact PC'!$H$529:$X$529,0)) -> 1047.461262 | FP54: 10
M55: ABS | N55: % | O55: =1-((1-AC47+AC38)*(1-O54)) -> 0.1697636964 | P55: $ | Q55: =AE47+Q54 -> 926.6492596 | R55: L | AA55: ABS | AB55: % | AC55: =1-((1-AC47)*(1-AC54)) -> 0.1693966839 | AD55: $ | AE55: =AE47+AE54 -> 477.317791 | AF55: L | AO55: ABS | AP55: % | AQ55: =1-((1-AC47)*(1-AQ54)) -> 0.1693966839 | AR55: $ | AS55: =AE47+AS54 -> 1030.066516 | AT55: L | BC55: ABS | BD55: % | BE55: =1-((1-BS47)*(1-BE54)) -> 0.1738926409 | BF55: $ | BG55: =BU47+BG54 -> 954.8261703 | BH55: L | BQ55: ABS | BR55: % | BS55: =1-((1-BS47)*(1-BS54)) -> 0.1693966839 | BT55: $ | BU55: =BU47+BU54 -> 378.3530653 | BV55: L | CE55: ABS | CF55: % | CG55: =1-((1-BS47)*(1-CG54)) -> 0.1693966839 | CH55: $ | CI55: =BU47+CI54 -> 917.5321497 | CJ55: L | CS55: ABS | CT55: % | CU55: =1-((1-DI47)*(1-CU54)) -> 0.1693966839 | CV55: $ | CW55: =DK47+CW54 -> 1013.216757 | CX55: L | DG55: ABS | DH55: % | DI55: =1-((1-DI47)*(1-DI54)) -> 0.1693966839 | DJ55: $ | DK55: =DK47+DK54 -> 436.7436523 | DL55: L | DU55: ABS | DV55: % | DW55: =1-((1-DI47)*(1-DW54)) -> 0.1693966839 | DX55: $ | DY55: =DK47+DY54 -> 975.9227366 | DZ55: L | EI55: ABS | EJ55: % | EK55: =1-((1-EY47)*(1-EK54)) -> 0.2114306282 | EL55: $ | EM55: =FA47+EM54 -> 520.9561402 | EN55: L | EW55: ABS | EX55: % | EY55: =1-((1-EY47)*(1-EY54)) -> 0.1640045403 | EZ55: $ | FA55: =FA47+FA54 -> 1054.442392 | FB55: L | FK55: ABS | FL55: % | FM55: =1-((1-EY47)*(1-FM54)) -> 0.1640045403 | FN55: $ | FO55: =FA47+FO54 -> 1568.417402 | FP55: L
B56: INTERMEDIATE | M56: TRBDS1_SD_TB | N56: Turbocharging and Downsizing 1 (TRBDS1_SD) - TBL | S56: TRBDS1_SD_DS | AA56: TRBDS1_MD_TB | AB56: Turbocharging and Downsizing 1 (TRBDS1_MD) - TBL | AG56: TRBDS1_MD_DS | AO56: TRBDS1_LD_TB | AP56: Turbocharging and Downsizing 1 (TRBDS1_LD) - TBL | AU56: TRBDS1_LD_DS | BC56: TRBDS1_SD_TB_D | BD56: =$N$56 -> Turbocharging and Downsizing 1 (TRBDS1_SD) - TBL | BI56: TRBDS1_SD_DS_D | BQ56: TRBDS1_MD_TB_D | BR56: Turbocharging and Downsizing 1 (TRBDS1_MD) - TBL | BW56: TRBDS1_MD_DS_D | CE56: TRBDS1_LD_TB_D | CF56: =$AP$56 -> Turbocharging and Downsizing 1 (TRBDS1_LD) - TBL | CK56: TRBDS1_LD_DS_D | CS56: TRBDS1_SD_TB_D | CT56: =$N$56 -> Turbocharging and Downsizing 1 (TRBDS1_SD) - TBL | CY56: TRBDS1_SD_DS_D | DG56: TRBDS1_MD_TB_D | DH56: =$AB$56 -> Turbocharging and Downsizing 1 (TRBDS1_MD) - TBL | DM56: TRBDS1_MD_DS_D | DU56: TRBDS1_LD_TB_D | DV56: =$AP$56 -> Turbocharging and Downsizing 1 (TRBDS1_LD) - TBL | EA56: TRBDS1_LD_DS_D | EI56: TRBDS1_SD_TB_O | EJ56: =$N$56 -> Turbocharging and Downsizing 1 (TRBDS1_SD) - TBL | EO56: TRBDS1_SD_DS_O | EW56: TRBDS1_MD_TB_O | EX56: =$AB$56 -> Turbocharging and Downsizing 1 (TRBDS1_MD) - TBL | FC56: TRBDS1_MD_DS_O | FK56: TRBDS1_LD_TB_O | FL56: =$AP$56 -> Turbocharging and Downsizing 1 (TRBDS1_LD) - TBL | FQ56: TRBDS1_LD_DS_O
A57: Gas Engine Type | B57: I4 | L57: 2017+ | M57: INC | N57: % | O57: =1-((1-O58-AC41)/(1-AC50)) -> 0.0720197369 | P57: $ | Q57: =Q54 -> 420.0635842 | R57: 10 | Z57: 2017+ | AA57: INC | AB57: % | AC57: =1-((1-AC58)/(1-AC50)) -> 0.06696935301 | AD57: $ | AE57: =AE54 -> -29.2678843 | AF57: 10 | AN57: 2017+ | AO57: INC | AP57: % | AQ57: =1-((1-AQ58)/(1-AC50)) -> 0.06696935301 | AR57: $ | AS57: =AS54 -> 523.4808405 | AT57: 10 | BB57: 2017+ | BC57: INC | BD57: % | BE57: =1-((1-BE58-BS41)/(1-BS50)) -> 0.0720197369 | BF57: $ | BG57: =BG54 -> 409.712641 | BH57: 10 | BP57: 2017+ | BQ57: INC | BR57: % | BS57: =1-((1-BS58)/(1-BS50)) -> 0.06696935301 | BT57: $ | BU57: =BU54 -> -166.7604639 | BV57: 10 | CD57: 2017+ | CE57: INC | CF57: % | CG57: =1-((1-CG58)/(1-BS50)) -> 0.06696935301 | CH57: $ | CI57: =CI54 -> 372.4186205 | CJ57: 10 | CR57: 2017+ | CS57: INC | CT57: % | CU57: =1-((1-CU58-DI41)/(1-DI50)) -> 0.06484641638 | CV57: $ | CW57: =CW54 -> 409.712641 | CX57: 10 | DF57: 2017+ | DG57: INC | DH57: % | DI57: =1-((1-DI58)/(1-DI50)) -> 0.06484641638 | DJ57: $ | DK57: =DK54 -> -166.7604639 | DL57: 10 | DT57: 2017+ | DU57: INC | DV57: % | DW57: =1-((1-DW58)/(1-DI50)) -> 0.06484641638 | DX57: $ | DY57: =DY54 -> 372.4186205 | DZ57: 10 | EH57: 2017+ | EI57: INC | EJ57: % | EK57: =1-((1-EK58-EY33)/(1-EY50)) -> 0.1199002547 | EL57: $ | EM57: =EM54 -> 0 | EN57: 10 | EV57: 2017+ | EW57: INC | EX57: % | EY57: =1-((1-EY58)/(1-EY50)) -> 0.06696935301 | EZ57: $ | FA57: =FA54 -> 533.4862514 | FB57: 10 | FJ57: 2017+ | FK57: INC | FL57: % | FM57: =1-((1-FM58)/(1-EY50)) -> 0.06696935301 | FN57: $ | FO57: =FO54 -> 1047.461262 | FP57: 10
A58: Displacement [L] | B58: 1.5 to 2.0 | M58: ABS | N58: % | O58: 0.178 | P58: $ | Q58: =AE50+Q57 -> 989.4899914 | R58: L | AA58: ABS | AB58: % | AC58: =$O58 -> 0.178 | AD58: $ | AE58: =AE50+AE57 -> 540.1585228 | AF58: L | AO58: ABS | AP58: % | AQ58: =$O58 -> 0.178 | AR58: $ | AS58: =AE50+AS57 -> 1092.907248 | AT58: L | BC58: ABS | BD58: % | BE58: =$O58 -> 0.178 | BF58: $ | BG58: =BU50+BG57 -> 1017.666902 | BH58: L | BQ58: ABS | BR58: % | BS58: =$O58 -> 0.178 | BT58: $ | BU58: =BU50+BU57 -> 441.1937972 | BV58: L | CE58: ABS | CF58: % | CG58: =$AQ58 -> 0.178 | CH58: $ | CI58: =BU50+CI57 -> 980.3728815 | CJ58: L | CS58: ABS | CT58: % | CU58: =$O58 -> 0.178 | CV58: $ | CW58: =DK50+CW57 -> 1076.057489 | CX58: L | DG58: ABS | DH58: % | DI58: =$AC58 -> 0.178 | DJ58: $ | DK58: =DK50+DK57 -> 499.5843841 | DL58: L | DU58: ABS | DV58: % | DW58: =$AQ58 -> 0.178 | DX58: $ | DY58: =DK50+DY57 -> 1038.763468 | DZ58: L | EI58: ABS | EJ58: % | EK58: =$O58 -> 0.178 | EL58: $ | EM58: =FA50+EM57 -> 583.796872 | EN58: L | EW58: ABS | EX58: % | EY58: =$AC58 -> 0.178 | EZ58: $ | FA58: =FA50+FA57 -> 1117.283123 | FB58: L | FK58: ABS | FL58: % | FM58: =$AQ58 -> 0.178 | FN58: $ | FO58: =FA50+FO57 -> 1631.258134 | FP58: L
A59: Turbocharger | B59: FGT | BE59: =BE57-$O$57 -> 0 | BG59: =BG57-$Q$57 -> -10.3509432 | BS59: =BS57-$AC$57 -> 0 | BU59: =BU57-$AE$57 -> -137.4925796 | CG59: =CG57-$AQ$57 -> 0 | CI59: =CI57-$AS$57 -> -151.06222 | CU59: =CU57-$O$57 -> -0.007173320518 | CW59: =CW57-$Q$57 -> -10.3509432 | DI59: =DI57-$AC$57 -> -0.002122936626 | DK59: =DK57-$AE$57 -> -137.4925796 | DW59: =DW57-$AQ$57 -> -0.002122936626 | DY59: =DY57-$AS$57 -> -151.06222 | EK59: =EK57-$O$57 -> 0.04788051776 | EM59: =EM57-$Q$57 -> -420.0635842 | EY59: =EY57-$AC$57 -> 0 | FA59: =FA57-$AE$57 -> 562.7541357 | FM59: =FM57-$AQ$57 -> 0 | FO59: =FO57-$AS$57 -> 523.9804211
A60: EGR system | B60: External
A61: Valvetrain | B61: DOHC
A62: After Treatment | B62: 3way cat | L62: 2012-2016 | M62: INC | N62: % | O62: =1-((1-O63)/(1-O55)) -> 0 | P62: $ | Q62: 0 | R62: 0 | Z62: 2012-2016 | AA62: INC | AB62: % | AC62: =1-((1-AC63)/(1-AC55)) -> 0 | AD62: $ | AE62: 0 | AF62: 0 | AN62: 2012-2016 | AO62: INC | AP62: % | AQ62: =1-((1-AQ63)/(1-AQ55)) -> 0 | AR62: $ | AS62: 0 | AT62: 0 | BB62: 2012-2016 | BC62: INC | BD62: % | BE62: =1-((1-BE63)/(1-BE55)) -> 0 | BF62: $ | BG62: =$Q$62 -> 0 | BH62: =$R$62 -> 0 | BP62: 2012-2016 | BQ62: INC | BR62: % | BS62: =1-((1-BS63)/(1-BS55)) -> 0 | BT62: $ | BU62: =$AE$62 -> 0 | BV62: =$AF$62 -> 0 | CD62: 2012-2016 | CE62: INC | CF62: % | CG62: =1-((1-CG63)/(1-CG55)) -> 0 | CH62: $ | CI62: =$AS$62 -> 0 | CJ62: =$AT$62 -> 0 | CR62: 2012-2016 | CS62: INC | CT62: % | CU62: =1-((1-CU63)/(1-CU55)) -> 0 | CV62: $ | CW62: =$Q$62 -> 0 | CX62: =$R$62 -> 0 | DF62: 2012-2016 | DG62: INC | DH62: % | DI62: =1-((1-DI63)/(1-DI55)) -> 0 | DJ62: $ | DK62: =$AE$62 -> 0 | DL62: =$AF$62 -> 0 | DT62: 2012-2016 | DU62: INC | DV62: % | DW62: =1-((1-DW63)/(1-DW55)) -> 0 | DX62: $ | DY62: =$AS$62 -> 0 | DZ62: =$AT$62 -> 0 | EH62: 2012-2016 | EI62: INC | EJ62: % | EK62: =$O$62 -> 0 | EL62: $ | EM62: =$Q$62 -> 0 | EN62: =$R$62 -> 0 | EV62: 2012-2016 | EW62: INC | EX62: % | EY62: =1-((1-EY63)/(1-EY55)) -> 0 | EZ62: $ | FA62: =$AE$62 -> 0 | FB62: =$AF$62 -> 0 | FJ62: 2012-2016 | FK62: INC | FL62: % | FM62: =1-((1-FM63)/(1-FM55)) -> 0 | FN62: $ | FO62: =$AS$62 -> 0 | FP62: =$AT$62 -> 0
M63: ABS | N63: % | O63: =O55 -> 0.1697636964 | P63: $ | Q63: =Q55+Q62 -> 926.6492596 | R63: L | AA63: ABS | AB63: % | AC63: =AC55 -> 0.1693966839 | AD63: $ | AE63: =AE55+AE62 -> 477.317791 | AF63: L | AO63: ABS | AP63: % | AQ63: =AQ55 -> 0.1693966839 | AR63: $ | AS63: =AS55+AS62 -> 1030.066516 | AT63: L | BC63: ABS | BD63: % | BE63: =BE55 -> 0.1738926409 | BF63: $ | BG63: =BG55+BG62 -> 954.8261703 | BH63: L | BQ63: ABS | BR63: % | BS63: =BS55 -> 0.1693966839 | BT63: $ | BU63: =BU55+BU62 -> 378.3530653 | BV63: L | CE63: ABS | CF63: % | CG63: =CG55 -> 0.1693966839 | CH63: $ | CI63: =CI55+CI62 -> 917.5321497 | CJ63: L | CS63: ABS | CT63: % | CU63: =CU55 -> 0.1693966839 | CV63: $ | CW63: =CW55+CW62 -> 1013.216757 | CX63: L | DG63: ABS | DH63: % | DI63: =DI55 -> 0.1693966839 | DJ63: $ | DK63: =DK55+DK62 -> 436.7436523 | DL63: L | DU63: ABS | DV63: % | DW63: =DW55 -> 0.1693966839 | DX63: $ | DY63: =DY55+DY62 -> 975.9227366 | DZ63: L | EI63: ABS | EJ63: % | EK63: =1-((1-EK55)*(1-EK62)) -> 0.2114306282 | EL63: $ | EM63: =EM55+EM62 -> 520.9561402 | EN63: L | EW63: ABS | EX63: % | EY63: =EY55 -> 0.1640045403 | EZ63: $ | FA63: =FA55+FA62 -> 1054.442392 | FB63: L | FK63: ABS | FL63: % | FM63: =FM55 -> 0.1640045403 | FN63: $ | FO63: =FO55+FO62 -> 1568.417402 | FP63: L
M64: TRBDS2_SD_TB | N64: Turbocharging and Downsizing 2 (TRBDS2_SD) - TBL | S64: TRBDS2_SD_DS | AA64: TRBDS2_MD_TB | AB64: Turbocharging and Downsizing 2 (TRBDS2_MD) - TBL | AG64: TRBDS2_MD_DS | AO64: TRBDS2_LD_TB | AP64: Turbocharging and Downsizing 2 (TRBDS2_LD) - TBL | AU64: TRBDS2_LD_DS | BC64: TRBDS2_SD_TB | BD64: =$N$64 -> Turbocharging and Downsizing 2 (TRBDS2_SD) - TBL | BI64: TRBDS2_SD_DS | BQ64: TRBDS2_MD_TB | BR64: =$AB$64 -> Turbocharging and Downsizing 2 (TRBDS2_MD) - TBL | BW64: TRBDS2_MD_DS | CE64: TRBDS2_LD_TB | CF64: =$AP$64 -> Turbocharging and Downsizing 2 (TRBDS2_LD) - TBL | CK64: TRBDS2_LD_DS | CS64: TRBDS2_SD_TB | CT64: =$N$64 -> Turbocharging and Downsizing 2 (TRBDS2_SD) - TBL | CY64: TRBDS2_SD_DS | DG64: TRBDS2_MD_TB | DH64: =$AB$64 -> Turbocharging and Downsizing 2 (TRBDS2_MD) - TBL | DM64: TRBDS2_MD_DS | DU64: TRBDS2_LD_TB | DV64: Cooled EGR 1 (CEGR1_LD) - TBL | EA64: TRBDS2_LD_DS | EI64: TRBDS2_SD_TB | EJ64: =$N$64 -> Turbocharging and Downsizing 2 (TRBDS2_SD) - TBL | EO64: TRBDS2_SD_DS | EW64: TRBDS2_MD_TB | EX64: =$AB$64 -> Turbocharging and Downsizing 2 (TRBDS2_MD) - TBL | FC64: TRBDS2_MD_DS | FK64: TRBDS2_LD_TB | FL64: Cooled EGR 1 (CEGR1_LD) - TBL | FQ64: TRBDS2_LD_DS
B65: INTERMEDIATE | L65: 2017+ | M65: INC | N65: % | O65: =1-((1-O66)/(1-O58)) -> 0.02919708029 | P65: $ | Q65: =INDEX('[1]Large PC'!$H$379:$X$467,MATCH(M64,'[1]Large PC'!$C$379:$C$467,0),MATCH(Inputs!$C$2,'[1]Large PC'!$H$378:$X$378,0)) +INDEX('[1]Large PC'!$H$379:$X$467,MATCH(S64,'[1]Large PC'!$C$379:$C$467,0),MATCH(Inputs!$C$2,'[1]Large PC'!$H$378:$X$378,0)) -> 19.91424688 | R65: 10 | Z65: 2017+ | AA65: INC | AB65: % | AC65: =1-((1-AC66)/(1-AC58)) -> 0.02919708029 | AD65: $ | AE65: =INDEX('[1]Subcompact PC'!$H$379:$X$467,MATCH(AA64,'[1]Subcompact PC'!$C$379:$C$467,0),MATCH(Inputs!$C$2,'[1]Subcompact PC'!$H$378:$X$378,0)) +INDEX('[1]Subcompact PC'!$H$379:$X$467,MATCH(AG64,'[1]Subcompact PC'!$C$379:$C$467,0),MATCH(Inputs!$C$2,'[1]Subcompact PC'!$H$378:$X$378,0)) -> 247.5936885 | AF65: 10 | AN65: 2017+ | AO65: INC | AP65: % | AQ65: =1-((1-AQ66)/(1-AQ58)) -> 0.02919708029 | AR65: $ | AS65: =INDEX('[1]Subcompact PC'!$H$379:$X$467,MATCH(AO64,'[1]Subcompact PC'!$C$379:$C$467,0),MATCH(Inputs!$C$2,'[1]Subcompact PC'!$H$378:$X$378,0)) +INDEX('[1]Subcompact PC'!$H$379:$X$467,MATCH(AU64,'[1]Subcompact PC'!$C$379:$C$467,0),MATCH(Inputs!$C$2,'[1]Subcompact PC'!$H$378:$X$378,0)) -> 417.3547076 | AT65: 10 | BB65: 2017+ | BC65: INC | BD65: % | BE65: =1-((1-BE66)/(1-BE58)) -> 0.02919708029 | BF65: $ | BG65: =$Q65 -> 19.91424688 | BH65: =$R$65 -> 10 | BP65: 2017+ | BQ65: INC | BR65: % | BS65: =1-((1-BS66)/(1-BS58)) -> 0.02919708029 | BT65: $ | BU65: =$AE$65 -> 247.5936885 | BV65: =$AF$65 -> 10 | CD65: 2017+ | CE65: INC | CF65: % | CG65: =1-((1-CG66)/(1-CG58)) -> 0.02919708029 | CH65: $ | CI65: =$AS$65 -> 417.3547076 | CJ65: =$AT$65 -> 10 | CR65: 2017+ | CS65: INC | CT65: % | CU65: =1-((1-CU66)/(1-CU58)) -> 0.02919708029 | CV65: $ | CW65: =$Q65 -> 19.91424688 | CX65: =$R$65 -> 10 | DF65: 2017+ | DG65: INC | DH65: % | DI65: =1-((1-DI66)/(1-DI58)) -> 0.02919708029 | DJ65: $ | DK65: =$AE$65 -> 247.5936885 | DL65: =$AF$65 -> 10 | DT65: 2017+ | DU65: INC | DV65: % | DW65: =1-((1-DW66)/(1-DW58)) -> 0.02919708029 | DX65: $ | DY65: =$AS$65 -> 417.3547076 | DZ65: =$AT$65 -> 10 | EH65: 2017+ | EI65: INC | EJ65: % | EK65: =1-((1-EK66)/(1-EK58)) -> 0.02919708029 | EL65: $ | EM65: =$Q65 -> 19.91424688 | EN65: =$R$65 -> 10 | EV65: 2017+ | EW65: INC | EX65: % | EY65: =1-((1-EY66)/(1-EY58)) -> 0.02919708029 | EZ65: $ | FA65: =$AE$65 -> 247.5936885 | FB65: =$AF$65 -> 10 | FJ65: 2017+ | FK65: INC | FL65: % | FM65: =1-((1-FM66)/(1-FM58)) -> 0.02919708029 | FN65: $ | FO65: =$AS$65 -> 417.3547076 | FP65: =$AT$65 -> 10
A66: Gas Engine Type | B66: I4 | M66: ABS | N66: % | O66: 0.202 | P66: $ | Q66: =Q58+Q65 -> 1009.404238 | R66: L | AA66: ABS | AB66: % | AC66: =$O66 -> 0.202 | AD66: $ | AE66: =AE58+AE65 -> 787.7522113 | AF66: L | AO66: ABS | AP66: % | AQ66: =$O66 -> 0.202 | AR66: $ | AS66: =AS58+AS65 -> 1510.261955 | AT66: L | BC66: ABS | BD66: % | BE66: =$O66 -> 0.202 | BF66: $ | BG66: =BG58+BG65 -> 1037.581149 | BH66: L | BQ66: ABS | BR66: % | BS66: =$O66 -> 0.202 | BT66: $ | BU66: =BU58+BU65 -> 688.7874856 | BV66: L | CE66: ABS | CF66: % | CG66: =$AQ66 -> 0.202 | CH66: $ | CI66: =CI58+CI65 -> 1397.727589 | CJ66: L | CS66: ABS | CT66: % | CU66: =$O66 -> 0.202 | CV66: $ | CW66: =CW58+CW65 -> 1095.971736 | CX66: L | DG66: ABS | DH66: % | DI66: =$AC66 -> 0.202 | DJ66: $ | DK66: =DK58+DK65 -> 747.1780726 | DL66: L | DU66: ABS | DV66: % | DW66: =$AQ66 -> 0.202 | DX66: $ | DY66: =DY58+DY65 -> 1456.118176 | DZ66: L | EI66: ABS | EJ66: % | EK66: =$O66 -> 0.202 | EL66: $ | EM66: =EM58+EM65 -> 603.7111189 | EN66: L | EW66: ABS | EX66: % | EY66: =$AC66 -> 0.202 | EZ66: $ | FA66: =FA58+FA65 -> 1364.876812 | FB66: L | FK66: ABS | FL66: % | FM66: =$AQ66 -> 0.202 | FN66: $ | FO66: =FO58+FO65 -> 2048.612841 | FP66: L
A67: Displacement [L] | B67: 1
A68: Turbocharger | B68: FGT
A69: EGR system | B69: External
A70: Valvetrain | B70: DOHC | L70: 2012-2016 | M70: INC | N70: % | O70: =1-((1-O71)/(1-O63)) -> 0 | P70: $ | Q70: 0 | R70: 0 | Z70: 2012-2016 | AA70: INC | AB70: % | AC70: =1-((1-AC71)/(1-AC63)) -> 0 | AD70: $ | AE70: 0 | AF70: 0 | AN70: 2012-2016 | AO70: INC | AP70: % | AQ70: =1-((1-AQ71)/(1-AQ63)) -> 0 | AR70: $ | AS70: 0 | AT70: 0 | BB70: 2012-2016 | BC70: INC | BD70: % | BE70: =1-((1-BE71)/(1-BE63)) -> 0 | BF70: $ | BG70: =$Q$70 -> 0 | BH70: =$R$70 -> 0 | BP70: 2012-2016 | BQ70: INC | BR70: % | BS70: =1-((1-BS71)/(1-BS63)) -> 0 | BT70: $ | BU70: =$AE$70 -> 0 | BV70: =$AF$70 -> 0 | CD70: 2012-2016 | CE70: INC | CF70: % | CG70: =1-((1-CG71)/(1-CG63)) -> 0 | CH70: $ | CI70: =$AS$70 -> 0 | CJ70: =$AT$70 -> 0 | CR70: 2012-2016 | CS70: INC | CT70: % | CU70: =1-((1-CU71)/(1-CU63)) -> 0 | CV70: $ | CW70: =$Q$70 -> 0 | CX70: =$R$70 -> 0 | DF70: 2012-2016 | DG70: INC | DH70: % | DI70: =1-((1-DI71)/(1-DI63)) -> 0 | DJ70: $ | DK70: =$AE$70 -> 0 | DL70: =$AF$70 -> 0 | DT70: 2012-2016 | DU70: INC | DV70: % | DW70: =1-((1-DW71)/(1-DW63)) -> 0 | DX70: $ | DY70: =$AS$70 -> 0 | DZ70: =$AT$70 -> 0 | EH70: 2012-2016 | EI70: INC | EJ70: % | EK70: =1-((1-EK71)/(1-EK63)) -> 0 | EL70: $ | EM70: =$Q$70 -> 0 | EN70: =$R$70 -> 0 | EV70: 2012-2016 | EW70: INC | EX70: % | EY70: =1-((1-EY71)/(1-EY63)) -> 0 | EZ70: $ | FA70: =$AE$70 -> 0 | FB70: =$AF$70 -> 0 | FJ70: 2012-2016 | FK70: INC | FL70: % | FM70: =1-((1-FM71)/(1-FM63)) -> 0 | FN70: $ | FO70: =$AS$70 -> 0 | FP70: =$AT$70 -> 0
A71: After Treatment | B71: 3way cat | M71: ABS | N71: % | O71: =O63 -> 0.1697636964 | P71: $ | Q71: =Q63+Q70 -> 926.6492596 | R71: L | AA71: ABS | AB71: % | AC71: =AC63 -> 0.1693966839 | AD71: $ | AE71: =AE63+AE70 -> 477.317791 | AF71: L | AO71: ABS | AP71: % | AQ71: =AQ63 -> 0.1693966839 | AR71: $ | AS71: =AS63+AS70 -> 1030.066516 | AT71: L | BC71: ABS | BD71: % | BE71: =BE63 -> 0.1738926409 | BF71: $ | BG71: =BG63+BG70 -> 954.8261703 | BH71: L | BQ71: ABS | BR71: % | BS71: =BS63 -> 0.1693966839 | BT71: $ | BU71: =BU63+BU70 -> 378.3530653 | BV71: L | CE71: ABS | CF71: % | CG71: =CG63 -> 0.1693966839 | CH71: $ | CI71: =CI63+CI70 -> 917.5321497 | CJ71: L | CS71: ABS | CT71: % | CU71: =CU63 -> 0.1693966839 | CV71: $ | CW71: =CW63+CW70 -> 1013.216757 | CX71: L | DG71: ABS | DH71: % | DI71: =DI63 -> 0.1693966839 | DJ71: $ | DK71: =DK63+DK70 -> 436.7436523 | DL71: L | DU71: ABS | DV71: % | DW71: =DW63 -> 0.1693966839 | DX71: $ | DY71: =DY63+DY70 -> 975.9227366 | DZ71: L | EI71: ABS | EJ71: % | EK71: =EK63 -> 0.2114306282 | EL71: $ | EM71: =EM63+EM70 -> 520.9561402 | EN71: L | EW71: ABS | EX71: % | EY71: =EY63 -> 0.1640045403 | EZ71: $ | FA71: =FA63+FA70 -> 1054.442392 | FB71: L | FK71: ABS | FL71: % | FM71: =FM63 -> 0.1640045403 | FN71: $ | FO71: =FO63+FO70 -> 1568.417402 | FP71: L
M72: CEGR1_SD_TB | N72: Cooled EGR 1 (CEGR1_SD) - TBL | S72: CEGR1_SD_DS | AA72: CEGR1_MD_TB | AB72: Cooled EGR 1 (CEGR1_MD) - TBL | AG72: CEGR1_MD_DS | AO72: CEGR1_LD_TB | AP72: Cooled EGR 1 (CEGR1_LD) - TBL | AU72: CEGR1_LD_DS | BC72: CEGR1_SD_TB | BD72: =$N$72 -> Cooled EGR 1 (CEGR1_SD) - TBL | BI72: CEGR1_SD_DS | BQ72: CEGR1_MD_TB | BR72: =$AB$72 -> Cooled EGR 1 (CEGR1_MD) - TBL | BW72: CEGR1_MD_DS | CE72: CEGR1_LD_TB | CF72: =$AP$72 -> Cooled EGR 1 (CEGR1_LD) - TBL | CK72: CEGR1_LD_DS | CS72: CEGR1_SD_TB | CT72: =$N$72 -> Cooled EGR 1 (CEGR1_SD) - TBL | CY72: CEGR1_SD_DS | DG72: CEGR1_MD_TB | DH72: =$AB$72 -> Cooled EGR 1 (CEGR1_MD) - TBL | DM72: CEGR1_MD_DS | DU72: CEGR1_LD_TB | DV72: =$AP$72 -> Cooled EGR 1 (CEGR1_LD) - TBL | EA72: CEGR1_LD_DS | EI72: CEGR1_SD_TB | EJ72: =$N$72 -> Cooled EGR 1 (CEGR1_SD) - TBL | EO72: CEGR1_SD_DS | EW72: CEGR1_MD_TB | EX72: =$AB$72 -> Cooled EGR 1 (CEGR1_MD) - TBL | FC72: CEGR1_MD_DS | FK72: CEGR1_LD_TB | FL72: =$AP$72 -> Cooled EGR 1 (CEGR1_LD) - TBL | FQ72: CEGR1_LD_DS
L73: 2017+ | M73: INC | N73: % | O73: =1-((1-O74)/(1-O66)) -> 0.03634085213 | P73: $ | Q73: =INDEX('[1]Large Perf. PC'!$H$379:$X$467,MATCH(M72,'[1]Large Perf. PC'!$C$379:$C$467,0),MATCH(Inputs!$C$2,'[1]Large Perf. PC'!$H$378:$X$378,0)) +INDEX('[1]Large Perf. PC'!$H$379:$X$467,MATCH(S72,'[1]Large Perf. PC'!$C$379:$C$467,0),MATCH(Inputs!$C$2,'[1]Large Perf. PC'!$H$378:$X$378,0)) -> 285.1546693 | R73: 10 | Z73: 2017+ | AA73: INC | AB73: % | AC73: =1-((1-AC74)/(1-AC66)) -> 0.03634085213 | AD73: $ | AE73: =INDEX('[1]Subcompact PC'!$H$379:$X$467,MATCH(AA72,'[1]Subcompact PC'!$C$379:$C$467,0),MATCH(Inputs!$C$2,'[1]Subcompact PC'!$H$378:$X$378,0)) +INDEX('[1]Subcompact PC'!$H$379:$X$467,MATCH(AG72,'[1]Subcompact PC'!$C$379:$C$467,0),MATCH(Inputs!$C$2,'[1]Subcompact PC'!$H$378:$X$378,0)) -> 285.1546693 | AF73: 10 | AN73: 2017+ | AO73: INC | AP73: % | AQ73: =1-((1-AQ74)/(1-AQ66)) -> 0.03634085213 | AR73: $ | AS73: =INDEX('[1]Subcompact PC'!$H$379:$X$467,MATCH(AO72,'[1]Subcompact PC'!$C$379:$C$467,0),MATCH(Inputs!$C$2,'[1]Subcompact PC'!$H$378:$X$378,0)) +INDEX('[1]Subcompact PC'!$H$379:$X$467,MATCH(AU72,'[1]Subcompact PC'!$C$379:$C$467,0),MATCH(Inputs!$C$2,'[1]Subcompact PC'!$H$378:$X$378,0)) -> 285.1546693 | AT73: 10 | BB73: 2017+ | BC73: INC | BD73: % | BE73: =$O$73 -> 0.03634085213 | BF73: $ | BG73: =$Q$73 -> 285.1546693 | BH73: =$R$73 -> 10 | BP73: 2017+ | BQ73: INC | BR73: % | BS73: =$AC$73 -> 0.03634085213 | BT73: $ | BU73: =$AE$73 -> 285.1546693 | BV73: =$AF$73 -> 10 | CD73: 2017+ | CE73: INC | CF73: % | CG73: =$AQ$73 -> 0.03634085213 | CH73: $ | CI73: =$AS$73 -> 285.1546693 | CJ73: =$AT$73 -> 10 | CR73: 2017+ | CS73: INC | CT73: % | CU73: =$O$73 -> 0.03634085213 | CV73: $ | CW73: =$Q$73 -> 285.1546693 | CX73: =$R$73 -> 10 | DF73: 2017+ | DG73: INC | DH73: % | DI73: =$AC$73 -> 0.03634085213 | DJ73: $ | DK73: =$AE$73 -> 285.1546693 | DL73: =$AF$73 -> 10 | DT73: 2017+ | DU73: INC | DV73: % | DW73: =$AQ$73 -> 0.03634085213 | DX73: $ | DY73: =$AS$73 -> 285.1546693 | DZ73: =$AT$73 -> 10 | EH73: 2017+ | EI73: INC | EJ73: % | EK73: =$O$73 -> 0.03634085213 | EL73: $ | EM73: =$Q$73 -> 285.1546693 | EN73: =$R$73 -> 10 | EV73: 2017+ | EW73: INC | EX73: % | EY73: =$AC$73 -> 0.03634085213 | EZ73: $ | FA73: =$AE$73 -> 285.1546693 | FB73: =$AF$73 -> 10 | FJ73: 2017+ | FK73: INC | FL73: % | FM73: =$AQ$73 -> 0.03634085213 | FN73: $ | FO73: =$AS$73 -> 285.1546693 | FP73: =$AT$73 -> 10
M74: ABS | N74: % | O74: 0.231 | P74: $ | Q74: =Q66+Q73 -> 1294.558908 | R74: L | AA74: ABS | AB74: % | AC74: =O74 -> 0.231 | AD74: $ | AE74: =AE66+AE73 -> 1072.906881 | AF74: L | AO74: ABS | AP74: % | AQ74: =O74 -> 0.231 | AR74: $ | AS74: =AS66+AS73 -> 1795.416625 | AT74: L | BC74: ABS | BD74: % | BE74: =1-((1-BE66)*(1-BE73)) -> 0.231 | BF74: $ | BG74: =BG66+BG73 -> 1322.735818 | BH74: L | BQ74: ABS | BR74: % | BS74: =$O74 -> 0.231 | BT74: $ | BU74: =BU66+BU73 -> 973.942155 | BV74: L | CE74: ABS | CF74: % | CG74: =$AQ74 -> 0.231 | CH74: $ | CI74: =CI66+CI73 -> 1682.882258 | CJ74: L | CS74: ABS | CT74: % | CU74: =$O74 -> 0.231 | CV74: $ | CW74: =CW66+CW73 -> 1381.126405 | CX74: L | DG74: ABS | DH74: % | DI74: =$AC74 -> 0.231 | DJ74: $ | DK74: =DK66+DK73 -> 1032.332742 | DL74: L | DU74: ABS | DV74: % | DW74: =$AQ74 -> 0.231 | DX74: $ | DY74: =DY66+DY73 -> 1741.272845 | DZ74: L | EI74: ABS | EJ74: % | EK74: =$O74 -> 0.231 | EL74: $ | EM74: =EM66+EM73 -> 888.8657882 | EN74: L | EW74: ABS | EX74: % | EY74: =$AC74 -> 0.231 | EZ74: $ | FA74: =FA66+FA73 -> 1650.031481 | FB74: L | FK74: ABS | FL74: % | FM74: =$AQ74 -> 0.231 | FN74: $ | FO74: =FO66+FO73 -> 2333.767511 | FP74: L
L78: 2012-2016 | M78: INC | N78: % | O78: =1-((1-O79)/(1-O71)) -> 0 | P78: $ | Q78: 0 | R78: 0 | Z78: 2012-2016 | AA78: INC | AB78: % | AC78: =1-((1-AC79)/(1-AC71)) -> 0 | AD78: $ | AE78: 0 | AF78: 0 | AN78: 2012-2016 | AO78: INC | AP78: % | AQ78: =1-((1-AQ79)/(1-AQ71)) -> 0 | AR78: $ | AS78: 0 | AT78: 0 | BB78: 2012-2016 | BC78: INC | BD78: % | BE78: =1-((1-BE79)/(1-BE71)) -> 0 | BF78: $ | BG78: =$Q$78 -> 0 | BH78: =$R$78 -> 0 | BP78: 2012-2016 | BQ78: INC | BR78: % | BS78: =1-((1-BS79)/(1-BS71)) -> 0 | BT78: $ | BU78: =$AE$78 -> 0 | BV78: =$AF$78 -> 0 | CD78: 2012-2016 | CE78: INC | CF78: % | CG78: =1-((1-CG79)/(1-CG71)) -> 0 | CH78: $ | CI78: =$AS$78 -> 0 | CJ78: =$AT$78 -> 0 | CR78: 2012-2016 | CS78: INC | CT78: % | CU78: =1-((1-CU79)/(1-CU71)) -> 0 | CV78: $ | CW78: =$Q$78 -> 0 | CX78: =$R$78 -> 0 | DF78: 2012-2016 | DG78: INC | DH78: % | DI78: =1-((1-DI79)/(1-DI71)) -> 0 | DJ78: $ | DK78: =$AE$78 -> 0 | DL78: =$AF$78 -> 0 | DT78: 2012-2016 | DU78: INC | DV78: % | DW78: =1-((1-DW79)/(1-DW71)) -> 0 | DX78: $ | DY78: =$AS$78 -> 0 | DZ78: =$AT$78 -> 0 | EH78: 2012-2016 | EI78: INC | EJ78: % | EK78: =1-((1-EK79)/(1-EK71)) -> 0 | EL78: $ | EM78: =$Q$78 -> 0 | EN78: =$R$78 -> 0 | EV78: 2012-2016 | EW78: INC | EX78: % | EY78: =1-((1-EY79)/(1-EY71)) -> 0 | EZ78: $ | FA78: =$AE$78 -> 0 | FB78: =$AF$78 -> 0 | FJ78: 2012-2016 | FK78: INC | FL78: % | FM78: =1-((1-FM79)/(1-FM71)) -> 0 | FN78: $ | FO78: =$AS$78 -> 0 | FP78: =$AT$78 -> 0
M79: ABS | N79: % | O79: =O71 -> 0.1697636964 | P79: $ | Q79: =Q71+Q78 -> 926.6492596 | R79: L | AA79: ABS | AB79: % | AC79: =AC71 -> 0.1693966839 | AD79: $ | AE79: =AE71+AE78 -> 477.317791 | AF79: L | AO79: ABS | AP79: % | AQ79: =AQ71 -> 0.1693966839 | AR79: $ | AS79: =AS71+AS78 -> 1030.066516 | AT79: L | BC79: ABS | BD79: % | BE79: =BE71 -> 0.1738926409 | BF79: $ | BG79: =BG71+BG78 -> 954.8261703 | BH79: L | BQ79: ABS | BR79: % | BS79: =BS71 -> 0.1693966839 | BT79: $ | BU79: =BU71+BU78 -> 378.3530653 | BV79: L | CE79: ABS | CF79: % | CG79: =CG71 -> 0.1693966839 | CH79: $ | CI79: =CI71+CI78 -> 917.5321497 | CJ79: L | CS79: ABS | CT79: % | CU79: =CU71 -> 0.1693966839 | CV79: $ | CW79: =CW71+CW78 -> 1013.216757 | CX79: L | DG79: ABS | DH79: % | DI79: =DI71 -> 0.1693966839 | DJ79: $ | DK79: =DK71+DK78 -> 436.7436523 | DL79: L | DU79: ABS | DV79: % | DW79: =DW71 -> 0.1693966839 | DX79: $ | DY79: =DY71+DY78 -> 975.9227366 | DZ79: L | EI79: ABS | EJ79: % | EK79: =EK71 -> 0.2114306282 | EL79: $ | EM79: =EM71+EM78 -> 520.9561402 | EN79: L | EW79: ABS | EX79: % | EY79: =EY71 -> 0.1640045403 | EZ79: $ | FA79: =FA71+FA78 -> 1054.442392 | FB79: L | FK79: ABS | FL79: % | FM79: =FM71 -> 0.1640045403 | FN79: $ | FO79: =FO71+FO78 -> 1568.417402 | FP79: L
M80: CEGR2_SD_TB | N80: Cooled EGR 2 (CEGR2_SD) - TBL | S80: CEGR2_SD_DS | AA80: CEGR2_MD_TB | AB80: Cooled EGR 2 (CEGR2_MD) - TBL | AG80: CEGR2_MD_DS | AO80: CEGR2_LD_TB | AP80: Cooled EGR 2 (CEGR2_LD) - TBL | AU80: CEGR2_LD_DS | BC80: CEGR2_SD_TB | BD80: =$N$80 -> Cooled EGR 2 (CEGR2_SD) - TBL | BI80: CEGR2_SD_DS | BQ80: CEGR2_MD_TB | BR80: =$AB$80 -> Cooled EGR 2 (CEGR2_MD) - TBL | BW80: CEGR2_MD_DS | CE80: CEGR2_LD_TB | CF80: =$AP$80 -> Cooled EGR 2 (CEGR2_LD) - TBL | CK80: CEGR2_LD_DS | CS80: CEGR2_SD_TB | CT80: =$N$80 -> Cooled EGR 2 (CEGR2_SD) - TBL | CY80: CEGR2_SD_DS | DG80: CEGR2_MD_TB | DH80: =$AB$80 -> Cooled EGR 2 (CEGR2_MD) - TBL | DM80: CEGR2_MD_DS | DU80: CEGR2_LD_TB | DV80: =$AP$80 -> Cooled EGR 2 (CEGR2_LD) - TBL | EA80: CEGR2_LD_DS | EI80: CEGR2_SD_TB | EJ80: =$N$80 -> Cooled EGR 2 (CEGR2_SD) - TBL | EO80: CEGR2_SD_DS | EW80: CEGR2_MD_TB | EX80: =$AB$80 -> Cooled EGR 2 (CEGR2_MD) - TBL | FC80: CEGR2_MD_DS | FK80: CEGR2_LD_TB | FL80: =$AP$80 -> Cooled EGR 2 (CEGR2_LD) - TBL | FQ80: CEGR2_LD_DS
B81: STOP | L81: 2017+ | M81: INC | N81: % | O81: =1-((1-O82)/(1-O74)) -> 0.01040312094 | P81: $ | Q81: =INDEX('[1]Subcompact PC'!$H$379:$X$467,MATCH(M80,'[1]Subcompact PC'!$C$379:$C$467,0),MATCH(Inputs!$C$2,'[1]Subcompact PC'!$H$378:$X$378,0)) +INDEX('[1]Subcompact PC'!$H$379:$X$467,MATCH(S80,'[1]Subcompact PC'!$C$379:$C$467,0),MATCH(Inputs!$C$2,'[1]Subcompact PC'!$H$378:$X$378,0)) -> 495.187377 | R81: 10 | Z81: 2017+ | AA81: INC | AB81: % | AC81: =1-((1-AC82)/(1-AC74)) -> 0.01040312094 | AD81: $ | AE81: =INDEX('[1]Subcompact PC'!$H$379:$X$467,MATCH(AA80,'[1]Subcompact PC'!$C$379:$C$467,0),MATCH(Inputs!$C$2,'[1]Subcompact PC'!$H$378:$X$378,0)) +INDEX('[1]Subcompact PC'!$H$379:$X$467,MATCH(AG80,'[1]Subcompact PC'!$C$379:$C$467,0),MATCH(Inputs!$C$2,'[1]Subcompact PC'!$H$378:$X$378,0)) -> 495.187377 | AF81: 10 | AN81: 2017+ | AO81: INC | AP81: % | AQ81: =1-((1-AQ82)/(1-AQ74)) -> 0.01040312094 | AR81: $ | AS81: =INDEX('[1]Subcompact PC'!$H$379:$X$467,MATCH(AO80,'[1]Subcompact PC'!$C$379:$C$467,0),MATCH(Inputs!$C$2,'[1]Subcompact PC'!$H$378:$X$378,0)) +INDEX('[1]Subcompact PC'!$H$379:$X$467,MATCH(AU80,'[1]Subcompact PC'!$C$379:$C$467,0),MATCH(Inputs!$C$2,'[1]Subcompact PC'!$H$378:$X$378,0)) -> -296.6729836 | AT81: 10 | BB81: 2017+ | BC81: INC | BD81: % | BE81: =$O$81 -> 0.01040312094 | BF81: $ | BG81: =$Q$81 -> 495.187377 | BH81: =$R$81 -> 10 | BP81: 2017+ | BQ81: INC | BR81: % | BS81: =$AC$81 -> 0.01040312094 | BT81: $ | BU81: =$AE$81 -> 495.187377 | BV81: =$AF$81 -> 10 | CD81: 2017+ | CE81: INC | CF81: % | CG81: =$AQ$81 -> 0.01040312094 | CH81: $ | CI81: =$AS$81 -> -296.6729836 | CJ81: =$AT$81 -> 10 | CR81: 2017+ | CS81: INC | CT81: % | CU81: =$O$81 -> 0.01040312094 | CV81: $ | CW81: =$Q$81 -> 495.187377 | CX81: =$R$81 -> 10 | DF81: 2017+ | DG81: INC | DH81: % | DI81: =$AC$81 -> 0.01040312094 | DJ81: $ | DK81: =$AE$81 -> 495.187377 | DL81: =$AF$81 -> 10 | DT81: 2017+ | DU81: INC | DV81: % | DW81: =$AQ$81 -> 0.01040312094 | DX81: $ | DY81: =$AS$81 -> -296.6729836 | DZ81: =$AT$81 -> 10 | EH81: 2017+ | EI81: INC | EJ81: % | EK81: =$O$81 -> 0.01040312094 | EL81: $ | EM81: =$Q$81 -> 495.187377 | EN81: =$R$81 -> 10 | EV81: 2017+ | EW81: INC | EX81: % | EY81: =$AC$81 -> 0.01040312094 | EZ81: $ | FA81: =$AE$81 -> 495.187377 | FB81: =$AF$81 -> 10 | FJ81: 2017+ | FK81: INC | FL81: % | FM81: =$AQ$81 -> 0.01040312094 | FN81: $ | FO81: =$AS$81 -> -296.6729836 | FP81: =$AT$81 -> 10
A82: Diesel Engine Type | B82: I4 | M82: ABS | N82: % | O82: 0.239 | P82: $ | Q82: =Q74+Q81 -> 1789.746285 | R82: L | AA82: ABS | AB82: % | AC82: =O82 -> 0.239 | AD82: $ | AE82: =AE74+AE81 -> 1568.094258 | AF82: L | AO82: ABS | AP82: % | AQ82: =O82 -> 0.239 | AR82: $ | AS82: =AS74+AS81 -> 1498.743641 | AT82: L | BC82: ABS | BD82: % | BE82: =1-((1-BE74)*(1-BE81)) -> 0.239 | BF82: $ | BG82: =BG74+BG81 -> 1817.923195 | BH82: L | BQ82: ABS | BR82: % | BS82: =$O82 -> 0.239 | BT82: $ | BU82: =BU74+BU81 -> 1469.129532 | BV82: L | CE82: ABS | CF82: % | CG82: =$AQ82 -> 0.239 | CH82: $ | CI82: =CI74+CI81 -> 1386.209275 | CJ82: L | CS82: ABS | CT82: % | CU82: =$O82 -> 0.239 | CV82: $ | CW82: =CW74+CW81 -> 1876.313782 | CX82: L | DG82: ABS | DH82: % | DI82: =$AC82 -> 0.239 | DJ82: $ | DK82: =DK74+DK81 -> 1527.520119 | DL82: L | DU82: ABS | DV82: % | DW82: =$AQ82 -> 0.239 | DX82: $ | DY82: =DY74+DY81 -> 1444.599862 | DZ82: L | EI82: ABS | EJ82: % | EK82: =$O82 -> 0.239 | EL82: $ | EM82: =EM74+EM81 -> 1384.053165 | EN82: L | EW82: ABS | EX82: % | EY82: =$AC82 -> 0.239 | EZ82: $ | FA82: =FA74+FA81 -> 2145.218858 | FB82: L | FK82: ABS | FL82: % | FM82: =$AQ82 -> 0.239 | FN82: $ | FO82: =FO74+FO81 -> 2037.094527 | FP82: L
A83: Displacement [L] | B83: 1.5 to 2.0
A84: Turbocharger | B84: VNT
A85: EGR system | B85: cooler+vlv+bypass vlv
A86: FIE | B86: HPCR 1800bar solenoid | E86: 2012-2016 | F86: INC | G86: % | H86: =1-((1-H87)/(1-O79)) -> 0 | I86: $ | J86: 0 | K86: L | L86: 2012-2016 | M86: INC | N86: % | O86: 0 | P86: $ | Q86: 0 | R86: 0 | S86: 2012-2016 | T86: INC | U86: % | V86: =1-((1-V87)/(1-AC79)) -> 0 | W86: $ | X86: 0 | Y86: L | Z86: 2012-2016 | AA86: INC | AB86: % | AC86: 0 | AD86: $ | AE86: 0 | AF86: 0 | AG86: 2012-2016 | AH86: INC | AI86: % | AJ86: =1-((1-AJ87)/(1-AQ79)) -> 0 | AK86: $ | AL86: 0 | AM86: L | AN86: 2012-2016 | AO86: INC | AP86: % | AQ86: 0 | AR86: $ | AS86: 0 | AT86: 0 | AU86: 2012-2016 | AV86: INC | AW86: % | AX86: =1-((1-AX87)/(1-BE79)) -> -0.00499807246 | AY86: $ | AZ86: 0 | BA86: L | BB86: 2012-2016 | BC86: INC | BD86: % | BE86: 0 | BF86: $ | BG86: 0 | BH86: 0 | BI86: 2012-2016 | BJ86: INC | BK86: % | BL86: =1-((1-BL87)/(1-BS79)) -> 0 | BM86: $ | BN86: 0 | BO86: L | BP86: 2012-2016 | BQ86: INC | BR86: % | BS86: 0 | BT86: $ | BU86: 0 | BV86: 0 | BW86: 2012-2016 | BX86: INC | BY86: % | BZ86: =1-((1-BZ87)/(1-CG79)) -> 0 | CA86: $ | CB86: 0 | CC86: L | CD86: 2012-2016 | CE86: INC | CF86: % | CG86: 0 | CH86: $ | CI86: 0 | CJ86: 0 | CK86: 2012-2016 | CL86: INC | CM86: % | CN86: =1-((1-CN87)/(1-CU79)) -> 0.0004418625443 | CO86: $ | CP86: 0 | CQ86: L | CR86: 2012-2016 | CS86: INC | CT86: % | CU86: 0 | CV86: $ | CW86: 0 | CX86: 0 | CY86: 2012-2016 | CZ86: INC | DA86: % | DB86: =1-((1-DB87)/(1-DI79)) -> 0 | DC86: $ | DD86: 0 | DE86: L | DF86: 2012-2016 | DG86: INC | DH86: % | DI86: 0 | DJ86: $ | DK86: 0 | DL86: 0 | DM86: 2012-2016 | DN86: INC | DO86: % | DP86: =1-((1-DP87)/(1-DW79)) -> 0 | DQ86: $ | DR86: 0 | DS86: L | DT86: 2012-2016 | DU86: INC | DV86: % | DW86: 0 | DX86: $ | DY86: 0 | DZ86: 0 | EA86: 2012-2016 | EB86: INC | EC86: % | ED86: =1-((1-ED87)/(1-EK79)) -> -0.05283863821 | EE86: $ | EF86: 0 | EG86: L | EH86: 2012-2016 | EI86: INC | EJ86: % | EK86: 0 | EL86: $ | EM86: 0 | EN86: 0 | EO86: 2012-2016 | EP86: INC | EQ86: % | ER86: =1-((1-ER87)/(1-EY79)) -> 0.006449967617 | ES86: $ | ET86: 0 | EU86: L | EV86: 2012-2016 | EW86: INC | EX86: % | EY86: 0 | EZ86: $ | FA86: 0 | FB86: 0 | FC86: 2012-2016 | FD86: INC | FE86: % | FF86: =1-((1-FF87)/(1-FM79)) -> 0.006449967617 | FG86: $ | FH86: 0 | FI86: L | FJ86: 2012-2016 | FK86: INC | FL86: % | FM86: 0 | FN86: $ | FO86: 0 | FP86: 0
A87: Valvetrain | B87: 4-valve DOHC | F87: ABS | G87: % | H87: =O79 -> 0.1697636964 | I87: $ | J87: =J86+Q79 -> 926.6492596 | K87: 150 | M87: ABS | N87: % | O87: =1-((1-O79)*(1-O86)) -> 0.1697636964 | P87: $ | Q87: =Q79+Q86 -> 926.6492596 | R87: L | T87: ABS | U87: % | V87: =AC79 -> 0.1693966839 | W87: $ | X87: =X86+AE79 -> 477.317791 | Y87: 200 | AA87: ABS | AB87: % | AC87: =1-((1-AC79)*(1-AC86)) -> 0.1693966839 | AD87: $ | AE87: =AE79+AE86 -> 477.317791 | AF87: L | AH87: ABS | AI87: % | AJ87: =AQ79 -> 0.1693966839 | AK87: $ | AL87: =AL86+AS79 -> 1030.066516 | AM87: 500 | AO87: ABS | AP87: % | AQ87: =1-((1-AQ79)*(1-AQ86)) -> 0.1693966839 | AR87: $ | AS87: =AS79+AS86 -> 1030.066516 | AT87: L | AV87: ABS | AW87: % | AX87: =$H$87 -> 0.1697636964 | AY87: $ | AZ87: =AZ86+BG79 -> 954.8261703 | BA87: =$K$87 -> 150 | BC87: ABS | BD87: % | BE87: =1-((1-BE79)*(1-BE86)) -> 0.1738926409 | BF87: $ | BG87: =BG79+BG86 -> 954.8261703 | BH87: L | BJ87: ABS | BK87: % | BL87: =$V$87 -> 0.1693966839 | BM87: $ | BN87: =BN86+BU79 -> 378.3530653 | BO87: =$Y$87 -> 200 | BQ87: ABS | BR87: % | BS87: =1-((1-BS79)*(1-BS86)) -> 0.1693966839 | BT87: $ | BU87: =BU79+BU86 -> 378.3530653 | BV87: L | BX87: ABS | BY87: % | BZ87: =$AJ$87 -> 0.1693966839 | CA87: $ | CB87: =CB86+CI79 -> 917.5321497 | CC87: =$AM$87 -> 500 | CE87: ABS | CF87: % | CG87: =1-((1-CG79)*(1-CG86)) -> 0.1693966839 | CH87: $ | CI87: =CI79+CI86 -> 917.5321497 | CJ87: L | CL87: ABS | CM87: % | CN87: =$H$87 -> 0.1697636964 | CO87: $ | CP87: =CP86+CW79 -> 1013.216757 | CQ87: =$K$87 -> 150 | CS87: ABS | CT87: % | CU87: =1-((1-CU79)*(1-CU86)) -> 0.1693966839 | CV87: $ | CW87: =CW79+CW86 -> 1013.216757 | CX87: L | CZ87: ABS | DA87: % | DB87: =$V$87 -> 0.1693966839 | DC87: $ | DD87: =DD86+DK79 -> 436.7436523 | DE87: =$Y$87 -> 200 | DG87: ABS | DH87: % | DI87: =1-((1-DI79)*(1-DI86)) -> 0.1693966839 | DJ87: $ | DK87: =DK79+DK86 -> 436.7436523 | DL87: L | DN87: ABS | DO87: % | DP87: =$AJ$87 -> 0.1693966839 | DQ87: $ | DR87: =DR86+DY79 -> 975.9227366 | DS87: =$AM$87 -> 500 | DU87: ABS | DV87: % | DW87: =1-((1-DW79)*(1-DW86)) -> 0.1693966839 | DX87: $ | DY87: =DY79+DY86 -> 975.9227366 | DZ87: L | EB87: ABS | EC87: % | ED87: =$H$87 -> 0.1697636964 | EE87: $ | EF87: =EF86+EM79 -> 520.9561402 | EG87: =$K$87 -> 150 | EI87: ABS | EJ87: % | EK87: =1-((1-EK79)*(1-EK86)) -> 0.2114306282 | EL87: $ | EM87: =EM79+EM86 -> 520.9561402 | EN87: L | EP87: ABS | EQ87: % | ER87: =$V$87 -> 0.1693966839 | ES87: $ | ET87: =ET86+FA79 -> 1054.442392 | EU87: =$Y$87 -> 200 | EW87: ABS | EX87: % | EY87: =1-((1-EY79)*(1-EY86)) -> 0.1640045403 | EZ87: $ | FA87: =FA79+FA86 -> 1054.442392 | FB87: L | FD87: ABS | FE87: % | FF87: =$AJ$87 -> 0.1693966839 | FG87: $ | FH87: =FH86+FO79 -> 1568.417402 | FI87: =$AM$87 -> 500 | FK87: ABS | FL87: % | FM87: =1-((1-FM79)*(1-FM86)) -> 0.1640045403 | FN87: $ | FO87: =FO79+FO86 -> 1568.417402 | FP87: L
A88: Valvetrain option | B88: N/A | G88: Advanced Diesel (ADSL_SD) - TBL | L88: ADSL_SD | N88: To Strong Hybrids | U88: Advanced Diesel (ADSL_MD) - TBL | Z88: ADSL_MD | AB88: To Strong Hybrids | AI88: Advanced Diesel (ADSL_LD) - TBL | AN88: ADSL_LD | AP88: To Strong Hybrids | AW88: Advanced Diesel (ADSL_SD) - TBL | BB88: ADSL_SD | BD88: To Strong Hybrids | BK88: Advanced Diesel (ADSL_MD) - TBL | BP88: ADSL_SD | BR88: To Strong Hybrids | BY88: Advanced Diesel (ADSL_LD) - TBL | CD88: ADSL_SD | CF88: To Strong Hybrids | CM88: Advanced Diesel (ADSL_SD) - TBL | CR88: ADSL_SD | CT88: To Strong Hybrids | DA88: Advanced Diesel (ADSL_MD) - TBL | DF88: ADSL_SD | DH88: To Strong Hybrids | DO88: Advanced Diesel (ADSL_LD) - TBL | DT88: ADSL_SD | DV88: To Strong Hybrids | EC88: Advanced Diesel (ADSL_SD) - TBL | EH88: ADSL_SD | EJ88: To Strong Hybrids | EQ88: Advanced Diesel (ADSL_MD) - TBL | EV88: ADSL_SD | EX88: To Strong Hybrids | FE88: Advanced Diesel (ADSL_LD) - TBL | FJ88: ADSL_SD | FL88: To Strong Hybrids
A89: After Treatment | B89: DOC+LNT+DPF | E89: 2017+ | F89: INC | G89: % | H89: =1-((1-H90)/(1-O82)) -> 0.05532194481 | I89: $ | J89: =INDEX('[1]Subcompact PC'!$H$379:$X$467,MATCH(L88,'[1]Subcompact PC'!$C$379:$C$467,0),MATCH(Inputs!$C$2,'[1]Subcompact PC'!$H$378:$X$378,0)) -> 911.0408326 | K89: L | L89: 2017+ | M89: INC | N89: % | O89: 0 | P89: $ | Q89: =Q86 -> 0 | R89: 0 | S89: 2017+ | T89: INC | U89: % | V89: =1-((1-V90)/(1-AC82)) -> 0.05532194481 | W89: $ | X89: =INDEX('[1]Subcompact PC'!$H$379:$X$467,MATCH(Z88,'[1]Subcompact PC'!$C$379:$C$467,0),MATCH(Inputs!$C$2,'[1]Subcompact PC'!$H$378:$X$378,0)) -> 927.8544104 | Y89: L | Z89: 2017+ | AA89: INC | AB89: % | AC89: 0 | AD89: $ | AE89: =AE86 -> 0 | AF89: 0 | AG89: 2017+ | AH89: INC | AI89: % | AJ89: =1-((1-AJ90)/(1-AQ82)) -> 0.05532194481 | AK89: $ | AL89: =INDEX('[1]Subcompact PC'!$H$379:$X$467,MATCH(AN88,'[1]Subcompact PC'!$C$379:$C$467,0),MATCH(Inputs!$C$2,'[1]Subcompact PC'!$H$378:$X$378,0)) -> 1811.581549 | AM89: L | AN89: 2017+ | AO89: INC | AP89: % | AQ89: 0 | AR89: $ | AS89: =AS86 -> 0 | AT89: 0 | AU89: 2017+ | AV89: INC | AW89: % | AX89: =1-((1-AX90)/(1-BE82)) -> 0.05532194481 | AY89: $ | AZ89: =$J$89 -> 911.0408326 | BA89: L | BB89: 2017+ | BC89: INC | BD89: % | BE89: 0 | BF89: $ | BG89: =BG86 -> 0 | BH89: 0 | BI89: 2017+ | BJ89: INC | BK89: % | BL89: =1-((1-BL90)/(1-BS82)) -> 0.05532194481 | BM89: $ | BN89: =$X$89 -> 927.8544104 | BO89: L | BP89: 2017+ | BQ89: INC | BR89: % | BS89: 0 | BT89: $ | BU89: =BU86 -> 0 | BV89: 0 | BW89: 2017+ | BX89: INC | BY89: % | BZ89: =1-((1-BZ90)/(1-CG82)) -> 0.05532194481 | CA89: $ | CB89: =$AL$89 -> 1811.581549 | CC89: L | CD89: 2017+ | CE89: INC | CF89: % | CG89: 0 | CH89: $ | CI89: =CI86 -> 0 | CJ89: 0 | CK89: 2017+ | CL89: INC | CM89: % | CN89: =1-((1-CN90)/(1-CU82)) -> 0.05532194481 | CO89: $ | CP89: =$J$89 -> 911.0408326 | CQ89: L | CR89: 2017+ | CS89: INC | CT89: % | CU89: 0 | CV89: $ | CW89: =CW86 -> 0 | CX89: 0 | CY89: 2017+ | CZ89: INC | DA89: % | DB89: =1-((1-DB90)/(1-DI82)) -> 0.05532194481 | DC89: $ | DD89: =$X$89 -> 927.8544104 | DE89: L | DF89: 2017+ | DG89: INC | DH89: % | DI89: 0 | DJ89: $ | DK89: =DK86 -> 0 | DL89: 0 | DM89: 2017+ | DN89: INC | DO89: % | DP89: =1-((1-DP90)/(1-DW82)) -> 0.05532194481 | DQ89: $ | DR89: =$AL$89 -> 1811.581549 | DS89: L | DT89: 2017+ | DU89: INC | DV89: % | DW89: 0 | DX89: $ | DY89: =DY86 -> 0 | DZ89: 0 | EA89: 2017+ | EB89: INC | EC89: % | ED89: =1-((1-ED90)/(1-EK82)) -> 0.05532194481 | EE89: $ | EF89: =$J$89 -> 911.0408326 | EG89: L | EH89: 2017+ | EI89: INC | EJ89: % | EK89: 0 | EL89: $ | EM89: =EM86 -> 0 | EN89: 0 | EO89: 2017+ | EP89: INC | EQ89: % | ER89: =1-((1-ER90)/(1-EY82)) -> 0.05532194481 | ES89: $ | ET89: =$X$89 -> 927.8544104 | EU89: L | EV89: 2017+ | EW89: INC | EX89: % | EY89: 0 | EZ89: $ | FA89: =FA86 -> 0 | FB89: 0 | FC89: 2017+ | FD89: INC | FE89: % | FF89: =1-((1-FF90)/(1-FM82)) -> 0.05532194481 | FG89: $ | FH89: =$AL$89 -> 1811.581549 | FI89: L | FJ89: 2017+ | FK89: INC | FL89: % | FM89: 0 | FN89: $ | FO89: =FO86 -> 0 | FP89: 0
F90: ABS | G90: % | H90: 0.2811 | I90: $ | J90: =Q82+J89 -> 2700.787117 | K90: 150 | M90: ABS | N90: % | O90: =1-((1-O82)*(1-O89)) -> 0.239 | P90: $ | Q90: =Q82+Q89 -> 1789.746285 | R90: L | T90: ABS | U90: % | V90: =H90 -> 0.2811 | W90: $ | X90: =AE82+X89 -> 2495.948668 | Y90: 200 | AA90: ABS | AB90: % | AC90: =1-((1-AC82)*(1-AC89)) -> 0.239 | AD90: $ | AE90: =AE82+AE89 -> 1568.094258 | AF90: L | AH90: ABS | AI90: % | AJ90: =H90 -> 0.2811 | AK90: $ | AL90: =AS82+AL89 -> 3310.32519 | AM90: 500 | AO90: ABS | AP90: % | AQ90: =1-((1-AQ82)*(1-AQ89)) -> 0.239 | AR90: $ | AS90: =AS82+AS89 -> 1498.743641 | AT90: L | AV90: ABS | AW90: % | AX90: =$H$90 -> 0.2811 | AY90: $ | AZ90: =$J$90 -> 2700.787117 | BA90: =$K$90 -> 150 | BC90: ABS | BD90: % | BE90: =1-((1-BE82)*(1-BE89)) -> 0.239 | BF90: $ | BG90: =BG82+BG89 -> 1817.923195 | BH90: L | BJ90: ABS | BK90: % | BL90: =$V$90 -> 0.2811 | BM90: $ | BN90: =$X$90 -> 2495.948668 | BO90: =$Y$90 -> 200 | BQ90: ABS | BR90: % | BS90: =1-((1-BS82)*(1-BS89)) -> 0.239 | BT90: $ | BU90: =BU82+BU89 -> 1469.129532 | BV90: L | BX90: ABS | BY90: % | BZ90: =$AJ$90 -> 0.2811 | CA90: $ | CB90: =$AL$90 -> 3310.32519 | CC90: =$AM$90 -> 500 | CE90: ABS | CF90: % | CG90: =1-((1-CG82)*(1-CG89)) -> 0.239 | CH90: $ | CI90: =CI82+CI89 -> 1386.209275 | CJ90: L | CL90: ABS | CM90: % | CN90: =$H$90 -> 0.2811 | CO90: $ | CP90: =$J$90 -> 2700.787117 | CQ90: =$K$90 -> 150 | CS90: ABS | CT90: % | CU90: =1-((1-CU82)*(1-CU89)) -> 0.239 | CV90: $ | CW90: =CW82+CW89 -> 1876.313782 | CX90: L | CZ90: ABS | DA90: % | DB90: =$V$90 -> 0.2811 | DC90: $ | DD90: =$X$90 -> 2495.948668 | DE90: =$Y$90 -> 200 | DG90: ABS | DH90: % | DI90: =1-((1-DI82)*(1-DI89)) -> 0.239 | DJ90: $ | DK90: =DK82+DK89 -> 1527.520119 | DL90: L | DN90: ABS | DO90: % | DP90: =$AJ$90 -> 0.2811 | DQ90: $ | DR90: =$AL$90 -> 3310.32519 | DS90: =$AM$90 -> 500 | DU90: ABS | DV90: % | DW90: =1-((1-DW82)*(1-DW89)) -> 0.239 | DX90: $ | DY90: =DY82+DY89 -> 1444.599862 | DZ90: L | EB90: ABS | EC90: % | ED90: =$H$90 -> 0.2811 | EE90: $ | EF90: =$J$90 -> 2700.787117 | EG90: =$K$90 -> 150 | EI90: ABS | EJ90: % | EK90: =1-((1-EK82)*(1-EK89)) -> 0.239 | EL90: $ | EM90: =EM82+EM89 -> 1384.053165 | EN90: L | EP90: ABS | EQ90: % | ER90: =$V$90 -> 0.2811 | ES90: $ | ET90: =$X$90 -> 2495.948668 | EU90: =$Y$90 -> 200 | EW90: ABS | EX90: % | EY90: =1-((1-EY82)*(1-EY89)) -> 0.239 | EZ90: $ | FA90: =FA82+FA89 -> 2145.218858 | FB90: L | FD90: ABS | FE90: % | FF90: =$AJ$90 -> 0.2811 | FG90: $ | FH90: =$AL$90 -> 3310.32519 | FI90: =$AM$90 -> 500 | FK90: ABS | FL90: % | FM90: =1-((1-FM82)*(1-FM89)) -> 0.239 | FN90: $ | FO90: =FO82+FO89 -> 2037.094527 | FP90: L
A98: Expanded Trans/Hybrid Technology Decision Tree
E101: Electrification | V101: Manual Trans | AH101: Auto Trans
B103: START | E103: 2012-2016 | F103: INC | G103: % | H103: 0.015 | I103: $ | J103: =INDEX('[1]Subcompact PC'!$H$379:$X$467,MATCH(L105,'[1]Subcompact PC'!$C$379:$C$467,0),MATCH(Inputs!$C$2,'[1]Subcompact PC'!$H$378:$X$378,0)) -> 98.10328252 | K103: 95.93 | O103: START | S103: 2012-2016 | T103: INC | U103: % | V103: 0.0202 | W103: $ | X103: =INDEX('[1]Subcompact PC'!$H$379:$X$467,MATCH(Z105,'[1]Subcompact PC'!$C$379:$C$467,0),MATCH(Inputs!$C$2,'[1]Subcompact PC'!$H$378:$X$378,0)) -> 250.3175082 | Y103: 225.33 | AC103: START | AG103: 2012-2016 | AH103: INC | AI103: % | AJ103: 0.023 | AK103: $ | AL103: =INDEX('[1]Subcompact PC'!$H$379:$X$467,MATCH(AN105,'[1]Subcompact PC'!$C$379:$C$467,0),MATCH(Inputs!$C$2,'[1]Subcompact PC'!$H$378:$X$378,0)) -> 55.80794833 | AM103: 54.17
A104: Curb Weight (lbs) | B104: 2795 | F104: ABS | G104: % | H104: =H103 -> 0.015 | I104: $ | J104: =J103 -> 98.10328252 | K104: L | O104: 5-spd | T104: ABS | U104: % | V104: =V103 -> 0.0202 | W104: $ | X104: =X103 -> 250.3175082 | Y104: L | AC104: 4/5-spd | AH104: ABS | AI104: % | AJ104: =AJ103 -> 0.023 | AK104: $ | AL104: =AL103 -> 55.80794833 | AM104: L
A105: Engine Displacement [L] | B105: 1.9 | G105: Electric Power Steering (EPS) - TBL | L105: EPS | O105: Manual | U105: 6 Speed Man/Imp. Internals (6MAN) - TBL | Z105: 6MAN | AC105: Auto | AI105: Imp. Auto Trans Cnrt./ Externals (IATC) - TBL | AN105: IATC
A106: Engine Power (HP) | B106: 134 | E106: 2017+ | F106: INC | G106: % | H106: =H103 -> 0.015 | I106: $ | J106: =J103 -> 98.10328252 | K106: =K103 -> 95.93 | S106: 2017+ | T106: INC | U106: % | V106: 0.0202 | W106: $ | X106: =X103 -> 250.3175082 | Y106: 225.33 | AG106: 2017+ | AH106: INC | AI106: % | AJ106: 0.023 | AK106: $ | AL106: =AL103 -> 55.80794833 | AM106: 54.17
A107: Engine Torque (ft-lbf) | B107: 133 | F107: ABS | G107: % | H107: =H106 -> 0.015 | I107: $ | J107: =J106 -> 98.10328252 | K107: L | T107: ABS | U107: % | V107: =V106 -> 0.0202 | W107: $ | X107: =X106 -> 250.3175082 | Y107: L | AH107: ABS | AI107: % | AJ107: =AJ106 -> 0.023 | AK107: $ | AL107: =AL106 -> 55.80794833 | AM107: L
A108: Footprint (ft2) | B108: 41.5
E111: 2012-2016 | F111: INC | G111: % | H111: =1-((1-H112)/(1-H104)) -> 0.01218274112 | I111: $ | J111: =INDEX('[1]Subcompact PC'!$H$379:$X$467,MATCH(L113,'[1]Subcompact PC'!$C$379:$C$467,0),MATCH(Inputs!$C$2,'[1]Subcompact PC'!$H$378:$X$378,0)) -> 79.78498133 | K111: 115.2 | S111: 2012-2016 | T111: INC | U111: % | V111: 0 | W111: $ | X111: 0 | Y111: 100.55 | AG111: 2012-2016 | AH111: INC | AI111: % | AJ111: =1-((1-AJ112)/(1-AJ104)) -> 0.01889049762 | AK111: $ | AL111: =INDEX('[1]Subcompact PC'!$H$379:$X$467,MATCH(AN113,'[1]Subcompact PC'!$C$379:$C$467,0),MATCH(Inputs!$C$2,'[1]Subcompact PC'!$H$378:$X$378,0)) -> -37.91558008 | AM111: 100.55
F112: ABS | G112: % | H112: 0.027 | I112: $ | J112: =J104+J111 -> 177.8882639 | K112: L | T112: ABS | U112: % | V112: =V104 -> 0.0202 | W112: $ | X112: =X111+X104 -> 250.3175082 | Y112: L | AH112: ABS | AI112: % | AJ112: =1-((1-5.2%)/(1-1.1%)) -> 0.04145601618 | AK112: $ | AL112: =AL111+AL104 -> 17.89236826 | AM112: L
G113: Improved Accessories 1 (IACC1) - TBL | L113: IACC1 | O113: From Engine Path 2012-2016 | U113: High Eff. Gearbox (Manual) - (HETRANSM) - TBL | Z113: HETRANS | AI113: 6-spd Auto Trans w/Imp Internals (NAUTO) - TBL | AN113: NAUTO
E114: 2017+ | F114: INC | G114: % | H114: =1-((1-H115)/(1-H107)) -> 0.01218274112 | I114: $ | J114: =J111 -> 79.78498133 | K114: =K111 -> 115.2 | S114: 2017+ | T114: INC | U114: % | V114: =1-((1-V115)/(1-V107)) -> 0.03439857285 | W114: $ | X114: =INDEX('[1]Subcompact PC'!$H$379:$X$467,MATCH(Z113,'[1]Subcompact PC'!$C$379:$C$467,0),MATCH(Inputs!$C$2,'[1]Subcompact PC'!$H$378:$X$378,0)) -> 227.4262488 | Y114: 10 | AG114: 2017+ | AH114: INC | AI114: % | AJ114: =1-((1-AJ115)/(1-AJ107)) -> 0.01889049762 | AK114: $ | AL114: =AL111 -> -37.91558008 | AM114: 10
F115: ABS | G115: % | H115: =H112 -> 0.027 | I115: $ | J115: =J107+J114 -> 177.8882639 | K115: L | T115: ABS | U115: % | V115: =1-((1-6.45%)/(1-1.12%)) -> 0.05390372168 | W115: $ | X115: =X107+X114 -> 477.7437571 | Y115: L | AH115: ABS | AI115: % | AJ115: =AJ112 -> 0.04145601618 | AK115: $ | AL115: =AL107+AL114 -> 17.89236826 | AM115: L
E119: 2012-2016 | F119: INC | G119: % | H119: =1-((1-H120)/(1-H112)) -> 0 | I119: $ | J119: 0 | K119: 0 | L119: 2012-2016 | M119: INC | N119: % | O119: =1-((1-O120)/(((1-$O$87)*(1-$H$136)*(1-AJ144)))) -> 0.07819160679 | P119: $ | Q119: =INDEX('[1]Subcompact PC'!$H$379:$X$467,MATCH(M121,'[1]Subcompact PC'!$C$379:$C$467,0),MATCH(Inputs!$C$2,'[1]Subcompact PC'!$H$378:$X$378,0)) +INDEX('[1]Subcompact PC'!$H$379:$X$467,MATCH(S121,'[1]Subcompact PC'!$C$379:$C$467,0),MATCH(Inputs!$C$2,'[1]Subcompact PC'!$H$378:$X$378,0)) -> 1530.151679 | R119: L | AG119: 2012-2016 | AH119: INC | AI119: % | AJ119: =1-((1-AJ120)/(1-AJ112)) -> 0.04008438819 | AK119: $ | AL119: =INDEX('[1]Subcompact PC'!$H$379:$X$467,MATCH(AN121,'[1]Subcompact PC'!$C$379:$C$467,0),MATCH(Inputs!$C$2,'[1]Subcompact PC'!$H$378:$X$378,0)) -> -115.4628611 | AM119: -10.47
F120: ABS | G120: % | H120: =H112 -> 0.027 | I120: $ | J120: =J112+J119 -> 177.8882639 | K120: L | M120: ABS | N120: % | O120: 0.403 | P120: $ | Q120: =J136+Q119+Q87+AL144 -> 3928.76804 | R120: 33.86 | AH120: ABS | AI120: % | AJ120: =1-((1-9%)/(1-1.1%)) -> 0.07987866532 | AK120: $ | AL120: =AL119+AL112 -> -97.57049284 | AM120: L
G121: Improved Accessories 2 (IACC2) - TBL | L121: IACC2 | M121: SHEV1_B | N121: Strong Hybrid (Powersplit or 2-Mode) (SHEV1) - VBL | S121: SHEV1_NB | V121: From Engine Path 2017+ | AI121: 6-spd Dual Clutch Trans (DCT) - TBL | AN121: DCT
E122: 2017+ | F122: INC | G122: % | H122: =1-((1-H123)/(1-H115)) -> 0.01849948613 | I122: $ | J122: =INDEX('[1]Subcompact PC'!$H$379:$X$467,MATCH(L121,'[1]Subcompact PC'!$C$379:$C$467,0),MATCH(Inputs!$C$2,'[1]Subcompact PC'!$H$378:$X$378,0)) -> 50.78057142 | K122: 0 | L122: 2017+ | M122: INC | N122: % | O122: 0 | P122: $ | Q122: 0 | R122: L | AG122: 2017+ | AH122: INC | AI122: % | AJ122: =1-((1-AJ123)/(1-AJ115)) -> 0.04008438819 | AK122: $ | AL122: =AL119 -> -115.4628611 | AM122: =AM119 -> -10.47
F123: ABS | G123: % | H123: 0.045 | I123: $ | J123: =J115+J122 -> 228.6688353 | K123: L | M123: ABS | N123: % | O123: 0 | P123: $ | Q123: =Q116+Q122 -> 0 | R123: 0 | AH123: ABS | AI123: % | AJ123: =AJ120 -> 0.07987866532 | AK123: $ | AL123: =AL115+AL122 -> -97.57049284 | AM123: L
E127: 2012-2016 | F127: INC | G127: % | H127: =H130 -> 0.0167539267 | I127: $ | J127: =INDEX('[1]Subcompact PC'!$H$379:$X$467,MATCH(L129,'[1]Subcompact PC'!$C$379:$C$467,0),MATCH(Inputs!$C$2,'[1]Subcompact PC'!$H$378:$X$378,0)) -> 273.8211205 | K127: 259.67 | L127: 2012-2016 | M127: INC | N127: % | O127: n/a | P127: $ | Q127: n/a | R127: L | S127: 2012-2016 | T127: INC | U127: % | V127: =1-((1-V128)/(((1-$O$87)*(1-$H$136)*(1-AJ144)))) -> -0.5440676603 | W127: $ | X127: 0 | Y127: L | AG127: 2012-2016 | AH127: INC | AI127: % | AJ127: =AJ130 -> 0.03846153846 | AK127: $ | AL127: =INDEX('[1]Subcompact PC'!$H$379:$X$467,MATCH(AN129,'[1]Subcompact PC'!$C$379:$C$467,0),MATCH(Inputs!$C$2,'[1]Subcompact PC'!$H$378:$X$378,0)) -> 223.3189237 | AM127: 0
F128: ABS | G128: % | H128: =H127+H120 -> 0.0437539267 | I128: $ | J128: =J120+J127 -> 451.7093844 | K128: L | M128: ABS | N128: % | O128: n/a | P128: $ | Q128: n/a | R128: 0 | T128: ABS | U128: % | V128: 0 | W128: $ | X128: 0 | Y128: 0 | AH128: ABS | AI128: % | AJ128: =AJ131 -> 0.1152679474 | AK128: $ | AL128: =AL120+AL127 -> 125.7484309 | AM128: M
G129: 12V Micro Hybrid - Stop-Start (MHEV) - TBL | L129: MHEV | N129: SHEV1 --> SHEV2 | T129: SHEV2_B | U129: Strong Hybrid (P2 Parallel or 2-Mode) (SHEV2) - VBL | Z129: SHEV2_NB | AI129: 8-spd Trans (Auto or DCT) (8SPD) - TBL | AN129: 8SPD
E130: 2017+ | F130: INC | G130: % | H130: =1-((1-H131)/(1-H123)) -> 0.0167539267 | I130: $ | J130: =J127 -> 273.8211205 | K130: =K127 -> 259.67 | L130: 2017+ | M130: INC | N130: % | O130: =1-((1-V131)/(1-O120)) -> 0.1005025126 | P130: $ | Q130: =Q131-Q120 -> 1132.257309 | R130: L | S130: 2017+ | T130: INC | U130: % | V130: =1-((1-V131)/(((1-$O$90)*(1-$H$139)*(1-AJ147)))) -> 0.03008023985 | W130: $ | X130: =INDEX('[1]Subcompact PC'!$H$379:$X$467,MATCH(T129,'[1]Subcompact PC'!$C$379:$C$467,0),MATCH(Inputs!$C$2,'[1]Subcompact PC'!$H$378:$X$378,0)) +INDEX('[1]Subcompact PC'!$H$379:$X$467,MATCH(Z129,'[1]Subcompact PC'!$C$379:$C$467,0),MATCH(Inputs!$C$2,'[1]Subcompact PC'!$H$378:$X$378,0)) -> 1519.592758 | Y130: L | AG130: 2017+ | AH130: INC | AI130: % | AJ130: =1-((1-AJ131)/(1-AJ123)) -> 0.03846153846 | AK130: $ | AL130: =AL127 -> 223.3189237 | AM130: 10
F131: ABS | G131: % | H131: 0.061 | I131: $ | J131: =J123+J130 -> 502.4899558 | K131: L | M131: ABS | N131: % | O131: =V131 -> 0.463 | P131: $ | Q131: =X130+J139+Q90+AL147 -> 5061.025349 | R131: 0 | T131: ABS | U131: % | V131: 0.463 | W131: $ | X131: =X130+J139+Q90+AL147 -> 5061.025349 | Y131: 33.86 | AH131: ABS | AI131: % | AJ131: =1-((1-12.5%)/(1-1.1%)) -> 0.1152679474 | AK131: $ | AL131: =AL123+AL130 -> 125.7484309 | AM131: L
E135: 2012-2016 | F135: INC | G135: % | H135: =H138 -> 0.07454739084 | I135: $ | J135: =INDEX('[1]Large Perf. PC'!$H$379:$X$467,MATCH(F137,'[1]Large Perf. PC'!$C$379:$C$467,0),MATCH(Inputs!$C$2,'[1]Large Perf. PC'!$H$378:$X$378,0)) +INDEX('[1]Large Perf. PC'!$H$379:$X$467,MATCH(L137,'[1]Large Perf. PC'!$C$379:$C$467,0),MATCH(Inputs!$C$2,'[1]Large Perf. PC'!$H$378:$X$378,0)) -> 894.509286 | K135: L | S135: 2012-2016 | T135: INC | U135: % | V135: =1-((1-V136)/(1-V128)) -> 0.35 | W135: $ | X135: 0 | Y135: L | AG135: 2012-2016 | AH135: INC | AI135: % | AJ135: =1-((1-AJ136)/(1-AJ128)) -> 0 | AK135: $ | AL135: 0 | AM135: 10
F136: ABS | G136: % | H136: =H135+H128 -> 0.1183013175 | I136: $ | J136: =J128+J135 -> 1346.21867 | K136: 33.86 | T136: ABS | U136: % | V136: 0.35 | W136: $ | X136: =X135+X128 -> 0 | Y136: 33.86 | AH136: ABS | AI136: % | AJ136: =AJ128 -> 0.1152679474 | AK136: $ | AL136: =AL128+AL135 -> 125.7484309 | AM136: L
F137: ISG_B | G137: Integrated Starter Generator (ISG) - VBL | L137: ISG_NB | T137: PHEV2_B | U137: Plug-in Hybrid - 30 Mile Range (PHEV1) - VBL | Z137: PHEV2_NB | AI137: High Eff. Gearbox (Auto or DCT) - (HETRANS) - TBL | AN137: HETRANS
E138: 2017+ | F138: INC | G138: % | H138: =1-((1-H139)/(1-H131)) -> 0.07454739084 | I138: $ | J138: =J135 -> 894.509286 | K138: L | S138: 2017+ | T138: INC | U138: % | V138: 0.4065 | W138: $ | X138: =INDEX('[1]Subcompact PC'!$H$379:$X$467,MATCH(T137,'[1]Subcompact PC'!$C$379:$C$467,0),MATCH(Inputs!$C$2,'[1]Subcompact PC'!$H$378:$X$378,0)) +INDEX('[1]Subcompact PC'!$H$379:$X$467,MATCH(Z138,'[1]Subcompact PC'!$C$379:$C$467,0),MATCH(Inputs!$C$2,'[1]Subcompact PC'!$H$378:$X$378,0)) +INDEX('[1]Subcompact PC'!$H$379:$X$467,MATCH(Z139,'[1]Subcompact PC'!$C$379:$C$467,0),MATCH(Inputs!$C$2,'[1]Subcompact PC'!$H$378:$X$378,0)) +INDEX('[1]Subcompact PC'!$H$379:$X$467,MATCH(Z137,'[1]Subcompact PC'!$C$379:$C$467,0),MATCH(Inputs!$C$2,'[1]Subcompact PC'!$H$378:$X$378,0)) -> 8231.366463 | Y138: L | Z138: PHEV2_C | AG138: 2017+ | AH138: INC | AI138: % | AJ138: =1-((1-AJ139)/(1-AJ131)) -> 0.02171428571 | AK138: $ | AL138: =INDEX('[1]Subcompact PC'!$H$379:$X$467,MATCH(AN137,'[1]Subcompact PC'!$C$379:$C$467,0),MATCH(Inputs!$C$2,'[1]Subcompact PC'!$H$378:$X$378,0)) -> 227.4262488 | AM138: 10
F139: ABS | G139: % | H139: =11.6%+H106 -> 0.131 | I139: $ | J139: =J131+J138 -> 1396.999242 | K139: 33.86 | T139: ABS | U139: % | V139: =1-((1-V131)*(1-V138)) -> 0.6812905 | W139: $ | X139: =X138+X131 -> 13292.39181 | Y139: 33.86 | Z139: CHRG_L | AH139: ABS | AI139: % | AJ139: =1-((1-14.4%)/(1-1.1%)) -> 0.134479272 | AK139: $ | AL139: =AL131+AL138 -> 353.1746797 | AM139: L
S143: 2012-2016 | T143: INC | U143: % | V143: =1-((1-V144)/(1-V136)) -> 0 | W143: $ | X143: 0 | Y143: L | AG143: 2012-2016 | AH143: INC | AI143: % | AJ143: =1-((1-AJ144)/(1-AJ136)) -> 0 | AK143: $ | AL143: 0 | AM143: 10
T144: ABS | U144: % | V144: 0.35 | W144: $ | X144: =X143+X136 -> 0 | Y144: 33.86 | AH144: ABS | AI144: % | AJ144: =AJ136 -> 0.1152679474 | AK144: $ | AL144: =AL136+AL143 -> 125.7484309 | AM144: L
J145: To Strong Hybrid | T145: PHEV2_B | U145: Plug-in Hybrid - VBL | Z145: PHEV2_NB | AI145: Shift Optimizer (SHFTOPT) - TBL | AN145: SHFTOPT
S146: 2017+ | T146: INC | U146: % | V146: 0 | W146: $ | X146: 0 | Y146: L | Z146: PHEV2_C | AG146: 2017+ | AH146: INC | AI146: % | AJ146: =1-((1-AJ147)/(1-AJ139)) -> 0.03271028037 | AK146: $ | AL146: =INDEX('[1]Subcompact PC'!$H$379:$X$467,MATCH(AN145,'[1]Subcompact PC'!$C$379:$C$467,0),MATCH(Inputs!$C$2,'[1]Subcompact PC'!$H$378:$X$378,0)) -> 1.512384555 | AM146: 10
T147: ABS | U147: % | V147: =1-((1-V139)*(1-V146)) -> 0.6812905 | W147: $ | X147: =X146+X139 -> 13292.39181 | Y147: 33.86 | AH147: ABS | AI147: % | AJ147: =1-((1-17.2%)/(1-1.1%)) -> 0.1627906977 | AK147: $ | AL147: =AL139+AL146 -> 354.6870643 | AM147: L
S151: 2012-2016 | T151: INC | U151: % | V151: =1-((1-V152)/(1-V144)) -> 0 | W151: $ | X151: 0 | Y151: L | AK151: To Strong Hybrid
T152: ABS | U152: % | V152: 0.35 | W152: $ | X152: =X151+X144 -> 0 | Y152: 33.86
T153: EV1_B | U153: Electric Vehicle - Early Adopter 75 Mile Range - (EV1) - VBL | Z153: EV1_NB
S154: 2017+ | T154: INC | U154: % | V154: 0.6854 | W154: $ | X154: =INDEX('[1]Subcompact PC'!$H$379:$X$467,MATCH(T153,'[1]Subcompact PC'!$C$379:$C$467,0),MATCH(Inputs!$C$2,'[1]Subcompact PC'!$H$378:$X$378,0)) +INDEX('[1]Subcompact PC'!$H$379:$X$467,MATCH(Z154,'[1]Subcompact PC'!$C$379:$C$467,0),MATCH(Inputs!$C$2,'[1]Subcompact PC'!$H$378:$X$378,0)) +INDEX('[1]Subcompact PC'!$H$379:$X$467,MATCH(Z153,'[1]Subcompact PC'!$C$379:$C$467,0),MATCH(Inputs!$C$2,'[1]Subcompact PC'!$H$378:$X$378,0)) -> 1606.602014 | Y154: L | Z154: EV_C
T155: ABS | U155: % | V155: =1-((1-V147)*(1-V154)) -> 0.8997339913 | W155: $ | X155: =X154+X147 -> 14898.99383 | Y155: 33.86
S159: 2012-2016 | T159: INC | U159: % | V159: =1-((1-V160)/(1-V152)) -> 0 | W159: $ | X159: 0 | Y159: L
T160: ABS | U160: % | V160: 0.35 | W160: $ | X160: =X159+X152 -> 0 | Y160: 33.86
T161: EV2_B | U161: Electric Vehicle - Early Adopter 100 Mile Range - (EV2) - VBL | Z161: EV2_NB
S162: 2017+ | T162: INC | U162: % | V162: 0 | W162: $ | X162: 0 | Y162: L
T163: ABS | U163: % | V163: =1-((1-V155)*(1-V162)) -> 0.8997339913 | W163: $ | X163: =X162+X155 -> 14898.99383 | Y163: 33.86
M166: 1
S167: 2012-2016 | T167: INC | U167: % | V167: =1-((1-V168)/(1-V160)) -> 0 | W167: $ | X167: 0 | Y167: L
T168: ABS | U168: % | V168: 0.35 | W168: $ | X168: =X167+X160 -> 0 | Y168: 33.86
T169: EV3_B | U169: Electric Vehicle - Early Adopter 150 Mile Range - (EV3) - VBL | Z169: EV3_NB
S170: 2017+ | T170: INC | U170: % | V170: 0 | W170: $ | X170: 0 | Y170: L
T171: ABS | U171: % | V171: =1-((1-V163)*(1-V170)) -> 0.8997339913 | W171: $ | X171: =X170+X163 -> 14898.99383 | Y171: 33.86
L175: 2012-2016 | M175: INC | N175: % | O175: =1-((1-O176)/(1-V168)) -> 0 | P175: $ | Q175: 0 | R175: L | Z175: 2012-2016 | AA175: INC | AB175: % | AC175: =1-((1-AC176)/(1-V168)) -> 0 | AD175: $ | AE175: 0 | AF175: L
M176: ABS | N176: % | O176: 0.35 | P176: $ | Q176: =Q175+X168 -> 0 | R176: 33.86 | AA176: ABS | AB176: % | AC176: 0.35 | AD176: $ | AE176: =AE175+X168 -> 0 | AF176: 33.86
M177: EV4_B | N177: Electric Vehicle - Mass Market 150 Mile Range - (EV4) - VBL | S177: EV4_NB | AA177: FCV_B | AB177: Fuel Cell Vehicle (FCV) - VBL | AG177: FCV_NB
L178: 2017+ | M178: INC | N178: % | O178: 0 | P178: $ | Q178: =INDEX('[1]Subcompact PC'!$H$379:$X$467,MATCH(M177,'[1]Subcompact PC'!$C$379:$C$467,0),MATCH(Inputs!$C$2,'[1]Subcompact PC'!$H$378:$X$378,0)) +INDEX('[1]Subcompact PC'!$H$379:$X$467,MATCH(S177,'[1]Subcompact PC'!$C$379:$C$467,0),MATCH(Inputs!$C$2,'[1]Subcompact PC'!$H$378:$X$378,0)) -> 6309.71222 | R178: L | Z178: 2017+ | AA178: INC | AB178: % | AC178: 0 | AD178: $ | AE178: =INDEX('[1]Subcompact PC'!$H$379:$X$467,MATCH(AA177,'[1]Subcompact PC'!$C$379:$C$467,0),MATCH(Inputs!$C$2,'[1]Subcompact PC'!$H$378:$X$378,0)) +INDEX('[1]Subcompact PC'!$H$379:$X$467,MATCH(AG177,'[1]Subcompact PC'!$C$379:$C$467,0),MATCH(Inputs!$C$2,'[1]Subcompact PC'!$H$378:$X$378,0)) ->  | AF178: L
M179: ABS | N179: % | O179: =1-((1-V171)*(1-O178)) -> 0.8997339913 | P179: $ | Q179: =Q178+X171 -> 21208.70605 | R179: 33.86 | AA179: ABS | AB179: % | AC179: =1-((1-V171)*(1-AC178)) -> 0.8997339913 | AD179: $ | AE179: =AE178+X171 ->  | AF179: 33.86
A185: Vehicle Technology Decision Tree
C189: ABS - WR | D189: ='[1]Subcompact PC'!$M$82 -> 0 | E189: 2012-2016 | F189: INC | G189: % | H189: =IF(D189<5%, D189*(3.5/10), D189*(5.1/10)) -> 0 | I189: $ | J189: =INDEX('[1]Subcompact PC'!$H$379:$X$467,MATCH(L191,'[1]Subcompact PC'!$C$379:$C$467,0),MATCH(Inputs!$C$2,'[1]Subcompact PC'!$H$378:$X$378,0)) -> 0 | K189: 1.33 | S189: 2012-2016 | T189: INC | U189: % | V189: 0.019 | W189: $ | X189: =INDEX('[1]Subcompact PC'!$H$379:$X$467,MATCH(Z191,'[1]Subcompact PC'!$C$379:$C$467,0),MATCH(Inputs!$C$2,'[1]Subcompact PC'!$H$378:$X$378,0)) -> 6.43963924 | Y189: 5.15 | AG189: 2012-2016 | AH189: INC | AI189: % | AJ189: 0.008 | AK189: $ | AL189: =INDEX('[1]Subcompact PC'!$H$379:$X$467,MATCH(AN191,'[1]Subcompact PC'!$C$379:$C$467,0),MATCH(Inputs!$C$2,'[1]Subcompact PC'!$H$378:$X$378,0)) -> 70.83603164 | AM189: 5.15 | AU189: 2012-2016 | AV189: INC | AW189: % | AX189: 0.023 | AY189: $ | AZ189: =INDEX('[1]Subcompact PC'!$H$379:$X$467,MATCH(BB191,'[1]Subcompact PC'!$C$379:$C$467,0),MATCH(Inputs!$C$2,'[1]Subcompact PC'!$H$378:$X$378,0)) -> 43.85793807 | BA189: 5.15
F190: ABS | G190: % | H190: =H189 -> 0 | I190: $ | J190: =J189 -> 0 | K190: L | T190: ABS | U190: % | V190: =V189 -> 0.019 | W190: $ | X190: =X189 -> 6.43963924 | Y190: L | AH190: ABS | AI190: % | AJ190: =AJ189 -> 0.008 | AK190: $ | AL190: =AL189 -> 70.83603164 | AM190: L | AV190: ABS | AW190: % | AX190: =AX189 -> 0.023 | AY190: $ | AZ190: =AZ189 -> 43.85793807 | BA190: L
G191: Mass Reduction (MR1) - ($/pound) - TBL | L191: MR1 | U191: Low Roll Resistance Tires 1 (ROLL1) - No Learning Applied | Z191: ROLL1 | AI191: Low Drag Brakes (LDB) No Learning Applied | AN191: LDB | AW191: Aerodynamic Drag Reduction 1 (AERO1) - No Learming Applied | BB191: AERO1
E192: 2017+ | F192: INC | G192: % | H192: =H189 -> 0 | I192: $ | J192: =J189 -> 0 | K192: 1.33 | S192: 2017+ | T192: INC | U192: % | V192: =V189 -> 0.019 | W192: $ | X192: =X189 -> 6.43963924 | Y192: 5.15 | AG192: 2017+ | AH192: INC | AI192: % | AJ192: =AJ189 -> 0.008 | AK192: $ | AL192: =AL189 -> 70.83603164 | AM192: 5.15 | AU192: 2017+ | AV192: INC | AW192: % | AX192: =AX189 -> 0.023 | AY192: $ | AZ192: =AZ189 -> 43.85793807 | BA192: 5.15
F193: ABS | G193: % | H193: =H192 -> 0 | I193: $ | J193: =J192 -> 0 | K193: L | T193: ABS | U193: % | V193: =V192 -> 0.019 | W193: $ | X193: =X192 -> 6.43963924 | Y193: L | AH193: ABS | AI193: % | AJ193: =AJ192 -> 0.008 | AK193: $ | AL193: =AL192 -> 70.83603164 | AM193: L | AV193: ABS | AW193: % | AX193: =AX192 -> 0.023 | AY193: $ | AZ193: =AZ192 -> 43.85793807 | BA193: L
C197: INC - WR | D197: ='[1]Subcompact PC'!$M$83 -> 0 | E197: 2012-2016 | F197: INC | G197: % | H197: =1-((1-H198)/(1-H190)) -> 0 | I197: $ | J197: =INDEX('[1]Subcompact PC'!$H$379:$X$467,MATCH(L199,'[1]Subcompact PC'!$C$379:$C$467,0),MATCH(Inputs!$C$2,'[1]Subcompact PC'!$H$378:$X$378,0)) -> 0 | K197: 1.33 | S197: 2012-2016 | T197: INC | U197: % | V197: =1-((1-V198)/(1-V190)) -> 0.02038735984 | W197: $ | X197: =0 -> 0 | Y197: 5.15 | AG197: 2012-2016 | AH197: INC | AI197: % | AJ197: 0.014 | AK197: $ | AL197: =INDEX('[1]Subcompact PC'!$H$379:$X$467,MATCH(AN199,'[1]Subcompact PC'!$C$379:$C$467,0),MATCH(Inputs!$C$2,'[1]Subcompact PC'!$H$378:$X$378,0)) -> 87.5682515 | AM197: 5.15 | AU197: 2012-2016 | AV197: INC | AW197: % | AX197: =1-((1-AX198)/(1-AX190)) -> 0.02456499488 | AY197: $ | AZ197: =INDEX('[1]Subcompact PC'!$H$379:$X$467,MATCH(BB199,'[1]Subcompact PC'!$C$379:$C$467,0),MATCH(Inputs!$C$2,'[1]Subcompact PC'!$H$378:$X$378,0)) -> 154.952775 | BA197: 5.15
C198: ABS - WR | D198: =D197+D189 -> 0 | F198: ABS | G198: % | H198: =IF(D198<5%,D198 D198*(3.5/10), D198*(5.1/10)) -> 0 | I198: $ | J198: =J197 -> 0 | K198: L | T198: ABS | U198: % | V198: 0.039 | W198: $ | X198: =X190+X197 -> 6.43963924 | Y198: L | AH198: ABS | AI198: % | AJ198: =1-(1-AJ190)*(1-AJ197) -> 0.021888 | AK198: $ | AL198: =AL190+AL197 -> 158.4042831 | AM198: L | AV198: ABS | AW198: % | AX198: 0.047 | AY198: $ | AZ198: =AZ190+AZ197 -> 198.8107131 | BA198: L
G199: Mass Reduction (MR2) - ($/pound) - TBL | L199: MR2 | U199: Low Roll Resistance Tires 2 (ROLL2) - No Learning Applied | Z199: ROLL2 | AI199: Secondary Axle Discon. (SAXU/SAXL) TBL | AN199: SAX | AW199: Aerodynamic Drag Reduction 2 (AERO2) - No Learming Applied | BB199: AERO2
E200: 2017+ | F200: INC | G200: % | H200: =1-((1-H201)/(1-H193)) -> 0 | I200: $ | J200: =J197 -> 0 | K200: 1.33 | S200: 2017+ | T200: INC | U200: % | V200: =1-((1-V201)/(1-V193)) -> 0.02038735984 | W200: $ | X200: =INDEX('[1]Subcompact PC'!$H$379:$X$467,MATCH(Z199,'[1]Subcompact PC'!$C$379:$C$467,0),MATCH(Inputs!$C$2,'[1]Subcompact PC'!$H$378:$X$378,0)) -> 50.17323253 | Y200: 5.15 | AG200: 2017+ | AH200: INC | AI200: % | AJ200: =AJ197 -> 0.014 | AK200: $ | AL200: =AL197 -> 87.5682515 | AM200: 5.15 | AU200: 2017+ | AV200: INC | AW200: % | AX200: =1-((1-AX201)/(1-AX193)) -> 0.02456499488 | AY200: $ | AZ200: =AZ197 -> 154.952775 | BA200: 5.15
F201: ABS | G201: % | H201: =IF(D198<5%, D198*(3.5/10), D198*(5.1/10)) -> 0 | I201: $ | J201: =J200 -> 0 | K201: L | T201: ABS | U201: % | V201: =V198 -> 0.039 | W201: $ | X201: =X193+X200 -> 56.61287177 | Y201: L | AH201: ABS | AI201: % | AJ201: =1-(1-AJ193)*(1-AJ200) -> 0.021888 | AK201: $ | AL201: =AL193+AL200 -> 158.4042831 | AM201: L | AV201: ABS | AW201: % | AX201: =AX198 -> 0.047 | AY201: $ | AZ201: =AZ193+AZ200 -> 198.8107131 | BA201: L
C205: INC - WR | D205: ='[1]Subcompact PC'!$M$84 -> 0 | E205: 2012-2016 | F205: INC | G205: % | H205: =1-((1-H206)/(1-H198)) -> 0 | I205: $ | J205: =INDEX('[1]Subcompact PC'!$H$379:$X$467,MATCH(L207,'[1]Subcompact PC'!$C$379:$C$467,0),MATCH(Inputs!$C$2,'[1]Subcompact PC'!$H$378:$X$378,0)) -> 0 | K205: 1.33 | S205: 2012-2016 | T205: INC | U205: % | V205: 0 | W205: $ | X205: 0 | Y205: 0
C206: ABS - WR | D206: =D205+D198 -> 0 | F206: ABS | G206: % | H206: =IF(D206<5%, D206*(3.5/10), D206*(5.1/10)) -> 0 | I206: $ | J206: =J205 -> 0 | K206: L | T206: ABS | U206: % | V206: =1-((1-V198)*(1-V205)) -> 0.039 | W206: $ | X206: =X198+X205 -> 6.43963924 | Y206: L
G207: Mass Reduction (MR3) - ($/pound) - TBL | L207: MR3 | U207: Low Roll Resistance Tires 3 (ROLL3) - No Learning Applied
E208: 2017+ | F208: INC | G208: % | H208: =1-((1-H209)/(1-H201)) -> 0 | I208: $ | J208: =J205 -> 0 | K208: 1.33 | S208: 2017+ | T208: INC | U208: % | V208: 0 | W208: $ | X208: =X205 -> 0 | Y208: 0
F209: ABS | G209: % | H209: =IF(D206<5%, D206*(3.5/10), D206*(5.1/10)) -> 0 | I209: $ | J209: =J208 -> 0 | K209: L | T209: ABS | U209: % | V209: =1-((1-V201)*(1-V208)) -> 0.039 | W209: $ | X209: =X201+X208 -> 56.61287177 | Y209: L
C213: INC - WR | D213: ='[1]Subcompact PC'!$M$85 -> 0 | E213: 2012-2016 | F213: INC | G213: % | H213: =1-((1-H214)/(1-H206)) -> 0 | I213: $ | J213: =INDEX('[1]Subcompact PC'!$H$379:$X$467,MATCH(L215,'[1]Subcompact PC'!$C$379:$C$467,0),MATCH(Inputs!$C$2,'[1]Subcompact PC'!$H$378:$X$378,0)) -> 0 | K213: 1.33
C214: ABS - WR | D214: =D213+D206 -> 0 | F214: ABS | G214: % | H214: =IF(D214<5%, D214*(3.5/10), D214*(5.1/10)) -> 0 | I214: $ | J214: =J213 -> 0 | K214: L
G215: Mass Reduction (MR4) - ($/pound) - TBL | L215: MR4
E216: 2017+ | F216: INC | G216: % | H216: =1-((1-H217)/(1-H209)) -> 0 | I216: $ | J216: =J213 -> 0 | K216: 1.33
F217: ABS | G217: % | H217: =IF(D214<5%, D214*(3.5/10), D214*(5.1/10)) -> 0 | I217: $ | J217: =J216 -> 0 | K217: L
C221: INC - WR | D221: ='[1]Subcompact PC'!$M$86 -> 0 | E221: 2012-2016 | F221: INC | G221: % | H221: =1-((1-H222)/(1-H214)) -> 0 | I221: $ | J221: =INDEX('[1]Subcompact PC'!$H$379:$X$467,MATCH(L223,'[1]Subcompact PC'!$C$379:$C$467,0),MATCH(Inputs!$C$2,'[1]Subcompact PC'!$H$378:$X$378,0)) -> 0 | K221: 1.33
C222: ABS - WR | D222: =D221+D214 -> 0 | F222: ABS | G222: % | H222: =IF(D222<5%, D222*(3.5/10), D222*(5.1/10)) -> 0 | I222: $ | J222: =J221 -> 0 | K222: L
G223: Mass Reduction (MR5) - ($/pound) - TBL | L223: MR5
E224: 2017+ | F224: INC | G224: % | H224: =1-((1-H225)/(1-H217)) -> 0 | I224: $ | J224: =J221 -> 0 | K224: 1.33
F225: ABS | G225: % | H225: =IF(D222<5%, D222*(3.5/10), D222*(5.1/10)) -> 0 | I225: $ | J225: =J224 -> 0 | K225: L

Sheet Subcompact Perf. PC
A1: Full Engine Technology Decision Tree
B3: START
A4: Gas Engine Type | B4: I4 | BI4: 2012-2016 | BJ4: INC | BK4: % | BL4: 0.005 | BM4: $ | BN4: =INDEX('[1]Subcompact Perf. PC'!$H$379:$X$467,MATCH(BP6,'[1]Subcompact Perf. PC'!$C$379:$C$467,0),MATCH(Inputs!$C$2,'[1]Subcompact Perf. PC'!$H$378:$X$378,0)) -> 3.863783544 | BO4: 10 | BW4: 2012-2016 | BX4: INC | BY4: % | BZ4: 0.02 | CA4: $ | CB4: =INDEX('[1]Subcompact Perf. PC'!$H$379:$X$467,MATCH(CD6,'[1]Subcompact Perf. PC'!$C$379:$C$467,0),MATCH(Inputs!$C$2,'[1]Subcompact Perf. PC'!$H$378:$X$378,0))*$B$13 -> 58.09222409 | CC4: 10 | CK4: 2012-2016 | CL4: INC | CM4: % | CN4: =1-((1-CN5)/(1-BZ5)) -> 0 | CO4: $ | CP4: 0 | CQ4: L
A5: Displacement [L] | B5: 2.2 | BJ5: ABS | BK5: % | BL5: =BL4 -> 0.005 | BM5: $ | BN5: =BN4 -> 3.863783544 | BO5: L | BX5: ABS | BY5: % | BZ5: =1-((1-BL5)*(1-BZ4)) -> 0.0249 | CA5: $ | CB5: =BN5+CB4 -> 61.95600763 | CC5: L | CL5: ABS | CM5: % | CN5: =BZ5 -> 0.0249 | CO5: $ | CP5: =CB5 -> 61.95600763 | CQ5: 0
A6: Turbocharger | B6: None | BK6: Low-Friction Lubricants 1 (LUB1) - No Learning Applied | BP6: LUB1 | BY6: Engine Friction Reduction 1 (EFR1) - No Learning Applied | CD6: EFR1 | CM6: Low-Friction Lub & Engine Friction Redux 2 (LUB2_EFR2) - No Learning Applied | CR6: LUB2_EFR2
A7: EGR system | B7: External | BI7: 2017+ | BJ7: INC | BK7: % | BL7: =BL4 -> 0.005 | BM7: $ | BN7: =BN4 -> 3.863783544 | BO7: 10 | BW7: 2017+ | BX7: INC | BY7: % | BZ7: 0.02 | CA7: $ | CB7: =CB4 -> 58.09222409 | CC7: 10 | CK7: 2017+ | CL7: INC | CM7: % | CN7: =1-((1-CN8)/(1-BZ8)) -> 0.01035791201 | CO7: $ | CP7: =INDEX('[1]Subcompact Perf. PC'!$H$379:$X$467,MATCH(CR6,'[1]Subcompact Perf. PC'!$C$379:$C$467,0),MATCH(Inputs!$C$2,'[1]Subcompact Perf. PC'!$H$378:$X$378,0))*$B$13 -> 62.84073183 | CQ7: L
A8: Valvetrain | B8: SOHC/ DOHC/ OHV | BJ8: ABS | BK8: % | BL8: =BL7 -> 0.005 | BM8: $ | BN8: =BN7 -> 3.863783544 | BO8: L | BX8: ABS | BY8: % | BZ8: =1-((1-BL8)*(1-BZ7)) -> 0.0249 | CA8: $ | CB8: =BN8+CB7 -> 61.95600763 | CC8: L | CL8: ABS | CM8: % | CN8: 0.035 | CO8: $ | CP8: =CB8+CP7 -> 124.7967395 | CQ8: 33.86
A9: After Treatment | B9: 3way cat
AE11: SOHC | CP11: DOHC | EX11: OHV
A13: Cylinders | B13: =IF(B4="I4",4,IF(B4="V6",6,8)) -> 4
A14: Cylinder Banks | B14: =IF(B4="I4",1,2) -> 1 | CK14: 2012-2016 | CL14: INC | CM14: % | CN14: =CN17 -> 0.02176165803 | CO14: $ | CP14: =INDEX('[1]Subcompact Perf. PC'!$H$379:$X$467,MATCH(CR16,'[1]Subcompact Perf. PC'!$C$379:$C$467,0),MATCH(Inputs!$C$2,'[1]Subcompact Perf. PC'!$H$378:$X$378,0))*$B$14 -> 41.54962554 | CQ14: 10
CL15: ABS | CM15: % | CN15: =1-((1-CN5)*(1-CN14)) -> 0.04611979275 | CO15: $ | CP15: =CP5+CP14 -> 103.5056332 | CQ15: L
CM16: Intake Cam Phasing (ICP) - TBL | CR16: ICP
CK17: 2017+ | CL17: INC | CM17: % | CN17: =1-((1-CN18)/(1-CN8)) -> 0.02176165803 | CO17: $ | CP17: =CP14 -> 41.54962554 | CQ17: 10
CL18: ABS | CM18: % | CN18: 0.056 | CO18: $ | CP18: =CP8+CP17 -> 166.346365 | CQ18: L
A22: Notes: | B22: (1) All costs shown in $2009 | Z22: 2012-2016 | AA22: INC | AB22: % | AC22: =AC25 -> 0.0414507772 | AD22: $ | AE22: =INDEX('[1]Subcompact Perf. PC'!$H$379:$X$467,MATCH(AG24,'[1]Subcompact Perf. PC'!$C$379:$C$467,0),MATCH(Inputs!$C$2,'[1]Subcompact Perf. PC'!$H$378:$X$378,0))*$B$14 -> 41.54962554 | AF22: 10 | CK22: 2012-2016 | CL22: INC | CM22: % | CN22: =CN25 -> 0.02012711864 | CO22: $ | CP22: =INDEX('[1]Subcompact Perf. PC'!$H$379:$X$467,MATCH(CR24,'[1]Subcompact Perf. PC'!$C$379:$C$467,0),MATCH(Inputs!$C$2,'[1]Subcompact Perf. PC'!$H$378:$X$378,0))*$B$14 -> 38.52785394 | CQ22: 10
AA23: ABS | AB23: % | AC23: =1-((1-CN5)*(1-AC22)) -> 0.06531865285 | AD23: $ | AE23: =CP5+AE22 -> 103.5056332 | AF23: L | CL23: ABS | CM23: % | CN23: =1-((1-CN15)*(1-CN22)) -> 0.06531865285 | CO23: $ | CP23: =CP15+CP22 -> 142.0334871 | CQ23: L
AB24: Coupled Cam Phasing (CCPS) - TBL | AG24: CCPS | CM24: Dual Cam Phasing (DCP) - TBL | CR24: DCP
Z25: 2017+ | AA25: INC | AB25: % | AC25: =1-((1-AC26)/(1-CN8)) -> 0.0414507772 | AD25: $ | AE25: =AE22 -> 41.54962554 | AF25: 10 | CK25: 2017+ | CL25: INC | CM25: % | CN25: =1-((1-CN26)/(1-CN18)) -> 0.02012711864 | CO25: $ | CP25: =CP22 -> 38.52785394 | CQ25: 10
A26: L | AA26: ABS | AB26: % | AC26: 0.075 | AD26: $ | AE26: =CP8+AE25 -> 166.346365 | AF26: L | CL26: ABS | CM26: % | CN26: 0.075 | CO26: $ | CP26: =CP18+CP25 -> 204.8742189 | CQ26: L
A27: M
A28: H
A29: VH
Z30: 2012-2016 | AA30: INC | AB30: % | AC30: =AC33 -> 0.02810810811 | AD30: $ | AE30: =INDEX('[1]Subcompact Perf. PC'!$H$379:$X$467,MATCH(AG32,'[1]Subcompact Perf. PC'!$C$379:$C$467,0),MATCH(Inputs!$C$2,'[1]Subcompact Perf. PC'!$H$378:$X$378,0))*$B$13 -> 141.9578409 | AF30: 10 | BP30: 2012-2016 | BQ30: INC | BR30: % | BS30: =BS33 -> 0.02810810811 | BT30: $ | BU30: =INDEX('[1]Subcompact Perf. PC'!$H$379:$X$467,MATCH(BW32,'[1]Subcompact Perf. PC'!$C$379:$C$467,0),MATCH(Inputs!$C$2,'[1]Subcompact Perf. PC'!$H$378:$X$378,0))*$B$13 -> 141.9578409 | BV30: 10 | DF30: 2012-2016 | DG30: INC | DH30: % | DI30: =DI33 -> 0.03567567568 | DJ30: $ | DK30: =INDEX('[1]Subcompact Perf. PC'!$H$379:$X$467,MATCH(DM32,'[1]Subcompact Perf. PC'!$C$379:$C$467,0),MATCH(Inputs!$C$2,'[1]Subcompact Perf. PC'!$H$378:$X$378,0))*$B$13 -> 228.5253386 | DL30: 10 | EV30: 2012-2016 | EW30: INC | EX30: % | EY30: =1-((1-EY31)/(1-CN5)) -> 0.0462516665 | EZ30: $ | FA30: =INDEX('[1]Subcompact Perf. PC'!$H$379:$X$467,MATCH(FC32,'[1]Subcompact Perf. PC'!$C$379:$C$467,0),MATCH(Inputs!$C$2,'[1]Subcompact Perf. PC'!$H$378:$X$378,0)) -> 180.8502248 | FB30: 10
AA31: ABS | AB31: % | AC31: =1-((1-AC23)*(1-AC30)) -> 0.0915907772 | AD31: $ | AE31: =AE23+AE30 -> 245.4634741 | AF31: L | BQ31: ABS | BR31: % | BS31: =1-((1-CN23)*(1-BS30)) -> 0.0915907772 | BT31: $ | BU31: =CP23+BU30 -> 283.991328 | BV31: L | DG31: ABS | DH31: % | DI31: =1-((1-CN23)*(1-DI30)) -> 0.09866404145 | DJ31: $ | DK31: =CP23+DK30 -> 370.5588257 | DL31: L | EW31: ABS | EX31: % | EY31: 0.07 | EZ31: $ | FA31: =CP5+FA30 -> 242.8062325 | FB31: L
AB32: Discrete VVL (DVVLS) - TBL | AG32: DVVLS | BR32: Discrete VVL (DVVLD) - TBL | BW32: DVVLD | DH32: Continuous VVL (CVVL) - TBL | DM32: CVVL | EX32: Cylinder Deactivation (DEACO) - TBL | FC32: DEACO
Z33: 2017+ | AA33: INC | AB33: % | AC33: =1-((1-AC34)/(1-AC26)) -> 0.02810810811 | AD33: $ | AE33: =AE30 -> 141.9578409 | AF33: 10 | BP33: 2017+ | BQ33: INC | BR33: % | BS33: =1-((1-BS34)/(1-CN26)) -> 0.02810810811 | BT33: $ | BU33: =BU30 -> 141.9578409 | BV33: 10 | DF33: 2017+ | DG33: INC | DH33: % | DI33: =1-((1-DI34)/(1-CN26)) -> 0.03567567568 | DJ33: $ | DK33: =DK30 -> 228.5253386 | DL33: 10 | EV33: 2017+ | EW33: INC | EX33: % | EY33: =1-((1-EY34)/(1-CN8)) -> 0.04663212435 | EZ33: $ | FA33: =FA30 -> 180.8502248 | FB33: 10
B34: START | AA34: ABS | AB34: % | AC34: 0.101 | AD34: $ | AE34: =AE26+AE33 -> 308.3042059 | AF34: L | BQ34: ABS | BR34: % | BS34: 0.101 | BT34: $ | BU34: =CP26+BU33 -> 346.8320598 | BV34: L | DG34: ABS | DH34: % | DI34: 0.108 | DJ34: $ | DK34: =CP26+DK33 -> 433.3995575 | DL34: L | EW34: ABS | EX34: % | EY34: 0.08 | EZ34: $ | FA34: =CP8+FA33 -> 305.6469643 | FB34: L
A35: Gas Engine Type | B35: I4
A36: Displacement [L] | B36: 2.2
A37: Turbocharger | B37: None
A38: EGR system | B38: External | Z38: 2012-2016 | AA38: INC | AB38: % | AC38: =AC41 -> 0.004449388209 | AD38: $ | AE38: =INDEX('[1]Subcompact Perf. PC'!$H$379:$X$467,MATCH(AG40,'[1]Subcompact Perf. PC'!$C$379:$C$467,0),MATCH(Inputs!$C$2,'[1]Subcompact Perf. PC'!$H$378:$X$378,0)) -> 28.17691074 | AF38: 10 | BP38: 2012-2016 | BQ38: INC | BR38: % | BS38: =BS41 -> 0.004449388209 | BT38: $ | BU38: =INDEX('[1]Subcompact Perf. PC'!$H$379:$X$467,MATCH(BW40,'[1]Subcompact Perf. PC'!$C$379:$C$467,0),MATCH(Inputs!$C$2,'[1]Subcompact Perf. PC'!$H$378:$X$378,0)) -> 28.17691074 | BV38: 10 | DF38: 2012-2016 | DG38: INC | DH38: % | DI38: =DI41 -> 0 | DJ38: $ | DK38: 0 | DL38: 10 | EV38: 2012-2016 | EW38: INC | EX38: % | EY38: =1-((1-EY39)/(1-EY31)) -> 0.02150537634 | EZ38: $ | FA38: =INDEX('[1]Subcompact Perf. PC'!$H$379:$X$467,MATCH(FC40,'[1]Subcompact Perf. PC'!$C$379:$C$467,0),MATCH(Inputs!$C$2,'[1]Subcompact Perf. PC'!$H$378:$X$378,0))*$B$14 -> 45.20461721 | FB38: 10
A39: Valvetrain | B39: SOHC/ DOHC/ OHV | AA39: ABS | AB39: % | AC39: =1-((1-AC31)*(1-AC38)) -> 0.09563264249 | AD39: $ | AE39: =AE31+AE38 -> 273.6403848 | AF39: L | BQ39: ABS | BR39: % | BS39: =1-((1-BS31)*(1-BS38)) -> 0.09563264249 | BT39: $ | BU39: =BU31+BU38 -> 312.1682387 | BV39: L | DG39: ABS | DH39: % | DI39: =1-((1-DI31)*(1-DI38)) -> 0.09866404145 | DJ39: $ | DK39: =DK31+DK38 -> 370.5588257 | DL39: L | EW39: ABS | EX39: % | EY39: 0.09 | EZ39: $ | FA39: =FA31+FA38 -> 288.0108497 | FB39: L
AB40: Cylinder Deactivation (DEACS) - TBL | AG40: DEACS | BR40: Cylinder Deactivation (DEACD) - TBL | BW40: DEACD | DH40: Cylinder Deactivation (DEACD) - TBL | EX40: Coupled Cam Phasing and DVVL (VVA) - TBL | FC40: VVA
Z41: 2017+ | AA41: INC | AB41: % | AC41: =1-((1-AC42)/(1-AC34)) -> 0.004449388209 | AD41: $ | AE41: =AE38 -> 28.17691074 | AF41: 10 | BP41: 2017+ | BQ41: INC | BR41: % | BS41: =1-((1-BS42)/(1-BS34)) -> 0.004449388209 | BT41: $ | BU41: =BU38 -> 28.17691074 | BV41: 10 | DF41: 2017+ | DG41: INC | DH41: % | DI41: =1-((1-DI42)/(1-DI34)) -> 0 | DJ41: $ | DK41: =DK38 -> 0 | DL41: 10 | EV41: 2017+ | EW41: INC | EX41: % | EY41: =1-((1-EY42)/(1-EY34)) -> 0.02717391304 | EZ41: $ | FA41: =FA38 -> 45.20461721 | FB41: 10
AA42: ABS | AB42: % | AC42: 0.105 | AD42: $ | AE42: =AE34+AE41 -> 336.4811166 | AF42: L | BQ42: ABS | BR42: % | BS42: 0.105 | BT42: $ | BU42: =BU34+BU41 -> 375.0089706 | BV42: L | DG42: ABS | DH42: % | DI42: =DI34 -> 0.108 | DJ42: $ | DK42: =DK34+DK41 -> 433.3995575 | DL42: L | EW42: ABS | EX42: % | EY42: 0.105 | EZ42: $ | FA42: =FA34+FA41 -> 350.8515815 | FB42: L
Z46: 2012-2016 | AA46: INC | AB46: % | AC46: =AC49 -> 0.0156424581 | AD46: $ | AE46: =INDEX('[1]Subcompact Perf. PC'!$H$379:$X$467,MATCH(AG48,'[1]Subcompact Perf. PC'!$C$379:$C$467,0),MATCH(Inputs!$C$2,'[1]Subcompact Perf. PC'!$H$378:$X$378,0))*$B$13 -> 232.9452905 | AF46: 10 | BP46: 2012-2016 | BQ46: INC | BR46: % | BS46: =BS49 -> 0.0156424581 | BT46: $ | BU46: =INDEX('[1]Subcompact Perf. PC'!$H$379:$X$467,MATCH(BW48,'[1]Subcompact Perf. PC'!$C$379:$C$467,0),MATCH(Inputs!$C$2,'[1]Subcompact Perf. PC'!$H$378:$X$378,0))*$B$13 -> 232.9452905 | BV46: 10 | DF46: 2012-2016 | DG46: INC | DH46: % | DI46: =DI49 -> 0.01457399103 | DJ46: $ | DK46: =INDEX('[1]Subcompact Perf. PC'!$H$379:$X$467,MATCH(DM48,'[1]Subcompact Perf. PC'!$C$379:$C$467,0),MATCH(Inputs!$C$2,'[1]Subcompact Perf. PC'!$H$378:$X$378,0))*$B$13 -> 232.9452905 | DL46: 10 | EV46: 2012-2016 | EW46: INC | EX46: % | EY46: =1-((1-EY47)/(1-EY39)) -> 0.01538461538 | EZ46: $ | FA46: =INDEX('[1]Subcompact Perf. PC'!$H$379:$X$467,MATCH(FC48,'[1]Subcompact Perf. PC'!$C$379:$C$467,0),MATCH(Inputs!$C$2,'[1]Subcompact Perf. PC'!$H$378:$X$378,0))*$B$13 -> 232.9452905 | FB46: 10
AA47: ABS | AB47: % | AC47: =1-((1-AC39)*(1-AC46)) -> 0.109779171 | AD47: $ | AE47: =AE39+AE46 -> 506.5856753 | AF47: L | BQ47: ABS | BR47: % | BS47: =1-((1-BS39)*(1-BS46)) -> 0.109779171 | BT47: $ | BU47: =BU39+BU46 -> 545.1135293 | BV47: L | DG47: ABS | DH47: % | DI47: =1-((1-DI39)*(1-DI46)) -> 0.1118001036 | DJ47: $ | DK47: =DK39+DK46 -> 603.5041162 | DL47: L | EW47: ABS | EX47: % | EY47: 0.104 | EZ47: $ | FA47: =FA39+FA46 -> 520.9561402 | FB47: L
AB48: Stoichiometric GDI (SGDI) - TBL | AG48: SGDI | BR48: Stoichiometric GDI (SGDI) - TBL | BW48: SGDI | DH48: Stoichiometric GDI (SGDI) - TBL | DM48: SGDI | EX48: Stoichiometric GDI (SGDIO) - TBL | FC48: SGDIO
Z49: 2017+ | AA49: INC | AB49: % | AC49: =1-((1-AC50)/(1-AC42)) -> 0.0156424581 | AD49: $ | AE49: =AE46 -> 232.9452905 | AF49: 10 | BP49: 2017+ | BQ49: INC | BR49: % | BS49: =1-((1-BS50)/(1-BS42)) -> 0.0156424581 | BT49: $ | BU49: =BU46 -> 232.9452905 | BV49: 10 | DF49: 2017+ | DG49: INC | DH49: % | DI49: =1-((1-DI50)/(1-DI42)) -> 0.01457399103 | DJ49: $ | DK49: =DK46 -> 232.9452905 | DL49: 10 | EV49: 2017+ | EW49: INC | EX49: % | EY49: =1-((1-EY50)/(1-EY42)) -> 0.0156424581 | EZ49: $ | FA49: =FA46 -> 232.9452905 | FB49: 10
X50: From SOHC Path | AA50: ABS | AB50: % | AC50: 0.119 | AD50: $ | AE50: =AE42+AE49 -> 569.4264071 | AF50: L | BN50: From DOHC w/ DVVLD Path | BQ50: ABS | BR50: % | BS50: 0.119 | BT50: $ | BU50: =BU42+BU49 -> 607.9542611 | BV50: L | DD50: From DOHC w/ CVVL Path | DG50: ABS | DH50: % | DI50: 0.121 | DJ50: $ | DK50: =DK42+DK49 -> 666.344848 | DL50: L | ET50: From OHV w/ CDOHC Path | EW50: ABS | EX50: % | EY50: 0.119 | EZ50: $ | FA50: =FA42+FA49 -> 583.796872 | FB50: L
BE53: =BE54-$O$54 -> 0 | BG53: =BG54-$Q$54 -> -10.3509432 | BS53: =BS54-$AC$54 -> 0 | BU53: =BU54-$AE$54 -> -137.4925796 | CG53: =CG54-$AQ$54 -> 0 | CI53: =CI54-$AS$54 -> -151.06222 | CU53: =CU54-$O$54 -> -0.007173320518 | CW53: =CW54-$Q$54 -> -10.3509432 | DI53: =DI54-$AC$54 -> -0.002122936626 | DK53: =DK54-$AE$54 -> -137.4925796 | DW53: =DW54-$AQ$54 -> -0.002122936626 | DY53: =DY54-$AS$54 -> -151.06222 | EK53: =EK54-$O$54 -> 0.04788051776 | EM53: =EM54-$Q$54 -> -420.0635842 | EY53: =EY54-$AC$54 -> 0 | FA53: =FA54-$AE$54 -> 562.7541357 | FM53: =FM54-$AQ$54 -> 0 | FO53: =FO54-$AS$54 -> 523.9804211
L54: 2012-2016 | M54: INC | N54: % | O54: =O57 -> 0.0720197369 | P54: $ | Q54: =INDEX('[1]Subcompact Perf. PC'!$H$379:$X$467,MATCH(M56,'[1]Subcompact Perf. PC'!$C$379:$C$467,0),MATCH(Inputs!$C$2,'[1]Subcompact Perf. PC'!$H$378:$X$378,0)) +INDEX('[1]Subcompact Perf. PC'!$H$379:$X$467,MATCH(S56,'[1]Subcompact Perf. PC'!$C$379:$C$467,0),MATCH(Inputs!$C$2,'[1]Subcompact Perf. PC'!$H$378:$X$378,0)) -> 420.0635842 | R54: 10 | Z54: 2012-2016 | AA54: INC | AB54: % | AC54: =AC57 -> 0.06696935301 | AD54: $ | AE54: =INDEX('[1]Subcompact Perf. PC'!$H$379:$X$467,MATCH(AA56,'[1]Subcompact Perf. PC'!$C$379:$C$467,0),MATCH(Inputs!$C$2,'[1]Subcompact Perf. PC'!$H$378:$X$378,0)) +INDEX('[1]Subcompact Perf. PC'!$H$379:$X$467,MATCH(AG56,'[1]Subcompact Perf. PC'!$C$379:$C$467,0),MATCH(Inputs!$C$2,'[1]Subcompact Perf. PC'!$H$378:$X$378,0)) -> -29.2678843 | AF54: 10 | AN54: 2012-2016 | AO54: INC | AP54: % | AQ54: =AQ57 -> 0.06696935301 | AR54: $ | AS54: =INDEX('[1]Subcompact Perf. PC'!$H$379:$X$467,MATCH(AO56,'[1]Subcompact Perf. PC'!$C$379:$C$467,0),MATCH(Inputs!$C$2,'[1]Subcompact Perf. PC'!$H$378:$X$378,0)) +INDEX('[1]Subcompact Perf. PC'!$H$379:$X$467,MATCH(AU56,'[1]Subcompact Perf. PC'!$C$379:$C$467,0),MATCH(Inputs!$C$2,'[1]Subcompact Perf. PC'!$H$378:$X$378,0)) -> 523.4808405 | AT54: 10 | BB54: 2012-2016 | BC54: INC | BD54: % | BE54: =BE57 -> 0.0720197369 | BF54: $ | BG54: =INDEX('[1]Subcompact PC'!$H$530:$X$541,MATCH(BC56,'[1]Subcompact PC'!$C$530:$C$541,0),MATCH(Inputs!$C$2,'[1]Subcompact PC'!$H$529:$X$529,0)) +INDEX('[1]Subcompact PC'!$H$530:$X$541,MATCH(BI56,'[1]Subcompact PC'!$C$530:$C$541,0),MATCH(Inputs!$C$2,'[1]Subcompact PC'!$H$529:$X$529,0)) -> 409.712641 | BH54: 10 | BP54: 2012-2016 | BQ54: INC | BR54: % | BS54: =BS57 -> 0.06696935301 | BT54: $ | BU54: =INDEX('[1]Subcompact PC'!$H$530:$X$541,MATCH(BQ56,'[1]Subcompact PC'!$C$530:$C$541,0),MATCH(Inputs!$C$2,'[1]Subcompact PC'!$H$529:$X$529,0)) +INDEX('[1]Subcompact PC'!$H$530:$X$541,MATCH(BW56,'[1]Subcompact PC'!$C$530:$C$541,0),MATCH(Inputs!$C$2,'[1]Subcompact PC'!$H$529:$X$529,0)) -> -166.7604639 | BV54: 10 | CD54: 2012-2016 | CE54: INC | CF54: % | CG54: =CG57 -> 0.06696935301 | CH54: $ | CI54: =INDEX('[1]Subcompact PC'!$H$530:$X$541,MATCH(CE56,'[1]Subcompact PC'!$C$530:$C$541,0),MATCH(Inputs!$C$2,'[1]Subcompact PC'!$H$529:$X$529,0)) +INDEX('[1]Subcompact PC'!$H$530:$X$541,MATCH(CK56,'[1]Subcompact PC'!$C$530:$C$541,0),MATCH(Inputs!$C$2,'[1]Subcompact PC'!$H$529:$X$529,0)) -> 372.4186205 | CJ54: 10 | CR54: 2012-2016 | CS54: INC | CT54: % | CU54: =CU57 -> 0.06484641638 | CV54: $ | CW54: =INDEX('[1]Subcompact PC'!$H$530:$X$541,MATCH(CS56,'[1]Subcompact PC'!$C$530:$C$541,0),MATCH(Inputs!$C$2,'[1]Subcompact PC'!$H$529:$X$529,0)) +INDEX('[1]Subcompact PC'!$H$530:$X$541,MATCH(CY56,'[1]Subcompact PC'!$C$530:$C$541,0),MATCH(Inputs!$C$2,'[1]Subcompact PC'!$H$529:$X$529,0)) -> 409.712641 | CX54: 10 | DF54: 2012-2016 | DG54: INC | DH54: % | DI54: =DI57 -> 0.06484641638 | DJ54: $ | DK54: =INDEX('[1]Subcompact PC'!$H$530:$X$541,MATCH(DG56,'[1]Subcompact PC'!$C$530:$C$541,0),MATCH(Inputs!$C$2,'[1]Subcompact PC'!$H$529:$X$529,0)) +INDEX('[1]Subcompact PC'!$H$530:$X$541,MATCH(DM56,'[1]Subcompact PC'!$C$530:$C$541,0),MATCH(Inputs!$C$2,'[1]Subcompact PC'!$H$529:$X$529,0)) -> -166.7604639 | DL54: 10 | DT54: 2012-2016 | DU54: INC | DV54: % | DW54: =DW57 -> 0.06484641638 | DX54: $ | DY54: =INDEX('[1]Subcompact PC'!$H$530:$X$541,MATCH(DU56,'[1]Subcompact PC'!$C$530:$C$541,0),MATCH(Inputs!$C$2,'[1]Subcompact PC'!$H$529:$X$529,0)) +INDEX('[1]Subcompact PC'!$H$530:$X$541,MATCH(EA56,'[1]Subcompact PC'!$C$530:$C$541,0),MATCH(Inputs!$C$2,'[1]Subcompact PC'!$H$529:$X$529,0)) -> 372.4186205 | DZ54: 10 | EH54: 2012-2016 | EI54: INC | EJ54: % | EK54: =EK57 -> 0.1199002547 | EL54: $ | EM54: =INDEX('[1]Subcompact PC'!$H$530:$X$541,MATCH(EI56,'[1]Subcompact PC'!$C$530:$C$541,0),MATCH(Inputs!$C$2,'[1]Subcompact PC'!$H$529:$X$529,0)) +INDEX('[1]Subcompact PC'!$H$530:$X$541,MATCH(EO56,'[1]Subcompact PC'!$C$530:$C$541,0),MATCH(Inputs!$C$2,'[1]Subcompact PC'!$H$529:$X$529,0)) -> 0 | EN54: 10 | EV54: 2012-2016 | EW54: INC | EX54: % | EY54: =EY57 -> 0.06696935301 | EZ54: $ | FA54: =INDEX('[1]Subcompact PC'!$H$530:$X$541,MATCH(EW56,'[1]Subcompact PC'!$C$530:$C$541,0),MATCH(Inputs!$C$2,'[1]Subcompact PC'!$H$529:$X$529,0)) +INDEX('[1]Subcompact PC'!$H$530:$X$541,MATCH(FC56,'[1]Subcompact PC'!$C$530:$C$541,0),MATCH(Inputs!$C$2,'[1]Subcompact PC'!$H$529:$X$529,0)) -> 533.4862514 | FB54: 10 | FC54: =INDEX('[1]Subcompact PC'!$H$530:$X$541,MATCH(EW56,'[1]Subcompact PC'!$C$530:$C$541,0),MATCH(Inputs!$C$2,'[1]Subcompact PC'!$H$529:$X$529,0)) -> 229.1756154 | FD54: =MATCH(EW56,'[1]Subcompact PC'!$C$530:$C$541,0) -> 9 | FJ54: 2012-2016 | FK54: INC | FL54: % | FM54: =FM57 -> 0.06696935301 | FN54: $ | FO54: =INDEX('[1]Subcompact PC'!$H$530:$X$541,MATCH(FK56,'[1]Subcompact PC'!$C$530:$C$541,0),MATCH(Inputs!$C$2,'[1]Subcompact PC'!$H$529:$X$529,0)) +INDEX('[1]Subcompact PC'!$H$530:$X$541,MATCH(FQ56,'[1]Subcompact PC'!$C$530:$C$541,0),MATCH(Inputs!$C$2,'[1]Subcompact PC'!$H$529:$X$529,0)) -> 1047.461262 | FP54: 10
M55: ABS | N55: % | O55: =1-((1-AC47+AC38)*(1-O54)) -> 0.1697636964 | P55: $ | Q55: =AE47+Q54 -> 926.6492596 | R55: L | AA55: ABS | AB55: % | AC55: =1-((1-AC47)*(1-AC54)) -> 0.1693966839 | AD55: $ | AE55: =AE47+AE54 -> 477.317791 | AF55: L | AO55: ABS | AP55: % | AQ55: =1-((1-AC47)*(1-AQ54)) -> 0.1693966839 | AR55: $ | AS55: =AE47+AS54 -> 1030.066516 | AT55: L | BC55: ABS | BD55: % | BE55: =1-((1-BS47)*(1-BE54)) -> 0.1738926409 | BF55: $ | BG55: =BU47+BG54 -> 954.8261703 | BH55: L | BQ55: ABS | BR55: % | BS55: =1-((1-BS47)*(1-BS54)) -> 0.1693966839 | BT55: $ | BU55: =BU47+BU54 -> 378.3530653 | BV55: L | CE55: ABS | CF55: % | CG55: =1-((1-BS47)*(1-CG54)) -> 0.1693966839 | CH55: $ | CI55: =BU47+CI54 -> 917.5321497 | CJ55: L | CS55: ABS | CT55: % | CU55: =1-((1-DI47)*(1-CU54)) -> 0.1693966839 | CV55: $ | CW55: =DK47+CW54 -> 1013.216757 | CX55: L | DG55: ABS | DH55: % | DI55: =1-((1-DI47)*(1-DI54)) -> 0.1693966839 | DJ55: $ | DK55: =DK47+DK54 -> 436.7436523 | DL55: L | DU55: ABS | DV55: % | DW55: =1-((1-DI47)*(1-DW54)) -> 0.1693966839 | DX55: $ | DY55: =DK47+DY54 -> 975.9227366 | DZ55: L | EI55: ABS | EJ55: % | EK55: =1-((1-EY47)*(1-EK54)) -> 0.2114306282 | EL55: $ | EM55: =FA47+EM54 -> 520.9561402 | EN55: L | EW55: ABS | EX55: % | EY55: =1-((1-EY47)*(1-EY54)) -> 0.1640045403 | EZ55: $ | FA55: =FA47+FA54 -> 1054.442392 | FB55: L | FK55: ABS | FL55: % | FM55: =1-((1-EY47)*(1-FM54)) -> 0.1640045403 | FN55: $ | FO55: =FA47+FO54 -> 1568.417402 | FP55: L
B56: INTERMEDIATE | M56: TRBDS1_SD_TB | N56: Turbocharging and Downsizing 1 (TRBDS1_SD) - TBL | S56: TRBDS1_SD_DS | AA56: TRBDS1_MD_TB | AB56: Turbocharging and Downsizing 1 (TRBDS1_MD) - TBL | AG56: TRBDS1_MD_DS | AO56: TRBDS1_LD_TB | AP56: Turbocharging and Downsizing 1 (TRBDS1_LD) - TBL | AU56: TRBDS1_LD_DS | BC56: TRBDS1_SD_TB_D | BD56: =$N$56 -> Turbocharging and Downsizing 1 (TRBDS1_SD) - TBL | BI56: TRBDS1_SD_DS_D | BQ56: TRBDS1_MD_TB_D | BR56: Turbocharging and Downsizing 1 (TRBDS1_MD) - TBL | BW56: TRBDS1_MD_DS_D | CE56: TRBDS1_LD_TB_D | CF56: =$AP$56 -> Turbocharging and Downsizing 1 (TRBDS1_LD) - TBL | CK56: TRBDS1_LD_DS_D | CS56: TRBDS1_SD_TB_D | CT56: =$N$56 -> Turbocharging and Downsizing 1 (TRBDS1_SD) - TBL | CY56: TRBDS1_SD_DS_D | DG56: TRBDS1_MD_TB_D | DH56: =$AB$56 -> Turbocharging and Downsizing 1 (TRBDS1_MD) - TBL | DM56: TRBDS1_MD_DS_D | DU56: TRBDS1_LD_TB_D | DV56: =$AP$56 -> Turbocharging and Downsizing 1 (TRBDS1_LD) - TBL | EA56: TRBDS1_LD_DS_D | EI56: TRBDS1_SD_TB_O | EJ56: =$N$56 -> Turbocharging and Downsizing 1 (TRBDS1_SD) - TBL | EO56: TRBDS1_SD_DS_O | EW56: TRBDS1_MD_TB_O | EX56: =$AB$56 -> Turbocharging and Downsizing 1 (TRBDS1_MD) - TBL | FC56: TRBDS1_MD_DS_O | FK56: TRBDS1_LD_TB_O | FL56: =$AP$56 -> Turbocharging and Downsizing 1 (TRBDS1_LD) - TBL | FQ56: TRBDS1_LD_DS_O
A57: Gas Engine Type | B57: I4 | L57: 2017+ | M57: INC | N57: % | O57: =1-((1-O58-AC41)/(1-AC50)) -> 0.0720197369 | P57: $ | Q57: =Q54 -> 420.0635842 | R57: 10 | Z57: 2017+ | AA57: INC | AB57: % | AC57: =1-((1-AC58)/(1-AC50)) -> 0.06696935301 | AD57: $ | AE57: =AE54 -> -29.2678843 | AF57: 10 | AN57: 2017+ | AO57: INC | AP57: % | AQ57: =1-((1-AQ58)/(1-AC50)) -> 0.06696935301 | AR57: $ | AS57: =AS54 -> 523.4808405 | AT57: 10 | BB57: 2017+ | BC57: INC | BD57: % | BE57: =1-((1-BE58-BS41)/(1-BS50)) -> 0.0720197369 | BF57: $ | BG57: =BG54 -> 409.712641 | BH57: 10 | BP57: 2017+ | BQ57: INC | BR57: % | BS57: =1-((1-BS58)/(1-BS50)) -> 0.06696935301 | BT57: $ | BU57: =BU54 -> -166.7604639 | BV57: 10 | CD57: 2017+ | CE57: INC | CF57: % | CG57: =1-((1-CG58)/(1-BS50)) -> 0.06696935301 | CH57: $ | CI57: =CI54 -> 372.4186205 | CJ57: 10 | CR57: 2017+ | CS57: INC | CT57: % | CU57: =1-((1-CU58-DI41)/(1-DI50)) -> 0.06484641638 | CV57: $ | CW57: =CW54 -> 409.712641 | CX57: 10 | DF57: 2017+ | DG57: INC | DH57: % | DI57: =1-((1-DI58)/(1-DI50)) -> 0.06484641638 | DJ57: $ | DK57: =DK54 -> -166.7604639 | DL57: 10 | DT57: 2017+ | DU57: INC | DV57: % | DW57: =1-((1-DW58)/(1-DI50)) -> 0.06484641638 | DX57: $ | DY57: =DY54 -> 372.4186205 | DZ57: 10 | EH57: 2017+ | EI57: INC | EJ57: % | EK57: =1-((1-EK58-EY33)/(1-EY50)) -> 0.1199002547 | EL57: $ | EM57: =EM54 -> 0 | EN57: 10 | EV57: 2017+ | EW57: INC | EX57: % | EY57: =1-((1-EY58)/(1-EY50)) -> 0.06696935301 | EZ57: $ | FA57: =FA54 -> 533.4862514 | FB57: 10 | FJ57: 2017+ | FK57: INC | FL57: % | FM57: =1-((1-FM58)/(1-EY50)) -> 0.06696935301 | FN57: $ | FO57: =FO54 -> 1047.461262 | FP57: 10
A58: Displacement [L] | B58: 1.5 to 2.0 | M58: ABS | N58: % | O58: 0.178 | P58: $ | Q58: =AE50+Q57 -> 989.4899914 | R58: L | AA58: ABS | AB58: % | AC58: =$O58 -> 0.178 | AD58: $ | AE58: =AE50+AE57 -> 540.1585228 | AF58: L | AO58: ABS | AP58: % | AQ58: =$O58 -> 0.178 | AR58: $ | AS58: =AE50+AS57 -> 1092.907248 | AT58: L | BC58: ABS | BD58: % | BE58: =$O58 -> 0.178 | BF58: $ | BG58: =BU50+BG57 -> 1017.666902 | BH58: L | BQ58: ABS | BR58: % | BS58: =$O58 -> 0.178 | BT58: $ | BU58: =BU50+BU57 -> 441.1937972 | BV58: L | CE58: ABS | CF58: % | CG58: =$AQ58 -> 0.178 | CH58: $ | CI58: =BU50+CI57 -> 980.3728815 | CJ58: L | CS58: ABS | CT58: % | CU58: =$O58 -> 0.178 | CV58: $ | CW58: =DK50+CW57 -> 1076.057489 | CX58: L | DG58: ABS | DH58: % | DI58: =$AC58 -> 0.178 | DJ58: $ | DK58: =DK50+DK57 -> 499.5843841 | DL58: L | DU58: ABS | DV58: % | DW58: =$AQ58 -> 0.178 | DX58: $ | DY58: =DK50+DY57 -> 1038.763468 | DZ58: L | EI58: ABS | EJ58: % | EK58: =$O58 -> 0.178 | EL58: $ | EM58: =FA50+EM57 -> 583.796872 | EN58: L | EW58: ABS | EX58: % | EY58: =$AC58 -> 0.178 | EZ58: $ | FA58: =FA50+FA57 -> 1117.283123 | FB58: L | FK58: ABS | FL58: % | FM58: =$AQ58 -> 0.178 | FN58: $ | FO58: =FA50+FO57 -> 1631.258134 | FP58: L
A59: Turbocharger | B59: FGT | BE59: =BE57-$O$57 -> 0 | BG59: =BG57-$Q$57 -> -10.3509432 | BS59: =BS57-$AC$57 -> 0 | BU59: =BU57-$AE$57 -> -137.4925796 | CG59: =CG57-$AQ$57 -> 0 | CI59: =CI57-$AS$57 -> -151.06222 | CU59: =CU57-$O$57 -> -0.007173320518 | CW59: =CW57-$Q$57 -> -10.3509432 | DI59: =DI57-$AC$57 -> -0.002122936626 | DK59: =DK57-$AE$57 -> -137.4925796 | DW59: =DW57-$AQ$57 -> -0.002122936626 | DY59: =DY57-$AS$57 -> -151.06222 | EK59: =EK57-$O$57 -> 0.04788051776 | EM59: =EM57-$Q$57 -> -420.0635842 | EY59: =EY57-$AC$57 -> 0 | FA59: =FA57-$AE$57 -> 562.7541357 | FM59: =FM57-$AQ$57 -> 0 | FO59: =FO57-$AS$57 -> 523.9804211
A60: EGR system | B60: External
A61: Valvetrain | B61: DOHC
A62: After Treatment | B62: 3way cat | L62: 2012-2016 | M62: INC | N62: % | O62: =1-((1-O63)/(1-O55)) -> 0 | P62: $ | Q62: 0 | R62: 0 | Z62: 2012-2016 | AA62: INC | AB62: % | AC62: =1-((1-AC63)/(1-AC55)) -> 0 | AD62: $ | AE62: 0 | AF62: 0 | AN62: 2012-2016 | AO62: INC | AP62: % | AQ62: =1-((1-AQ63)/(1-AQ55)) -> 0 | AR62: $ | AS62: 0 | AT62: 0 | BB62: 2012-2016 | BC62: INC | BD62: % | BE62: =1-((1-BE63)/(1-BE55)) -> 0 | BF62: $ | BG62: =$Q$62 -> 0 | BH62: =$R$62 -> 0 | BP62: 2012-2016 | BQ62: INC | BR62: % | BS62: =1-((1-BS63)/(1-BS55)) -> 0 | BT62: $ | BU62: =$AE$62 -> 0 | BV62: =$AF$62 -> 0 | CD62: 2012-2016 | CE62: INC | CF62: % | CG62: =1-((1-CG63)/(1-CG55)) -> 0 | CH62: $ | CI62: =$AS$62 -> 0 | CJ62: =$AT$62 -> 0 | CR62: 2012-2016 | CS62: INC | CT62: % | CU62: =1-((1-CU63)/(1-CU55)) -> 0 | CV62: $ | CW62: =$Q$62 -> 0 | CX62: =$R$62 -> 0 | DF62: 2012-2016 | DG62: INC | DH62: % | DI62: =1-((1-DI63)/(1-DI55)) -> 0 | DJ62: $ | DK62: =$AE$62 -> 0 | DL62: =$AF$62 -> 0 | DT62: 2012-2016 | DU62: INC | DV62: % | DW62: =1-((1-DW63)/(1-DW55)) -> 0 | DX62: $ | DY62: =$AS$62 -> 0 | DZ62: =$AT$62 -> 0 | EH62: 2012-2016 | EI62: INC | EJ62: % | EK62: =$O$62 -> 0 | EL62: $ | EM62: =$Q$62 -> 0 | EN62: =$R$62 -> 0 | EV62: 2012-2016 | EW62: INC | EX62: % | EY62: =1-((1-EY63)/(1-EY55)) -> 0 | EZ62: $ | FA62: =$AE$62 -> 0 | FB62: =$AF$62 -> 0 | FJ62: 2012-2016 | FK62: INC | FL62: % | FM62: =1-((1-FM63)/(1-FM55)) -> 0 | FN62: $ | FO62: =$AS$62 -> 0 | FP62: =$AT$62 -> 0
M63: ABS | N63: % | O63: =O55 -> 0.1697636964 | P63: $ | Q63: =Q55+Q62 -> 926.6492596 | R63: L | AA63: ABS | AB63: % | AC63: =AC55 -> 0.1693966839 | AD63: $ | AE63: =AE55+AE62 -> 477.317791 | AF63: L | AO63: ABS | AP63: % | AQ63: =AQ55 -> 0.1693966839 | AR63: $ | AS63: =AS55+AS62 -> 1030.066516 | AT63: L | BC63: ABS | BD63: % | BE63: =BE55 -> 0.1738926409 | BF63: $ | BG63: =BG55+BG62 -> 954.8261703 | BH63: L | BQ63: ABS | BR63: % | BS63: =BS55 -> 0.1693966839 | BT63: $ | BU63: =BU55+BU62 -> 378.3530653 | BV63: L | CE63: ABS | CF63: % | CG63: =CG55 -> 0.1693966839 | CH63: $ | CI63: =CI55+CI62 -> 917.5321497 | CJ63: L | CS63: ABS | CT63: % | CU63: =CU55 -> 0.1693966839 | CV63: $ | CW63: =CW55+CW62 -> 1013.216757 | CX63: L | DG63: ABS | DH63: % | DI63: =DI55 -> 0.1693966839 | DJ63: $ | DK63: =DK55+DK62 -> 436.7436523 | DL63: L | DU63: ABS | DV63: % | DW63: =DW55 -> 0.1693966839 | DX63: $ | DY63: =DY55+DY62 -> 975.9227366 | DZ63: L | EI63: ABS | EJ63: % | EK63: =1-((1-EK55)*(1-EK62)) -> 0.2114306282 | EL63: $ | EM63: =EM55+EM62 -> 520.9561402 | EN63: L | EW63: ABS | EX63: % | EY63: =EY55 -> 0.1640045403 | EZ63: $ | FA63: =FA55+FA62 -> 1054.442392 | FB63: L | FK63: ABS | FL63: % | FM63: =FM55 -> 0.1640045403 | FN63: $ | FO63: =FO55+FO62 -> 1568.417402 | FP63: L
M64: TRBDS2_SD_TB | N64: Turbocharging and Downsizing 2 (TRBDS2_SD) - TBL | S64: TRBDS2_SD_DS | AA64: TRBDS2_MD_TB | AB64: Turbocharging and Downsizing 2 (TRBDS2_MD) - TBL | AG64: TRBDS2_MD_DS | AO64: TRBDS2_LD_TB | AP64: Turbocharging and Downsizing 2 (TRBDS2_LD) - TBL | AU64: TRBDS2_LD_DS | BC64: TRBDS2_SD_TB | BD64: =$N$64 -> Turbocharging and Downsizing 2 (TRBDS2_SD) - TBL | BI64: TRBDS2_SD_DS | BQ64: TRBDS2_MD_TB | BR64: =$AB$64 -> Turbocharging and Downsizing 2 (TRBDS2_MD) - TBL | BW64: TRBDS2_MD_DS | CE64: TRBDS2_LD_TB | CF64: =$AP$64 -> Turbocharging and Downsizing 2 (TRBDS2_LD) - TBL | CK64: TRBDS2_LD_DS | CS64: TRBDS2_SD_TB | CT64: =$N$64 -> Turbocharging and Downsizing 2 (TRBDS2_SD) - TBL | CY64: TRBDS2_SD_DS | DG64: TRBDS2_MD_TB | DH64: =$AB$64 -> Turbocharging and Downsizing 2 (TRBDS2_MD) - TBL | DM64: TRBDS2_MD_DS | DU64: TRBDS2_LD_TB | DV64: Cooled EGR 1 (CEGR1_LD) - TBL | EA64: TRBDS2_LD_DS | EI64: TRBDS2_SD_TB | EJ64: =$N$64 -> Turbocharging and Downsizing 2 (TRBDS2_SD) - TBL | EO64: TRBDS2_SD_DS | EW64: TRBDS2_MD_TB | EX64: =$AB$64 -> Turbocharging and Downsizing 2 (TRBDS2_MD) - TBL | FC64: TRBDS2_MD_DS | FK64: TRBDS2_LD_TB | FL64: Cooled EGR 1 (CEGR1_LD) - TBL | FQ64: TRBDS2_LD_DS
B65: INTERMEDIATE | L65: 2017+ | M65: INC | N65: % | O65: =1-((1-O66)/(1-O58)) -> 0.02919708029 | P65: $ | Q65: =INDEX('[1]Large PC'!$H$379:$X$467,MATCH(M64,'[1]Large PC'!$C$379:$C$467,0),MATCH(Inputs!$C$2,'[1]Large PC'!$H$378:$X$378,0)) +INDEX('[1]Large PC'!$H$379:$X$467,MATCH(S64,'[1]Large PC'!$C$379:$C$467,0),MATCH(Inputs!$C$2,'[1]Large PC'!$H$378:$X$378,0)) -> 19.91424688 | R65: 10 | Z65: 2017+ | AA65: INC | AB65: % | AC65: =1-((1-AC66)/(1-AC58)) -> 0.02919708029 | AD65: $ | AE65: =INDEX('[1]Subcompact Perf. PC'!$H$379:$X$467,MATCH(AA64,'[1]Subcompact Perf. PC'!$C$379:$C$467,0),MATCH(Inputs!$C$2,'[1]Subcompact Perf. PC'!$H$378:$X$378,0)) +INDEX('[1]Subcompact Perf. PC'!$H$379:$X$467,MATCH(AG64,'[1]Subcompact Perf. PC'!$C$379:$C$467,0),MATCH(Inputs!$C$2,'[1]Subcompact Perf. PC'!$H$378:$X$378,0)) -> 247.5936885 | AF65: 10 | AN65: 2017+ | AO65: INC | AP65: % | AQ65: =1-((1-AQ66)/(1-AQ58)) -> 0.02919708029 | AR65: $ | AS65: =INDEX('[1]Subcompact Perf. PC'!$H$379:$X$467,MATCH(AO64,'[1]Subcompact Perf. PC'!$C$379:$C$467,0),MATCH(Inputs!$C$2,'[1]Subcompact Perf. PC'!$H$378:$X$378,0)) +INDEX('[1]Subcompact Perf. PC'!$H$379:$X$467,MATCH(AU64,'[1]Subcompact Perf. PC'!$C$379:$C$467,0),MATCH(Inputs!$C$2,'[1]Subcompact Perf. PC'!$H$378:$X$378,0)) -> 417.3547076 | AT65: 10 | BB65: 2017+ | BC65: INC | BD65: % | BE65: =1-((1-BE66)/(1-BE58)) -> 0.02919708029 | BF65: $ | BG65: =$Q65 -> 19.91424688 | BH65: =$R$65 -> 10 | BP65: 2017+ | BQ65: INC | BR65: % | BS65: =1-((1-BS66)/(1-BS58)) -> 0.02919708029 | BT65: $ | BU65: =$AE$65 -> 247.5936885 | BV65: =$AF$65 -> 10 | CD65: 2017+ | CE65: INC | CF65: % | CG65: =1-((1-CG66)/(1-CG58)) -> 0.02919708029 | CH65: $ | CI65: =$AS$65 -> 417.3547076 | CJ65: =$AT$65 -> 10 | CR65: 2017+ | CS65: INC | CT65: % | CU65: =1-((1-CU66)/(1-CU58)) -> 0.02919708029 | CV65: $ | CW65: =$Q65 -> 19.91424688 | CX65: =$R$65 -> 10 | DF65: 2017+ | DG65: INC | DH65: % | DI65: =1-((1-DI66)/(1-DI58)) -> 0.02919708029 | DJ65: $ | DK65: =$AE$65 -> 247.5936885 | DL65: =$AF$65 -> 10 | DT65: 2017+ | DU65: INC | DV65: % | DW65: =1-((1-DW66)/(1-DW58)) -> 0.02919708029 | DX65: $ | DY65: =$AS$65 -> 417.3547076 | DZ65: =$AT$65 -> 10 | EH65: 2017+ | EI65: INC | EJ65: % | EK65: =1-((1-EK66)/(1-EK58)) -> 0.02919708029 | EL65: $ | EM65: =$Q65 -> 19.91424688 | EN65: =$R$65 -> 10 | EV65: 2017+ | EW65: INC | EX65: % | EY65: =1-((1-EY66)/(1-EY58)) -> 0.02919708029 | EZ65: $ | FA65: =$AE$65 -> 247.5936885 | FB65: =$AF$65 -> 10 | FJ65: 2017+ | FK65: INC | FL65: % | FM65: =1-((1-FM66)/(1-FM58)) -> 0.02919708029 | FN65: $ | FO65: =$AS$65 -> 417.3547076 | FP65: =$AT$65 -> 10
A66: Gas Engine Type | B66: I4 | M66: ABS | N66: % | O66: 0.202 | P66: $ | Q66: =Q58+Q65 -> 1009.404238 | R66: L | AA66: ABS | AB66: % | AC66: =$O66 -> 0.202 | AD66: $ | AE66: =AE58+AE65 -> 787.7522113 | AF66: L | AO66: ABS | AP66: % | AQ66: =$O66 -> 0.202 | AR66: $ | AS66: =AS58+AS65 -> 1510.261955 | AT66: L | BC66: ABS | BD66: % | BE66: =$O66 -> 0.202 | BF66: $ | BG66: =BG58+BG65 -> 1037.581149 | BH66: L | BQ66: ABS | BR66: % | BS66: =$O66 -> 0.202 | BT66: $ | BU66: =BU58+BU65 -> 688.7874856 | BV66: L | CE66: ABS | CF66: % | CG66: =$AQ66 -> 0.202 | CH66: $ | CI66: =CI58+CI65 -> 1397.727589 | CJ66: L | CS66: ABS | CT66: % | CU66: =$O66 -> 0.202 | CV66: $ | CW66: =CW58+CW65 -> 1095.971736 | CX66: L | DG66: ABS | DH66: % | DI66: =$AC66 -> 0.202 | DJ66: $ | DK66: =DK58+DK65 -> 747.1780726 | DL66: L | DU66: ABS | DV66: % | DW66: =$AQ66 -> 0.202 | DX66: $ | DY66: =DY58+DY65 -> 1456.118176 | DZ66: L | EI66: ABS | EJ66: % | EK66: =$O66 -> 0.202 | EL66: $ | EM66: =EM58+EM65 -> 603.7111189 | EN66: L | EW66: ABS | EX66: % | EY66: =$AC66 -> 0.202 | EZ66: $ | FA66: =FA58+FA65 -> 1364.876812 | FB66: L | FK66: ABS | FL66: % | FM66: =$AQ66 -> 0.202 | FN66: $ | FO66: =FO58+FO65 -> 2048.612841 | FP66: L
A67: Displacement [L] | B67: 1
A68: Turbocharger | B68: FGT
A69: EGR system | B69: External
A70: Valvetrain | B70: DOHC | L70: 2012-2016 | M70: INC | N70: % | O70: =1-((1-O71)/(1-O63)) -> 0 | P70: $ | Q70: 0 | R70: 0 | Z70: 2012-2016 | AA70: INC | AB70: % | AC70: =1-((1-AC71)/(1-AC63)) -> 0 | AD70: $ | AE70: 0 | AF70: 0 | AN70: 2012-2016 | AO70: INC | AP70: % | AQ70: =1-((1-AQ71)/(1-AQ63)) -> 0 | AR70: $ | AS70: 0 | AT70: 0 | BB70: 2012-2016 | BC70: INC | BD70: % | BE70: =1-((1-BE71)/(1-BE63)) -> 0 | BF70: $ | BG70: =$Q$70 -> 0 | BH70: =$R$70 -> 0 | BP70: 2012-2016 | BQ70: INC | BR70: % | BS70: =1-((1-BS71)/(1-BS63)) -> 0 | BT70: $ | BU70: =$AE$70 -> 0 | BV70: =$AF$70 -> 0 | CD70: 2012-2016 | CE70: INC | CF70: % | CG70: =1-((1-CG71)/(1-CG63)) -> 0 | CH70: $ | CI70: =$AS$70 -> 0 | CJ70: =$AT$70 -> 0 | CR70: 2012-2016 | CS70: INC | CT70: % | CU70: =1-((1-CU71)/(1-CU63)) -> 0 | CV70: $ | CW70: =$Q$70 -> 0 | CX70: =$R$70 -> 0 | DF70: 2012-2016 | DG70: INC | DH70: % | DI70: =1-((1-DI71)/(1-DI63)) -> 0 | DJ70: $ | DK70: =$AE$70 -> 0 | DL70: =$AF$70 -> 0 | DT70: 2012-2016 | DU70: INC | DV70: % | DW70: =1-((1-DW71)/(1-DW63)) -> 0 | DX70: $ | DY70: =$AS$70 -> 0 | DZ70: =$AT$70 -> 0 | EH70: 2012-2016 | EI70: INC | EJ70: % | EK70: =1-((1-EK71)/(1-EK63)) -> 0 | EL70: $ | EM70: =$Q$70 -> 0 | EN70: =$R$70 -> 0 | EV70: 2012-2016 | EW70: INC | EX70: % | EY70: =1-((1-EY71)/(1-EY63)) -> 0 | EZ70: $ | FA70: =$AE$70 -> 0 | FB70: =$AF$70 -> 0 | FJ70: 2012-2016 | FK70: INC | FL70: % | FM70: =1-((1-FM71)/(1-FM63)) -> 0 | FN70: $ | FO70: =$AS$70 -> 0 | FP70: =$AT$70 -> 0
A71: After Treatment | B71: 3way cat | M71: ABS | N71: % | O71: =O63 -> 0.1697636964 | P71: $ | Q71: =Q63+Q70 -> 926.6492596 | R71: L | AA71: ABS | AB71: % | AC71: =AC63 -> 0.1693966839 | AD71: $ | AE71: =AE63+AE70 -> 477.317791 | AF71: L | AO71: ABS | AP71: % | AQ71: =AQ63 -> 0.1693966839 | AR71: $ | AS71: =AS63+AS70 -> 1030.066516 | AT71: L | BC71: ABS | BD71: % | BE71: =BE63 -> 0.1738926409 | BF71: $ | BG71: =BG63+BG70 -> 954.8261703 | BH71: L | BQ71: ABS | BR71: % | BS71: =BS63 -> 0.1693966839 | BT71: $ | BU71: =BU63+BU70 -> 378.3530653 | BV71: L | CE71: ABS | CF71: % | CG71: =CG63 -> 0.1693966839 | CH71: $ | CI71: =CI63+CI70 -> 917.5321497 | CJ71: L | CS71: ABS | CT71: % | CU71: =CU63 -> 0.1693966839 | CV71: $ | CW71: =CW63+CW70 -> 1013.216757 | CX71: L | DG71: ABS | DH71: % | DI71: =DI63 -> 0.1693966839 | DJ71: $ | DK71: =DK63+DK70 -> 436.7436523 | DL71: L | DU71: ABS | DV71: % | DW71: =DW63 -> 0.1693966839 | DX71: $ | DY71: =DY63+DY70 -> 975.9227366 | DZ71: L | EI71: ABS | EJ71: % | EK71: =EK63 -> 0.2114306282 | EL71: $ | EM71: =EM63+EM70 -> 520.9561402 | EN71: L | EW71: ABS | EX71: % | EY71: =EY63 -> 0.1640045403 | EZ71: $ | FA71: =FA63+FA70 -> 1054.442392 | FB71: L | FK71: ABS | FL71: % | FM71: =FM63 -> 0.1640045403 | FN71: $ | FO71: =FO63+FO70 -> 1568.417402 | FP71: L
M72: CEGR1_SD_TB | N72: Cooled EGR 1 (CEGR1_SD) - TBL | S72: CEGR1_SD_DS | AA72: CEGR1_MD_TB | AB72: Cooled EGR 1 (CEGR1_MD) - TBL | AG72: CEGR1_MD_DS | AO72: CEGR1_LD_TB | AP72: Cooled EGR 1 (CEGR1_LD) - TBL | AU72: CEGR1_LD_DS | BC72: CEGR1_SD_TB | BD72: =$N$72 -> Cooled EGR 1 (CEGR1_SD) - TBL | BI72: CEGR1_SD_DS | BQ72: CEGR1_MD_TB | BR72: =$AB$72 -> Cooled EGR 1 (CEGR1_MD) - TBL | BW72: CEGR1_MD_DS | CE72: CEGR1_LD_TB | CF72: =$AP$72 -> Cooled EGR 1 (CEGR1_LD) - TBL | CK72: CEGR1_LD_DS | CS72: CEGR1_SD_TB | CT72: =$N$72 -> Cooled EGR 1 (CEGR1_SD) - TBL | CY72: CEGR1_SD_DS | DG72: CEGR1_MD_TB | DH72: =$AB$72 -> Cooled EGR 1 (CEGR1_MD) - TBL | DM72: CEGR1_MD_DS | DU72: CEGR1_LD_TB | DV72: =$AP$72 -> Cooled EGR 1 (CEGR1_LD) - TBL | EA72: CEGR1_LD_DS | EI72: CEGR1_SD_TB | EJ72: =$N$72 -> Cooled EGR 1 (CEGR1_SD) - TBL | EO72: CEGR1_SD_DS | EW72: CEGR1_MD_TB | EX72: =$AB$72 -> Cooled EGR 1 (CEGR1_MD) - TBL | FC72: CEGR1_MD_DS | FK72: CEGR1_LD_TB | FL72: =$AP$72 -> Cooled EGR 1 (CEGR1_LD) - TBL | FQ72: CEGR1_LD_DS
L73: 2017+ | M73: INC | N73: % | O73: =1-((1-O74)/(1-O66)) -> 0.03634085213 | P73: $ | Q73: =INDEX('[1]Large Perf. PC'!$H$379:$X$467,MATCH(M72,'[1]Large Perf. PC'!$C$379:$C$467,0),MATCH(Inputs!$C$2,'[1]Large Perf. PC'!$H$378:$X$378,0)) +INDEX('[1]Large Perf. PC'!$H$379:$X$467,MATCH(S72,'[1]Large Perf. PC'!$C$379:$C$467,0),MATCH(Inputs!$C$2,'[1]Large Perf. PC'!$H$378:$X$378,0)) -> 285.1546693 | R73: 10 | Z73: 2017+ | AA73: INC | AB73: % | AC73: =1-((1-AC74)/(1-AC66)) -> 0.03634085213 | AD73: $ | AE73: =INDEX('[1]Subcompact Perf. PC'!$H$379:$X$467,MATCH(AA72,'[1]Subcompact Perf. PC'!$C$379:$C$467,0),MATCH(Inputs!$C$2,'[1]Subcompact Perf. PC'!$H$378:$X$378,0)) +INDEX('[1]Subcompact Perf. PC'!$H$379:$X$467,MATCH(AG72,'[1]Subcompact Perf. PC'!$C$379:$C$467,0),MATCH(Inputs!$C$2,'[1]Subcompact Perf. PC'!$H$378:$X$378,0)) -> 285.1546693 | AF73: 10 | AN73: 2017+ | AO73: INC | AP73: % | AQ73: =1-((1-AQ74)/(1-AQ66)) -> 0.03634085213 | AR73: $ | AS73: =INDEX('[1]Subcompact Perf. PC'!$H$379:$X$467,MATCH(AO72,'[1]Subcompact Perf. PC'!$C$379:$C$467,0),MATCH(Inputs!$C$2,'[1]Subcompact Perf. PC'!$H$378:$X$378,0)) +INDEX('[1]Subcompact Perf. PC'!$H$379:$X$467,MATCH(AU72,'[1]Subcompact Perf. PC'!$C$379:$C$467,0),MATCH(Inputs!$C$2,'[1]Subcompact Perf. PC'!$H$378:$X$378,0)) -> 285.1546693 | AT73: 10 | BB73: 2017+ | BC73: INC | BD73: % | BE73: =$O$73 -> 0.03634085213 | BF73: $ | BG73: =$Q$73 -> 285.1546693 | BH73: =$R$73 -> 10 | BP73: 2017+ | BQ73: INC | BR73: % | BS73: =$AC$73 -> 0.03634085213 | BT73: $ | BU73: =$AE$73 -> 285.1546693 | BV73: =$AF$73 -> 10 | CD73: 2017+ | CE73: INC | CF73: % | CG73: =$AQ$73 -> 0.03634085213 | CH73: $ | CI73: =$AS$73 -> 285.1546693 | CJ73: =$AT$73 -> 10 | CR73: 2017+ | CS73: INC | CT73: % | CU73: =$O$73 -> 0.03634085213 | CV73: $ | CW73: =$Q$73 -> 285.1546693 | CX73: =$R$73 -> 10 | DF73: 2017+ | DG73: INC | DH73: % | DI73: =$AC$73 -> 0.03634085213 | DJ73: $ | DK73: =$AE$73 -> 285.1546693 | DL73: =$AF$73 -> 10 | DT73: 2017+ | DU73: INC | DV73: % | DW73: =$AQ$73 -> 0.03634085213 | DX73: $ | DY73: =$AS$73 -> 285.1546693 | DZ73: =$AT$73 -> 10 | EH73: 2017+ | EI73: INC | EJ73: % | EK73: =$O$73 -> 0.03634085213 | EL73: $ | EM73: =$Q$73 -> 285.1546693 | EN73: =$R$73 -> 10 | EV73: 2017+ | EW73: INC | EX73: % | EY73: =$AC$73 -> 0.03634085213 | EZ73: $ | FA73: =$AE$73 -> 285.1546693 | FB73: =$AF$73 -> 10 | FJ73: 2017+ | FK73: INC | FL73: % | FM73: =$AQ$73 -> 0.03634085213 | FN73: $ | FO73: =$AS$73 -> 285.1546693 | FP73: =$AT$73 -> 10
M74: ABS | N74: % | O74: 0.231 | P74: $ | Q74: =Q66+Q73 -> 1294.558908 | R74: L | AA74: ABS | AB74: % | AC74: =O74 -> 0.231 | AD74: $ | AE74: =AE66+AE73 -> 1072.906881 | AF74: L | AO74: ABS | AP74: % | AQ74: =O74 -> 0.231 | AR74: $ | AS74: =AS66+AS73 -> 1795.416625 | AT74: L | BC74: ABS | BD74: % | BE74: =1-((1-BE66)*(1-BE73)) -> 0.231 | BF74: $ | BG74: =BG66+BG73 -> 1322.735818 | BH74: L | BQ74: ABS | BR74: % | BS74: =$O74 -> 0.231 | BT74: $ | BU74: =BU66+BU73 -> 973.942155 | BV74: L | CE74: ABS | CF74: % | CG74: =$AQ74 -> 0.231 | CH74: $ | CI74: =CI66+CI73 -> 1682.882258 | CJ74: L | CS74: ABS | CT74: % | CU74: =$O74 -> 0.231 | CV74: $ | CW74: =CW66+CW73 -> 1381.126405 | CX74: L | DG74: ABS | DH74: % | DI74: =$AC74 -> 0.231 | DJ74: $ | DK74: =DK66+DK73 -> 1032.332742 | DL74: L | DU74: ABS | DV74: % | DW74: =$AQ74 -> 0.231 | DX74: $ | DY74: =DY66+DY73 -> 1741.272845 | DZ74: L | EI74: ABS | EJ74: % | EK74: =$O74 -> 0.231 | EL74: $ | EM74: =EM66+EM73 -> 888.8657882 | EN74: L | EW74: ABS | EX74: % | EY74: =$AC74 -> 0.231 | EZ74: $ | FA74: =FA66+FA73 -> 1650.031481 | FB74: L | FK74: ABS | FL74: % | FM74: =$AQ74 -> 0.231 | FN74: $ | FO74: =FO66+FO73 -> 2333.767511 | FP74: L
L78: 2012-2016 | M78: INC | N78: % | O78: =1-((1-O79)/(1-O71)) -> 0 | P78: $ | Q78: 0 | R78: 0 | Z78: 2012-2016 | AA78: INC | AB78: % | AC78: =1-((1-AC79)/(1-AC71)) -> 0 | AD78: $ | AE78: 0 | AF78: 0 | AN78: 2012-2016 | AO78: INC | AP78: % | AQ78: =1-((1-AQ79)/(1-AQ71)) -> 0 | AR78: $ | AS78: 0 | AT78: 0 | BB78: 2012-2016 | BC78: INC | BD78: % | BE78: =1-((1-BE79)/(1-BE71)) -> 0 | BF78: $ | BG78: =$Q$78 -> 0 | BH78: =$R$78 -> 0 | BP78: 2012-2016 | BQ78: INC | BR78: % | BS78: =1-((1-BS79)/(1-BS71)) -> 0 | BT78: $ | BU78: =$AE$78 -> 0 | BV78: =$AF$78 -> 0 | CD78: 2012-2016 | CE78: INC | CF78: % | CG78: =1-((1-CG79)/(1-CG71)) -> 0 | CH78: $ | CI78: =$AS$78 -> 0 | CJ78: =$AT$78 -> 0 | CR78: 2012-2016 | CS78: INC | CT78: % | CU78: =1-((1-CU79)/(1-CU71)) -> 0 | CV78: $ | CW78: =$Q$78 -> 0 | CX78: =$R$78 -> 0 | DF78: 2012-2016 | DG78: INC | DH78: % | DI78: =1-((1-DI79)/(1-DI71)) -> 0 | DJ78: $ | DK78: =$AE$78 -> 0 | DL78: =$AF$78 -> 0 | DT78: 2012-2016 | DU78: INC | DV78: % | DW78: =1-((1-DW79)/(1-DW71)) -> 0 | DX78: $ | DY78: =$AS$78 -> 0 | DZ78: =$AT$78 -> 0 | EH78: 2012-2016 | EI78: INC | EJ78: % | EK78: =1-((1-EK79)/(1-EK71)) -> 0 | EL78: $ | EM78: =$Q$78 -> 0 | EN78: =$R$78 -> 0 | EV78: 2012-2016 | EW78: INC | EX78: % | EY78: =1-((1-EY79)/(1-EY71)) -> 0 | EZ78: $ | FA78: =$AE$78 -> 0 | FB78: =$AF$78 -> 0 | FJ78: 2012-2016 | FK78: INC | FL78: % | FM78: =1-((1-FM79)/(1-FM71)) -> 0 | FN78: $ | FO78: =$AS$78 -> 0 | FP78: =$AT$78 -> 0
M79: ABS | N79: % | O79: =O71 -> 0.1697636964 | P79: $ | Q79: =Q71+Q78 -> 926.6492596 | R79: L | AA79: ABS | AB79: % | AC79: =AC71 -> 0.1693966839 | AD79: $ | AE79: =AE71+AE78 -> 477.317791 | AF79: L | AO79: ABS | AP79: % | AQ79: =AQ71 -> 0.1693966839 | AR79: $ | AS79: =AS71+AS78 -> 1030.066516 | AT79: L | BC79: ABS | BD79: % | BE79: =BE71 -> 0.1738926409 | BF79: $ | BG79: =BG71+BG78 -> 954.8261703 | BH79: L | BQ79: ABS | BR79: % | BS79: =BS71 -> 0.1693966839 | BT79: $ | BU79: =BU71+BU78 -> 378.3530653 | BV79: L | CE79: ABS | CF79: % | CG79: =CG71 -> 0.1693966839 | CH79: $ | CI79: =CI71+CI78 -> 917.5321497 | CJ79: L | CS79: ABS | CT79: % | CU79: =CU71 -> 0.1693966839 | CV79: $ | CW79: =CW71+CW78 -> 1013.216757 | CX79: L | DG79: ABS | DH79: % | DI79: =DI71 -> 0.1693966839 | DJ79: $ | DK79: =DK71+DK78 -> 436.7436523 | DL79: L | DU79: ABS | DV79: % | DW79: =DW71 -> 0.1693966839 | DX79: $ | DY79: =DY71+DY78 -> 975.9227366 | DZ79: L | EI79: ABS | EJ79: % | EK79: =EK71 -> 0.2114306282 | EL79: $ | EM79: =EM71+EM78 -> 520.9561402 | EN79: L | EW79: ABS | EX79: % | EY79: =EY71 -> 0.1640045403 | EZ79: $ | FA79: =FA71+FA78 -> 1054.442392 | FB79: L | FK79: ABS | FL79: % | FM79: =FM71 -> 0.1640045403 | FN79: $ | FO79: =FO71+FO78 -> 1568.417402 | FP79: L
M80: CEGR2_SD_TB | N80: Cooled EGR 2 (CEGR2_SD) - TBL | S80: CEGR2_SD_DS | AA80: CEGR2_MD_TB | AB80: Cooled EGR 2 (CEGR2_MD) - TBL | AG80: CEGR2_MD_DS | AO80: CEGR2_LD_TB | AP80: Cooled EGR 2 (CEGR2_LD) - TBL | AU80: CEGR2_LD_DS | BC80: CEGR2_SD_TB | BD80: =$N$80 -> Cooled EGR 2 (CEGR2_SD) - TBL | BI80: CEGR2_SD_DS | BQ80: CEGR2_MD_TB | BR80: =$AB$80 -> Cooled EGR 2 (CEGR2_MD) - TBL | BW80: CEGR2_MD_DS | CE80: CEGR2_LD_TB | CF80: =$AP$80 -> Cooled EGR 2 (CEGR2_LD) - TBL | CK80: CEGR2_LD_DS | CS80: CEGR2_SD_TB | CT80: =$N$80 -> Cooled EGR 2 (CEGR2_SD) - TBL | CY80: CEGR2_SD_DS | DG80: CEGR2_MD_TB | DH80: =$AB$80 -> Cooled EGR 2 (CEGR2_MD) - TBL | DM80: CEGR2_MD_DS | DU80: CEGR2_LD_TB | DV80: =$AP$80 -> Cooled EGR 2 (CEGR2_LD) - TBL | EA80: CEGR2_LD_DS | EI80: CEGR2_SD_TB | EJ80: =$N$80 -> Cooled EGR 2 (CEGR2_SD) - TBL | EO80: CEGR2_SD_DS | EW80: CEGR2_MD_TB | EX80: =$AB$80 -> Cooled EGR 2 (CEGR2_MD) - TBL | FC80: CEGR2_MD_DS | FK80: CEGR2_LD_TB | FL80: =$AP$80 -> Cooled EGR 2 (CEGR2_LD) - TBL | FQ80: CEGR2_LD_DS
B81: STOP | L81: 2017+ | M81: INC | N81: % | O81: =1-((1-O82)/(1-O74)) -> 0.01040312094 | P81: $ | Q81: =INDEX('[1]Subcompact Perf. PC'!$H$379:$X$467,MATCH(M80,'[1]Subcompact Perf. PC'!$C$379:$C$467,0),MATCH(Inputs!$C$2,'[1]Subcompact Perf. PC'!$H$378:$X$378,0)) +INDEX('[1]Subcompact Perf. PC'!$H$379:$X$467,MATCH(S80,'[1]Subcompact Perf. PC'!$C$379:$C$467,0),MATCH(Inputs!$C$2,'[1]Subcompact Perf. PC'!$H$378:$X$378,0)) -> 495.187377 | R81: 10 | Z81: 2017+ | AA81: INC | AB81: % | AC81: =1-((1-AC82)/(1-AC74)) -> 0.01040312094 | AD81: $ | AE81: =INDEX('[1]Subcompact Perf. PC'!$H$379:$X$467,MATCH(AA80,'[1]Subcompact Perf. PC'!$C$379:$C$467,0),MATCH(Inputs!$C$2,'[1]Subcompact Perf. PC'!$H$378:$X$378,0)) +INDEX('[1]Subcompact Perf. PC'!$H$379:$X$467,MATCH(AG80,'[1]Subcompact Perf. PC'!$C$379:$C$467,0),MATCH(Inputs!$C$2,'[1]Subcompact Perf. PC'!$H$378:$X$378,0)) -> 495.187377 | AF81: 10 | AN81: 2017+ | AO81: INC | AP81: % | AQ81: =1-((1-AQ82)/(1-AQ74)) -> 0.01040312094 | AR81: $ | AS81: =INDEX('[1]Subcompact Perf. PC'!$H$379:$X$467,MATCH(AO80,'[1]Subcompact Perf. PC'!$C$379:$C$467,0),MATCH(Inputs!$C$2,'[1]Subcompact Perf. PC'!$H$378:$X$378,0)) +INDEX('[1]Subcompact Perf. PC'!$H$379:$X$467,MATCH(AU80,'[1]Subcompact Perf. PC'!$C$379:$C$467,0),MATCH(Inputs!$C$2,'[1]Subcompact Perf. PC'!$H$378:$X$378,0)) -> -296.6729836 | AT81: 10 | BB81: 2017+ | BC81: INC | BD81: % | BE81: =$O$81 -> 0.01040312094 | BF81: $ | BG81: =$Q$81 -> 495.187377 | BH81: =$R$81 -> 10 | BP81: 2017+ | BQ81: INC | BR81: % | BS81: =$AC$81 -> 0.01040312094 | BT81: $ | BU81: =$AE$81 -> 495.187377 | BV81: =$AF$81 -> 10 | CD81: 2017+ | CE81: INC | CF81: % | CG81: =$AQ$81 -> 0.01040312094 | CH81: $ | CI81: =$AS$81 -> -296.6729836 | CJ81: =$AT$81 -> 10 | CR81: 2017+ | CS81: INC | CT81: % | CU81: =$O$81 -> 0.01040312094 | CV81: $ | CW81: =$Q$81 -> 495.187377 | CX81: =$R$81 -> 10 | DF81: 2017+ | DG81: INC | DH81: % | DI81: =$AC$81 -> 0.01040312094 | DJ81: $ | DK81: =$AE$81 -> 495.187377 | DL81: =$AF$81 -> 10 | DT81: 2017+ | DU81: INC | DV81: % | DW81: =$AQ$81 -> 0.01040312094 | DX81: $ | DY81: =$AS$81 -> -296.6729836 | DZ81: =$AT$81 -> 10 | EH81: 2017+ | EI81: INC | EJ81: % | EK81: =$O$81 -> 0.01040312094 | EL81: $ | EM81: =$Q$81 -> 495.187377 | EN81: =$R$81 -> 10 | EV81: 2017+ | EW81: INC | EX81: % | EY81: =$AC$81 -> 0.01040312094 | EZ81: $ | FA81: =$AE$81 -> 495.187377 | FB81: =$AF$81 -> 10 | FJ81: 2017+ | FK81: INC | FL81: % | FM81: =$AQ$81 -> 0.01040312094 | FN81: $ | FO81: =$AS$81 -> -296.6729836 | FP81: =$AT$81 -> 10
A82: Diesel Engine Type | B82: I4 | M82: ABS | N82: % | O82: 0.239 | P82: $ | Q82: =Q74+Q81 -> 1789.746285 | R82: L | AA82: ABS | AB82: % | AC82: =O82 -> 0.239 | AD82: $ | AE82: =AE74+AE81 -> 1568.094258 | AF82: L | AO82: ABS | AP82: % | AQ82: =O82 -> 0.239 | AR82: $ | AS82: =AS74+AS81 -> 1498.743641 | AT82: L | BC82: ABS | BD82: % | BE82: =1-((1-BE74)*(1-BE81)) -> 0.239 | BF82: $ | BG82: =BG74+BG81 -> 1817.923195 | BH82: L | BQ82: ABS | BR82: % | BS82: =$O82 -> 0.239 | BT82: $ | BU82: =BU74+BU81 -> 1469.129532 | BV82: L | CE82: ABS | CF82: % | CG82: =$AQ82 -> 0.239 | CH82: $ | CI82: =CI74+CI81 -> 1386.209275 | CJ82: L | CS82: ABS | CT82: % | CU82: =$O82 -> 0.239 | CV82: $ | CW82: =CW74+CW81 -> 1876.313782 | CX82: L | DG82: ABS | DH82: % | DI82: =$AC82 -> 0.239 | DJ82: $ | DK82: =DK74+DK81 -> 1527.520119 | DL82: L | DU82: ABS | DV82: % | DW82: =$AQ82 -> 0.239 | DX82: $ | DY82: =DY74+DY81 -> 1444.599862 | DZ82: L | EI82: ABS | EJ82: % | EK82: =$O82 -> 0.239 | EL82: $ | EM82: =EM74+EM81 -> 1384.053165 | EN82: L | EW82: ABS | EX82: % | EY82: =$AC82 -> 0.239 | EZ82: $ | FA82: =FA74+FA81 -> 2145.218858 | FB82: L | FK82: ABS | FL82: % | FM82: =$AQ82 -> 0.239 | FN82: $ | FO82: =FO74+FO81 -> 2037.094527 | FP82: L
A83: Displacement [L] | B83: 1.5 to 2.0
A84: Turbocharger | B84: VNT
A85: EGR system | B85: cooler+vlv+bypass vlv
A86: FIE | B86: HPCR 1800bar solenoid | E86: 2012-2016 | F86: INC | G86: % | H86: =1-((1-H87)/(1-O79)) -> 0 | I86: $ | J86: 0 | K86: L | L86: 2012-2016 | M86: INC | N86: % | O86: 0 | P86: $ | Q86: 0 | R86: 0 | S86: 2012-2016 | T86: INC | U86: % | V86: =1-((1-V87)/(1-AC79)) -> 0 | W86: $ | X86: 0 | Y86: L | Z86: 2012-2016 | AA86: INC | AB86: % | AC86: 0 | AD86: $ | AE86: 0 | AF86: 0 | AG86: 2012-2016 | AH86: INC | AI86: % | AJ86: =1-((1-AJ87)/(1-AQ79)) -> 0 | AK86: $ | AL86: 0 | AM86: L | AN86: 2012-2016 | AO86: INC | AP86: % | AQ86: 0 | AR86: $ | AS86: 0 | AT86: 0 | AU86: 2012-2016 | AV86: INC | AW86: % | AX86: =1-((1-AX87)/(1-BE79)) -> -0.00499807246 | AY86: $ | AZ86: 0 | BA86: L | BB86: 2012-2016 | BC86: INC | BD86: % | BE86: 0 | BF86: $ | BG86: 0 | BH86: 0 | BI86: 2012-2016 | BJ86: INC | BK86: % | BL86: =1-((1-BL87)/(1-BS79)) -> 0 | BM86: $ | BN86: 0 | BO86: L | BP86: 2012-2016 | BQ86: INC | BR86: % | BS86: 0 | BT86: $ | BU86: 0 | BV86: 0 | BW86: 2012-2016 | BX86: INC | BY86: % | BZ86: =1-((1-BZ87)/(1-CG79)) -> 0 | CA86: $ | CB86: 0 | CC86: L | CD86: 2012-2016 | CE86: INC | CF86: % | CG86: 0 | CH86: $ | CI86: 0 | CJ86: 0 | CK86: 2012-2016 | CL86: INC | CM86: % | CN86: =1-((1-CN87)/(1-CU79)) -> 0.0004418625443 | CO86: $ | CP86: 0 | CQ86: L | CR86: 2012-2016 | CS86: INC | CT86: % | CU86: 0 | CV86: $ | CW86: 0 | CX86: 0 | CY86: 2012-2016 | CZ86: INC | DA86: % | DB86: =1-((1-DB87)/(1-DI79)) -> 0 | DC86: $ | DD86: 0 | DE86: L | DF86: 2012-2016 | DG86: INC | DH86: % | DI86: 0 | DJ86: $ | DK86: 0 | DL86: 0 | DM86: 2012-2016 | DN86: INC | DO86: % | DP86: =1-((1-DP87)/(1-DW79)) -> 0 | DQ86: $ | DR86: 0 | DS86: L | DT86: 2012-2016 | DU86: INC | DV86: % | DW86: 0 | DX86: $ | DY86: 0 | DZ86: 0 | EA86: 2012-2016 | EB86: INC | EC86: % | ED86: =1-((1-ED87)/(1-EK79)) -> -0.05283863821 | EE86: $ | EF86: 0 | EG86: L | EH86: 2012-2016 | EI86: INC | EJ86: % | EK86: 0 | EL86: $ | EM86: 0 | EN86: 0 | EO86: 2012-2016 | EP86: INC | EQ86: % | ER86: =1-((1-ER87)/(1-EY79)) -> 0.006449967617 | ES86: $ | ET86: 0 | EU86: L | EV86: 2012-2016 | EW86: INC | EX86: % | EY86: 0 | EZ86: $ | FA86: 0 | FB86: 0 | FC86: 2012-2016 | FD86: INC | FE86: % | FF86: =1-((1-FF87)/(1-FM79)) -> 0.006449967617 | FG86: $ | FH86: 0 | FI86: L | FJ86: 2012-2016 | FK86: INC | FL86: % | FM86: 0 | FN86: $ | FO86: 0 | FP86: 0
A87: Valvetrain | B87: 4-valve DOHC | F87: ABS | G87: % | H87: =O79 -> 0.1697636964 | I87: $ | J87: =J86+Q79 -> 926.6492596 | K87: 150 | M87: ABS | N87: % | O87: =1-((1-O79)*(1-O86)) -> 0.1697636964 | P87: $ | Q87: =Q79+Q86 -> 926.6492596 | R87: L | T87: ABS | U87: % | V87: =AC79 -> 0.1693966839 | W87: $ | X87: =X86+AE79 -> 477.317791 | Y87: 200 | AA87: ABS | AB87: % | AC87: =1-((1-AC79)*(1-AC86)) -> 0.1693966839 | AD87: $ | AE87: =AE79+AE86 -> 477.317791 | AF87: L | AH87: ABS | AI87: % | AJ87: =AQ79 -> 0.1693966839 | AK87: $ | AL87: =AL86+AS79 -> 1030.066516 | AM87: 500 | AO87: ABS | AP87: % | AQ87: =1-((1-AQ79)*(1-AQ86)) -> 0.1693966839 | AR87: $ | AS87: =AS79+AS86 -> 1030.066516 | AT87: L | AV87: ABS | AW87: % | AX87: =$H$87 -> 0.1697636964 | AY87: $ | AZ87: =AZ86+BG79 -> 954.8261703 | BA87: =$K$87 -> 150 | BC87: ABS | BD87: % | BE87: =1-((1-BE79)*(1-BE86)) -> 0.1738926409 | BF87: $ | BG87: =BG79+BG86 -> 954.8261703 | BH87: L | BJ87: ABS | BK87: % | BL87: =$V$87 -> 0.1693966839 | BM87: $ | BN87: =BN86+BU79 -> 378.3530653 | BO87: =$Y$87 -> 200 | BQ87: ABS | BR87: % | BS87: =1-((1-BS79)*(1-BS86)) -> 0.1693966839 | BT87: $ | BU87: =BU79+BU86 -> 378.3530653 | BV87: L | BX87: ABS | BY87: % | BZ87: =$AJ$87 -> 0.1693966839 | CA87: $ | CB87: =CB86+CI79 -> 917.5321497 | CC87: =$AM$87 -> 500 | CE87: ABS | CF87: % | CG87: =1-((1-CG79)*(1-CG86)) -> 0.1693966839 | CH87: $ | CI87: =CI79+CI86 -> 917.5321497 | CJ87: L | CL87: ABS | CM87: % | CN87: =$H$87 -> 0.1697636964 | CO87: $ | CP87: =CP86+CW79 -> 1013.216757 | CQ87: =$K$87 -> 150 | CS87: ABS | CT87: % | CU87: =1-((1-CU79)*(1-CU86)) -> 0.1693966839 | CV87: $ | CW87: =CW79+CW86 -> 1013.216757 | CX87: L | CZ87: ABS | DA87: % | DB87: =$V$87 -> 0.1693966839 | DC87: $ | DD87: =DD86+DK79 -> 436.7436523 | DE87: =$Y$87 -> 200 | DG87: ABS | DH87: % | DI87: =1-((1-DI79)*(1-DI86)) -> 0.1693966839 | DJ87: $ | DK87: =DK79+DK86 -> 436.7436523 | DL87: L | DN87: ABS | DO87: % | DP87: =$AJ$87 -> 0.1693966839 | DQ87: $ | DR87: =DR86+DY79 -> 975.9227366 | DS87: =$AM$87 -> 500 | DU87: ABS | DV87: % | DW87: =1-((1-DW79)*(1-DW86)) -> 0.1693966839 | DX87: $ | DY87: =DY79+DY86 -> 975.9227366 | DZ87: L | EB87: ABS | EC87: % | ED87: =$H$87 -> 0.1697636964 | EE87: $ | EF87: =EF86+EM79 -> 520.9561402 | EG87: =$K$87 -> 150 | EI87: ABS | EJ87: % | EK87: =1-((1-EK79)*(1-EK86)) -> 0.2114306282 | EL87: $ | EM87: =EM79+EM86 -> 520.9561402 | EN87: L | EP87: ABS | EQ87: % | ER87: =$V$87 -> 0.1693966839 | ES87: $ | ET87: =ET86+FA79 -> 1054.442392 | EU87: =$Y$87 -> 200 | EW87: ABS | EX87: % | EY87: =1-((1-EY79)*(1-EY86)) -> 0.1640045403 | EZ87: $ | FA87: =FA79+FA86 -> 1054.442392 | FB87: L | FD87: ABS | FE87: % | FF87: =$AJ$87 -> 0.1693966839 | FG87: $ | FH87: =FH86+FO79 -> 1568.417402 | FI87: =$AM$87 -> 500 | FK87: ABS | FL87: % | FM87: =1-((1-FM79)*(1-FM86)) -> 0.1640045403 | FN87: $ | FO87: =FO79+FO86 -> 1568.417402 | FP87: L
A88: Valvetrain option | B88: N/A | G88: Advanced Diesel (ADSL_SD) - TBL | L88: ADSL_SD | N88: To Strong Hybrids | U88: Advanced Diesel (ADSL_MD) - TBL | Z88: ADSL_MD | AB88: To Strong Hybrids | AI88: Advanced Diesel (ADSL_LD) - TBL | AN88: ADSL_LD | AP88: To Strong Hybrids | AW88: Advanced Diesel (ADSL_SD) - TBL | BB88: ADSL_SD | BD88: To Strong Hybrids | BK88: Advanced Diesel (ADSL_MD) - TBL | BP88: ADSL_SD | BR88: To Strong Hybrids | BY88: Advanced Diesel (ADSL_LD) - TBL | CD88: ADSL_SD | CF88: To Strong Hybrids | CM88: Advanced Diesel (ADSL_SD) - TBL | CR88: ADSL_SD | CT88: To Strong Hybrids | DA88: Advanced Diesel (ADSL_MD) - TBL | DF88: ADSL_SD | DH88: To Strong Hybrids | DO88: Advanced Diesel (ADSL_LD) - TBL | DT88: ADSL_SD | DV88: To Strong Hybrids | EC88: Advanced Diesel (ADSL_SD) - TBL | EH88: ADSL_SD | EJ88: To Strong Hybrids | EQ88: Advanced Diesel (ADSL_MD) - TBL | EV88: ADSL_SD | EX88: To Strong Hybrids | FE88: Advanced Diesel (ADSL_LD) - TBL | FJ88: ADSL_SD | FL88: To Strong Hybrids
A89: After Treatment | B89: DOC+LNT+DPF | E89: 2017+ | F89: INC | G89: % | H89: =1-((1-H90)/(1-O82)) -> 0.05532194481 | I89: $ | J89: =INDEX('[1]Subcompact Perf. PC'!$H$379:$X$467,MATCH(L88,'[1]Subcompact Perf. PC'!$C$379:$C$467,0),MATCH(Inputs!$C$2,'[1]Subcompact Perf. PC'!$H$378:$X$378,0)) -> 911.0408326 | K89: L | L89: 2017+ | M89: INC | N89: % | O89: 0 | P89: $ | Q89: =Q86 -> 0 | R89: 0 | S89: 2017+ | T89: INC | U89: % | V89: =1-((1-V90)/(1-AC82)) -> 0.05532194481 | W89: $ | X89: =INDEX('[1]Subcompact Perf. PC'!$H$379:$X$467,MATCH(Z88,'[1]Subcompact Perf. PC'!$C$379:$C$467,0),MATCH(Inputs!$C$2,'[1]Subcompact Perf. PC'!$H$378:$X$378,0)) -> 927.8544104 | Y89: L | Z89: 2017+ | AA89: INC | AB89: % | AC89: 0 | AD89: $ | AE89: =AE86 -> 0 | AF89: 0 | AG89: 2017+ | AH89: INC | AI89: % | AJ89: =1-((1-AJ90)/(1-AQ82)) -> 0.05532194481 | AK89: $ | AL89: =INDEX('[1]Subcompact Perf. PC'!$H$379:$X$467,MATCH(AN88,'[1]Subcompact Perf. PC'!$C$379:$C$467,0),MATCH(Inputs!$C$2,'[1]Subcompact Perf. PC'!$H$378:$X$378,0)) -> 1811.581549 | AM89: L | AN89: 2017+ | AO89: INC | AP89: % | AQ89: 0 | AR89: $ | AS89: =AS86 -> 0 | AT89: 0 | AU89: 2017+ | AV89: INC | AW89: % | AX89: =1-((1-AX90)/(1-BE82)) -> 0.05532194481 | AY89: $ | AZ89: =$J$89 -> 911.0408326 | BA89: L | BB89: 2017+ | BC89: INC | BD89: % | BE89: 0 | BF89: $ | BG89: =BG86 -> 0 | BH89: 0 | BI89: 2017+ | BJ89: INC | BK89: % | BL89: =1-((1-BL90)/(1-BS82)) -> 0.05532194481 | BM89: $ | BN89: =$X$89 -> 927.8544104 | BO89: L | BP89: 2017+ | BQ89: INC | BR89: % | BS89: 0 | BT89: $ | BU89: =BU86 -> 0 | BV89: 0 | BW89: 2017+ | BX89: INC | BY89: % | BZ89: =1-((1-BZ90)/(1-CG82)) -> 0.05532194481 | CA89: $ | CB89: =$AL$89 -> 1811.581549 | CC89: L | CD89: 2017+ | CE89: INC | CF89: % | CG89: 0 | CH89: $ | CI89: =CI86 -> 0 | CJ89: 0 | CK89: 2017+ | CL89: INC | CM89: % | CN89: =1-((1-CN90)/(1-CU82)) -> 0.05532194481 | CO89: $ | CP89: =$J$89 -> 911.0408326 | CQ89: L | CR89: 2017+ | CS89: INC | CT89: % | CU89: 0 | CV89: $ | CW89: =CW86 -> 0 | CX89: 0 | CY89: 2017+ | CZ89: INC | DA89: % | DB89: =1-((1-DB90)/(1-DI82)) -> 0.05532194481 | DC89: $ | DD89: =$X$89 -> 927.8544104 | DE89: L | DF89: 2017+ | DG89: INC | DH89: % | DI89: 0 | DJ89: $ | DK89: =DK86 -> 0 | DL89: 0 | DM89: 2017+ | DN89: INC | DO89: % | DP89: =1-((1-DP90)/(1-DW82)) -> 0.05532194481 | DQ89: $ | DR89: =$AL$89 -> 1811.581549 | DS89: L | DT89: 2017+ | DU89: INC | DV89: % | DW89: 0 | DX89: $ | DY89: =DY86 -> 0 | DZ89: 0 | EA89: 2017+ | EB89: INC | EC89: % | ED89: =1-((1-ED90)/(1-EK82)) -> 0.05532194481 | EE89: $ | EF89: =$J$89 -> 911.0408326 | EG89: L | EH89: 2017+ | EI89: INC | EJ89: % | EK89: 0 | EL89: $ | EM89: =EM86 -> 0 | EN89: 0 | EO89: 2017+ | EP89: INC | EQ89: % | ER89: =1-((1-ER90)/(1-EY82)) -> 0.05532194481 | ES89: $ | ET89: =$X$89 -> 927.8544104 | EU89: L | EV89: 2017+ | EW89: INC | EX89: % | EY89: 0 | EZ89: $ | FA89: =FA86 -> 0 | FB89: 0 | FC89: 2017+ | FD89: INC | FE89: % | FF89: =1-((1-FF90)/(1-FM82)) -> 0.05532194481 | FG89: $ | FH89: =$AL$89 -> 1811.581549 | FI89: L | FJ89: 2017+ | FK89: INC | FL89: % | FM89: 0 | FN89: $ | FO89: =FO86 -> 0 | FP89: 0
F90: ABS | G90: % | H90: 0.2811 | I90: $ | J90: =Q82+J89 -> 2700.787117 | K90: 150 | M90: ABS | N90: % | O90: =1-((1-O82)*(1-O89)) -> 0.239 | P90: $ | Q90: =Q82+Q89 -> 1789.746285 | R90: L | T90: ABS | U90: % | V90: =H90 -> 0.2811 | W90: $ | X90: =AE82+X89 -> 2495.948668 | Y90: 200 | AA90: ABS | AB90: % | AC90: =1-((1-AC82)*(1-AC89)) -> 0.239 | AD90: $ | AE90: =AE82+AE89 -> 1568.094258 | AF90: L | AH90: ABS | AI90: % | AJ90: =H90 -> 0.2811 | AK90: $ | AL90: =AS82+AL89 -> 3310.32519 | AM90: 500 | AO90: ABS | AP90: % | AQ90: =1-((1-AQ82)*(1-AQ89)) -> 0.239 | AR90: $ | AS90: =AS82+AS89 -> 1498.743641 | AT90: L | AV90: ABS | AW90: % | AX90: =$H$90 -> 0.2811 | AY90: $ | AZ90: =$J$90 -> 2700.787117 | BA90: =$K$90 -> 150 | BC90: ABS | BD90: % | BE90: =1-((1-BE82)*(1-BE89)) -> 0.239 | BF90: $ | BG90: =BG82+BG89 -> 1817.923195 | BH90: L | BJ90: ABS | BK90: % | BL90: =$V$90 -> 0.2811 | BM90: $ | BN90: =$X$90 -> 2495.948668 | BO90: =$Y$90 -> 200 | BQ90: ABS | BR90: % | BS90: =1-((1-BS82)*(1-BS89)) -> 0.239 | BT90: $ | BU90: =BU82+BU89 -> 1469.129532 | BV90: L | BX90: ABS | BY90: % | BZ90: =$AJ$90 -> 0.2811 | CA90: $ | CB90: =$AL$90 -> 3310.32519 | CC90: =$AM$90 -> 500 | CE90: ABS | CF90: % | CG90: =1-((1-CG82)*(1-CG89)) -> 0.239 | CH90: $ | CI90: =CI82+CI89 -> 1386.209275 | CJ90: L | CL90: ABS | CM90: % | CN90: =$H$90 -> 0.2811 | CO90: $ | CP90: =$J$90 -> 2700.787117 | CQ90: =$K$90 -> 150 | CS90: ABS | CT90: % | CU90: =1-((1-CU82)*(1-CU89)) -> 0.239 | CV90: $ | CW90: =CW82+CW89 -> 1876.313782 | CX90: L | CZ90: ABS | DA90: % | DB90: =$V$90 -> 0.2811 | DC90: $ | DD90: =$X$90 -> 2495.948668 | DE90: =$Y$90 -> 200 | DG90: ABS | DH90: % | DI90: =1-((1-DI82)*(1-DI89)) -> 0.239 | DJ90: $ | DK90: =DK82+DK89 -> 1527.520119 | DL90: L | DN90: ABS | DO90: % | DP90: =$AJ$90 -> 0.2811 | DQ90: $ | DR90: =$AL$90 -> 3310.32519 | DS90: =$AM$90 -> 500 | DU90: ABS | DV90: % | DW90: =1-((1-DW82)*(1-DW89)) -> 0.239 | DX90: $ | DY90: =DY82+DY89 -> 1444.599862 | DZ90: L | EB90: ABS | EC90: % | ED90: =$H$90 -> 0.2811 | EE90: $ | EF90: =$J$90 -> 2700.787117 | EG90: =$K$90 -> 150 | EI90: ABS | EJ90: % | EK90: =1-((1-EK82)*(1-EK89)) -> 0.239 | EL90: $ | EM90: =EM82+EM89 -> 1384.053165 | EN90: L | EP90: ABS | EQ90: % | ER90: =$V$90 -> 0.2811 | ES90: $ | ET90: =$X$90 -> 2495.948668 | EU90: =$Y$90 -> 200 | EW90: ABS | EX90: % | EY90: =1-((1-EY82)*(1-EY89)) -> 0.239 | EZ90: $ | FA90: =FA82+FA89 -> 2145.218858 | FB90: L | FD90: ABS | FE90: % | FF90: =$AJ$90 -> 0.2811 | FG90: $ | FH90: =$AL$90 -> 3310.32519 | FI90: =$AM$90 -> 500 | FK90: ABS | FL90: % | FM90: =1-((1-FM82)*(1-FM89)) -> 0.239 | FN90: $ | FO90: =FO82+FO89 -> 2037.094527 | FP90: L
A98: Expanded Trans/Hybrid Technology Decision Tree
E101: Electrification | V101: Manual Trans | AH101: Auto Trans
B103: START | E103: 2012-2016 | F103: INC | G103: % | H103: 0.015 | I103: $ | J103: =INDEX('[1]Subcompact Perf. PC'!$H$379:$X$467,MATCH(L105,'[1]Subcompact Perf. PC'!$C$379:$C$467,0),MATCH(Inputs!$C$2,'[1]Subcompact Perf. PC'!$H$378:$X$378,0)) -> 98.10328252 | K103: 95.93 | O103: START | S103: 2012-2016 | T103: INC | U103: % | V103: 0.0202 | W103: $ | X103: =INDEX('[1]Subcompact Perf. PC'!$H$379:$X$467,MATCH(Z105,'[1]Subcompact Perf. PC'!$C$379:$C$467,0),MATCH(Inputs!$C$2,'[1]Subcompact Perf. PC'!$H$378:$X$378,0)) -> 250.3175082 | Y103: 225.33 | AC103: START | AG103: 2012-2016 | AH103: INC | AI103: % | AJ103: 0.023 | AK103: $ | AL103: =INDEX('[1]Subcompact Perf. PC'!$H$379:$X$467,MATCH(AN105,'[1]Subcompact Perf. PC'!$C$379:$C$467,0),MATCH(Inputs!$C$2,'[1]Subcompact Perf. PC'!$H$378:$X$378,0)) -> 55.80794833 | AM103: 54.17
A104: Curb Weight (lbs) | B104: 3054 | F104: ABS | G104: % | H104: =H103 -> 0.015 | I104: $ | J104: =J103 -> 98.10328252 | K104: L | O104: 5-spd | T104: ABS | U104: % | V104: =V103 -> 0.0202 | W104: $ | X104: =X103 -> 250.3175082 | Y104: L | AC104: 4/5-spd | AH104: ABS | AI104: % | AJ104: =AJ103 -> 0.023 | AK104: $ | AL104: =AL103 -> 55.80794833 | AM104: L
A105: Engine Displacement [L] | B105: 2.7 | G105: Electric Power Steering (EPS) - TBL | L105: EPS | O105: Manual | U105: 6 Speed Man/Imp. Internals (6MAN) - TBL | Z105: 6MAN | AC105: Auto | AI105: Imp. Auto Trans Cnrt./ Externals (IATC) - TBL | AN105: IATC
A106: Engine Power (HP) | B106: 260 | E106: 2017+ | F106: INC | G106: % | H106: =H103 -> 0.015 | I106: $ | J106: =J103 -> 98.10328252 | K106: =K103 -> 95.93 | S106: 2017+ | T106: INC | U106: % | V106: 0.0202 | W106: $ | X106: =X103 -> 250.3175082 | Y106: 225.33 | AG106: 2017+ | AH106: INC | AI106: % | AJ106: 0.023 | AK106: $ | AL106: =AL103 -> 55.80794833 | AM106: 54.17
A107: Engine Torque (ft-lbf) | B107: 250 | F107: ABS | G107: % | H107: =H106 -> 0.015 | I107: $ | J107: =J106 -> 98.10328252 | K107: L | T107: ABS | U107: % | V107: =V106 -> 0.0202 | W107: $ | X107: =X106 -> 250.3175082 | Y107: L | AH107: ABS | AI107: % | AJ107: =AJ106 -> 0.023 | AK107: $ | AL107: =AL106 -> 55.80794833 | AM107: L
A108: Footprint (ft2) | B108: 40
E111: 2012-2016 | F111: INC | G111: % | H111: =1-((1-H112)/(1-H104)) -> 0.01218274112 | I111: $ | J111: =INDEX('[1]Subcompact Perf. PC'!$H$379:$X$467,MATCH(L113,'[1]Subcompact Perf. PC'!$C$379:$C$467,0),MATCH(Inputs!$C$2,'[1]Subcompact Perf. PC'!$H$378:$X$378,0)) -> 79.78498133 | K111: 115.2 | S111: 2012-2016 | T111: INC | U111: % | V111: 0 | W111: $ | X111: 0 | Y111: 100.55 | AG111: 2012-2016 | AH111: INC | AI111: % | AJ111: =1-((1-AJ112)/(1-AJ104)) -> 0.01889049762 | AK111: $ | AL111: =INDEX('[1]Subcompact Perf. PC'!$H$379:$X$467,MATCH(AN113,'[1]Subcompact Perf. PC'!$C$379:$C$467,0),MATCH(Inputs!$C$2,'[1]Subcompact Perf. PC'!$H$378:$X$378,0)) -> -37.91558008 | AM111: 100.55
F112: ABS | G112: % | H112: 0.027 | I112: $ | J112: =J104+J111 -> 177.8882639 | K112: L | T112: ABS | U112: % | V112: =V104 -> 0.0202 | W112: $ | X112: =X111+X104 -> 250.3175082 | Y112: L | AH112: ABS | AI112: % | AJ112: =1-((1-5.2%)/(1-1.1%)) -> 0.04145601618 | AK112: $ | AL112: =AL111+AL104 -> 17.89236826 | AM112: L
G113: Improved Accessories 1 (IACC1) - TBL | L113: IACC1 | O113: From Engine Path 2012-2016 | U113: High Eff. Gearbox (Manual) - (HETRANSM) - TBL | Z113: HETRANS | AI113: 6-spd Auto Trans w/Imp Internals (NAUTO) - TBL | AN113: NAUTO
E114: 2017+ | F114: INC | G114: % | H114: =1-((1-H115)/(1-H107)) -> 0.01218274112 | I114: $ | J114: =J111 -> 79.78498133 | K114: =K111 -> 115.2 | S114: 2017+ | T114: INC | U114: % | V114: =1-((1-V115)/(1-V107)) -> 0.03439857285 | W114: $ | X114: =INDEX('[1]Subcompact Perf. PC'!$H$379:$X$467,MATCH(Z113,'[1]Subcompact Perf. PC'!$C$379:$C$467,0),MATCH(Inputs!$C$2,'[1]Subcompact Perf. PC'!$H$378:$X$378,0)) -> 227.4262488 | Y114: 10 | AG114: 2017+ | AH114: INC | AI114: % | AJ114: =1-((1-AJ115)/(1-AJ107)) -> 0.01889049762 | AK114: $ | AL114: =AL111 -> -37.91558008 | AM114: 10
F115: ABS | G115: % | H115: =H112 -> 0.027 | I115: $ | J115: =J107+J114 -> 177.8882639 | K115: L | T115: ABS | U115: % | V115: =1-((1-6.45%)/(1-1.12%)) -> 0.05390372168 | W115: $ | X115: =X107+X114 -> 477.7437571 | Y115: L | AH115: ABS | AI115: % | AJ115: =AJ112 -> 0.04145601618 | AK115: $ | AL115: =AL107+AL114 -> 17.89236826 | AM115: L
E119: 2012-2016 | F119: INC | G119: % | H119: =1-((1-H120)/(1-H112)) -> 0 | I119: $ | J119: 0 | K119: 0 | L119: 2012-2016 | M119: INC | N119: % | O119: =1-((1-O120)/(((1-$O$87)*(1-$H$136)*(1-AJ144)))) -> 0.07819160679 | P119: $ | Q119: =INDEX('[1]Subcompact Perf. PC'!$H$379:$X$467,MATCH(M121,'[1]Subcompact Perf. PC'!$C$379:$C$467,0),MATCH(Inputs!$C$2,'[1]Subcompact Perf. PC'!$H$378:$X$378,0)) +INDEX('[1]Subcompact Perf. PC'!$H$379:$X$467,MATCH(S121,'[1]Subcompact Perf. PC'!$C$379:$C$467,0),MATCH(Inputs!$C$2,'[1]Subcompact Perf. PC'!$H$378:$X$378,0)) -> 1530.151679 | R119: L | AG119: 2012-2016 | AH119: INC | AI119: % | AJ119: =1-((1-AJ120)/(1-AJ112)) -> 0.03375527426 | AK119: $ | AL119: =INDEX('[1]Subcompact Perf. PC'!$H$379:$X$467,MATCH(AN121,'[1]Subcompact Perf. PC'!$C$379:$C$467,0),MATCH(Inputs!$C$2,'[1]Subcompact Perf. PC'!$H$378:$X$378,0)) -> -79.18221063 | AM119: -10.47
F120: ABS | G120: % | H120: =H112 -> 0.027 | I120: $ | J120: =J112+J119 -> 177.8882639 | K120: L | M120: ABS | N120: % | O120: 0.403 | P120: $ | Q120: =J136+Q119+Q87+AL144 -> 3965.048691 | R120: 33.86 | AH120: ABS | AI120: % | AJ120: =1-((1-8.4%)/(1-1.1%)) -> 0.07381193124 | AK120: $ | AL120: =AL119+AL112 -> -61.28984238 | AM120: L
G121: Improved Accessories 2 (IACC2) - TBL | L121: IACC2 | M121: SHEV1_B | N121: Strong Hybrid (Powersplit or 2-Mode) (SHEV1) - VBL | S121: SHEV1_NB | V121: From Engine Path 2017+ | AI121: 6-spd Dual Clutch Trans (DCT) - TBL | AN121: DCT
E122: 2017+ | F122: INC | G122: % | H122: =1-((1-H123)/(1-H115)) -> 0.01849948613 | I122: $ | J122: =INDEX('[1]Subcompact Perf. PC'!$H$379:$X$467,MATCH(L121,'[1]Subcompact Perf. PC'!$C$379:$C$467,0),MATCH(Inputs!$C$2,'[1]Subcompact Perf. PC'!$H$378:$X$378,0)) -> 50.78057142 | K122: 0 | L122: 2017+ | M122: INC | N122: % | O122: 0 | P122: $ | Q122: 0 | R122: L | AG122: 2017+ | AH122: INC | AI122: % | AJ122: =1-((1-AJ123)/(1-AJ115)) -> 0.03375527426 | AK122: $ | AL122: =AL119 -> -79.18221063 | AM122: =AM119 -> -10.47
F123: ABS | G123: % | H123: 0.045 | I123: $ | J123: =J115+J122 -> 228.6688353 | K123: L | M123: ABS | N123: % | O123: 0 | P123: $ | Q123: =Q116+Q122 -> 0 | R123: 0 | AH123: ABS | AI123: % | AJ123: =AJ120 -> 0.07381193124 | AK123: $ | AL123: =AL115+AL122 -> -61.28984238 | AM123: L
E127: 2012-2016 | F127: INC | G127: % | H127: =H130 -> 0.0167539267 | I127: $ | J127: =INDEX('[1]Subcompact Perf. PC'!$H$379:$X$467,MATCH(L129,'[1]Subcompact Perf. PC'!$C$379:$C$467,0),MATCH(Inputs!$C$2,'[1]Subcompact Perf. PC'!$H$378:$X$378,0)) -> 273.8211205 | K127: 259.67 | L127: 2012-2016 | M127: INC | N127: % | O127: n/a | P127: $ | Q127: n/a | R127: L | S127: 2012-2016 | T127: INC | U127: % | V127: =1-((1-V128)/(((1-$O$87)*(1-$H$136)*(1-AJ144)))) -> -0.5440676603 | W127: $ | X127: 0 | Y127: L | AG127: 2012-2016 | AH127: INC | AI127: % | AJ127: =AJ130 -> 0.04475982533 | AK127: $ | AL127: =INDEX('[1]Subcompact Perf. PC'!$H$379:$X$467,MATCH(AN129,'[1]Subcompact Perf. PC'!$C$379:$C$467,0),MATCH(Inputs!$C$2,'[1]Subcompact Perf. PC'!$H$378:$X$378,0)) -> 223.3189237 | AM127: 0
F128: ABS | G128: % | H128: =H127+H120 -> 0.0437539267 | I128: $ | J128: =J120+J127 -> 451.7093844 | K128: L | M128: ABS | N128: % | O128: n/a | P128: $ | Q128: n/a | R128: 0 | T128: ABS | U128: % | V128: 0 | W128: $ | X128: 0 | Y128: 0 | AH128: ABS | AI128: % | AJ128: =AJ131 -> 0.1152679474 | AK128: $ | AL128: =AL120+AL127 -> 162.0290814 | AM128: M
G129: 12V Micro Hybrid - Stop-Start (MHEV) - TBL | L129: MHEV | N129: SHEV1 --> SHEV2 | T129: SHEV2_B | U129: Strong Hybrid (P2 Parallel or 2-Mode) (SHEV2) - VBL | Z129: SHEV2_NB | AI129: 8-spd Trans (Auto or DCT) (8SPD) - TBL | AN129: 8SPD
E130: 2017+ | F130: INC | G130: % | H130: =1-((1-H131)/(1-H123)) -> 0.0167539267 | I130: $ | J130: =J127 -> 273.8211205 | K130: =K127 -> 259.67 | L130: 2017+ | M130: INC | N130: % | O130: =1-((1-V131)/(1-O120)) -> 0.1005025126 | P130: $ | Q130: =Q131-Q120 -> 1132.257309 | R130: L | S130: 2017+ | T130: INC | U130: % | V130: =1-((1-V131)/(((1-$O$90)*(1-$H$139)*(1-AJ147)))) -> 0.03008023985 | W130: $ | X130: =INDEX('[1]Subcompact Perf. PC'!$H$379:$X$467,MATCH(T129,'[1]Subcompact Perf. PC'!$C$379:$C$467,0),MATCH(Inputs!$C$2,'[1]Subcompact Perf. PC'!$H$378:$X$378,0)) +INDEX('[1]Subcompact Perf. PC'!$H$379:$X$467,MATCH(Z129,'[1]Subcompact Perf. PC'!$C$379:$C$467,0),MATCH(Inputs!$C$2,'[1]Subcompact Perf. PC'!$H$378:$X$378,0)) -> 1519.592758 | Y130: L | AG130: 2017+ | AH130: INC | AI130: % | AJ130: =1-((1-AJ131)/(1-AJ123)) -> 0.04475982533 | AK130: $ | AL130: =AL127 -> 223.3189237 | AM130: 10
F131: ABS | G131: % | H131: 0.061 | I131: $ | J131: =J123+J130 -> 502.4899558 | K131: L | M131: ABS | N131: % | O131: =V131 -> 0.463 | P131: $ | Q131: =X130+J139+Q90+AL147 -> 5097.305999 | R131: 0 | T131: ABS | U131: % | V131: 0.463 | W131: $ | X131: =X130+J139+Q90+AL147 -> 5097.305999 | Y131: 33.86 | AH131: ABS | AI131: % | AJ131: =1-((1-12.5%)/(1-1.1%)) -> 0.1152679474 | AK131: $ | AL131: =AL123+AL130 -> 162.0290814 | AM131: L
E135: 2012-2016 | F135: INC | G135: % | H135: =H138 -> 0.07454739084 | I135: $ | J135: =INDEX('[1]Large Perf. PC'!$H$379:$X$467,MATCH(F137,'[1]Large Perf. PC'!$C$379:$C$467,0),MATCH(Inputs!$C$2,'[1]Large Perf. PC'!$H$378:$X$378,0)) +INDEX('[1]Large Perf. PC'!$H$379:$X$467,MATCH(L137,'[1]Large Perf. PC'!$C$379:$C$467,0),MATCH(Inputs!$C$2,'[1]Large Perf. PC'!$H$378:$X$378,0)) -> 894.509286 | K135: L | S135: 2012-2016 | T135: INC | U135: % | V135: =1-((1-V136)/(1-V128)) -> 0.35 | W135: $ | X135: 0 | Y135: L | AG135: 2012-2016 | AH135: INC | AI135: % | AJ135: =1-((1-AJ136)/(1-AJ128)) -> 0 | AK135: $ | AL135: 0 | AM135: 10
F136: ABS | G136: % | H136: =H135+H128 -> 0.1183013175 | I136: $ | J136: =J128+J135 -> 1346.21867 | K136: 33.86 | T136: ABS | U136: % | V136: 0.35 | W136: $ | X136: =X135+X128 -> 0 | Y136: 33.86 | AH136: ABS | AI136: % | AJ136: =AJ128 -> 0.1152679474 | AK136: $ | AL136: =AL128+AL135 -> 162.0290814 | AM136: L
F137: ISG_B | G137: Integrated Starter Generator (ISG) - VBL | L137: ISG_NB | T137: PHEV2_B | U137: Plug-in Hybrid - 30 Mile Range (PHEV1) - VBL | Z137: PHEV2_NB | AI137: High Eff. Gearbox (Auto or DCT) - (HETRANS) - TBL | AN137: HETRANS
E138: 2017+ | F138: INC | G138: % | H138: =1-((1-H139)/(1-H131)) -> 0.07454739084 | I138: $ | J138: =J135 -> 894.509286 | K138: L | S138: 2017+ | T138: INC | U138: % | V138: 0.4065 | W138: $ | X138: =INDEX('[1]Subcompact Perf. PC'!$H$379:$X$467,MATCH(T137,'[1]Subcompact Perf. PC'!$C$379:$C$467,0),MATCH(Inputs!$C$2,'[1]Subcompact Perf. PC'!$H$378:$X$378,0)) +INDEX('[1]Subcompact Perf. PC'!$H$379:$X$467,MATCH(Z138,'[1]Subcompact Perf. PC'!$C$379:$C$467,0),MATCH(Inputs!$C$2,'[1]Subcompact Perf. PC'!$H$378:$X$378,0)) +INDEX('[1]Subcompact Perf. PC'!$H$379:$X$467,MATCH(Z139,'[1]Subcompact Perf. PC'!$C$379:$C$467,0),MATCH(Inputs!$C$2,'[1]Subcompact Perf. PC'!$H$378:$X$378,0)) +INDEX('[1]Subcompact Perf. PC'!$H$379:$X$467,MATCH(Z137,'[1]Subcompact Perf. PC'!$C$379:$C$467,0),MATCH(Inputs!$C$2,'[1]Subcompact Perf. PC'!$H$378:$X$378,0)) -> 8231.366463 | Y138: L | Z138: PHEV2_C | AG138: 2017+ | AH138: INC | AI138: % | AJ138: =1-((1-AJ139)/(1-AJ131)) -> 0.02171428571 | AK138: $ | AL138: =INDEX('[1]Subcompact Perf. PC'!$H$379:$X$467,MATCH(AN137,'[1]Subcompact Perf. PC'!$C$379:$C$467,0),MATCH(Inputs!$C$2,'[1]Subcompact Perf. PC'!$H$378:$X$378,0)) -> 227.4262488 | AM138: 10
F139: ABS | G139: % | H139: =11.6%+H106 -> 0.131 | I139: $ | J139: =J131+J138 -> 1396.999242 | K139: 33.86 | T139: ABS | U139: % | V139: =1-((1-V131)*(1-V138)) -> 0.6812905 | W139: $ | X139: =X138+X131 -> 13328.67246 | Y139: 33.86 | Z139: CHRG_L | AH139: ABS | AI139: % | AJ139: =1-((1-14.4%)/(1-1.1%)) -> 0.134479272 | AK139: $ | AL139: =AL131+AL138 -> 389.4553302 | AM139: L
S143: 2012-2016 | T143: INC | U143: % | V143: =1-((1-V144)/(1-V136)) -> 0 | W143: $ | X143: 0 | Y143: L | AG143: 2012-2016 | AH143: INC | AI143: % | AJ143: =1-((1-AJ144)/(1-AJ136)) -> 0 | AK143: $ | AL143: 0 | AM143: 10
T144: ABS | U144: % | V144: 0.35 | W144: $ | X144: =X143+X136 -> 0 | Y144: 33.86 | AH144: ABS | AI144: % | AJ144: =AJ136 -> 0.1152679474 | AK144: $ | AL144: =AL136+AL143 -> 162.0290814 | AM144: L
J145: To Strong Hybrid | T145: PHEV2_B | U145: Plug-in Hybrid - VBL | Z145: PHEV2_NB | AI145: Shift Optimizer (SHFTOPT) - TBL | AN145: SHFTOPT
S146: 2017+ | T146: INC | U146: % | V146: 0 | W146: $ | X146: 0 | Y146: L | Z146: PHEV2_C | AG146: 2017+ | AH146: INC | AI146: % | AJ146: =1-((1-AJ147)/(1-AJ139)) -> 0.03271028037 | AK146: $ | AL146: =INDEX('[1]Subcompact Perf. PC'!$H$379:$X$467,MATCH(AN145,'[1]Subcompact Perf. PC'!$C$379:$C$467,0),MATCH(Inputs!$C$2,'[1]Subcompact Perf. PC'!$H$378:$X$378,0)) -> 1.512384555 | AM146: 10
T147: ABS | U147: % | V147: =1-((1-V139)*(1-V146)) -> 0.6812905 | W147: $ | X147: =X146+X139 -> 13328.67246 | Y147: 33.86 | AH147: ABS | AI147: % | AJ147: =1-((1-17.2%)/(1-1.1%)) -> 0.1627906977 | AK147: $ | AL147: =AL139+AL146 -> 390.9677147 | AM147: L
S151: 2012-2016 | T151: INC | U151: % | V151: =1-((1-V152)/(1-V144)) -> 0 | W151: $ | X151: 0 | Y151: L | AK151: To Strong Hybrid
T152: ABS | U152: % | V152: 0.35 | W152: $ | X152: =X151+X144 -> 0 | Y152: 33.86
T153: EV1_B | U153: Electric Vehicle - Early Adopter 75 Mile Range - (EV1) - VBL | Z153: EV1_NB
S154: 2017+ | T154: INC | U154: % | V154: 0.6854 | W154: $ | X154: =INDEX('[1]Subcompact Perf. PC'!$H$379:$X$467,MATCH(T153,'[1]Subcompact Perf. PC'!$C$379:$C$467,0),MATCH(Inputs!$C$2,'[1]Subcompact Perf. PC'!$H$378:$X$378,0)) +INDEX('[1]Subcompact Perf. PC'!$H$379:$X$467,MATCH(Z154,'[1]Subcompact Perf. PC'!$C$379:$C$467,0),MATCH(Inputs!$C$2,'[1]Subcompact Perf. PC'!$H$378:$X$378,0)) +INDEX('[1]Subcompact Perf. PC'!$H$379:$X$467,MATCH(Z153,'[1]Subcompact Perf. PC'!$C$379:$C$467,0),MATCH(Inputs!$C$2,'[1]Subcompact Perf. PC'!$H$378:$X$378,0)) -> 1606.602014 | Y154: L | Z154: EV_C
T155: ABS | U155: % | V155: =1-((1-V147)*(1-V154)) -> 0.8997339913 | W155: $ | X155: =X154+X147 -> 14935.27448 | Y155: 33.86
S159: 2012-2016 | T159: INC | U159: % | V159: =1-((1-V160)/(1-V152)) -> 0 | W159: $ | X159: 0 | Y159: L
T160: ABS | U160: % | V160: 0.35 | W160: $ | X160: =X159+X152 -> 0 | Y160: 33.86
T161: EV2_B | U161: Electric Vehicle - Early Adopter 100 Mile Range - (EV2) - VBL | Z161: EV2_NB
S162: 2017+ | T162: INC | U162: % | V162: 0 | W162: $ | X162: 0 | Y162: L
T163: ABS | U163: % | V163: =1-((1-V155)*(1-V162)) -> 0.8997339913 | W163: $ | X163: =X162+X155 -> 14935.27448 | Y163: 33.86
S167: 2012-2016 | T167: INC | U167: % | V167: =1-((1-V168)/(1-V160)) -> 0 | W167: $ | X167: 0 | Y167: L
T168: ABS | U168: % | V168: 0.35 | W168: $ | X168: =X167+X160 -> 0 | Y168: 33.86
T169: EV3_B | U169: Electric Vehicle - Early Adopter 150 Mile Range - (EV3) - VBL | Z169: EV3_NB
S170: 2017+ | T170: INC | U170: % | V170: 0 | W170: $ | X170: 0 | Y170: L
T171: ABS | U171: % | V171: =1-((1-V163)*(1-V170)) -> 0.8997339913 | W171: $ | X171: =X170+X163 -> 14935.27448 | Y171: 33.86
L175: 2012-2016 | M175: INC | N175: % | O175: =1-((1-O176)/(1-V168)) -> 0 | P175: $ | Q175: 0 | R175: L | Z175: 2012-2016 | AA175: INC | AB175: % | AC175: =1-((1-AC176)/(1-V168)) -> 0 | AD175: $ | AE175: 0 | AF175: L
M176: ABS | N176: % | O176: 0.35 | P176: $ | Q176: =Q175+X168 -> 0 | R176: 33.86 | AA176: ABS | AB176: % | AC176: 0.35 | AD176: $ | AE176: =AE175+X168 -> 0 | AF176: 33.86
M177: EV4_B | N177: Electric Vehicle - Mass Market 150 Mile Range - (EV4) - VBL | S177: EV4_NB | AA177: FCV_B | AB177: Fuel Cell Vehicle (FCV) - VBL | AG177: FCV_NB
L178: 2017+ | M178: INC | N178: % | O178: 0 | P178: $ | Q178: =INDEX('[1]Subcompact Perf. PC'!$H$379:$X$467,MATCH(M177,'[1]Subcompact Perf. PC'!$C$379:$C$467,0),MATCH(Inputs!$C$2,'[1]Subcompact Perf. PC'!$H$378:$X$378,0)) +INDEX('[1]Subcompact Perf. PC'!$H$379:$X$467,MATCH(S177,'[1]Subcompact Perf. PC'!$C$379:$C$467,0),MATCH(Inputs!$C$2,'[1]Subcompact Perf. PC'!$H$378:$X$378,0)) -> 6309.71222 | R178: L | Z178: 2017+ | AA178: INC | AB178: % | AC178: 0 | AD178: $ | AE178: =INDEX('[1]Subcompact Perf. PC'!$H$379:$X$467,MATCH(AA177,'[1]Subcompact Perf. PC'!$C$379:$C$467,0),MATCH(Inputs!$C$2,'[1]Subcompact Perf. PC'!$H$378:$X$378,0)) +INDEX('[1]Subcompact Perf. PC'!$H$379:$X$467,MATCH(AG177,'[1]Subcompact Perf. PC'!$C$379:$C$467,0),MATCH(Inputs!$C$2,'[1]Subcompact Perf. PC'!$H$378:$X$378,0)) ->  | AF178: L
M179: ABS | N179: % | O179: =1-((1-V171)*(1-O178)) -> 0.8997339913 | P179: $ | Q179: =Q178+X171 -> 21244.9867 | R179: 33.86 | AA179: ABS | AB179: % | AC179: =1-((1-V171)*(1-AC178)) -> 0.8997339913 | AD179: $ | AE179: =AE178+X171 ->  | AF179: 33.86
A185: Vehicle Technology Decision Tree
C189: ABS - WR | D189: ='[1]Subcompact Perf. PC'!$M$82 -> 0 | E189: 2012-2016 | F189: INC | G189: % | H189: =IF(D189<5%, D189*(3.5/10), D189*(5.1/10)) -> 0 | I189: $ | J189: =INDEX('[1]Subcompact Perf. PC'!$H$379:$X$467,MATCH(L191,'[1]Subcompact Perf. PC'!$C$379:$C$467,0),MATCH(Inputs!$C$2,'[1]Subcompact Perf. PC'!$H$378:$X$378,0)) -> 0 | K189: 1.33 | S189: 2012-2016 | T189: INC | U189: % | V189: 0.019 | W189: $ | X189: =INDEX('[1]Subcompact Perf. PC'!$H$379:$X$467,MATCH(Z191,'[1]Subcompact Perf. PC'!$C$379:$C$467,0),MATCH(Inputs!$C$2,'[1]Subcompact Perf. PC'!$H$378:$X$378,0)) -> 6.43963924 | Y189: 5.15 | AG189: 2012-2016 | AH189: INC | AI189: % | AJ189: 0.008 | AK189: $ | AL189: =INDEX('[1]Subcompact Perf. PC'!$H$379:$X$467,MATCH(AN191,'[1]Subcompact Perf. PC'!$C$379:$C$467,0),MATCH(Inputs!$C$2,'[1]Subcompact Perf. PC'!$H$378:$X$378,0)) -> 70.83603164 | AM189: 5.15 | AU189: 2012-2016 | AV189: INC | AW189: % | AX189: 0.023 | AY189: $ | AZ189: =INDEX('[1]Subcompact Perf. PC'!$H$379:$X$467,MATCH(BB191,'[1]Subcompact Perf. PC'!$C$379:$C$467,0),MATCH(Inputs!$C$2,'[1]Subcompact Perf. PC'!$H$378:$X$378,0)) -> 43.85793807 | BA189: 5.15
F190: ABS | G190: % | H190: =H189 -> 0 | I190: $ | J190: =J189 -> 0 | K190: L | T190: ABS | U190: % | V190: =V189 -> 0.019 | W190: $ | X190: =X189 -> 6.43963924 | Y190: L | AH190: ABS | AI190: % | AJ190: =AJ189 -> 0.008 | AK190: $ | AL190: =AL189 -> 70.83603164 | AM190: L | AV190: ABS | AW190: % | AX190: =AX189 -> 0.023 | AY190: $ | AZ190: =AZ189 -> 43.85793807 | BA190: L
G191: Mass Reduction (MR1) - ($/pound) - TBL | L191: MR1 | U191: Low Roll Resistance Tires 1 (ROLL1) - No Learning Applied | Z191: ROLL1 | AI191: Low Drag Brakes (LDB) No Learning Applied | AN191: LDB | AW191: Aerodynamic Drag Reduction 1 (AERO1) - No Learming Applied | BB191: AERO1
E192: 2017+ | F192: INC | G192: % | H192: =H189 -> 0 | I192: $ | J192: =J189 -> 0 | K192: 1.33 | S192: 2017+ | T192: INC | U192: % | V192: =V189 -> 0.019 | W192: $ | X192: =X189 -> 6.43963924 | Y192: 5.15 | AG192: 2017+ | AH192: INC | AI192: % | AJ192: =AJ189 -> 0.008 | AK192: $ | AL192: =AL189 -> 70.83603164 | AM192: 5.15 | AU192: 2017+ | AV192: INC | AW192: % | AX192: =AX189 -> 0.023 | AY192: $ | AZ192: =AZ189 -> 43.85793807 | BA192: 5.15
F193: ABS | G193: % | H193: =H192 -> 0 | I193: $ | J193: =J192 -> 0 | K193: L | T193: ABS | U193: % | V193: =V192 -> 0.019 | W193: $ | X193: =X192 -> 6.43963924 | Y193: L | AH193: ABS | AI193: % | AJ193: =AJ192 -> 0.008 | AK193: $ | AL193: =AL192 -> 70.83603164 | AM193: L | AV193: ABS | AW193: % | AX193: =AX192 -> 0.023 | AY193: $ | AZ193: =AZ192 -> 43.85793807 | BA193: L
C197: INC - WR | D197: ='[1]Subcompact Perf. PC'!$M$83 -> 0 | E197: 2012-2016 | F197: INC | G197: % | H197: =1-((1-H198)/(1-H190)) -> 0 | I197: $ | J197: =INDEX('[1]Subcompact Perf. PC'!$H$379:$X$467,MATCH(L199,'[1]Subcompact Perf. PC'!$C$379:$C$467,0),MATCH(Inputs!$C$2,'[1]Subcompact Perf. PC'!$H$378:$X$378,0)) -> 0 | K197: 1.33 | S197: 2012-2016 | T197: INC | U197: % | V197: =1-((1-V198)/(1-V190)) -> 0.02038735984 | W197: $ | X197: =0 -> 0 | Y197: 5.15 | AG197: 2012-2016 | AH197: INC | AI197: % | AJ197: 0.014 | AK197: $ | AL197: =INDEX('[1]Subcompact Perf. PC'!$H$379:$X$467,MATCH(AN199,'[1]Subcompact Perf. PC'!$C$379:$C$467,0),MATCH(Inputs!$C$2,'[1]Subcompact Perf. PC'!$H$378:$X$378,0)) -> 87.5682515 | AM197: 5.15 | AU197: 2012-2016 | AV197: INC | AW197: % | AX197: =1-((1-AX198)/(1-AX190)) -> 0.02456499488 | AY197: $ | AZ197: =INDEX('[1]Subcompact Perf. PC'!$H$379:$X$467,MATCH(BB199,'[1]Subcompact Perf. PC'!$C$379:$C$467,0),MATCH(Inputs!$C$2,'[1]Subcompact Perf. PC'!$H$378:$X$378,0)) -> 154.952775 | BA197: 5.15
C198: ABS - WR | D198: =D197+D189 -> 0 | F198: ABS | G198: % | H198: =IF(D198<5%,D198 D198*(3.5/10), D198*(5.1/10)) -> 0 | I198: $ | J198: =J197 -> 0 | K198: L | T198: ABS | U198: % | V198: 0.039 | W198: $ | X198: =X190+X197 -> 6.43963924 | Y198: L | AH198: ABS | AI198: % | AJ198: =1-(1-AJ190)*(1-AJ197) -> 0.021888 | AK198: $ | AL198: =AL190+AL197 -> 158.4042831 | AM198: L | AV198: ABS | AW198: % | AX198: 0.047 | AY198: $ | AZ198: =AZ190+AZ197 -> 198.8107131 | BA198: L
G199: Mass Reduction (MR2) - ($/pound) - TBL | L199: MR2 | U199: Low Roll Resistance Tires 2 (ROLL2) - No Learning Applied | Z199: ROLL2 | AI199: Secondary Axle Discon. (SAXU/SAXL) TBL | AN199: SAX | AW199: Aerodynamic Drag Reduction 2 (AERO2) - No Learming Applied | BB199: AERO2
E200: 2017+ | F200: INC | G200: % | H200: =1-((1-H201)/(1-H193)) -> 0 | I200: $ | J200: =J197 -> 0 | K200: 1.33 | S200: 2017+ | T200: INC | U200: % | V200: =1-((1-V201)/(1-V193)) -> 0.02038735984 | W200: $ | X200: =INDEX('[1]Subcompact Perf. PC'!$H$379:$X$467,MATCH(Z199,'[1]Subcompact Perf. PC'!$C$379:$C$467,0),MATCH(Inputs!$C$2,'[1]Subcompact Perf. PC'!$H$378:$X$378,0)) -> 50.17323253 | Y200: 5.15 | AG200: 2017+ | AH200: INC | AI200: % | AJ200: =AJ197 -> 0.014 | AK200: $ | AL200: =AL197 -> 87.5682515 | AM200: 5.15 | AU200: 2017+ | AV200: INC | AW200: % | AX200: =1-((1-AX201)/(1-AX193)) -> 0.02456499488 | AY200: $ | AZ200: =AZ197 -> 154.952775 | BA200: 5.15
F201: ABS | G201: % | H201: =IF(D198<5%, D198*(3.5/10), D198*(5.1/10)) -> 0 | I201: $ | J201: =J200 -> 0 | K201: L | T201: ABS | U201: % | V201: =V198 -> 0.039 | W201: $ | X201: =X193+X200 -> 56.61287177 | Y201: L | AH201: ABS | AI201: % | AJ201: =1-(1-AJ193)*(1-AJ200) -> 0.021888 | AK201: $ | AL201: =AL193+AL200 -> 158.4042831 | AM201: L | AV201: ABS | AW201: % | AX201: =AX198 -> 0.047 | AY201: $ | AZ201: =AZ193+AZ200 -> 198.8107131 | BA201: L
C205: INC - WR | D205: ='[1]Subcompact Perf. PC'!$M$84 -> 0 | E205: 2012-2016 | F205: INC | G205: % | H205: =1-((1-H206)/(1-H198)) -> 0 | I205: $ | J205: =INDEX('[1]Subcompact Perf. PC'!$H$379:$X$467,MATCH(L207,'[1]Subcompact Perf. PC'!$C$379:$C$467,0),MATCH(Inputs!$C$2,'[1]Subcompact Perf. PC'!$H$378:$X$378,0)) -> 0 | K205: 1.33 | S205: 2012-2016 | T205: INC | U205: % | V205: 0 | W205: $ | X205: 0 | Y205: 0
C206: ABS - WR | D206: =D205+D198 -> 0 | F206: ABS | G206: % | H206: =IF(D206<5%, D206*(3.5/10), D206*(5.1/10)) -> 0 | I206: $ | J206: =J205 -> 0 | K206: L | T206: ABS | U206: % | V206: =1-((1-V198)*(1-V205)) -> 0.039 | W206: $ | X206: =X198+X205 -> 6.43963924 | Y206: L
G207: Mass Reduction (MR3) - ($/pound) - TBL | L207: MR3 | U207: Low Roll Resistance Tires 3 (ROLL3) - No Learning Applied
E208: 2017+ | F208: INC | G208: % | H208: =1-((1-H209)/(1-H201)) -> 0 | I208: $ | J208: =J205 -> 0 | K208: 1.33 | S208: 2017+ | T208: INC | U208: % | V208: 0 | W208: $ | X208: =X205 -> 0 | Y208: 0
F209: ABS | G209: % | H209: =IF(D206<5%, D206*(3.5/10), D206*(5.1/10)) -> 0 | I209: $ | J209: =J208 -> 0 | K209: L | T209: ABS | U209: % | V209: =1-((1-V201)*(1-V208)) -> 0.039 | W209: $ | X209: =X201+X208 -> 56.61287177 | Y209: L
C213: INC - WR | D213: ='[1]Subcompact Perf. PC'!$M$85 -> 0 | E213: 2012-2016 | F213: INC | G213: % | H213: =1-((1-H214)/(1-H206)) -> 0 | I213: $ | J213: =INDEX('[1]Subcompact Perf. PC'!$H$379:$X$467,MATCH(L215,'[1]Subcompact Perf. PC'!$C$379:$C$467,0),MATCH(Inputs!$C$2,'[1]Subcompact Perf. PC'!$H$378:$X$378,0)) -> 0 | K213: 1.33
C214: ABS - WR | D214: =D213+D206 -> 0 | F214: ABS | G214: % | H214: =IF(D214<5%, D214*(3.5/10), D214*(5.1/10)) -> 0 | I214: $ | J214: =J213 -> 0 | K214: L
G215: Mass Reduction (MR4) - ($/pound) - TBL | L215: MR4
E216: 2017+ | F216: INC | G216: % | H216: =1-((1-H217)/(1-H209)) -> 0 | I216: $ | J216: =J213 -> 0 | K216: 1.33
F217: ABS | G217: % | H217: =IF(D214<5%, D214*(3.5/10), D214*(5.1/10)) -> 0 | I217: $ | J217: =J216 -> 0 | K217: L
C221: INC - WR | D221: ='[1]Subcompact Perf. PC'!$M$86 -> 0 | E221: 2012-2016 | F221: INC | G221: % | H221: =1-((1-H222)/(1-H214)) -> 0 | I221: $ | J221: =INDEX('[1]Subcompact Perf. PC'!$H$379:$X$467,MATCH(L223,'[1]Subcompact Perf. PC'!$C$379:$C$467,0),MATCH(Inputs!$C$2,'[1]Subcompact Perf. PC'!$H$378:$X$378,0)) -> 0 | K221: 1.33
C222: ABS - WR | D222: =D221+D214 -> 0 | F222: ABS | G222: % | H222: =IF(D222<5%, D222*(3.5/10), D222*(5.1/10)) -> 0 | I222: $ | J222: =J221 -> 0 | K222: L
G223: Mass Reduction (MR5) - ($/pound) - TBL | L223: MR5
E224: 2017+ | F224: INC | G224: % | H224: =1-((1-H225)/(1-H217)) -> 0 | I224: $ | J224: =J221 -> 0 | K224: 1.33
F225: ABS | G225: % | H225: =IF(D222<5%, D222*(3.5/10), D222*(5.1/10)) -> 0 | I225: $ | J225: =J224 -> 0 | K225: L

Sheet Compact PC
A1: Full Engine Technology Decision Tree
B3: START
A4: Gas Engine Type | B4: I4 | BI4: 2012-2016 | BJ4: INC | BK4: % | BL4: 0.005 | BM4: $ | BN4: =INDEX('[1]Compact PC'!$H$379:$X$467,MATCH(BP6,'[1]Compact PC'!$C$379:$C$467,0),MATCH(Inputs!$C$2,'[1]Compact PC'!$H$378:$X$378,0)) -> 3.863783544 | BO4: 10 | BW4: 2012-2016 | BX4: INC | BY4: % | BZ4: 0.02 | CA4: $ | CB4: =INDEX('[1]Compact PC'!$H$379:$X$467,MATCH(CD6,'[1]Compact PC'!$C$379:$C$467,0),MATCH(Inputs!$C$2,'[1]Compact PC'!$H$378:$X$378,0))*$B$13 -> 58.09222409 | CC4: 10 | CK4: 2012-2016 | CL4: INC | CM4: % | CN4: =1-((1-CN5)/(1-BZ5)) -> 0 | CO4: $ | CP4: 0 | CQ4: L
A5: Displacement [L] | B5: 2.2 | BJ5: ABS | BK5: % | BL5: =BL4 -> 0.005 | BM5: $ | BN5: =BN4 -> 3.863783544 | BO5: L | BX5: ABS | BY5: % | BZ5: =1-((1-BL5)*(1-BZ4)) -> 0.0249 | CA5: $ | CB5: =BN5+CB4 -> 61.95600763 | CC5: L | CL5: ABS | CM5: % | CN5: =BZ5 -> 0.0249 | CO5: $ | CP5: =CB5 -> 61.95600763 | CQ5: 0
A6: Turbocharger | B6: None | BK6: Low-Friction Lubricants 1 (LUB1) - No Learning Applied | BP6: LUB1 | BY6: Engine Friction Reduction 1 (EFR1) - No Learning Applied | CD6: EFR1 | CM6: Low-Friction Lub & Engine Friction Redux 2 (LUB2_EFR2) - No Learning Applied | CR6: LUB2_EFR2
A7: EGR system | B7: External | BI7: 2017+ | BJ7: INC | BK7: % | BL7: =BL4 -> 0.005 | BM7: $ | BN7: =BN4 -> 3.863783544 | BO7: 10 | BW7: 2017+ | BX7: INC | BY7: % | BZ7: 0.02 | CA7: $ | CB7: =CB4 -> 58.09222409 | CC7: 10 | CK7: 2017+ | CL7: INC | CM7: % | CN7: =1-((1-CN8)/(1-BZ8)) -> 0.01035791201 | CO7: $ | CP7: =INDEX('[1]Compact PC'!$H$379:$X$467,MATCH(CR6,'[1]Compact PC'!$C$379:$C$467,0),MATCH(Inputs!$C$2,'[1]Compact PC'!$H$378:$X$378,0))*$B$13 -> 62.84073183 | CQ7: L
A8: Valvetrain | B8: SOHC/ DOHC/ OHV | BJ8: ABS | BK8: % | BL8: =BL7 -> 0.005 | BM8: $ | BN8: =BN7 -> 3.863783544 | BO8: L | BX8: ABS | BY8: % | BZ8: =1-((1-BL8)*(1-BZ7)) -> 0.0249 | CA8: $ | CB8: =BN8+CB7 -> 61.95600763 | CC8: L | CL8: ABS | CM8: % | CN8: 0.035 | CO8: $ | CP8: =CB8+CP7 -> 124.7967395 | CQ8: 33.86
A9: After Treatment | B9: 3way cat
AE11: SOHC | CP11: DOHC | EX11: OHV
A13: Cylinders | B13: =IF(B4="I4",4,IF(B4="V6",6,8)) -> 4
A14: Cylinder Banks | B14: =IF(B4="I4",1,2) -> 1 | CK14: 2012-2016 | CL14: INC | CM14: % | CN14: =CN17 -> 0.02176165803 | CO14: $ | CP14: =INDEX('[1]Compact PC'!$H$379:$X$467,MATCH(CR16,'[1]Compact PC'!$C$379:$C$467,0),MATCH(Inputs!$C$2,'[1]Compact PC'!$H$378:$X$378,0))*$B$14 -> 41.54962554 | CQ14: 10
CL15: ABS | CM15: % | CN15: =1-((1-CN5)*(1-CN14)) -> 0.04611979275 | CO15: $ | CP15: =CP5+CP14 -> 103.5056332 | CQ15: L
CM16: Intake Cam Phasing (ICP) - TBL | CR16: ICP
CK17: 2017+ | CL17: INC | CM17: % | CN17: =1-((1-CN18)/(1-CN8)) -> 0.02176165803 | CO17: $ | CP17: =CP14 -> 41.54962554 | CQ17: 10
CL18: ABS | CM18: % | CN18: 0.056 | CO18: $ | CP18: =CP8+CP17 -> 166.346365 | CQ18: L
A22: Notes: | B22: (1) All costs shown in $2009 | Z22: 2012-2016 | AA22: INC | AB22: % | AC22: =AC25 -> 0.0414507772 | AD22: $ | AE22: =INDEX('[1]Compact PC'!$H$379:$X$467,MATCH(AG24,'[1]Compact PC'!$C$379:$C$467,0),MATCH(Inputs!$C$2,'[1]Compact PC'!$H$378:$X$378,0))*$B$14 -> 41.54962554 | AF22: 10 | CK22: 2012-2016 | CL22: INC | CM22: % | CN22: =CN25 -> 0.02012711864 | CO22: $ | CP22: =INDEX('[1]Compact PC'!$H$379:$X$467,MATCH(CR24,'[1]Compact PC'!$C$379:$C$467,0),MATCH(Inputs!$C$2,'[1]Compact PC'!$H$378:$X$378,0))*$B$14 -> 38.52785394 | CQ22: 10
AA23: ABS | AB23: % | AC23: =1-((1-CN5)*(1-AC22)) -> 0.06531865285 | AD23: $ | AE23: =CP5+AE22 -> 103.5056332 | AF23: L | CL23: ABS | CM23: % | CN23: =1-((1-CN15)*(1-CN22)) -> 0.06531865285 | CO23: $ | CP23: =CP15+CP22 -> 142.0334871 | CQ23: L
AB24: Coupled Cam Phasing (CCPS) - TBL | AG24: CCPS | CM24: Dual Cam Phasing (DCP) - TBL | CR24: DCP
Z25: 2017+ | AA25: INC | AB25: % | AC25: =1-((1-AC26)/(1-CN8)) -> 0.0414507772 | AD25: $ | AE25: =AE22 -> 41.54962554 | AF25: 10 | CK25: 2017+ | CL25: INC | CM25: % | CN25: =1-((1-CN26)/(1-CN18)) -> 0.02012711864 | CO25: $ | CP25: =CP22 -> 38.52785394 | CQ25: 10
A26: L | AA26: ABS | AB26: % | AC26: 0.075 | AD26: $ | AE26: =CP8+AE25 -> 166.346365 | AF26: L | CL26: ABS | CM26: % | CN26: 0.075 | CO26: $ | CP26: =CP18+CP25 -> 204.8742189 | CQ26: L
A27: M
A28: H
A29: VH
Z30: 2012-2016 | AA30: INC | AB30: % | AC30: =AC33 -> 0.02810810811 | AD30: $ | AE30: =INDEX('[1]Compact PC'!$H$379:$X$467,MATCH(AG32,'[1]Compact PC'!$C$379:$C$467,0),MATCH(Inputs!$C$2,'[1]Compact PC'!$H$378:$X$378,0))*$B$13 -> 141.9578409 | AF30: 10 | BP30: 2012-2016 | BQ30: INC | BR30: % | BS30: =BS33 -> 0.02810810811 | BT30: $ | BU30: =INDEX('[1]Compact PC'!$H$379:$X$467,MATCH(BW32,'[1]Compact PC'!$C$379:$C$467,0),MATCH(Inputs!$C$2,'[1]Compact PC'!$H$378:$X$378,0))*$B$13 -> 141.9578409 | BV30: 10 | DF30: 2012-2016 | DG30: INC | DH30: % | DI30: =DI33 -> 0.03567567568 | DJ30: $ | DK30: =INDEX('[1]Compact PC'!$H$379:$X$467,MATCH(DM32,'[1]Compact PC'!$C$379:$C$467,0),MATCH(Inputs!$C$2,'[1]Compact PC'!$H$378:$X$378,0))*$B$13 -> 228.5253386 | DL30: 10 | EV30: 2012-2016 | EW30: INC | EX30: % | EY30: =1-((1-EY31)/(1-CN5)) -> 0.0462516665 | EZ30: $ | FA30: =INDEX('[1]Compact PC'!$H$379:$X$467,MATCH(FC32,'[1]Compact PC'!$C$379:$C$467,0),MATCH(Inputs!$C$2,'[1]Compact PC'!$H$378:$X$378,0)) -> 180.8502248 | FB30: 10
AA31: ABS | AB31: % | AC31: =1-((1-AC23)*(1-AC30)) -> 0.0915907772 | AD31: $ | AE31: =AE23+AE30 -> 245.4634741 | AF31: L | BQ31: ABS | BR31: % | BS31: =1-((1-CN23)*(1-BS30)) -> 0.0915907772 | BT31: $ | BU31: =CP23+BU30 -> 283.991328 | BV31: L | DG31: ABS | DH31: % | DI31: =1-((1-CN23)*(1-DI30)) -> 0.09866404145 | DJ31: $ | DK31: =CP23+DK30 -> 370.5588257 | DL31: L | EW31: ABS | EX31: % | EY31: 0.07 | EZ31: $ | FA31: =CP5+FA30 -> 242.8062325 | FB31: L
AB32: Discrete VVL (DVVLS) - TBL | AG32: DVVLS | BR32: Discrete VVL (DVVLD) - TBL | BW32: DVVLD | DH32: Continuous VVL (CVVL) - TBL | DM32: CVVL | EX32: Cylinder Deactivation (DEACO) - TBL | FC32: DEACO
Z33: 2017+ | AA33: INC | AB33: % | AC33: =1-((1-AC34)/(1-AC26)) -> 0.02810810811 | AD33: $ | AE33: =AE30 -> 141.9578409 | AF33: 10 | BP33: 2017+ | BQ33: INC | BR33: % | BS33: =1-((1-BS34)/(1-CN26)) -> 0.02810810811 | BT33: $ | BU33: =BU30 -> 141.9578409 | BV33: 10 | DF33: 2017+ | DG33: INC | DH33: % | DI33: =1-((1-DI34)/(1-CN26)) -> 0.03567567568 | DJ33: $ | DK33: =DK30 -> 228.5253386 | DL33: 10 | EV33: 2017+ | EW33: INC | EX33: % | EY33: =1-((1-EY34)/(1-CN8)) -> 0.04663212435 | EZ33: $ | FA33: =FA30 -> 180.8502248 | FB33: 10
B34: START | AA34: ABS | AB34: % | AC34: 0.101 | AD34: $ | AE34: =AE26+AE33 -> 308.3042059 | AF34: L | BQ34: ABS | BR34: % | BS34: 0.101 | BT34: $ | BU34: =CP26+BU33 -> 346.8320598 | BV34: L | DG34: ABS | DH34: % | DI34: 0.108 | DJ34: $ | DK34: =CP26+DK33 -> 433.3995575 | DL34: L | EW34: ABS | EX34: % | EY34: 0.08 | EZ34: $ | FA34: =CP8+FA33 -> 305.6469643 | FB34: L
A35: Gas Engine Type | B35: I4
A36: Displacement [L] | B36: 2.2
A37: Turbocharger | B37: None
A38: EGR system | B38: External | Z38: 2012-2016 | AA38: INC | AB38: % | AC38: =AC41 -> 0.004449388209 | AD38: $ | AE38: =INDEX('[1]Compact PC'!$H$379:$X$467,MATCH(AG40,'[1]Compact PC'!$C$379:$C$467,0),MATCH(Inputs!$C$2,'[1]Compact PC'!$H$378:$X$378,0)) -> 28.17691074 | AF38: 10 | BP38: 2012-2016 | BQ38: INC | BR38: % | BS38: =BS41 -> 0.004449388209 | BT38: $ | BU38: =INDEX('[1]Compact PC'!$H$379:$X$467,MATCH(BW40,'[1]Compact PC'!$C$379:$C$467,0),MATCH(Inputs!$C$2,'[1]Compact PC'!$H$378:$X$378,0)) -> 28.17691074 | BV38: 10 | DF38: 2012-2016 | DG38: INC | DH38: % | DI38: =DI41 -> 0 | DJ38: $ | DK38: 0 | DL38: 10 | EV38: 2012-2016 | EW38: INC | EX38: % | EY38: =1-((1-EY39)/(1-EY31)) -> 0.02150537634 | EZ38: $ | FA38: =INDEX('[1]Compact PC'!$H$379:$X$467,MATCH(FC40,'[1]Compact PC'!$C$379:$C$467,0),MATCH(Inputs!$C$2,'[1]Compact PC'!$H$378:$X$378,0))*$B$14 -> 45.20461721 | FB38: 10
A39: Valvetrain | B39: SOHC/ DOHC/ OHV | AA39: ABS | AB39: % | AC39: =1-((1-AC31)*(1-AC38)) -> 0.09563264249 | AD39: $ | AE39: =AE31+AE38 -> 273.6403848 | AF39: L | BQ39: ABS | BR39: % | BS39: =1-((1-BS31)*(1-BS38)) -> 0.09563264249 | BT39: $ | BU39: =BU31+BU38 -> 312.1682387 | BV39: L | DG39: ABS | DH39: % | DI39: =1-((1-DI31)*(1-DI38)) -> 0.09866404145 | DJ39: $ | DK39: =DK31+DK38 -> 370.5588257 | DL39: L | EW39: ABS | EX39: % | EY39: 0.09 | EZ39: $ | FA39: =FA31+FA38 -> 288.0108497 | FB39: L
AB40: Cylinder Deactivation (DEACS) - TBL | AG40: DEACS | BR40: Cylinder Deactivation (DEACD) - TBL | BW40: DEACD | DH40: Cylinder Deactivation (DEACD) - TBL | EX40: Coupled Cam Phasing and DVVL (VVA) - TBL | FC40: VVA
Z41: 2017+ | AA41: INC | AB41: % | AC41: =1-((1-AC42)/(1-AC34)) -> 0.004449388209 | AD41: $ | AE41: =AE38 -> 28.17691074 | AF41: 10 | BP41: 2017+ | BQ41: INC | BR41: % | BS41: =1-((1-BS42)/(1-BS34)) -> 0.004449388209 | BT41: $ | BU41: =BU38 -> 28.17691074 | BV41: 10 | DF41: 2017+ | DG41: INC | DH41: % | DI41: =1-((1-DI42)/(1-DI34)) -> 0 | DJ41: $ | DK41: =DK38 -> 0 | DL41: 10 | EV41: 2017+ | EW41: INC | EX41: % | EY41: =1-((1-EY42)/(1-EY34)) -> 0.02717391304 | EZ41: $ | FA41: =FA38 -> 45.20461721 | FB41: 10
AA42: ABS | AB42: % | AC42: 0.105 | AD42: $ | AE42: =AE34+AE41 -> 336.4811166 | AF42: L | BQ42: ABS | BR42: % | BS42: 0.105 | BT42: $ | BU42: =BU34+BU41 -> 375.0089706 | BV42: L | DG42: ABS | DH42: % | DI42: =DI34 -> 0.108 | DJ42: $ | DK42: =DK34+DK41 -> 433.3995575 | DL42: L | EW42: ABS | EX42: % | EY42: 0.105 | EZ42: $ | FA42: =FA34+FA41 -> 350.8515815 | FB42: L
Z46: 2012-2016 | AA46: INC | AB46: % | AC46: =AC49 -> 0.0156424581 | AD46: $ | AE46: =INDEX('[1]Compact PC'!$H$379:$X$467,MATCH(AG48,'[1]Compact PC'!$C$379:$C$467,0),MATCH(Inputs!$C$2,'[1]Compact PC'!$H$378:$X$378,0))*$B$13 -> 232.9452905 | AF46: 10 | BP46: 2012-2016 | BQ46: INC | BR46: % | BS46: =BS49 -> 0.0156424581 | BT46: $ | BU46: =INDEX('[1]Compact PC'!$H$379:$X$467,MATCH(BW48,'[1]Compact PC'!$C$379:$C$467,0),MATCH(Inputs!$C$2,'[1]Compact PC'!$H$378:$X$378,0))*$B$13 -> 232.9452905 | BV46: 10 | DF46: 2012-2016 | DG46: INC | DH46: % | DI46: =DI49 -> 0.01457399103 | DJ46: $ | DK46: =INDEX('[1]Compact PC'!$H$379:$X$467,MATCH(DM48,'[1]Compact PC'!$C$379:$C$467,0),MATCH(Inputs!$C$2,'[1]Compact PC'!$H$378:$X$378,0))*$B$13 -> 232.9452905 | DL46: 10 | EV46: 2012-2016 | EW46: INC | EX46: % | EY46: =1-((1-EY47)/(1-EY39)) -> 0.01538461538 | EZ46: $ | FA46: =INDEX('[1]Compact PC'!$H$379:$X$467,MATCH(FC48,'[1]Compact PC'!$C$379:$C$467,0),MATCH(Inputs!$C$2,'[1]Compact PC'!$H$378:$X$378,0))*$B$13 -> 232.9452905 | FB46: 10
AA47: ABS | AB47: % | AC47: =1-((1-AC39)*(1-AC46)) -> 0.109779171 | AD47: $ | AE47: =AE39+AE46 -> 506.5856753 | AF47: L | BQ47: ABS | BR47: % | BS47: =1-((1-BS39)*(1-BS46)) -> 0.109779171 | BT47: $ | BU47: =BU39+BU46 -> 545.1135293 | BV47: L | DG47: ABS | DH47: % | DI47: =1-((1-DI39)*(1-DI46)) -> 0.1118001036 | DJ47: $ | DK47: =DK39+DK46 -> 603.5041162 | DL47: L | EW47: ABS | EX47: % | EY47: 0.104 | EZ47: $ | FA47: =FA39+FA46 -> 520.9561402 | FB47: L
AB48: Stoichiometric GDI (SGDI) - TBL | AG48: SGDI | BR48: Stoichiometric GDI (SGDI) - TBL | BW48: SGDI | DH48: Stoichiometric GDI (SGDI) - TBL | DM48: SGDI | EX48: Stoichiometric GDI (SGDIO) - TBL | FC48: SGDIO
Z49: 2017+ | AA49: INC | AB49: % | AC49: =1-((1-AC50)/(1-AC42)) -> 0.0156424581 | AD49: $ | AE49: =AE46 -> 232.9452905 | AF49: 10 | BP49: 2017+ | BQ49: INC | BR49: % | BS49: =1-((1-BS50)/(1-BS42)) -> 0.0156424581 | BT49: $ | BU49: =BU46 -> 232.9452905 | BV49: 10 | DF49: 2017+ | DG49: INC | DH49: % | DI49: =1-((1-DI50)/(1-DI42)) -> 0.01457399103 | DJ49: $ | DK49: =DK46 -> 232.9452905 | DL49: 10 | EV49: 2017+ | EW49: INC | EX49: % | EY49: =1-((1-EY50)/(1-EY42)) -> 0.0156424581 | EZ49: $ | FA49: =FA46 -> 232.9452905 | FB49: 10
X50: From SOHC Path | AA50: ABS | AB50: % | AC50: 0.119 | AD50: $ | AE50: =AE42+AE49 -> 569.4264071 | AF50: L | BN50: From DOHC w/ DVVLD Path | BQ50: ABS | BR50: % | BS50: 0.119 | BT50: $ | BU50: =BU42+BU49 -> 607.9542611 | BV50: L | DD50: From DOHC w/ CVVL Path | DG50: ABS | DH50: % | DI50: 0.121 | DJ50: $ | DK50: =DK42+DK49 -> 666.344848 | DL50: L | ET50: From OHV w/ CDOHC Path | EW50: ABS | EX50: % | EY50: 0.119 | EZ50: $ | FA50: =FA42+FA49 -> 583.796872 | FB50: L
BE53: =BE54-$O$54 -> 0 | BG53: =BG54-$Q$54 -> -10.3509432 | BS53: =BS54-$AC$54 -> 0 | BU53: =BU54-$AE$54 -> -137.4925796 | CG53: =CG54-$AQ$54 -> 0 | CI53: =CI54-$AS$54 -> -151.06222 | CU53: =CU54-$O$54 -> -0.007173320518 | CW53: =CW54-$Q$54 -> -10.3509432 | DI53: =DI54-$AC$54 -> -0.002122936626 | DK53: =DK54-$AE$54 -> -137.4925796 | DW53: =DW54-$AQ$54 -> -0.002122936626 | DY53: =DY54-$AS$54 -> -151.06222 | EK53: =EK54-$O$54 -> 0.04788051776 | EM53: =EM54-$Q$54 -> -420.0635842 | EY53: =EY54-$AC$54 -> 0 | FA53: =FA54-$AE$54 -> 562.7541357 | FM53: =FM54-$AQ$54 -> 0 | FO53: =FO54-$AS$54 -> 523.9804211
L54: 2012-2016 | M54: INC | N54: % | O54: =O57 -> 0.0720197369 | P54: $ | Q54: =INDEX('[1]Compact PC'!$H$379:$X$467,MATCH(M56,'[1]Compact PC'!$C$379:$C$467,0),MATCH(Inputs!$C$2,'[1]Compact PC'!$H$378:$X$378,0)) +INDEX('[1]Compact PC'!$H$379:$X$467,MATCH(S56,'[1]Compact PC'!$C$379:$C$467,0),MATCH(Inputs!$C$2,'[1]Compact PC'!$H$378:$X$378,0)) -> 420.0635842 | R54: 10 | Z54: 2012-2016 | AA54: INC | AB54: % | AC54: =AC57 -> 0.06696935301 | AD54: $ | AE54: =INDEX('[1]Compact PC'!$H$379:$X$467,MATCH(AA56,'[1]Compact PC'!$C$379:$C$467,0),MATCH(Inputs!$C$2,'[1]Compact PC'!$H$378:$X$378,0)) +INDEX('[1]Compact PC'!$H$379:$X$467,MATCH(AG56,'[1]Compact PC'!$C$379:$C$467,0),MATCH(Inputs!$C$2,'[1]Compact PC'!$H$378:$X$378,0)) -> -29.2678843 | AF54: 10 | AN54: 2012-2016 | AO54: INC | AP54: % | AQ54: =AQ57 -> 0.06696935301 | AR54: $ | AS54: =INDEX('[1]Compact PC'!$H$379:$X$467,MATCH(AO56,'[1]Compact PC'!$C$379:$C$467,0),MATCH(Inputs!$C$2,'[1]Compact PC'!$H$378:$X$378,0)) +INDEX('[1]Compact PC'!$H$379:$X$467,MATCH(AU56,'[1]Compact PC'!$C$379:$C$467,0),MATCH(Inputs!$C$2,'[1]Compact PC'!$H$378:$X$378,0)) -> 523.4808405 | AT54: 10 | BB54: 2012-2016 | BC54: INC | BD54: % | BE54: =BE57 -> 0.0720197369 | BF54: $ | BG54: =INDEX('[1]Subcompact PC'!$H$530:$X$541,MATCH(BC56,'[1]Subcompact PC'!$C$530:$C$541,0),MATCH(Inputs!$C$2,'[1]Subcompact PC'!$H$529:$X$529,0)) +INDEX('[1]Subcompact PC'!$H$530:$X$541,MATCH(BI56,'[1]Subcompact PC'!$C$530:$C$541,0),MATCH(Inputs!$C$2,'[1]Subcompact PC'!$H$529:$X$529,0)) -> 409.712641 | BH54: 10 | BP54: 2012-2016 | BQ54: INC | BR54: % | BS54: =BS57 -> 0.06696935301 | BT54: $ | BU54: =INDEX('[1]Subcompact PC'!$H$530:$X$541,MATCH(BQ56,'[1]Subcompact PC'!$C$530:$C$541,0),MATCH(Inputs!$C$2,'[1]Subcompact PC'!$H$529:$X$529,0)) +INDEX('[1]Subcompact PC'!$H$530:$X$541,MATCH(BW56,'[1]Subcompact PC'!$C$530:$C$541,0),MATCH(Inputs!$C$2,'[1]Subcompact PC'!$H$529:$X$529,0)) -> -166.7604639 | BV54: 10 | CD54: 2012-2016 | CE54: INC | CF54: % | CG54: =CG57 -> 0.06696935301 | CH54: $ | CI54: =INDEX('[1]Subcompact PC'!$H$530:$X$541,MATCH(CE56,'[1]Subcompact PC'!$C$530:$C$541,0),MATCH(Inputs!$C$2,'[1]Subcompact PC'!$H$529:$X$529,0)) +INDEX('[1]Subcompact PC'!$H$530:$X$541,MATCH(CK56,'[1]Subcompact PC'!$C$530:$C$541,0),MATCH(Inputs!$C$2,'[1]Subcompact PC'!$H$529:$X$529,0)) -> 372.4186205 | CJ54: 10 | CR54: 2012-2016 | CS54: INC | CT54: % | CU54: =CU57 -> 0.06484641638 | CV54: $ | CW54: =INDEX('[1]Subcompact PC'!$H$530:$X$541,MATCH(CS56,'[1]Subcompact PC'!$C$530:$C$541,0),MATCH(Inputs!$C$2,'[1]Subcompact PC'!$H$529:$X$529,0)) +INDEX('[1]Subcompact PC'!$H$530:$X$541,MATCH(CY56,'[1]Subcompact PC'!$C$530:$C$541,0),MATCH(Inputs!$C$2,'[1]Subcompact PC'!$H$529:$X$529,0)) -> 409.712641 | CX54: 10 | DF54: 2012-2016 | DG54: INC | DH54: % | DI54: =DI57 -> 0.06484641638 | DJ54: $ | DK54: =INDEX('[1]Subcompact PC'!$H$530:$X$541,MATCH(DG56,'[1]Subcompact PC'!$C$530:$C$541,0),MATCH(Inputs!$C$2,'[1]Subcompact PC'!$H$529:$X$529,0)) +INDEX('[1]Subcompact PC'!$H$530:$X$541,MATCH(DM56,'[1]Subcompact PC'!$C$530:$C$541,0),MATCH(Inputs!$C$2,'[1]Subcompact PC'!$H$529:$X$529,0)) -> -166.7604639 | DL54: 10 | DT54: 2012-2016 | DU54: INC | DV54: % | DW54: =DW57 -> 0.06484641638 | DX54: $ | DY54: =INDEX('[1]Subcompact PC'!$H$530:$X$541,MATCH(DU56,'[1]Subcompact PC'!$C$530:$C$541,0),MATCH(Inputs!$C$2,'[1]Subcompact PC'!$H$529:$X$529,0)) +INDEX('[1]Subcompact PC'!$H$530:$X$541,MATCH(EA56,'[1]Subcompact PC'!$C$530:$C$541,0),MATCH(Inputs!$C$2,'[1]Subcompact PC'!$H$529:$X$529,0)) -> 372.4186205 | DZ54: 10 | EH54: 2012-2016 | EI54: INC | EJ54: % | EK54: =EK57 -> 0.1199002547 | EL54: $ | EM54: =INDEX('[1]Subcompact PC'!$H$530:$X$541,MATCH(EI56,'[1]Subcompact PC'!$C$530:$C$541,0),MATCH(Inputs!$C$2,'[1]Subcompact PC'!$H$529:$X$529,0)) +INDEX('[1]Subcompact PC'!$H$530:$X$541,MATCH(EO56,'[1]Subcompact PC'!$C$530:$C$541,0),MATCH(Inputs!$C$2,'[1]Subcompact PC'!$H$529:$X$529,0)) -> 0 | EN54: 10 | EV54: 2012-2016 | EW54: INC | EX54: % | EY54: =EY57 -> 0.06696935301 | EZ54: $ | FA54: =INDEX('[1]Subcompact PC'!$H$530:$X$541,MATCH(EW56,'[1]Subcompact PC'!$C$530:$C$541,0),MATCH(Inputs!$C$2,'[1]Subcompact PC'!$H$529:$X$529,0)) +INDEX('[1]Subcompact PC'!$H$530:$X$541,MATCH(FC56,'[1]Subcompact PC'!$C$530:$C$541,0),MATCH(Inputs!$C$2,'[1]Subcompact PC'!$H$529:$X$529,0)) -> 533.4862514 | FB54: 10 | FC54: =INDEX('[1]Subcompact PC'!$H$530:$X$541,MATCH(EW56,'[1]Subcompact PC'!$C$530:$C$541,0),MATCH(Inputs!$C$2,'[1]Subcompact PC'!$H$529:$X$529,0)) -> 229.1756154 | FD54: =MATCH(EW56,'[1]Subcompact PC'!$C$530:$C$541,0) -> 9 | FJ54: 2012-2016 | FK54: INC | FL54: % | FM54: =FM57 -> 0.06696935301 | FN54: $ | FO54: =INDEX('[1]Subcompact PC'!$H$530:$X$541,MATCH(FK56,'[1]Subcompact PC'!$C$530:$C$541,0),MATCH(Inputs!$C$2,'[1]Subcompact PC'!$H$529:$X$529,0)) +INDEX('[1]Subcompact PC'!$H$530:$X$541,MATCH(FQ56,'[1]Subcompact PC'!$C$530:$C$541,0),MATCH(Inputs!$C$2,'[1]Subcompact PC'!$H$529:$X$529,0)) -> 1047.461262 | FP54: 10
M55: ABS | N55: % | O55: =1-((1-AC47+AC38)*(1-O54)) -> 0.1697636964 | P55: $ | Q55: =AE47+Q54 -> 926.6492596 | R55: L | AA55: ABS | AB55: % | AC55: =1-((1-AC47)*(1-AC54)) -> 0.1693966839 | AD55: $ | AE55: =AE47+AE54 -> 477.317791 | AF55: L | AO55: ABS | AP55: % | AQ55: =1-((1-AC47)*(1-AQ54)) -> 0.1693966839 | AR55: $ | AS55: =AE47+AS54 -> 1030.066516 | AT55: L | BC55: ABS | BD55: % | BE55: =1-((1-BS47)*(1-BE54)) -> 0.1738926409 | BF55: $ | BG55: =BU47+BG54 -> 954.8261703 | BH55: L | BQ55: ABS | BR55: % | BS55: =1-((1-BS47)*(1-BS54)) -> 0.1693966839 | BT55: $ | BU55: =BU47+BU54 -> 378.3530653 | BV55: L | CE55: ABS | CF55: % | CG55: =1-((1-BS47)*(1-CG54)) -> 0.1693966839 | CH55: $ | CI55: =BU47+CI54 -> 917.5321497 | CJ55: L | CS55: ABS | CT55: % | CU55: =1-((1-DI47)*(1-CU54)) -> 0.1693966839 | CV55: $ | CW55: =DK47+CW54 -> 1013.216757 | CX55: L | DG55: ABS | DH55: % | DI55: =1-((1-DI47)*(1-DI54)) -> 0.1693966839 | DJ55: $ | DK55: =DK47+DK54 -> 436.7436523 | DL55: L | DU55: ABS | DV55: % | DW55: =1-((1-DI47)*(1-DW54)) -> 0.1693966839 | DX55: $ | DY55: =DK47+DY54 -> 975.9227366 | DZ55: L | EI55: ABS | EJ55: % | EK55: =1-((1-EY47)*(1-EK54)) -> 0.2114306282 | EL55: $ | EM55: =FA47+EM54 -> 520.9561402 | EN55: L | EW55: ABS | EX55: % | EY55: =1-((1-EY47)*(1-EY54)) -> 0.1640045403 | EZ55: $ | FA55: =FA47+FA54 -> 1054.442392 | FB55: L | FK55: ABS | FL55: % | FM55: =1-((1-EY47)*(1-FM54)) -> 0.1640045403 | FN55: $ | FO55: =FA47+FO54 -> 1568.417402 | FP55: L
B56: INTERMEDIATE | M56: TRBDS1_SD_TB | N56: Turbocharging and Downsizing 1 (TRBDS1_SD) - TBL | S56: TRBDS1_SD_DS | AA56: TRBDS1_MD_TB | AB56: Turbocharging and Downsizing 1 (TRBDS1_MD) - TBL | AG56: TRBDS1_MD_DS | AO56: TRBDS1_LD_TB | AP56: Turbocharging and Downsizing 1 (TRBDS1_LD) - TBL | AU56: TRBDS1_LD_DS | BC56: TRBDS1_SD_TB_D | BD56: =$N$56 -> Turbocharging and Downsizing 1 (TRBDS1_SD) - TBL | BI56: TRBDS1_SD_DS_D | BQ56: TRBDS1_MD_TB_D | BR56: Turbocharging and Downsizing 1 (TRBDS1_MD) - TBL | BW56: TRBDS1_MD_DS_D | CE56: TRBDS1_LD_TB_D | CF56: =$AP$56 -> Turbocharging and Downsizing 1 (TRBDS1_LD) - TBL | CK56: TRBDS1_LD_DS_D | CS56: TRBDS1_SD_TB_D | CT56: =$N$56 -> Turbocharging and Downsizing 1 (TRBDS1_SD) - TBL | CY56: TRBDS1_SD_DS_D | DG56: TRBDS1_MD_TB_D | DH56: =$AB$56 -> Turbocharging and Downsizing 1 (TRBDS1_MD) - TBL | DM56: TRBDS1_MD_DS_D | DU56: TRBDS1_LD_TB_D | DV56: =$AP$56 -> Turbocharging and Downsizing 1 (TRBDS1_LD) - TBL | EA56: TRBDS1_LD_DS_D | EI56: TRBDS1_SD_TB_O | EJ56: =$N$56 -> Turbocharging and Downsizing 1 (TRBDS1_SD) - TBL | EO56: TRBDS1_SD_DS_O | EW56: TRBDS1_MD_TB_O | EX56: =$AB$56 -> Turbocharging and Downsizing 1 (TRBDS1_MD) - TBL | FC56: TRBDS1_MD_DS_O | FK56: TRBDS1_LD_TB_O | FL56: =$AP$56 -> Turbocharging and Downsizing 1 (TRBDS1_LD) - TBL | FQ56: TRBDS1_LD_DS_O
A57: Gas Engine Type | B57: I4 | L57: 2017+ | M57: INC | N57: % | O57: =1-((1-O58-AC41)/(1-AC50)) -> 0.0720197369 | P57: $ | Q57: =Q54 -> 420.0635842 | R57: 10 | Z57: 2017+ | AA57: INC | AB57: % | AC57: =1-((1-AC58)/(1-AC50)) -> 0.06696935301 | AD57: $ | AE57: =AE54 -> -29.2678843 | AF57: 10 | AN57: 2017+ | AO57: INC | AP57: % | AQ57: =1-((1-AQ58)/(1-AC50)) -> 0.06696935301 | AR57: $ | AS57: =AS54 -> 523.4808405 | AT57: 10 | BB57: 2017+ | BC57: INC | BD57: % | BE57: =1-((1-BE58-BS41)/(1-BS50)) -> 0.0720197369 | BF57: $ | BG57: =BG54 -> 409.712641 | BH57: 10 | BP57: 2017+ | BQ57: INC | BR57: % | BS57: =1-((1-BS58)/(1-BS50)) -> 0.06696935301 | BT57: $ | BU57: =BU54 -> -166.7604639 | BV57: 10 | CD57: 2017+ | CE57: INC | CF57: % | CG57: =1-((1-CG58)/(1-BS50)) -> 0.06696935301 | CH57: $ | CI57: =CI54 -> 372.4186205 | CJ57: 10 | CR57: 2017+ | CS57: INC | CT57: % | CU57: =1-((1-CU58-DI41)/(1-DI50)) -> 0.06484641638 | CV57: $ | CW57: =CW54 -> 409.712641 | CX57: 10 | DF57: 2017+ | DG57: INC | DH57: % | DI57: =1-((1-DI58)/(1-DI50)) -> 0.06484641638 | DJ57: $ | DK57: =DK54 -> -166.7604639 | DL57: 10 | DT57: 2017+ | DU57: INC | DV57: % | DW57: =1-((1-DW58)/(1-DI50)) -> 0.06484641638 | DX57: $ | DY57: =DY54 -> 372.4186205 | DZ57: 10 | EH57: 2017+ | EI57: INC | EJ57: % | EK57: =1-((1-EK58-EY33)/(1-EY50)) -> 0.1199002547 | EL57: $ | EM57: =EM54 -> 0 | EN57: 10 | EV57: 2017+ | EW57: INC | EX57: % | EY57: =1-((1-EY58)/(1-EY50)) -> 0.06696935301 | EZ57: $ | FA57: =FA54 -> 533.4862514 | FB57: 10 | FJ57: 2017+ | FK57: INC | FL57: % | FM57: =1-((1-FM58)/(1-EY50)) -> 0.06696935301 | FN57: $ | FO57: =FO54 -> 1047.461262 | FP57: 10
A58: Displacement [L] | B58: 1.5 to 2.0 | M58: ABS | N58: % | O58: 0.178 | P58: $ | Q58: =AE50+Q57 -> 989.4899914 | R58: L | AA58: ABS | AB58: % | AC58: =$O58 -> 0.178 | AD58: $ | AE58: =AE50+AE57 -> 540.1585228 | AF58: L | AO58: ABS | AP58: % | AQ58: =$O58 -> 0.178 | AR58: $ | AS58: =AE50+AS57 -> 1092.907248 | AT58: L | BC58: ABS | BD58: % | BE58: =$O58 -> 0.178 | BF58: $ | BG58: =BU50+BG57 -> 1017.666902 | BH58: L | BQ58: ABS | BR58: % | BS58: =$O58 -> 0.178 | BT58: $ | BU58: =BU50+BU57 -> 441.1937972 | BV58: L | CE58: ABS | CF58: % | CG58: =$AQ58 -> 0.178 | CH58: $ | CI58: =BU50+CI57 -> 980.3728815 | CJ58: L | CS58: ABS | CT58: % | CU58: =$O58 -> 0.178 | CV58: $ | CW58: =DK50+CW57 -> 1076.057489 | CX58: L | DG58: ABS | DH58: % | DI58: =$AC58 -> 0.178 | DJ58: $ | DK58: =DK50+DK57 -> 499.5843841 | DL58: L | DU58: ABS | DV58: % | DW58: =$AQ58 -> 0.178 | DX58: $ | DY58: =DK50+DY57 -> 1038.763468 | DZ58: L | EI58: ABS | EJ58: % | EK58: =$O58 -> 0.178 | EL58: $ | EM58: =FA50+EM57 -> 583.796872 | EN58: L | EW58: ABS | EX58: % | EY58: =$AC58 -> 0.178 | EZ58: $ | FA58: =FA50+FA57 -> 1117.283123 | FB58: L | FK58: ABS | FL58: % | FM58: =$AQ58 -> 0.178 | FN58: $ | FO58: =FA50+FO57 -> 1631.258134 | FP58: L
A59: Turbocharger | B59: FGT | BE59: =BE57-$O$57 -> 0 | BG59: =BG57-$Q$57 -> -10.3509432 | BS59: =BS57-$AC$57 -> 0 | BU59: =BU57-$AE$57 -> -137.4925796 | CG59: =CG57-$AQ$57 -> 0 | CI59: =CI57-$AS$57 -> -151.06222 | CU59: =CU57-$O$57 -> -0.007173320518 | CW59: =CW57-$Q$57 -> -10.3509432 | DI59: =DI57-$AC$57 -> -0.002122936626 | DK59: =DK57-$AE$57 -> -137.4925796 | DW59: =DW57-$AQ$57 -> -0.002122936626 | DY59: =DY57-$AS$57 -> -151.06222 | EK59: =EK57-$O$57 -> 0.04788051776 | EM59: =EM57-$Q$57 -> -420.0635842 | EY59: =EY57-$AC$57 -> 0 | FA59: =FA57-$AE$57 -> 562.7541357 | FM59: =FM57-$AQ$57 -> 0 | FO59: =FO57-$AS$57 -> 523.9804211
A60: EGR system | B60: External
A61: Valvetrain | B61: DOHC
A62: After Treatment | B62: 3way cat | L62: 2012-2016 | M62: INC | N62: % | O62: =1-((1-O63)/(1-O55)) -> 0 | P62: $ | Q62: 0 | R62: 0 | Z62: 2012-2016 | AA62: INC | AB62: % | AC62: =1-((1-AC63)/(1-AC55)) -> 0 | AD62: $ | AE62: 0 | AF62: 0 | AN62: 2012-2016 | AO62: INC | AP62: % | AQ62: =1-((1-AQ63)/(1-AQ55)) -> 0 | AR62: $ | AS62: 0 | AT62: 0 | BB62: 2012-2016 | BC62: INC | BD62: % | BE62: =1-((1-BE63)/(1-BE55)) -> 0 | BF62: $ | BG62: =$Q$62 -> 0 | BH62: =$R$62 -> 0 | BP62: 2012-2016 | BQ62: INC | BR62: % | BS62: =1-((1-BS63)/(1-BS55)) -> 0 | BT62: $ | BU62: =$AE$62 -> 0 | BV62: =$AF$62 -> 0 | CD62: 2012-2016 | CE62: INC | CF62: % | CG62: =1-((1-CG63)/(1-CG55)) -> 0 | CH62: $ | CI62: =$AS$62 -> 0 | CJ62: =$AT$62 -> 0 | CR62: 2012-2016 | CS62: INC | CT62: % | CU62: =1-((1-CU63)/(1-CU55)) -> 0 | CV62: $ | CW62: =$Q$62 -> 0 | CX62: =$R$62 -> 0 | DF62: 2012-2016 | DG62: INC | DH62: % | DI62: =1-((1-DI63)/(1-DI55)) -> 0 | DJ62: $ | DK62: =$AE$62 -> 0 | DL62: =$AF$62 -> 0 | DT62: 2012-2016 | DU62: INC | DV62: % | DW62: =1-((1-DW63)/(1-DW55)) -> 0 | DX62: $ | DY62: =$AS$62 -> 0 | DZ62: =$AT$62 -> 0 | EH62: 2012-2016 | EI62: INC | EJ62: % | EK62: =$O$62 -> 0 | EL62: $ | EM62: =$Q$62 -> 0 | EN62: =$R$62 -> 0 | EV62: 2012-2016 | EW62: INC | EX62: % | EY62: =1-((1-EY63)/(1-EY55)) -> 0 | EZ62: $ | FA62: =$AE$62 -> 0 | FB62: =$AF$62 -> 0 | FJ62: 2012-2016 | FK62: INC | FL62: % | FM62: =1-((1-FM63)/(1-FM55)) -> 0 | FN62: $ | FO62: =$AS$62 -> 0 | FP62: =$AT$62 -> 0
M63: ABS | N63: % | O63: =O55 -> 0.1697636964 | P63: $ | Q63: =Q55+Q62 -> 926.6492596 | R63: L | AA63: ABS | AB63: % | AC63: =AC55 -> 0.1693966839 | AD63: $ | AE63: =AE55+AE62 -> 477.317791 | AF63: L | AO63: ABS | AP63: % | AQ63: =AQ55 -> 0.1693966839 | AR63: $ | AS63: =AS55+AS62 -> 1030.066516 | AT63: L | BC63: ABS | BD63: % | BE63: =BE55 -> 0.1738926409 | BF63: $ | BG63: =BG55+BG62 -> 954.8261703 | BH63: L | BQ63: ABS | BR63: % | BS63: =BS55 -> 0.1693966839 | BT63: $ | BU63: =BU55+BU62 -> 378.3530653 | BV63: L | CE63: ABS | CF63: % | CG63: =CG55 -> 0.1693966839 | CH63: $ | CI63: =CI55+CI62 -> 917.5321497 | CJ63: L | CS63: ABS | CT63: % | CU63: =CU55 -> 0.1693966839 | CV63: $ | CW63: =CW55+CW62 -> 1013.216757 | CX63: L | DG63: ABS | DH63: % | DI63: =DI55 -> 0.1693966839 | DJ63: $ | DK63: =DK55+DK62 -> 436.7436523 | DL63: L | DU63: ABS | DV63: % | DW63: =DW55 -> 0.1693966839 | DX63: $ | DY63: =DY55+DY62 -> 975.9227366 | DZ63: L | EI63: ABS | EJ63: % | EK63: =1-((1-EK55)*(1-EK62)) -> 0.2114306282 | EL63: $ | EM63: =EM55+EM62 -> 520.9561402 | EN63: L | EW63: ABS | EX63: % | EY63: =EY55 -> 0.1640045403 | EZ63: $ | FA63: =FA55+FA62 -> 1054.442392 | FB63: L | FK63: ABS | FL63: % | FM63: =FM55 -> 0.1640045403 | FN63: $ | FO63: =FO55+FO62 -> 1568.417402 | FP63: L
M64: TRBDS2_SD_TB | N64: Turbocharging and Downsizing 2 (TRBDS2_SD) - TBL | S64: TRBDS2_SD_DS | AA64: TRBDS2_MD_TB | AB64: Turbocharging and Downsizing 2 (TRBDS2_MD) - TBL | AG64: TRBDS2_MD_DS | AO64: TRBDS2_LD_TB | AP64: Turbocharging and Downsizing 2 (TRBDS2_LD) - TBL | AU64: TRBDS2_LD_DS | BC64: TRBDS2_SD_TB | BD64: =$N$64 -> Turbocharging and Downsizing 2 (TRBDS2_SD) - TBL | BI64: TRBDS2_SD_DS | BQ64: TRBDS2_MD_TB | BR64: =$AB$64 -> Turbocharging and Downsizing 2 (TRBDS2_MD) - TBL | BW64: TRBDS2_MD_DS | CE64: TRBDS2_LD_TB | CF64: =$AP$64 -> Turbocharging and Downsizing 2 (TRBDS2_LD) - TBL | CK64: TRBDS2_LD_DS | CS64: TRBDS2_SD_TB | CT64: =$N$64 -> Turbocharging and Downsizing 2 (TRBDS2_SD) - TBL | CY64: TRBDS2_SD_DS | DG64: TRBDS2_MD_TB | DH64: =$AB$64 -> Turbocharging and Downsizing 2 (TRBDS2_MD) - TBL | DM64: TRBDS2_MD_DS | DU64: TRBDS2_LD_TB | DV64: Cooled EGR 1 (CEGR1_LD) - TBL | EA64: TRBDS2_LD_DS | EI64: TRBDS2_SD_TB | EJ64: =$N$64 -> Turbocharging and Downsizing 2 (TRBDS2_SD) - TBL | EO64: TRBDS2_SD_DS | EW64: TRBDS2_MD_TB | EX64: =$AB$64 -> Turbocharging and Downsizing 2 (TRBDS2_MD) - TBL | FC64: TRBDS2_MD_DS | FK64: TRBDS2_LD_TB | FL64: Cooled EGR 1 (CEGR1_LD) - TBL | FQ64: TRBDS2_LD_DS
B65: INTERMEDIATE | L65: 2017+ | M65: INC | N65: % | O65: =1-((1-O66)/(1-O58)) -> 0.02919708029 | P65: $ | Q65: =INDEX('[1]Large PC'!$H$379:$X$467,MATCH(M64,'[1]Large PC'!$C$379:$C$467,0),MATCH(Inputs!$C$2,'[1]Large PC'!$H$378:$X$378,0)) +INDEX('[1]Large PC'!$H$379:$X$467,MATCH(S64,'[1]Large PC'!$C$379:$C$467,0),MATCH(Inputs!$C$2,'[1]Large PC'!$H$378:$X$378,0)) -> 19.91424688 | R65: 10 | Z65: 2017+ | AA65: INC | AB65: % | AC65: =1-((1-AC66)/(1-AC58)) -> 0.02919708029 | AD65: $ | AE65: =INDEX('[1]Compact PC'!$H$379:$X$467,MATCH(AA64,'[1]Compact PC'!$C$379:$C$467,0),MATCH(Inputs!$C$2,'[1]Compact PC'!$H$378:$X$378,0)) +INDEX('[1]Compact PC'!$H$379:$X$467,MATCH(AG64,'[1]Compact PC'!$C$379:$C$467,0),MATCH(Inputs!$C$2,'[1]Compact PC'!$H$378:$X$378,0)) -> 247.5936885 | AF65: 10 | AN65: 2017+ | AO65: INC | AP65: % | AQ65: =1-((1-AQ66)/(1-AQ58)) -> 0.02919708029 | AR65: $ | AS65: =INDEX('[1]Compact PC'!$H$379:$X$467,MATCH(AO64,'[1]Compact PC'!$C$379:$C$467,0),MATCH(Inputs!$C$2,'[1]Compact PC'!$H$378:$X$378,0)) +INDEX('[1]Compact PC'!$H$379:$X$467,MATCH(AU64,'[1]Compact PC'!$C$379:$C$467,0),MATCH(Inputs!$C$2,'[1]Compact PC'!$H$378:$X$378,0)) -> 417.3547076 | AT65: 10 | BB65: 2017+ | BC65: INC | BD65: % | BE65: =1-((1-BE66)/(1-BE58)) -> 0.02919708029 | BF65: $ | BG65: =$Q65 -> 19.91424688 | BH65: =$R$65 -> 10 | BP65: 2017+ | BQ65: INC | BR65: % | BS65: =1-((1-BS66)/(1-BS58)) -> 0.02919708029 | BT65: $ | BU65: =$AE$65 -> 247.5936885 | BV65: =$AF$65 -> 10 | CD65: 2017+ | CE65: INC | CF65: % | CG65: =1-((1-CG66)/(1-CG58)) -> 0.02919708029 | CH65: $ | CI65: =$AS$65 -> 417.3547076 | CJ65: =$AT$65 -> 10 | CR65: 2017+ | CS65: INC | CT65: % | CU65: =1-((1-CU66)/(1-CU58)) -> 0.02919708029 | CV65: $ | CW65: =$Q65 -> 19.91424688 | CX65: =$R$65 -> 10 | DF65: 2017+ | DG65: INC | DH65: % | DI65: =1-((1-DI66)/(1-DI58)) -> 0.02919708029 | DJ65: $ | DK65: =$AE$65 -> 247.5936885 | DL65: =$AF$65 -> 10 | DT65: 2017+ | DU65: INC | DV65: % | DW65: =1-((1-DW66)/(1-DW58)) -> 0.02919708029 | DX65: $ | DY65: =$AS$65 -> 417.3547076 | DZ65: =$AT$65 -> 10 | EH65: 2017+ | EI65: INC | EJ65: % | EK65: =1-((1-EK66)/(1-EK58)) -> 0.02919708029 | EL65: $ | EM65: =$Q65 -> 19.91424688 | EN65: =$R$65 -> 10 | EV65: 2017+ | EW65: INC | EX65: % | EY65: =1-((1-EY66)/(1-EY58)) -> 0.02919708029 | EZ65: $ | FA65: =$AE$65 -> 247.5936885 | FB65: =$AF$65 -> 10 | FJ65: 2017+ | FK65: INC | FL65: % | FM65: =1-((1-FM66)/(1-FM58)) -> 0.02919708029 | FN65: $ | FO65: =$AS$65 -> 417.3547076 | FP65: =$AT$65 -> 10
A66: Gas Engine Type | B66: I4 | M66: ABS | N66: % | O66: 0.202 | P66: $ | Q66: =Q58+Q65 -> 1009.404238 | R66: L | AA66: ABS | AB66: % | AC66: =$O66 -> 0.202 | AD66: $ | AE66: =AE58+AE65 -> 787.7522113 | AF66: L | AO66: ABS | AP66: % | AQ66: =$O66 -> 0.202 | AR66: $ | AS66: =AS58+AS65 -> 1510.261955 | AT66: L | BC66: ABS | BD66: % | BE66: =$O66 -> 0.202 | BF66: $ | BG66: =BG58+BG65 -> 1037.581149 | BH66: L | BQ66: ABS | BR66: % | BS66: =$O66 -> 0.202 | BT66: $ | BU66: =BU58+BU65 -> 688.7874856 | BV66: L | CE66: ABS | CF66: % | CG66: =$AQ66 -> 0.202 | CH66: $ | CI66: =CI58+CI65 -> 1397.727589 | CJ66: L | CS66: ABS | CT66: % | CU66: =$O66 -> 0.202 | CV66: $ | CW66: =CW58+CW65 -> 1095.971736 | CX66: L | DG66: ABS | DH66: % | DI66: =$AC66 -> 0.202 | DJ66: $ | DK66: =DK58+DK65 -> 747.1780726 | DL66: L | DU66: ABS | DV66: % | DW66: =$AQ66 -> 0.202 | DX66: $ | DY66: =DY58+DY65 -> 1456.118176 | DZ66: L | EI66: ABS | EJ66: % | EK66: =$O66 -> 0.202 | EL66: $ | EM66: =EM58+EM65 -> 603.7111189 | EN66: L | EW66: ABS | EX66: % | EY66: =$AC66 -> 0.202 | EZ66: $ | FA66: =FA58+FA65 -> 1364.876812 | FB66: L | FK66: ABS | FL66: % | FM66: =$AQ66 -> 0.202 | FN66: $ | FO66: =FO58+FO65 -> 2048.612841 | FP66: L
A67: Displacement [L] | B67: 1
A68: Turbocharger | B68: FGT
A69: EGR system | B69: External
A70: Valvetrain | B70: DOHC | L70: 2012-2016 | M70: INC | N70: % | O70: =1-((1-O71)/(1-O63)) -> 0 | P70: $ | Q70: 0 | R70: 0 | Z70: 2012-2016 | AA70: INC | AB70: % | AC70: =1-((1-AC71)/(1-AC63)) -> 0 | AD70: $ | AE70: 0 | AF70: 0 | AN70: 2012-2016 | AO70: INC | AP70: % | AQ70: =1-((1-AQ71)/(1-AQ63)) -> 0 | AR70: $ | AS70: 0 | AT70: 0 | BB70: 2012-2016 | BC70: INC | BD70: % | BE70: =1-((1-BE71)/(1-BE63)) -> 0 | BF70: $ | BG70: =$Q$70 -> 0 | BH70: =$R$70 -> 0 | BP70: 2012-2016 | BQ70: INC | BR70: % | BS70: =1-((1-BS71)/(1-BS63)) -> 0 | BT70: $ | BU70: =$AE$70 -> 0 | BV70: =$AF$70 -> 0 | CD70: 2012-2016 | CE70: INC | CF70: % | CG70: =1-((1-CG71)/(1-CG63)) -> 0 | CH70: $ | CI70: =$AS$70 -> 0 | CJ70: =$AT$70 -> 0 | CR70: 2012-2016 | CS70: INC | CT70: % | CU70: =1-((1-CU71)/(1-CU63)) -> 0 | CV70: $ | CW70: =$Q$70 -> 0 | CX70: =$R$70 -> 0 | DF70: 2012-2016 | DG70: INC | DH70: % | DI70: =1-((1-DI71)/(1-DI63)) -> 0 | DJ70: $ | DK70: =$AE$70 -> 0 | DL70: =$AF$70 -> 0 | DT70: 2012-2016 | DU70: INC | DV70: % | DW70: =1-((1-DW71)/(1-DW63)) -> 0 | DX70: $ | DY70: =$AS$70 -> 0 | DZ70: =$AT$70 -> 0 | EH70: 2012-2016 | EI70: INC | EJ70: % | EK70: =1-((1-EK71)/(1-EK63)) -> 0 | EL70: $ | EM70: =$Q$70 -> 0 | EN70: =$R$70 -> 0 | EV70: 2012-2016 | EW70: INC | EX70: % | EY70: =1-((1-EY71)/(1-EY63)) -> 0 | EZ70: $ | FA70: =$AE$70 -> 0 | FB70: =$AF$70 -> 0 | FJ70: 2012-2016 | FK70: INC | FL70: % | FM70: =1-((1-FM71)/(1-FM63)) -> 0 | FN70: $ | FO70: =$AS$70 -> 0 | FP70: =$AT$70 -> 0
A71: After Treatment | B71: 3way cat | M71: ABS | N71: % | O71: =O63 -> 0.1697636964 | P71: $ | Q71: =Q63+Q70 -> 926.6492596 | R71: L | AA71: ABS | AB71: % | AC71: =AC63 -> 0.1693966839 | AD71: $ | AE71: =AE63+AE70 -> 477.317791 | AF71: L | AO71: ABS | AP71: % | AQ71: =AQ63 -> 0.1693966839 | AR71: $ | AS71: =AS63+AS70 -> 1030.066516 | AT71: L | BC71: ABS | BD71: % | BE71: =BE63 -> 0.1738926409 | BF71: $ | BG71: =BG63+BG70 -> 954.8261703 | BH71: L | BQ71: ABS | BR71: % | BS71: =BS63 -> 0.1693966839 | BT71: $ | BU71: =BU63+BU70 -> 378.3530653 | BV71: L | CE71: ABS | CF71: % | CG71: =CG63 -> 0.1693966839 | CH71: $ | CI71: =CI63+CI70 -> 917.5321497 | CJ71: L | CS71: ABS | CT71: % | CU71: =CU63 -> 0.1693966839 | CV71: $ | CW71: =CW63+CW70 -> 1013.216757 | CX71: L | DG71: ABS | DH71: % | DI71: =DI63 -> 0.1693966839 | DJ71: $ | DK71: =DK63+DK70 -> 436.7436523 | DL71: L | DU71: ABS | DV71: % | DW71: =DW63 -> 0.1693966839 | DX71: $ | DY71: =DY63+DY70 -> 975.9227366 | DZ71: L | EI71: ABS | EJ71: % | EK71: =EK63 -> 0.2114306282 | EL71: $ | EM71: =EM63+EM70 -> 520.9561402 | EN71: L | EW71: ABS | EX71: % | EY71: =EY63 -> 0.1640045403 | EZ71: $ | FA71: =FA63+FA70 -> 1054.442392 | FB71: L | FK71: ABS | FL71: % | FM71: =FM63 -> 0.1640045403 | FN71: $ | FO71: =FO63+FO70 -> 1568.417402 | FP71: L
M72: CEGR1_SD_TB | N72: Cooled EGR 1 (CEGR1_SD) - TBL | S72: CEGR1_SD_DS | AA72: CEGR1_MD_TB | AB72: Cooled EGR 1 (CEGR1_MD) - TBL | AG72: CEGR1_MD_DS | AO72: CEGR1_LD_TB | AP72: Cooled EGR 1 (CEGR1_LD) - TBL | AU72: CEGR1_LD_DS | BC72: CEGR1_SD_TB | BD72: =$N$72 -> Cooled EGR 1 (CEGR1_SD) - TBL | BI72: CEGR1_SD_DS | BQ72: CEGR1_MD_TB | BR72: =$AB$72 -> Cooled EGR 1 (CEGR1_MD) - TBL | BW72: CEGR1_MD_DS | CE72: CEGR1_LD_TB | CF72: =$AP$72 -> Cooled EGR 1 (CEGR1_LD) - TBL | CK72: CEGR1_LD_DS | CS72: CEGR1_SD_TB | CT72: =$N$72 -> Cooled EGR 1 (CEGR1_SD) - TBL | CY72: CEGR1_SD_DS | DG72: CEGR1_MD_TB | DH72: =$AB$72 -> Cooled EGR 1 (CEGR1_MD) - TBL | DM72: CEGR1_MD_DS | DU72: CEGR1_LD_TB | DV72: =$AP$72 -> Cooled EGR 1 (CEGR1_LD) - TBL | EA72: CEGR1_LD_DS | EI72: CEGR1_SD_TB | EJ72: =$N$72 -> Cooled EGR 1 (CEGR1_SD) - TBL | EO72: CEGR1_SD_DS | EW72: CEGR1_MD_TB | EX72: =$AB$72 -> Cooled EGR 1 (CEGR1_MD) - TBL | FC72: CEGR1_MD_DS | FK72: CEGR1_LD_TB | FL72: =$AP$72 -> Cooled EGR 1 (CEGR1_LD) - TBL | FQ72: CEGR1_LD_DS
L73: 2017+ | M73: INC | N73: % | O73: =1-((1-O74)/(1-O66)) -> 0.03634085213 | P73: $ | Q73: =INDEX('[1]Large Perf. PC'!$H$379:$X$467,MATCH(M72,'[1]Large Perf. PC'!$C$379:$C$467,0),MATCH(Inputs!$C$2,'[1]Large Perf. PC'!$H$378:$X$378,0)) +INDEX('[1]Large Perf. PC'!$H$379:$X$467,MATCH(S72,'[1]Large Perf. PC'!$C$379:$C$467,0),MATCH(Inputs!$C$2,'[1]Large Perf. PC'!$H$378:$X$378,0)) -> 285.1546693 | R73: 10 | Z73: 2017+ | AA73: INC | AB73: % | AC73: =1-((1-AC74)/(1-AC66)) -> 0.03634085213 | AD73: $ | AE73: =INDEX('[1]Compact PC'!$H$379:$X$467,MATCH(AA72,'[1]Compact PC'!$C$379:$C$467,0),MATCH(Inputs!$C$2,'[1]Compact PC'!$H$378:$X$378,0)) +INDEX('[1]Compact PC'!$H$379:$X$467,MATCH(AG72,'[1]Compact PC'!$C$379:$C$467,0),MATCH(Inputs!$C$2,'[1]Compact PC'!$H$378:$X$378,0)) -> 285.1546693 | AF73: 10 | AN73: 2017+ | AO73: INC | AP73: % | AQ73: =1-((1-AQ74)/(1-AQ66)) -> 0.03634085213 | AR73: $ | AS73: =INDEX('[1]Compact PC'!$H$379:$X$467,MATCH(AO72,'[1]Compact PC'!$C$379:$C$467,0),MATCH(Inputs!$C$2,'[1]Compact PC'!$H$378:$X$378,0)) +INDEX('[1]Compact PC'!$H$379:$X$467,MATCH(AU72,'[1]Compact PC'!$C$379:$C$467,0),MATCH(Inputs!$C$2,'[1]Compact PC'!$H$378:$X$378,0)) -> 285.1546693 | AT73: 10 | BB73: 2017+ | BC73: INC | BD73: % | BE73: =$O$73 -> 0.03634085213 | BF73: $ | BG73: =$Q$73 -> 285.1546693 | BH73: =$R$73 -> 10 | BP73: 2017+ | BQ73: INC | BR73: % | BS73: =$AC$73 -> 0.03634085213 | BT73: $ | BU73: =$AE$73 -> 285.1546693 | BV73: =$AF$73 -> 10 | CD73: 2017+ | CE73: INC | CF73: % | CG73: =$AQ$73 -> 0.03634085213 | CH73: $ | CI73: =$AS$73 -> 285.1546693 | CJ73: =$AT$73 -> 10 | CR73: 2017+ | CS73: INC | CT73: % | CU73: =$O$73 -> 0.03634085213 | CV73: $ | CW73: =$Q$73 -> 285.1546693 | CX73: =$R$73 -> 10 | DF73: 2017+ | DG73: INC | DH73: % | DI73: =$AC$73 -> 0.03634085213 | DJ73: $ | DK73: =$AE$73 -> 285.1546693 | DL73: =$AF$73 -> 10 | DT73: 2017+ | DU73: INC | DV73: % | DW73: =$AQ$73 -> 0.03634085213 | DX73: $ | DY73: =$AS$73 -> 285.1546693 | DZ73: =$AT$73 -> 10 | EH73: 2017+ | EI73: INC | EJ73: % | EK73: =$O$73 -> 0.03634085213 | EL73: $ | EM73: =$Q$73 -> 285.1546693 | EN73: =$R$73 -> 10 | EV73: 2017+ | EW73: INC | EX73: % | EY73: =$AC$73 -> 0.03634085213 | EZ73: $ | FA73: =$AE$73 -> 285.1546693 | FB73: =$AF$73 -> 10 | FJ73: 2017+ | FK73: INC | FL73: % | FM73: =$AQ$73 -> 0.03634085213 | FN73: $ | FO73: =$AS$73 -> 285.1546693 | FP73: =$AT$73 -> 10
M74: ABS | N74: % | O74: 0.231 | P74: $ | Q74: =Q66+Q73 -> 1294.558908 | R74: L | AA74: ABS | AB74: % | AC74: =O74 -> 0.231 | AD74: $ | AE74: =AE66+AE73 -> 1072.906881 | AF74: L | AO74: ABS | AP74: % | AQ74: =O74 -> 0.231 | AR74: $ | AS74: =AS66+AS73 -> 1795.416625 | AT74: L | BC74: ABS | BD74: % | BE74: =1-((1-BE66)*(1-BE73)) -> 0.231 | BF74: $ | BG74: =BG66+BG73 -> 1322.735818 | BH74: L | BQ74: ABS | BR74: % | BS74: =$O74 -> 0.231 | BT74: $ | BU74: =BU66+BU73 -> 973.942155 | BV74: L | CE74: ABS | CF74: % | CG74: =$AQ74 -> 0.231 | CH74: $ | CI74: =CI66+CI73 -> 1682.882258 | CJ74: L | CS74: ABS | CT74: % | CU74: =$O74 -> 0.231 | CV74: $ | CW74: =CW66+CW73 -> 1381.126405 | CX74: L | DG74: ABS | DH74: % | DI74: =$AC74 -> 0.231 | DJ74: $ | DK74: =DK66+DK73 -> 1032.332742 | DL74: L | DU74: ABS | DV74: % | DW74: =$AQ74 -> 0.231 | DX74: $ | DY74: =DY66+DY73 -> 1741.272845 | DZ74: L | EI74: ABS | EJ74: % | EK74: =$O74 -> 0.231 | EL74: $ | EM74: =EM66+EM73 -> 888.8657882 | EN74: L | EW74: ABS | EX74: % | EY74: =$AC74 -> 0.231 | EZ74: $ | FA74: =FA66+FA73 -> 1650.031481 | FB74: L | FK74: ABS | FL74: % | FM74: =$AQ74 -> 0.231 | FN74: $ | FO74: =FO66+FO73 -> 2333.767511 | FP74: L
L78: 2012-2016 | M78: INC | N78: % | O78: =1-((1-O79)/(1-O71)) -> 0 | P78: $ | Q78: 0 | R78: 0 | Z78: 2012-2016 | AA78: INC | AB78: % | AC78: =1-((1-AC79)/(1-AC71)) -> 0 | AD78: $ | AE78: 0 | AF78: 0 | AN78: 2012-2016 | AO78: INC | AP78: % | AQ78: =1-((1-AQ79)/(1-AQ71)) -> 0 | AR78: $ | AS78: 0 | AT78: 0 | BB78: 2012-2016 | BC78: INC | BD78: % | BE78: =1-((1-BE79)/(1-BE71)) -> 0 | BF78: $ | BG78: =$Q$78 -> 0 | BH78: =$R$78 -> 0 | BP78: 2012-2016 | BQ78: INC | BR78: % | BS78: =1-((1-BS79)/(1-BS71)) -> 0 | BT78: $ | BU78: =$AE$78 -> 0 | BV78: =$AF$78 -> 0 | CD78: 2012-2016 | CE78: INC | CF78: % | CG78: =1-((1-CG79)/(1-CG71)) -> 0 | CH78: $ | CI78: =$AS$78 -> 0 | CJ78: =$AT$78 -> 0 | CR78: 2012-2016 | CS78: INC | CT78: % | CU78: =1-((1-CU79)/(1-CU71)) -> 0 | CV78: $ | CW78: =$Q$78 -> 0 | CX78: =$R$78 -> 0 | DF78: 2012-2016 | DG78: INC | DH78: % | DI78: =1-((1-DI79)/(1-DI71)) -> 0 | DJ78: $ | DK78: =$AE$78 -> 0 | DL78: =$AF$78 -> 0 | DT78: 2012-2016 | DU78: INC | DV78: % | DW78: =1-((1-DW79)/(1-DW71)) -> 0 | DX78: $ | DY78: =$AS$78 -> 0 | DZ78: =$AT$78 -> 0 | EH78: 2012-2016 | EI78: INC | EJ78: % | EK78: =1-((1-EK79)/(1-EK71)) -> 0 | EL78: $ | EM78: =$Q$78 -> 0 | EN78: =$R$78 -> 0 | EV78: 2012-2016 | EW78: INC | EX78: % | EY78: =1-((1-EY79)/(1-EY71)) -> 0 | EZ78: $ | FA78: =$AE$78 -> 0 | FB78: =$AF$78 -> 0 | FJ78: 2012-2016 | FK78: INC | FL78: % | FM78: =1-((1-FM79)/(1-FM71)) -> 0 | FN78: $ | FO78: =$AS$78 -> 0 | FP78: =$AT$78 -> 0
M79: ABS | N79: % | O79: =O71 -> 0.1697636964 | P79: $ | Q79: =Q71+Q78 -> 926.6492596 | R79: L | AA79: ABS | AB79: % | AC79: =AC71 -> 0.1693966839 | AD79: $ | AE79: =AE71+AE78 -> 477.317791 | AF79: L | AO79: ABS | AP79: % | AQ79: =AQ71 -> 0.1693966839 | AR79: $ | AS79: =AS71+AS78 -> 1030.066516 | AT79: L | BC79: ABS | BD79: % | BE79: =BE71 -> 0.1738926409 | BF79: $ | BG79: =BG71+BG78 -> 954.8261703 | BH79: L | BQ79: ABS | BR79: % | BS79: =BS71 -> 0.1693966839 | BT79: $ | BU79: =BU71+BU78 -> 378.3530653 | BV79: L | CE79: ABS | CF79: % | CG79: =CG71 -> 0.1693966839 | CH79: $ | CI79: =CI71+CI78 -> 917.5321497 | CJ79: L | CS79: ABS | CT79: % | CU79: =CU71 -> 0.1693966839 | CV79: $ | CW79: =CW71+CW78 -> 1013.216757 | CX79: L | DG79: ABS | DH79: % | DI79: =DI71 -> 0.1693966839 | DJ79: $ | DK79: =DK71+DK78 -> 436.7436523 | DL79: L | DU79: ABS | DV79: % | DW79: =DW71 -> 0.1693966839 | DX79: $ | DY79: =DY71+DY78 -> 975.9227366 | DZ79: L | EI79: ABS | EJ79: % | EK79: =EK71 -> 0.2114306282 | EL79: $ | EM79: =EM71+EM78 -> 520.9561402 | EN79: L | EW79: ABS | EX79: % | EY79: =EY71 -> 0.1640045403 | EZ79: $ | FA79: =FA71+FA78 -> 1054.442392 | FB79: L | FK79: ABS | FL79: % | FM79: =FM71 -> 0.1640045403 | FN79: $ | FO79: =FO71+FO78 -> 1568.417402 | FP79: L
M80: CEGR2_SD_TB | N80: Cooled EGR 2 (CEGR2_SD) - TBL | S80: CEGR2_SD_DS | AA80: CEGR2_MD_TB | AB80: Cooled EGR 2 (CEGR2_MD) - TBL | AG80: CEGR2_MD_DS | AO80: CEGR2_LD_TB | AP80: Cooled EGR 2 (CEGR2_LD) - TBL | AU80: CEGR2_LD_DS | BC80: CEGR2_SD_TB | BD80: =$N$80 -> Cooled EGR 2 (CEGR2_SD) - TBL | BI80: CEGR2_SD_DS | BQ80: CEGR2_MD_TB | BR80: =$AB$80 -> Cooled EGR 2 (CEGR2_MD) - TBL | BW80: CEGR2_MD_DS | CE80: CEGR2_LD_TB | CF80: =$AP$80 -> Cooled EGR 2 (CEGR2_LD) - TBL | CK80: CEGR2_LD_DS | CS80: CEGR2_SD_TB | CT80: =$N$80 -> Cooled EGR 2 (CEGR2_SD) - TBL | CY80: CEGR2_SD_DS | DG80: CEGR2_MD_TB | DH80: =$AB$80 -> Cooled EGR 2 (CEGR2_MD) - TBL | DM80: CEGR2_MD_DS | DU80: CEGR2_LD_TB | DV80: =$AP$80 -> Cooled EGR 2 (CEGR2_LD) - TBL | EA80: CEGR2_LD_DS | EI80: CEGR2_SD_TB | EJ80: =$N$80 -> Cooled EGR 2 (CEGR2_SD) - TBL | EO80: CEGR2_SD_DS | EW80: CEGR2_MD_TB | EX80: =$AB$80 -> Cooled EGR 2 (CEGR2_MD) - TBL | FC80: CEGR2_MD_DS | FK80: CEGR2_LD_TB | FL80: =$AP$80 -> Cooled EGR 2 (CEGR2_LD) - TBL | FQ80: CEGR2_LD_DS
B81: STOP | L81: 2017+ | M81: INC | N81: % | O81: =1-((1-O82)/(1-O74)) -> 0.01040312094 | P81: $ | Q81: =INDEX('[1]Compact PC'!$H$379:$X$467,MATCH(M80,'[1]Compact PC'!$C$379:$C$467,0),MATCH(Inputs!$C$2,'[1]Compact PC'!$H$378:$X$378,0)) +INDEX('[1]Compact PC'!$H$379:$X$467,MATCH(S80,'[1]Compact PC'!$C$379:$C$467,0),MATCH(Inputs!$C$2,'[1]Compact PC'!$H$378:$X$378,0)) -> 495.187377 | R81: 10 | Z81: 2017+ | AA81: INC | AB81: % | AC81: =1-((1-AC82)/(1-AC74)) -> 0.01040312094 | AD81: $ | AE81: =INDEX('[1]Compact PC'!$H$379:$X$467,MATCH(AA80,'[1]Compact PC'!$C$379:$C$467,0),MATCH(Inputs!$C$2,'[1]Compact PC'!$H$378:$X$378,0)) +INDEX('[1]Compact PC'!$H$379:$X$467,MATCH(AG80,'[1]Compact PC'!$C$379:$C$467,0),MATCH(Inputs!$C$2,'[1]Compact PC'!$H$378:$X$378,0)) -> 495.187377 | AF81: 10 | AN81: 2017+ | AO81: INC | AP81: % | AQ81: =1-((1-AQ82)/(1-AQ74)) -> 0.01040312094 | AR81: $ | AS81: =INDEX('[1]Compact PC'!$H$379:$X$467,MATCH(AO80,'[1]Compact PC'!$C$379:$C$467,0),MATCH(Inputs!$C$2,'[1]Compact PC'!$H$378:$X$378,0)) +INDEX('[1]Compact PC'!$H$379:$X$467,MATCH(AU80,'[1]Compact PC'!$C$379:$C$467,0),MATCH(Inputs!$C$2,'[1]Compact PC'!$H$378:$X$378,0)) -> -296.6729836 | AT81: 10 | BB81: 2017+ | BC81: INC | BD81: % | BE81: =$O$81 -> 0.01040312094 | BF81: $ | BG81: =$Q$81 -> 495.187377 | BH81: =$R$81 -> 10 | BP81: 2017+ | BQ81: INC | BR81: % | BS81: =$AC$81 -> 0.01040312094 | BT81: $ | BU81: =$AE$81 -> 495.187377 | BV81: =$AF$81 -> 10 | CD81: 2017+ | CE81: INC | CF81: % | CG81: =$AQ$81 -> 0.01040312094 | CH81: $ | CI81: =$AS$81 -> -296.6729836 | CJ81: =$AT$81 -> 10 | CR81: 2017+ | CS81: INC | CT81: % | CU81: =$O$81 -> 0.01040312094 | CV81: $ | CW81: =$Q$81 -> 495.187377 | CX81: =$R$81 -> 10 | DF81: 2017+ | DG81: INC | DH81: % | DI81: =$AC$81 -> 0.01040312094 | DJ81: $ | DK81: =$AE$81 -> 495.187377 | DL81: =$AF$81 -> 10 | DT81: 2017+ | DU81: INC | DV81: % | DW81: =$AQ$81 -> 0.01040312094 | DX81: $ | DY81: =$AS$81 -> -296.6729836 | DZ81: =$AT$81 -> 10 | EH81: 2017+ | EI81: INC | EJ81: % | EK81: =$O$81 -> 0.01040312094 | EL81: $ | EM81: =$Q$81 -> 495.187377 | EN81: =$R$81 -> 10 | EV81: 2017+ | EW81: INC | EX81: % | EY81: =$AC$81 -> 0.01040312094 | EZ81: $ | FA81: =$AE$81 -> 495.187377 | FB81: =$AF$81 -> 10 | FJ81: 2017+ | FK81: INC | FL81: % | FM81: =$AQ$81 -> 0.01040312094 | FN81: $ | FO81: =$AS$81 -> -296.6729836 | FP81: =$AT$81 -> 10
A82: Diesel Engine Type | B82: I4 | M82: ABS | N82: % | O82: 0.239 | P82: $ | Q82: =Q74+Q81 -> 1789.746285 | R82: L | AA82: ABS | AB82: % | AC82: =O82 -> 0.239 | AD82: $ | AE82: =AE74+AE81 -> 1568.094258 | AF82: L | AO82: ABS | AP82: % | AQ82: =O82 -> 0.239 | AR82: $ | AS82: =AS74+AS81 -> 1498.743641 | AT82: L | BC82: ABS | BD82: % | BE82: =1-((1-BE74)*(1-BE81)) -> 0.239 | BF82: $ | BG82: =BG74+BG81 -> 1817.923195 | BH82: L | BQ82: ABS | BR82: % | BS82: =$O82 -> 0.239 | BT82: $ | BU82: =BU74+BU81 -> 1469.129532 | BV82: L | CE82: ABS | CF82: % | CG82: =$AQ82 -> 0.239 | CH82: $ | CI82: =CI74+CI81 -> 1386.209275 | CJ82: L | CS82: ABS | CT82: % | CU82: =$O82 -> 0.239 | CV82: $ | CW82: =CW74+CW81 -> 1876.313782 | CX82: L | DG82: ABS | DH82: % | DI82: =$AC82 -> 0.239 | DJ82: $ | DK82: =DK74+DK81 -> 1527.520119 | DL82: L | DU82: ABS | DV82: % | DW82: =$AQ82 -> 0.239 | DX82: $ | DY82: =DY74+DY81 -> 1444.599862 | DZ82: L | EI82: ABS | EJ82: % | EK82: =$O82 -> 0.239 | EL82: $ | EM82: =EM74+EM81 -> 1384.053165 | EN82: L | EW82: ABS | EX82: % | EY82: =$AC82 -> 0.239 | EZ82: $ | FA82: =FA74+FA81 -> 2145.218858 | FB82: L | FK82: ABS | FL82: % | FM82: =$AQ82 -> 0.239 | FN82: $ | FO82: =FO74+FO81 -> 2037.094527 | FP82: L
A83: Displacement [L] | B83: 1.5 to 2.0
A84: Turbocharger | B84: VNT
A85: EGR system | B85: cooler+vlv+bypass vlv
A86: FIE | B86: HPCR 1800bar solenoid | E86: 2012-2016 | F86: INC | G86: % | H86: =1-((1-H87)/(1-O79)) -> 0 | I86: $ | J86: 0 | K86: L | L86: 2012-2016 | M86: INC | N86: % | O86: 0 | P86: $ | Q86: 0 | R86: 0 | S86: 2012-2016 | T86: INC | U86: % | V86: =1-((1-V87)/(1-AC79)) -> 0 | W86: $ | X86: 0 | Y86: L | Z86: 2012-2016 | AA86: INC | AB86: % | AC86: 0 | AD86: $ | AE86: 0 | AF86: 0 | AG86: 2012-2016 | AH86: INC | AI86: % | AJ86: =1-((1-AJ87)/(1-AQ79)) -> 0 | AK86: $ | AL86: 0 | AM86: L | AN86: 2012-2016 | AO86: INC | AP86: % | AQ86: 0 | AR86: $ | AS86: 0 | AT86: 0 | AU86: 2012-2016 | AV86: INC | AW86: % | AX86: =1-((1-AX87)/(1-BE79)) -> -0.00499807246 | AY86: $ | AZ86: 0 | BA86: L | BB86: 2012-2016 | BC86: INC | BD86: % | BE86: 0 | BF86: $ | BG86: 0 | BH86: 0 | BI86: 2012-2016 | BJ86: INC | BK86: % | BL86: =1-((1-BL87)/(1-BS79)) -> 0 | BM86: $ | BN86: 0 | BO86: L | BP86: 2012-2016 | BQ86: INC | BR86: % | BS86: 0 | BT86: $ | BU86: 0 | BV86: 0 | BW86: 2012-2016 | BX86: INC | BY86: % | BZ86: =1-((1-BZ87)/(1-CG79)) -> 0 | CA86: $ | CB86: 0 | CC86: L | CD86: 2012-2016 | CE86: INC | CF86: % | CG86: 0 | CH86: $ | CI86: 0 | CJ86: 0 | CK86: 2012-2016 | CL86: INC | CM86: % | CN86: =1-((1-CN87)/(1-CU79)) -> 0.0004418625443 | CO86: $ | CP86: 0 | CQ86: L | CR86: 2012-2016 | CS86: INC | CT86: % | CU86: 0 | CV86: $ | CW86: 0 | CX86: 0 | CY86: 2012-2016 | CZ86: INC | DA86: % | DB86: =1-((1-DB87)/(1-DI79)) -> 0 | DC86: $ | DD86: 0 | DE86: L | DF86: 2012-2016 | DG86: INC | DH86: % | DI86: 0 | DJ86: $ | DK86: 0 | DL86: 0 | DM86: 2012-2016 | DN86: INC | DO86: % | DP86: =1-((1-DP87)/(1-DW79)) -> 0 | DQ86: $ | DR86: 0 | DS86: L | DT86: 2012-2016 | DU86: INC | DV86: % | DW86: 0 | DX86: $ | DY86: 0 | DZ86: 0 | EA86: 2012-2016 | EB86: INC | EC86: % | ED86: =1-((1-ED87)/(1-EK79)) -> -0.05283863821 | EE86: $ | EF86: 0 | EG86: L | EH86: 2012-2016 | EI86: INC | EJ86: % | EK86: 0 | EL86: $ | EM86: 0 | EN86: 0 | EO86: 2012-2016 | EP86: INC | EQ86: % | ER86: =1-((1-ER87)/(1-EY79)) -> 0.006449967617 | ES86: $ | ET86: 0 | EU86: L | EV86: 2012-2016 | EW86: INC | EX86: % | EY86: 0 | EZ86: $ | FA86: 0 | FB86: 0 | FC86: 2012-2016 | FD86: INC | FE86: % | FF86: =1-((1-FF87)/(1-FM79)) -> 0.006449967617 | FG86: $ | FH86: 0 | FI86: L | FJ86: 2012-2016 | FK86: INC | FL86: % | FM86: 0 | FN86: $ | FO86: 0 | FP86: 0
A87: Valvetrain | B87: 4-valve DOHC | F87: ABS | G87: % | H87: =O79 -> 0.1697636964 | I87: $ | J87: =J86+Q79 -> 926.6492596 | K87: 150 | M87: ABS | N87: % | O87: =1-((1-O79)*(1-O86)) -> 0.1697636964 | P87: $ | Q87: =Q79+Q86 -> 926.6492596 | R87: L | T87: ABS | U87: % | V87: =AC79 -> 0.1693966839 | W87: $ | X87: =X86+AE79 -> 477.317791 | Y87: 200 | AA87: ABS | AB87: % | AC87: =1-((1-AC79)*(1-AC86)) -> 0.1693966839 | AD87: $ | AE87: =AE79+AE86 -> 477.317791 | AF87: L | AH87: ABS | AI87: % | AJ87: =AQ79 -> 0.1693966839 | AK87: $ | AL87: =AL86+AS79 -> 1030.066516 | AM87: 500 | AO87: ABS | AP87: % | AQ87: =1-((1-AQ79)*(1-AQ86)) -> 0.1693966839 | AR87: $ | AS87: =AS79+AS86 -> 1030.066516 | AT87: L | AV87: ABS | AW87: % | AX87: =$H$87 -> 0.1697636964 | AY87: $ | AZ87: =AZ86+BG79 -> 954.8261703 | BA87: =$K$87 -> 150 | BC87: ABS | BD87: % | BE87: =1-((1-BE79)*(1-BE86)) -> 0.1738926409 | BF87: $ | BG87: =BG79+BG86 -> 954.8261703 | BH87: L | BJ87: ABS | BK87: % | BL87: =$V$87 -> 0.1693966839 | BM87: $ | BN87: =BN86+BU79 -> 378.3530653 | BO87: =$Y$87 -> 200 | BQ87: ABS | BR87: % | BS87: =1-((1-BS79)*(1-BS86)) -> 0.1693966839 | BT87: $ | BU87: =BU79+BU86 -> 378.3530653 | BV87: L | BX87: ABS | BY87: % | BZ87: =$AJ$87 -> 0.1693966839 | CA87: $ | CB87: =CB86+CI79 -> 917.5321497 | CC87: =$AM$87 -> 500 | CE87: ABS | CF87: % | CG87: =1-((1-CG79)*(1-CG86)) -> 0.1693966839 | CH87: $ | CI87: =CI79+CI86 -> 917.5321497 | CJ87: L | CL87: ABS | CM87: % | CN87: =$H$87 -> 0.1697636964 | CO87: $ | CP87: =CP86+CW79 -> 1013.216757 | CQ87: =$K$87 -> 150 | CS87: ABS | CT87: % | CU87: =1-((1-CU79)*(1-CU86)) -> 0.1693966839 | CV87: $ | CW87: =CW79+CW86 -> 1013.216757 | CX87: L | CZ87: ABS | DA87: % | DB87: =$V$87 -> 0.1693966839 | DC87: $ | DD87: =DD86+DK79 -> 436.7436523 | DE87: =$Y$87 -> 200 | DG87: ABS | DH87: % | DI87: =1-((1-DI79)*(1-DI86)) -> 0.1693966839 | DJ87: $ | DK87: =DK79+DK86 -> 436.7436523 | DL87: L | DN87: ABS | DO87: % | DP87: =$AJ$87 -> 0.1693966839 | DQ87: $ | DR87: =DR86+DY79 -> 975.9227366 | DS87: =$AM$87 -> 500 | DU87: ABS | DV87: % | DW87: =1-((1-DW79)*(1-DW86)) -> 0.1693966839 | DX87: $ | DY87: =DY79+DY86 -> 975.9227366 | DZ87: L | EB87: ABS | EC87: % | ED87: =$H$87 -> 0.1697636964 | EE87: $ | EF87: =EF86+EM79 -> 520.9561402 | EG87: =$K$87 -> 150 | EI87: ABS | EJ87: % | EK87: =1-((1-EK79)*(1-EK86)) -> 0.2114306282 | EL87: $ | EM87: =EM79+EM86 -> 520.9561402 | EN87: L | EP87: ABS | EQ87: % | ER87: =$V$87 -> 0.1693966839 | ES87: $ | ET87: =ET86+FA79 -> 1054.442392 | EU87: =$Y$87 -> 200 | EW87: ABS | EX87: % | EY87: =1-((1-EY79)*(1-EY86)) -> 0.1640045403 | EZ87: $ | FA87: =FA79+FA86 -> 1054.442392 | FB87: L | FD87: ABS | FE87: % | FF87: =$AJ$87 -> 0.1693966839 | FG87: $ | FH87: =FH86+FO79 -> 1568.417402 | FI87: =$AM$87 -> 500 | FK87: ABS | FL87: % | FM87: =1-((1-FM79)*(1-FM86)) -> 0.1640045403 | FN87: $ | FO87: =FO79+FO86 -> 1568.417402 | FP87: L
A88: Valvetrain option | B88: N/A | G88: Advanced Diesel (ADSL_SD) - TBL | L88: ADSL_SD | N88: To Strong Hybrids | U88: Advanced Diesel (ADSL_MD) - TBL | Z88: ADSL_MD | AB88: To Strong Hybrids | AI88: Advanced Diesel (ADSL_LD) - TBL | AN88: ADSL_LD | AP88: To Strong Hybrids | AW88: Advanced Diesel (ADSL_SD) - TBL | BB88: ADSL_SD | BD88: To Strong Hybrids | BK88: Advanced Diesel (ADSL_MD) - TBL | BP88: ADSL_SD | BR88: To Strong Hybrids | BY88: Advanced Diesel (ADSL_LD) - TBL | CD88: ADSL_SD | CF88: To Strong Hybrids | CM88: Advanced Diesel (ADSL_SD) - TBL | CR88: ADSL_SD | CT88: To Strong Hybrids | DA88: Advanced Diesel (ADSL_MD) - TBL | DF88: ADSL_SD | DH88: To Strong Hybrids | DO88: Advanced Diesel (ADSL_LD) - TBL | DT88: ADSL_SD | DV88: To Strong Hybrids | EC88: Advanced Diesel (ADSL_SD) - TBL | EH88: ADSL_SD | EJ88: To Strong Hybrids | EQ88: Advanced Diesel (ADSL_MD) - TBL | EV88: ADSL_SD | EX88: To Strong Hybrids | FE88: Advanced Diesel (ADSL_LD) - TBL | FJ88: ADSL_SD | FL88: To Strong Hybrids
A89: After Treatment | B89: DOC+LNT+DPF | E89: 2017+ | F89: INC | G89: % | H89: =1-((1-H90)/(1-O82)) -> 0.05532194481 | I89: $ | J89: =INDEX('[1]Compact PC'!$H$379:$X$467,MATCH(L88,'[1]Compact PC'!$C$379:$C$467,0),MATCH(Inputs!$C$2,'[1]Compact PC'!$H$378:$X$378,0)) -> 911.0408326 | K89: L | L89: 2017+ | M89: INC | N89: % | O89: 0 | P89: $ | Q89: =Q86 -> 0 | R89: 0 | S89: 2017+ | T89: INC | U89: % | V89: =1-((1-V90)/(1-AC82)) -> 0.05532194481 | W89: $ | X89: =INDEX('[1]Compact PC'!$H$379:$X$467,MATCH(Z88,'[1]Compact PC'!$C$379:$C$467,0),MATCH(Inputs!$C$2,'[1]Compact PC'!$H$378:$X$378,0)) -> 927.8544104 | Y89: L | Z89: 2017+ | AA89: INC | AB89: % | AC89: 0 | AD89: $ | AE89: =AE86 -> 0 | AF89: 0 | AG89: 2017+ | AH89: INC | AI89: % | AJ89: =1-((1-AJ90)/(1-AQ82)) -> 0.05532194481 | AK89: $ | AL89: =INDEX('[1]Compact PC'!$H$379:$X$467,MATCH(AN88,'[1]Compact PC'!$C$379:$C$467,0),MATCH(Inputs!$C$2,'[1]Compact PC'!$H$378:$X$378,0)) -> 1811.581549 | AM89: L | AN89: 2017+ | AO89: INC | AP89: % | AQ89: 0 | AR89: $ | AS89: =AS86 -> 0 | AT89: 0 | AU89: 2017+ | AV89: INC | AW89: % | AX89: =1-((1-AX90)/(1-BE82)) -> 0.05532194481 | AY89: $ | AZ89: =$J$89 -> 911.0408326 | BA89: L | BB89: 2017+ | BC89: INC | BD89: % | BE89: 0 | BF89: $ | BG89: =BG86 -> 0 | BH89: 0 | BI89: 2017+ | BJ89: INC | BK89: % | BL89: =1-((1-BL90)/(1-BS82)) -> 0.05532194481 | BM89: $ | BN89: =$X$89 -> 927.8544104 | BO89: L | BP89: 2017+ | BQ89: INC | BR89: % | BS89: 0 | BT89: $ | BU89: =BU86 -> 0 | BV89: 0 | BW89: 2017+ | BX89: INC | BY89: % | BZ89: =1-((1-BZ90)/(1-CG82)) -> 0.05532194481 | CA89: $ | CB89: =$AL$89 -> 1811.581549 | CC89: L | CD89: 2017+ | CE89: INC | CF89: % | CG89: 0 | CH89: $ | CI89: =CI86 -> 0 | CJ89: 0 | CK89: 2017+ | CL89: INC | CM89: % | CN89: =1-((1-CN90)/(1-CU82)) -> 0.05532194481 | CO89: $ | CP89: =$J$89 -> 911.0408326 | CQ89: L | CR89: 2017+ | CS89: INC | CT89: % | CU89: 0 | CV89: $ | CW89: =CW86 -> 0 | CX89: 0 | CY89: 2017+ | CZ89: INC | DA89: % | DB89: =1-((1-DB90)/(1-DI82)) -> 0.05532194481 | DC89: $ | DD89: =$X$89 -> 927.8544104 | DE89: L | DF89: 2017+ | DG89: INC | DH89: % | DI89: 0 | DJ89: $ | DK89: =DK86 -> 0 | DL89: 0 | DM89: 2017+ | DN89: INC | DO89: % | DP89: =1-((1-DP90)/(1-DW82)) -> 0.05532194481 | DQ89: $ | DR89: =$AL$89 -> 1811.581549 | DS89: L | DT89: 2017+ | DU89: INC | DV89: % | DW89: 0 | DX89: $ | DY89: =DY86 -> 0 | DZ89: 0 | EA89: 2017+ | EB89: INC | EC89: % | ED89: =1-((1-ED90)/(1-EK82)) -> 0.05532194481 | EE89: $ | EF89: =$J$89 -> 911.0408326 | EG89: L | EH89: 2017+ | EI89: INC | EJ89: % | EK89: 0 | EL89: $ | EM89: =EM86 -> 0 | EN89: 0 | EO89: 2017+ | EP89: INC | EQ89: % | ER89: =1-((1-ER90)/(1-EY82)) -> 0.05532194481 | ES89: $ | ET89: =$X$89 -> 927.8544104 | EU89: L | EV89: 2017+ | EW89: INC | EX89: % | EY89: 0 | EZ89: $ | FA89: =FA86 -> 0 | FB89: 0 | FC89: 2017+ | FD89: INC | FE89: % | FF89: =1-((1-FF90)/(1-FM82)) -> 0.05532194481 | FG89: $ | FH89: =$AL$89 -> 1811.581549 | FI89: L | FJ89: 2017+ | FK89: INC | FL89: % | FM89: 0 | FN89: $ | FO89: =FO86 -> 0 | FP89: 0
F90: ABS | G90: % | H90: 0.2811 | I90: $ | J90: =Q82+J89 -> 2700.787117 | K90: 150 | M90: ABS | N90: % | O90: =1-((1-O82)*(1-O89)) -> 0.239 | P90: $ | Q90: =Q82+Q89 -> 1789.746285 | R90: L | T90: ABS | U90: % | V90: =H90 -> 0.2811 | W90: $ | X90: =AE82+X89 -> 2495.948668 | Y90: 200 | AA90: ABS | AB90: % | AC90: =1-((1-AC82)*(1-AC89)) -> 0.239 | AD90: $ | AE90: =AE82+AE89 -> 1568.094258 | AF90: L | AH90: ABS | AI90: % | AJ90: =H90 -> 0.2811 | AK90: $ | AL90: =AS82+AL89 -> 3310.32519 | AM90: 500 | AO90: ABS | AP90: % | AQ90: =1-((1-AQ82)*(1-AQ89)) -> 0.239 | AR90: $ | AS90: =AS82+AS89 -> 1498.743641 | AT90: L | AV90: ABS | AW90: % | AX90: =$H$90 -> 0.2811 | AY90: $ | AZ90: =$J$90 -> 2700.787117 | BA90: =$K$90 -> 150 | BC90: ABS | BD90: % | BE90: =1-((1-BE82)*(1-BE89)) -> 0.239 | BF90: $ | BG90: =BG82+BG89 -> 1817.923195 | BH90: L | BJ90: ABS | BK90: % | BL90: =$V$90 -> 0.2811 | BM90: $ | BN90: =$X$90 -> 2495.948668 | BO90: =$Y$90 -> 200 | BQ90: ABS | BR90: % | BS90: =1-((1-BS82)*(1-BS89)) -> 0.239 | BT90: $ | BU90: =BU82+BU89 -> 1469.129532 | BV90: L | BX90: ABS | BY90: % | BZ90: =$AJ$90 -> 0.2811 | CA90: $ | CB90: =$AL$90 -> 3310.32519 | CC90: =$AM$90 -> 500 | CE90: ABS | CF90: % | CG90: =1-((1-CG82)*(1-CG89)) -> 0.239 | CH90: $ | CI90: =CI82+CI89 -> 1386.209275 | CJ90: L | CL90: ABS | CM90: % | CN90: =$H$90 -> 0.2811 | CO90: $ | CP90: =$J$90 -> 2700.787117 | CQ90: =$K$90 -> 150 | CS90: ABS | CT90: % | CU90: =1-((1-CU82)*(1-CU89)) -> 0.239 | CV90: $ | CW90: =CW82+CW89 -> 1876.313782 | CX90: L | CZ90: ABS | DA90: % | DB90: =$V$90 -> 0.2811 | DC90: $ | DD90: =$X$90 -> 2495.948668 | DE90: =$Y$90 -> 200 | DG90: ABS | DH90: % | DI90: =1-((1-DI82)*(1-DI89)) -> 0.239 | DJ90: $ | DK90: =DK82+DK89 -> 1527.520119 | DL90: L | DN90: ABS | DO90: % | DP90: =$AJ$90 -> 0.2811 | DQ90: $ | DR90: =$AL$90 -> 3310.32519 | DS90: =$AM$90 -> 500 | DU90: ABS | DV90: % | DW90: =1-((1-DW82)*(1-DW89)) -> 0.239 | DX90: $ | DY90: =DY82+DY89 -> 1444.599862 | DZ90: L | EB90: ABS | EC90: % | ED90: =$H$90 -> 0.2811 | EE90: $ | EF90: =$J$90 -> 2700.787117 | EG90: =$K$90 -> 150 | EI90: ABS | EJ90: % | EK90: =1-((1-EK82)*(1-EK89)) -> 0.239 | EL90: $ | EM90: =EM82+EM89 -> 1384.053165 | EN90: L | EP90: ABS | EQ90: % | ER90: =$V$90 -> 0.2811 | ES90: $ | ET90: =$X$90 -> 2495.948668 | EU90: =$Y$90 -> 200 | EW90: ABS | EX90: % | EY90: =1-((1-EY82)*(1-EY89)) -> 0.239 | EZ90: $ | FA90: =FA82+FA89 -> 2145.218858 | FB90: L | FD90: ABS | FE90: % | FF90: =$AJ$90 -> 0.2811 | FG90: $ | FH90: =$AL$90 -> 3310.32519 | FI90: =$AM$90 -> 500 | FK90: ABS | FL90: % | FM90: =1-((1-FM82)*(1-FM89)) -> 0.239 | FN90: $ | FO90: =FO82+FO89 -> 2037.094527 | FP90: L
A98: Expanded Trans/Hybrid Technology Decision Tree
E101: Electrification | V101: Manual Trans | AH101: Auto Trans
B103: START | E103: 2012-2016 | F103: INC | G103: % | H103: 0.015 | I103: $ | J103: =INDEX('[1]Compact PC'!$H$379:$X$467,MATCH(L105,'[1]Compact PC'!$C$379:$C$467,0),MATCH(Inputs!$C$2,'[1]Compact PC'!$H$378:$X$378,0)) -> 98.10328252 | K103: 95.93 | O103: START | S103: 2012-2016 | T103: INC | U103: % | V103: 0.0202 | W103: $ | X103: =INDEX('[1]Compact PC'!$H$379:$X$467,MATCH(Z105,'[1]Compact PC'!$C$379:$C$467,0),MATCH(Inputs!$C$2,'[1]Compact PC'!$H$378:$X$378,0)) -> 250.3175082 | Y103: 225.33 | AC103: START | AG103: 2012-2016 | AH103: INC | AI103: % | AJ103: 0.023 | AK103: $ | AL103: =INDEX('[1]Compact PC'!$H$379:$X$467,MATCH(AN105,'[1]Compact PC'!$C$379:$C$467,0),MATCH(Inputs!$C$2,'[1]Compact PC'!$H$378:$X$378,0)) -> 55.80794833 | AM103: 54.17
A104: Curb Weight (lbs) | B104: 3359 | F104: ABS | G104: % | H104: =H103 -> 0.015 | I104: $ | J104: =J103 -> 98.10328252 | K104: L | O104: 5-spd | T104: ABS | U104: % | V104: =V103 -> 0.0202 | W104: $ | X104: =X103 -> 250.3175082 | Y104: L | AC104: 4/5-spd | AH104: ABS | AI104: % | AJ104: =AJ103 -> 0.023 | AK104: $ | AL104: =AL103 -> 55.80794833 | AM104: L
A105: Engine Displacement [L] | B105: 2.2 | G105: Electric Power Steering (EPS) - TBL | L105: EPS | O105: Manual | U105: 6 Speed Man/Imp. Internals (6MAN) - TBL | Z105: 6MAN | AC105: Auto | AI105: Imp. Auto Trans Cnrt./ Externals (IATC) - TBL | AN105: IATC
A106: Engine Power (HP) | B106: 166 | E106: 2017+ | F106: INC | G106: % | H106: =H103 -> 0.015 | I106: $ | J106: =J103 -> 98.10328252 | K106: =K103 -> 95.93 | S106: 2017+ | T106: INC | U106: % | V106: 0.0202 | W106: $ | X106: =X103 -> 250.3175082 | Y106: 225.33 | AG106: 2017+ | AH106: INC | AI106: % | AJ106: 0.023 | AK106: $ | AL106: =AL103 -> 55.80794833 | AM106: 54.17
A107: Engine Torque (ft-lbf) | B107: 167 | F107: ABS | G107: % | H107: =H106 -> 0.015 | I107: $ | J107: =J106 -> 98.10328252 | K107: L | T107: ABS | U107: % | V107: =V106 -> 0.0202 | W107: $ | X107: =X106 -> 250.3175082 | Y107: L | AH107: ABS | AI107: % | AJ107: =AJ106 -> 0.023 | AK107: $ | AL107: =AL106 -> 55.80794833 | AM107: L
A108: Footprint (ft2) | B108: 44.5
E111: 2012-2016 | F111: INC | G111: % | H111: =1-((1-H112)/(1-H104)) -> 0.01218274112 | I111: $ | J111: =INDEX('[1]Compact PC'!$H$379:$X$467,MATCH(L113,'[1]Compact PC'!$C$379:$C$467,0),MATCH(Inputs!$C$2,'[1]Compact PC'!$H$378:$X$378,0)) -> 79.78498133 | K111: 115.2 | S111: 2012-2016 | T111: INC | U111: % | V111: 0 | W111: $ | X111: 0 | Y111: 100.55 | AG111: 2012-2016 | AH111: INC | AI111: % | AJ111: =1-((1-AJ112)/(1-AJ104)) -> 0.01889049762 | AK111: $ | AL111: =INDEX('[1]Compact PC'!$H$379:$X$467,MATCH(AN113,'[1]Compact PC'!$C$379:$C$467,0),MATCH(Inputs!$C$2,'[1]Compact PC'!$H$378:$X$378,0)) -> -37.91558008 | AM111: 100.55
F112: ABS | G112: % | H112: 0.027 | I112: $ | J112: =J104+J111 -> 177.8882639 | K112: L | T112: ABS | U112: % | V112: =V104 -> 0.0202 | W112: $ | X112: =X111+X104 -> 250.3175082 | Y112: L | AH112: ABS | AI112: % | AJ112: =1-((1-5.2%)/(1-1.1%)) -> 0.04145601618 | AK112: $ | AL112: =AL111+AL104 -> 17.89236826 | AM112: L
G113: Improved Accessories 1 (IACC1) - TBL | L113: IACC1 | O113: From Engine Path 2012-2016 | U113: High Eff. Gearbox (Manual) - (HETRANSM) - TBL | Z113: HETRANS | AI113: 6-spd Auto Trans w/Imp Internals (NAUTO) - TBL | AN113: NAUTO
E114: 2017+ | F114: INC | G114: % | H114: =1-((1-H115)/(1-H107)) -> 0.01218274112 | I114: $ | J114: =J111 -> 79.78498133 | K114: =K111 -> 115.2 | S114: 2017+ | T114: INC | U114: % | V114: =1-((1-V115)/(1-V107)) -> 0.03439857285 | W114: $ | X114: =INDEX('[1]Compact PC'!$H$379:$X$467,MATCH(Z113,'[1]Compact PC'!$C$379:$C$467,0),MATCH(Inputs!$C$2,'[1]Compact PC'!$H$378:$X$378,0)) -> 227.4262488 | Y114: 10 | AG114: 2017+ | AH114: INC | AI114: % | AJ114: =1-((1-AJ115)/(1-AJ107)) -> 0.01889049762 | AK114: $ | AL114: =AL111 -> -37.91558008 | AM114: 10
F115: ABS | G115: % | H115: =H112 -> 0.027 | I115: $ | J115: =J107+J114 -> 177.8882639 | K115: L | T115: ABS | U115: % | V115: =1-((1-6.45%)/(1-1.12%)) -> 0.05390372168 | W115: $ | X115: =X107+X114 -> 477.7437571 | Y115: L | AH115: ABS | AI115: % | AJ115: =AJ112 -> 0.04145601618 | AK115: $ | AL115: =AL107+AL114 -> 17.89236826 | AM115: L
E119: 2012-2016 | F119: INC | G119: % | H119: =1-((1-H120)/(1-H112)) -> 0 | I119: $ | J119: 0 | K119: 0 | L119: 2012-2016 | M119: INC | N119: % | O119: =1-((1-O120)/(((1-$O$87)*(1-$H$136)*(1-AJ144)))) -> 0.07819160679 | P119: $ | Q119: =INDEX('[1]Compact PC'!$H$379:$X$467,MATCH(M121,'[1]Compact PC'!$C$379:$C$467,0),MATCH(Inputs!$C$2,'[1]Compact PC'!$H$378:$X$378,0)) +INDEX('[1]Compact PC'!$H$379:$X$467,MATCH(S121,'[1]Compact PC'!$C$379:$C$467,0),MATCH(Inputs!$C$2,'[1]Compact PC'!$H$378:$X$378,0)) -> 1530.151679 | R119: L | AG119: 2012-2016 | AH119: INC | AI119: % | AJ119: =1-((1-AJ120)/(1-AJ112)) -> 0.04008438819 | AK119: $ | AL119: =INDEX('[1]Compact PC'!$H$379:$X$467,MATCH(AN121,'[1]Compact PC'!$C$379:$C$467,0),MATCH(Inputs!$C$2,'[1]Compact PC'!$H$378:$X$378,0)) -> -115.4628611 | AM119: -10.47
F120: ABS | G120: % | H120: =H112 -> 0.027 | I120: $ | J120: =J112+J119 -> 177.8882639 | K120: L | M120: ABS | N120: % | O120: 0.403 | P120: $ | Q120: =J136+Q119+Q87+AL144 -> 3951.160121 | R120: 33.86 | AH120: ABS | AI120: % | AJ120: =1-((1-9%)/(1-1.1%)) -> 0.07987866532 | AK120: $ | AL120: =AL119+AL112 -> -97.57049284 | AM120: L
G121: Improved Accessories 2 (IACC2) - TBL | L121: IACC2 | M121: SHEV1_B | N121: Strong Hybrid (Powersplit or 2-Mode) (SHEV1) - VBL | S121: SHEV1_NB | V121: From Engine Path 2017+ | AI121: 6-spd Dual Clutch Trans (DCT) - TBL | AN121: DCT
E122: 2017+ | F122: INC | G122: % | H122: =1-((1-H123)/(1-H115)) -> 0.01849948613 | I122: $ | J122: =INDEX('[1]Compact PC'!$H$379:$X$467,MATCH(L121,'[1]Compact PC'!$C$379:$C$467,0),MATCH(Inputs!$C$2,'[1]Compact PC'!$H$378:$X$378,0)) -> 50.78057142 | K122: 0 | L122: 2017+ | M122: INC | N122: % | O122: 0 | P122: $ | Q122: 0 | R122: L | AG122: 2017+ | AH122: INC | AI122: % | AJ122: =1-((1-AJ123)/(1-AJ115)) -> 0.04008438819 | AK122: $ | AL122: =AL119 -> -115.4628611 | AM122: =AM119 -> -10.47
F123: ABS | G123: % | H123: 0.045 | I123: $ | J123: =J115+J122 -> 228.6688353 | K123: L | M123: ABS | N123: % | O123: 0 | P123: $ | Q123: =Q116+Q122 -> 0 | R123: 0 | AH123: ABS | AI123: % | AJ123: =AJ120 -> 0.07987866532 | AK123: $ | AL123: =AL115+AL122 -> -97.57049284 | AM123: L
E127: 2012-2016 | F127: INC | G127: % | H127: =H130 -> 0.0167539267 | I127: $ | J127: =INDEX('[1]Compact PC'!$H$379:$X$467,MATCH(L129,'[1]Compact PC'!$C$379:$C$467,0),MATCH(Inputs!$C$2,'[1]Compact PC'!$H$378:$X$378,0)) -> 296.2132014 | K127: 259.67 | L127: 2012-2016 | M127: INC | N127: % | O127: n/a | P127: $ | Q127: n/a | R127: L | S127: 2012-2016 | T127: INC | U127: % | V127: =1-((1-V128)/(((1-$O$87)*(1-$H$136)*(1-AJ144)))) -> -0.5440676603 | W127: $ | X127: 0 | Y127: L | AG127: 2012-2016 | AH127: INC | AI127: % | AJ127: =AJ130 -> 0.03846153846 | AK127: $ | AL127: =INDEX('[1]Compact PC'!$H$379:$X$467,MATCH(AN129,'[1]Compact PC'!$C$379:$C$467,0),MATCH(Inputs!$C$2,'[1]Compact PC'!$H$378:$X$378,0)) -> 223.3189237 | AM127: 0
F128: ABS | G128: % | H128: =H127+H120 -> 0.0437539267 | I128: $ | J128: =J120+J127 -> 474.1014653 | K128: L | M128: ABS | N128: % | O128: n/a | P128: $ | Q128: n/a | R128: 0 | T128: ABS | U128: % | V128: 0 | W128: $ | X128: 0 | Y128: 0 | AH128: ABS | AI128: % | AJ128: =AJ131 -> 0.1152679474 | AK128: $ | AL128: =AL120+AL127 -> 125.7484309 | AM128: M
G129: 12V Micro Hybrid - Stop-Start (MHEV) - TBL | L129: MHEV | N129: SHEV1 --> SHEV2 | T129: SHEV2_B | U129: Strong Hybrid (P2 Parallel or 2-Mode) (SHEV2) - VBL | Z129: SHEV2_NB | AI129: 8-spd Trans (Auto or DCT) (8SPD) - TBL | AN129: 8SPD
E130: 2017+ | F130: INC | G130: % | H130: =1-((1-H131)/(1-H123)) -> 0.0167539267 | I130: $ | J130: =J127 -> 296.2132014 | K130: =K127 -> 259.67 | L130: 2017+ | M130: INC | N130: % | O130: =1-((1-V131)/(1-O120)) -> 0.1005025126 | P130: $ | Q130: =Q131-Q120 -> 1132.257309 | R130: L | S130: 2017+ | T130: INC | U130: % | V130: =1-((1-V131)/(((1-$O$90)*(1-$H$139)*(1-AJ147)))) -> 0.03008023985 | W130: $ | X130: =INDEX('[1]Compact PC'!$H$379:$X$467,MATCH(T129,'[1]Compact PC'!$C$379:$C$467,0),MATCH(Inputs!$C$2,'[1]Compact PC'!$H$378:$X$378,0)) +INDEX('[1]Compact PC'!$H$379:$X$467,MATCH(Z129,'[1]Compact PC'!$C$379:$C$467,0),MATCH(Inputs!$C$2,'[1]Compact PC'!$H$378:$X$378,0)) -> 1519.592758 | Y130: L | AG130: 2017+ | AH130: INC | AI130: % | AJ130: =1-((1-AJ131)/(1-AJ123)) -> 0.03846153846 | AK130: $ | AL130: =AL127 -> 223.3189237 | AM130: 10
F131: ABS | G131: % | H131: 0.061 | I131: $ | J131: =J123+J130 -> 524.8820367 | K131: L | M131: ABS | N131: % | O131: =V131 -> 0.463 | P131: $ | Q131: =X130+J139+Q90+AL147 -> 5083.41743 | R131: 0 | T131: ABS | U131: % | V131: 0.463 | W131: $ | X131: =X130+J139+Q90+AL147 -> 5083.41743 | Y131: 33.86 | AH131: ABS | AI131: % | AJ131: =1-((1-12.5%)/(1-1.1%)) -> 0.1152679474 | AK131: $ | AL131: =AL123+AL130 -> 125.7484309 | AM131: L
E135: 2012-2016 | F135: INC | G135: % | H135: =H138 -> 0.07454739084 | I135: $ | J135: =INDEX('[1]Large Perf. PC'!$H$379:$X$467,MATCH(F137,'[1]Large Perf. PC'!$C$379:$C$467,0),MATCH(Inputs!$C$2,'[1]Large Perf. PC'!$H$378:$X$378,0)) +INDEX('[1]Large Perf. PC'!$H$379:$X$467,MATCH(L137,'[1]Large Perf. PC'!$C$379:$C$467,0),MATCH(Inputs!$C$2,'[1]Large Perf. PC'!$H$378:$X$378,0)) -> 894.509286 | K135: L | S135: 2012-2016 | T135: INC | U135: % | V135: =1-((1-V136)/(1-V128)) -> 0.35 | W135: $ | X135: 0 | Y135: L | AG135: 2012-2016 | AH135: INC | AI135: % | AJ135: =1-((1-AJ136)/(1-AJ128)) -> 0 | AK135: $ | AL135: 0 | AM135: 10
F136: ABS | G136: % | H136: =H135+H128 -> 0.1183013175 | I136: $ | J136: =J128+J135 -> 1368.610751 | K136: 33.86 | T136: ABS | U136: % | V136: 0.35 | W136: $ | X136: =X135+X128 -> 0 | Y136: 33.86 | AH136: ABS | AI136: % | AJ136: =AJ128 -> 0.1152679474 | AK136: $ | AL136: =AL128+AL135 -> 125.7484309 | AM136: L
F137: ISG_B | G137: Integrated Starter Generator (ISG) - VBL | L137: ISG_NB | T137: PHEV2_B | U137: Plug-in Hybrid - 30 Mile Range (PHEV1) - VBL | Z137: PHEV2_NB | AI137: High Eff. Gearbox (Auto or DCT) - (HETRANS) - TBL | AN137: HETRANS
E138: 2017+ | F138: INC | G138: % | H138: =1-((1-H139)/(1-H131)) -> 0.07454739084 | I138: $ | J138: =J135 -> 894.509286 | K138: L | S138: 2017+ | T138: INC | U138: % | V138: 0.4065 | W138: $ | X138: =INDEX('[1]Compact PC'!$H$379:$X$467,MATCH(T137,'[1]Compact PC'!$C$379:$C$467,0),MATCH(Inputs!$C$2,'[1]Compact PC'!$H$378:$X$378,0)) +INDEX('[1]Compact PC'!$H$379:$X$467,MATCH(Z138,'[1]Compact PC'!$C$379:$C$467,0),MATCH(Inputs!$C$2,'[1]Compact PC'!$H$378:$X$378,0)) +INDEX('[1]Compact PC'!$H$379:$X$467,MATCH(Z139,'[1]Compact PC'!$C$379:$C$467,0),MATCH(Inputs!$C$2,'[1]Compact PC'!$H$378:$X$378,0)) +INDEX('[1]Compact PC'!$H$379:$X$467,MATCH(Z137,'[1]Compact PC'!$C$379:$C$467,0),MATCH(Inputs!$C$2,'[1]Compact PC'!$H$378:$X$378,0)) -> 8231.366463 | Y138: L | Z138: PHEV2_C | AG138: 2017+ | AH138: INC | AI138: % | AJ138: =1-((1-AJ139)/(1-AJ131)) -> 0.02171428571 | AK138: $ | AL138: =INDEX('[1]Compact PC'!$H$379:$X$467,MATCH(AN137,'[1]Compact PC'!$C$379:$C$467,0),MATCH(Inputs!$C$2,'[1]Compact PC'!$H$378:$X$378,0)) -> 227.4262488 | AM138: 10
F139: ABS | G139: % | H139: =11.6%+H106 -> 0.131 | I139: $ | J139: =J131+J138 -> 1419.391323 | K139: 33.86 | T139: ABS | U139: % | V139: =1-((1-V131)*(1-V138)) -> 0.6812905 | W139: $ | X139: =X138+X131 -> 13314.78389 | Y139: 33.86 | Z139: CHRG_L | AH139: ABS | AI139: % | AJ139: =1-((1-14.4%)/(1-1.1%)) -> 0.134479272 | AK139: $ | AL139: =AL131+AL138 -> 353.1746797 | AM139: L
S143: 2012-2016 | T143: INC | U143: % | V143: =1-((1-V144)/(1-V136)) -> 0 | W143: $ | X143: 0 | Y143: L | AG143: 2012-2016 | AH143: INC | AI143: % | AJ143: =1-((1-AJ144)/(1-AJ136)) -> 0 | AK143: $ | AL143: 0 | AM143: 10
T144: ABS | U144: % | V144: 0.35 | W144: $ | X144: =X143+X136 -> 0 | Y144: 33.86 | AH144: ABS | AI144: % | AJ144: =AJ136 -> 0.1152679474 | AK144: $ | AL144: =AL136+AL143 -> 125.7484309 | AM144: L
J145: To Strong Hybrid | T145: PHEV2_B | U145: Plug-in Hybrid - VBL | Z145: PHEV2_NB | AI145: Shift Optimizer (SHFTOPT) - TBL | AN145: SHFTOPT
S146: 2017+ | T146: INC | U146: % | V146: 0 | W146: $ | X146: 0 | Y146: L | Z146: PHEV2_C | AG146: 2017+ | AH146: INC | AI146: % | AJ146: =1-((1-AJ147)/(1-AJ139)) -> 0.03271028037 | AK146: $ | AL146: =INDEX('[1]Compact PC'!$H$379:$X$467,MATCH(AN145,'[1]Compact PC'!$C$379:$C$467,0),MATCH(Inputs!$C$2,'[1]Compact PC'!$H$378:$X$378,0)) -> 1.512384555 | AM146: 10
T147: ABS | U147: % | V147: =1-((1-V139)*(1-V146)) -> 0.6812905 | W147: $ | X147: =X146+X139 -> 13314.78389 | Y147: 33.86 | AH147: ABS | AI147: % | AJ147: =1-((1-17.2%)/(1-1.1%)) -> 0.1627906977 | AK147: $ | AL147: =AL139+AL146 -> 354.6870643 | AM147: L
S151: 2012-2016 | T151: INC | U151: % | V151: =1-((1-V152)/(1-V144)) -> 0 | W151: $ | X151: 0 | Y151: L | AK151: To Strong Hybrid
T152: ABS | U152: % | V152: 0.35 | W152: $ | X152: =X151+X144 -> 0 | Y152: 33.86
T153: EV1_B | U153: Electric Vehicle - Early Adopter 75 Mile Range - (EV1) - VBL | Z153: EV1_NB
S154: 2017+ | T154: INC | U154: % | V154: 0.6854 | W154: $ | X154: =INDEX('[1]Compact PC'!$H$379:$X$467,MATCH(T153,'[1]Compact PC'!$C$379:$C$467,0),MATCH(Inputs!$C$2,'[1]Compact PC'!$H$378:$X$378,0)) +INDEX('[1]Compact PC'!$H$379:$X$467,MATCH(Z154,'[1]Compact PC'!$C$379:$C$467,0),MATCH(Inputs!$C$2,'[1]Compact PC'!$H$378:$X$378,0)) +INDEX('[1]Compact PC'!$H$379:$X$467,MATCH(Z153,'[1]Compact PC'!$C$379:$C$467,0),MATCH(Inputs!$C$2,'[1]Compact PC'!$H$378:$X$378,0)) -> 1606.602014 | Y154: L | Z154: EV_C
T155: ABS | U155: % | V155: =1-((1-V147)*(1-V154)) -> 0.8997339913 | W155: $ | X155: =X154+X147 -> 14921.38591 | Y155: 33.86
S159: 2012-2016 | T159: INC | U159: % | V159: =1-((1-V160)/(1-V152)) -> 0 | W159: $ | X159: 0 | Y159: L
T160: ABS | U160: % | V160: 0.35 | W160: $ | X160: =X159+X152 -> 0 | Y160: 33.86
T161: EV2_B | U161: Electric Vehicle - Early Adopter 100 Mile Range - (EV2) - VBL | Z161: EV2_NB
S162: 2017+ | T162: INC | U162: % | V162: 0 | W162: $ | X162: 0 | Y162: L
T163: ABS | U163: % | V163: =1-((1-V155)*(1-V162)) -> 0.8997339913 | W163: $ | X163: =X162+X155 -> 14921.38591 | Y163: 33.86
S167: 2012-2016 | T167: INC | U167: % | V167: =1-((1-V168)/(1-V160)) -> 0 | W167: $ | X167: 0 | Y167: L
T168: ABS | U168: % | V168: 0.35 | W168: $ | X168: =X167+X160 -> 0 | Y168: 33.86
T169: EV3_B | U169: Electric Vehicle - Early Adopter 150 Mile Range - (EV3) - VBL | Z169: EV3_NB
S170: 2017+ | T170: INC | U170: % | V170: 0 | W170: $ | X170: 0 | Y170: L
T171: ABS | U171: % | V171: =1-((1-V163)*(1-V170)) -> 0.8997339913 | W171: $ | X171: =X170+X163 -> 14921.38591 | Y171: 33.86
L175: 2012-2016 | M175: INC | N175: % | O175: =1-((1-O176)/(1-V168)) -> 0 | P175: $ | Q175: 0 | R175: L | Z175: 2012-2016 | AA175: INC | AB175: % | AC175: =1-((1-AC176)/(1-V168)) -> 0 | AD175: $ | AE175: 0 | AF175: L
M176: ABS | N176: % | O176: 0.35 | P176: $ | Q176: =Q175+X168 -> 0 | R176: 33.86 | AA176: ABS | AB176: % | AC176: 0.35 | AD176: $ | AE176: =AE175+X168 -> 0 | AF176: 33.86
M177: EV4_B | N177: Electric Vehicle - Mass Market 150 Mile Range - (EV4) - VBL | S177: EV4_NB | AA177: FCV_B | AB177: Fuel Cell Vehicle (FCV) - VBL | AG177: FCV_NB
L178: 2017+ | M178: INC | N178: % | O178: 0 | P178: $ | Q178: =INDEX('[1]Compact PC'!$H$379:$X$467,MATCH(M177,'[1]Compact PC'!$C$379:$C$467,0),MATCH(Inputs!$C$2,'[1]Compact PC'!$H$378:$X$378,0)) +INDEX('[1]Compact PC'!$H$379:$X$467,MATCH(S177,'[1]Compact PC'!$C$379:$C$467,0),MATCH(Inputs!$C$2,'[1]Compact PC'!$H$378:$X$378,0)) -> 6309.71222 | R178: L | Z178: 2017+ | AA178: INC | AB178: % | AC178: 0 | AD178: $ | AE178: =INDEX('[1]Compact PC'!$H$379:$X$467,MATCH(AA177,'[1]Compact PC'!$C$379:$C$467,0),MATCH(Inputs!$C$2,'[1]Compact PC'!$H$378:$X$378,0)) +INDEX('[1]Compact PC'!$H$379:$X$467,MATCH(AG177,'[1]Compact PC'!$C$379:$C$467,0),MATCH(Inputs!$C$2,'[1]Compact PC'!$H$378:$X$378,0)) ->  | AF178: L
M179: ABS | N179: % | O179: =1-((1-V171)*(1-O178)) -> 0.8997339913 | P179: $ | Q179: =Q178+X171 -> 21231.09813 | R179: 33.86 | AA179: ABS | AB179: % | AC179: =1-((1-V171)*(1-AC178)) -> 0.8997339913 | AD179: $ | AE179: =AE178+X171 ->  | AF179: 33.86
A185: Vehicle Technology Decision Tree
C189: ABS - WR | D189: ='[1]Compact PC'!$M$82 -> 0 | E189: 2012-2016 | F189: INC | G189: % | H189: =IF(D189<5%, D189*(3.5/10), D189*(5.1/10)) -> 0 | I189: $ | J189: =INDEX('[1]Compact PC'!$H$379:$X$467,MATCH(L191,'[1]Compact PC'!$C$379:$C$467,0),MATCH(Inputs!$C$2,'[1]Compact PC'!$H$378:$X$378,0)) -> 0 | K189: 1.33 | S189: 2012-2016 | T189: INC | U189: % | V189: 0.019 | W189: $ | X189: =INDEX('[1]Compact PC'!$H$379:$X$467,MATCH(Z191,'[1]Compact PC'!$C$379:$C$467,0),MATCH(Inputs!$C$2,'[1]Compact PC'!$H$378:$X$378,0)) -> 6.43963924 | Y189: 5.15 | AG189: 2012-2016 | AH189: INC | AI189: % | AJ189: 0.008 | AK189: $ | AL189: =INDEX('[1]Compact PC'!$H$379:$X$467,MATCH(AN191,'[1]Compact PC'!$C$379:$C$467,0),MATCH(Inputs!$C$2,'[1]Compact PC'!$H$378:$X$378,0)) -> 70.83603164 | AM189: 5.15 | AU189: 2012-2016 | AV189: INC | AW189: % | AX189: 0.023 | AY189: $ | AZ189: =INDEX('[1]Compact PC'!$H$379:$X$467,MATCH(BB191,'[1]Compact PC'!$C$379:$C$467,0),MATCH(Inputs!$C$2,'[1]Compact PC'!$H$378:$X$378,0)) -> 43.85793807 | BA189: 5.15
F190: ABS | G190: % | H190: =H189 -> 0 | I190: $ | J190: =J189 -> 0 | K190: L | T190: ABS | U190: % | V190: =V189 -> 0.019 | W190: $ | X190: =X189 -> 6.43963924 | Y190: L | AH190: ABS | AI190: % | AJ190: =AJ189 -> 0.008 | AK190: $ | AL190: =AL189 -> 70.83603164 | AM190: L | AV190: ABS | AW190: % | AX190: =AX189 -> 0.023 | AY190: $ | AZ190: =AZ189 -> 43.85793807 | BA190: L
G191: Mass Reduction (MR1) - ($/pound) - TBL | L191: MR1 | U191: Low Roll Resistance Tires 1 (ROLL1) - No Learning Applied | Z191: ROLL1 | AI191: Low Drag Brakes (LDB) No Learning Applied | AN191: LDB | AW191: Aerodynamic Drag Reduction 1 (AERO1) - No Learming Applied | BB191: AERO1
E192: 2017+ | F192: INC | G192: % | H192: =H189 -> 0 | I192: $ | J192: =J189 -> 0 | K192: 1.33 | S192: 2017+ | T192: INC | U192: % | V192: =V189 -> 0.019 | W192: $ | X192: =X189 -> 6.43963924 | Y192: 5.15 | AG192: 2017+ | AH192: INC | AI192: % | AJ192: =AJ189 -> 0.008 | AK192: $ | AL192: =AL189 -> 70.83603164 | AM192: 5.15 | AU192: 2017+ | AV192: INC | AW192: % | AX192: =AX189 -> 0.023 | AY192: $ | AZ192: =AZ189 -> 43.85793807 | BA192: 5.15
F193: ABS | G193: % | H193: =H192 -> 0 | I193: $ | J193: =J192 -> 0 | K193: L | T193: ABS | U193: % | V193: =V192 -> 0.019 | W193: $ | X193: =X192 -> 6.43963924 | Y193: L | AH193: ABS | AI193: % | AJ193: =AJ192 -> 0.008 | AK193: $ | AL193: =AL192 -> 70.83603164 | AM193: L | AV193: ABS | AW193: % | AX193: =AX192 -> 0.023 | AY193: $ | AZ193: =AZ192 -> 43.85793807 | BA193: L
C197: INC - WR | D197: ='[1]Compact PC'!$M$83 -> 0 | E197: 2012-2016 | F197: INC | G197: % | H197: =1-((1-H198)/(1-H190)) -> 0 | I197: $ | J197: =INDEX('[1]Compact PC'!$H$379:$X$467,MATCH(L199,'[1]Compact PC'!$C$379:$C$467,0),MATCH(Inputs!$C$2,'[1]Compact PC'!$H$378:$X$378,0)) -> 0 | K197: 1.33 | S197: 2012-2016 | T197: INC | U197: % | V197: =1-((1-V198)/(1-V190)) -> 0.02038735984 | W197: $ | X197: =0 -> 0 | Y197: 5.15 | AG197: 2012-2016 | AH197: INC | AI197: % | AJ197: 0.014 | AK197: $ | AL197: =INDEX('[1]Compact PC'!$H$379:$X$467,MATCH(AN199,'[1]Compact PC'!$C$379:$C$467,0),MATCH(Inputs!$C$2,'[1]Compact PC'!$H$378:$X$378,0)) -> 87.5682515 | AM197: 5.15 | AU197: 2012-2016 | AV197: INC | AW197: % | AX197: =1-((1-AX198)/(1-AX190)) -> 0.02456499488 | AY197: $ | AZ197: =INDEX('[1]Compact PC'!$H$379:$X$467,MATCH(BB199,'[1]Compact PC'!$C$379:$C$467,0),MATCH(Inputs!$C$2,'[1]Compact PC'!$H$378:$X$378,0)) -> 154.952775 | BA197: 5.15
C198: ABS - WR | D198: =D197+D189 -> 0 | F198: ABS | G198: % | H198: =IF(D198<5%,D198 D198*(3.5/10), D198*(5.1/10)) -> 0 | I198: $ | J198: =J197 -> 0 | K198: L | T198: ABS | U198: % | V198: 0.039 | W198: $ | X198: =X190+X197 -> 6.43963924 | Y198: L | AH198: ABS | AI198: % | AJ198: =1-(1-AJ190)*(1-AJ197) -> 0.021888 | AK198: $ | AL198: =AL190+AL197 -> 158.4042831 | AM198: L | AV198: ABS | AW198: % | AX198: 0.047 | AY198: $ | AZ198: =AZ190+AZ197 -> 198.8107131 | BA198: L
G199: Mass Reduction (MR2) - ($/pound) - TBL | L199: MR2 | U199: Low Roll Resistance Tires 2 (ROLL2) - No Learning Applied | Z199: ROLL2 | AI199: Secondary Axle Discon. (SAXU/SAXL) TBL | AN199: SAX | AW199: Aerodynamic Drag Reduction 2 (AERO2) - No Learming Applied | BB199: AERO2
E200: 2017+ | F200: INC | G200: % | H200: =1-((1-H201)/(1-H193)) -> 0 | I200: $ | J200: =J197 -> 0 | K200: 1.33 | S200: 2017+ | T200: INC | U200: % | V200: =1-((1-V201)/(1-V193)) -> 0.02038735984 | W200: $ | X200: =INDEX('[1]Compact PC'!$H$379:$X$467,MATCH(Z199,'[1]Compact PC'!$C$379:$C$467,0),MATCH(Inputs!$C$2,'[1]Compact PC'!$H$378:$X$378,0)) -> 50.17323253 | Y200: 5.15 | AG200: 2017+ | AH200: INC | AI200: % | AJ200: =AJ197 -> 0.014 | AK200: $ | AL200: =AL197 -> 87.5682515 | AM200: 5.15 | AU200: 2017+ | AV200: INC | AW200: % | AX200: =1-((1-AX201)/(1-AX193)) -> 0.02456499488 | AY200: $ | AZ200: =AZ197 -> 154.952775 | BA200: 5.15
F201: ABS | G201: % | H201: =IF(D198<5%, D198*(3.5/10), D198*(5.1/10)) -> 0 | I201: $ | J201: =J200 -> 0 | K201: L | T201: ABS | U201: % | V201: =V198 -> 0.039 | W201: $ | X201: =X193+X200 -> 56.61287177 | Y201: L | AH201: ABS | AI201: % | AJ201: =1-(1-AJ193)*(1-AJ200) -> 0.021888 | AK201: $ | AL201: =AL193+AL200 -> 158.4042831 | AM201: L | AV201: ABS | AW201: % | AX201: =AX198 -> 0.047 | AY201: $ | AZ201: =AZ193+AZ200 -> 198.8107131 | BA201: L
C205: INC - WR | D205: ='[1]Compact PC'!$M$84 -> 0 | E205: 2012-2016 | F205: INC | G205: % | H205: =1-((1-H206)/(1-H198)) -> 0 | I205: $ | J205: =INDEX('[1]Compact PC'!$H$379:$X$467,MATCH(L207,'[1]Compact PC'!$C$379:$C$467,0),MATCH(Inputs!$C$2,'[1]Compact PC'!$H$378:$X$378,0)) -> 0 | K205: 1.33 | S205: 2012-2016 | T205: INC | U205: % | V205: 0 | W205: $ | X205: 0 | Y205: 0
C206: ABS - WR | D206: =D205+D198 -> 0 | F206: ABS | G206: % | H206: =IF(D206<5%, D206*(3.5/10), D206*(5.1/10)) -> 0 | I206: $ | J206: =J205 -> 0 | K206: L | T206: ABS | U206: % | V206: =1-((1-V198)*(1-V205)) -> 0.039 | W206: $ | X206: =X198+X205 -> 6.43963924 | Y206: L
G207: Mass Reduction (MR3) - ($/pound) - TBL | L207: MR3 | U207: Low Roll Resistance Tires 3 (ROLL3) - No Learning Applied
E208: 2017+ | F208: INC | G208: % | H208: =1-((1-H209)/(1-H201)) -> 0 | I208: $ | J208: =J205 -> 0 | K208: 1.33 | S208: 2017+ | T208: INC | U208: % | V208: 0 | W208: $ | X208: =X205 -> 0 | Y208: 0
F209: ABS | G209: % | H209: =IF(D206<5%, D206*(3.5/10), D206*(5.1/10)) -> 0 | I209: $ | J209: =J208 -> 0 | K209: L | T209: ABS | U209: % | V209: =1-((1-V201)*(1-V208)) -> 0.039 | W209: $ | X209: =X201+X208 -> 56.61287177 | Y209: L
C213: INC - WR | D213: ='[1]Compact PC'!$M$85 -> 0 | E213: 2012-2016 | F213: INC | G213: % | H213: =1-((1-H214)/(1-H206)) -> 0 | I213: $ | J213: =INDEX('[1]Compact PC'!$H$379:$X$467,MATCH(L215,'[1]Compact PC'!$C$379:$C$467,0),MATCH(Inputs!$C$2,'[1]Compact PC'!$H$378:$X$378,0)) -> 0 | K213: 1.33
C214: ABS - WR | D214: =D213+D206 -> 0 | F214: ABS | G214: % | H214: =IF(D214<5%, D214*(3.5/10), D214*(5.1/10)) -> 0 | I214: $ | J214: =J213 -> 0 | K214: L
G215: Mass Reduction (MR4) - ($/pound) - TBL | L215: MR4
E216: 2017+ | F216: INC | G216: % | H216: =1-((1-H217)/(1-H209)) -> 0 | I216: $ | J216: =J213 -> 0 | K216: 1.33
F217: ABS | G217: % | H217: =IF(D214<5%, D214*(3.5/10), D214*(5.1/10)) -> 0 | I217: $ | J217: =J216 -> 0 | K217: L
C221: INC - WR | D221: ='[1]Compact PC'!$M$86 -> 0 | E221: 2012-2016 | F221: INC | G221: % | H221: =1-((1-H222)/(1-H214)) -> 0 | I221: $ | J221: =INDEX('[1]Compact PC'!$H$379:$X$467,MATCH(L223,'[1]Compact PC'!$C$379:$C$467,0),MATCH(Inputs!$C$2,'[1]Compact PC'!$H$378:$X$378,0)) -> 0 | K221: 1.33
C222: ABS - WR | D222: =D221+D214 -> 0 | F222: ABS | G222: % | H222: =IF(D222<5%, D222*(3.5/10), D222*(5.1/10)) -> 0 | I222: $ | J222: =J221 -> 0 | K222: L
G223: Mass Reduction (MR5) - ($/pound) - TBL | L223: MR5
E224: 2017+ | F224: INC | G224: % | H224: =1-((1-H225)/(1-H217)) -> 0 | I224: $ | J224: =J221 -> 0 | K224: 1.33
F225: ABS | G225: % | H225: =IF(D222<5%, D222*(3.5/10), D222*(5.1/10)) -> 0 | I225: $ | J225: =J224 -> 0 | K225: L

Sheet Compact Perf. PC
A1: Full Engine Technology Decision Tree
B3: START
A4: Gas Engine Type | B4: V6 | BI4: 2012-2016 | BJ4: INC | BK4: % | BL4: 0.005 | BM4: $ | BN4: =INDEX('[1]Compact Perf. PC'!$H$379:$X$467,MATCH(BP6,'[1]Compact Perf. PC'!$C$379:$C$467,0),MATCH(Inputs!$C$2,'[1]Compact Perf. PC'!$H$378:$X$378,0)) -> 3.863783544 | BO4: 10 | BW4: 2012-2016 | BX4: INC | BY4: % | BZ4: 0.02 | CA4: $ | CB4: =INDEX('[1]Compact Perf. PC'!$H$379:$X$467,MATCH(CD6,'[1]Compact Perf. PC'!$C$379:$C$467,0),MATCH(Inputs!$C$2,'[1]Compact Perf. PC'!$H$378:$X$378,0))*$B$13 -> 87.13833613 | CC4: 10 | CK4: 2012-2016 | CL4: INC | CM4: % | CN4: =1-((1-CN5)/(1-BZ5)) -> 0 | CO4: $ | CP4: 0 | CQ4: L
A5: Displacement [L] | B5: 3.5 | BJ5: ABS | BK5: % | BL5: =BL4 -> 0.005 | BM5: $ | BN5: =BN4 -> 3.863783544 | BO5: L | BX5: ABS | BY5: % | BZ5: =1-((1-BL5)*(1-BZ4)) -> 0.0249 | CA5: $ | CB5: =BN5+CB4 -> 91.00211968 | CC5: L | CL5: ABS | CM5: % | CN5: =BZ5 -> 0.0249 | CO5: $ | CP5: =CB5 -> 91.00211968 | CQ5: 0
A6: Turbocharger | B6: None | BK6: Low-Friction Lubricants 1 (LUB1) - No Learning Applied | BP6: LUB1 | BY6: Engine Friction Reduction 1 (EFR1) - No Learning Applied | CD6: EFR1 | CM6: Low-Friction Lub & Engine Friction Redux 2 (LUB2_EFR2) - No Learning Applied | CR6: LUB2_EFR2
A7: EGR system | B7: None/internal | BI7: 2017+ | BJ7: INC | BK7: % | BL7: =BL4 -> 0.005 | BM7: $ | BN7: =BN4 -> 3.863783544 | BO7: 10 | BW7: 2017+ | BX7: INC | BY7: % | BZ7: 0.02 | CA7: $ | CB7: =CB4 -> 87.13833613 | CC7: 10 | CK7: 2017+ | CL7: INC | CM7: % | CN7: =1-((1-CN8)/(1-BZ8)) -> 0.01035791201 | CO7: $ | CP7: =INDEX('[1]Compact Perf. PC'!$H$379:$X$467,MATCH(CR6,'[1]Compact Perf. PC'!$C$379:$C$467,0),MATCH(Inputs!$C$2,'[1]Compact Perf. PC'!$H$378:$X$378,0))*$B$13 -> 94.26109774 | CQ7: L
A8: Valvetrain | B8: SOHC/ DOHC/ OHV | BJ8: ABS | BK8: % | BL8: =BL7 -> 0.005 | BM8: $ | BN8: =BN7 -> 3.863783544 | BO8: L | BX8: ABS | BY8: % | BZ8: =1-((1-BL8)*(1-BZ7)) -> 0.0249 | CA8: $ | CB8: =BN8+CB7 -> 91.00211968 | CC8: L | CL8: ABS | CM8: % | CN8: 0.035 | CO8: $ | CP8: =CB8+CP7 -> 185.2632174 | CQ8: 33.86
A9: After Treatment | B9: 3way cat
AE11: SOHC | CP11: DOHC | EX11: OHV
A13: Cylinders | B13: =IF(B4="I4",4,IF(B4="V6",6,8)) -> 6
A14: Cylinder Banks | B14: =IF(B4="I4",1,2) -> 2 | CK14: 2012-2016 | CL14: INC | CM14: % | CN14: =CN17 -> 0.02176165803 | CO14: $ | CP14: =INDEX('[1]Compact Perf. PC'!$H$379:$X$467,MATCH(CR16,'[1]Compact Perf. PC'!$C$379:$C$467,0),MATCH(Inputs!$C$2,'[1]Compact Perf. PC'!$H$378:$X$378,0))*$B$14 -> 83.09925108 | CQ14: 10
CL15: ABS | CM15: % | CN15: =1-((1-CN5)*(1-CN14)) -> 0.04611979275 | CO15: $ | CP15: =CP5+CP14 -> 174.1013708 | CQ15: L
CM16: Intake Cam Phasing (ICP) - TBL | CR16: ICP
CK17: 2017+ | CL17: INC | CM17: % | CN17: =1-((1-CN18)/(1-CN8)) -> 0.02176165803 | CO17: $ | CP17: =CP14 -> 83.09925108 | CQ17: 10
CL18: ABS | CM18: % | CN18: 0.056 | CO18: $ | CP18: =CP8+CP17 -> 268.3624685 | CQ18: L
A22: Notes: | B22: (1) All costs shown in $2009 | Z22: 2012-2016 | AA22: INC | AB22: % | AC22: =AC25 -> 0.0414507772 | AD22: $ | AE22: =INDEX('[1]Compact Perf. PC'!$H$379:$X$467,MATCH(AG24,'[1]Compact Perf. PC'!$C$379:$C$467,0),MATCH(Inputs!$C$2,'[1]Compact Perf. PC'!$H$378:$X$378,0))*$B$14 -> 83.09925108 | AF22: 10 | CK22: 2012-2016 | CL22: INC | CM22: % | CN22: =CN25 -> 0.02012711864 | CO22: $ | CP22: =INDEX('[1]Compact Perf. PC'!$H$379:$X$467,MATCH(CR24,'[1]Compact Perf. PC'!$C$379:$C$467,0),MATCH(Inputs!$C$2,'[1]Compact Perf. PC'!$H$378:$X$378,0))*$B$14 -> 77.05570788 | CQ22: 10
AA23: ABS | AB23: % | AC23: =1-((1-CN5)*(1-AC22)) -> 0.06531865285 | AD23: $ | AE23: =CP5+AE22 -> 174.1013708 | AF23: L | CL23: ABS | CM23: % | CN23: =1-((1-CN15)*(1-CN22)) -> 0.06531865285 | CO23: $ | CP23: =CP15+CP22 -> 251.1570786 | CQ23: L
AB24: Coupled Cam Phasing (CCPS) - TBL | AG24: CCPS | CM24: Dual Cam Phasing (DCP) - TBL | CR24: DCP
Z25: 2017+ | AA25: INC | AB25: % | AC25: =1-((1-AC26)/(1-CN8)) -> 0.0414507772 | AD25: $ | AE25: =AE22 -> 83.09925108 | AF25: 10 | CK25: 2017+ | CL25: INC | CM25: % | CN25: =1-((1-CN26)/(1-CN18)) -> 0.02012711864 | CO25: $ | CP25: =CP22 -> 77.05570788 | CQ25: 10
A26: L | AA26: ABS | AB26: % | AC26: 0.075 | AD26: $ | AE26: =CP8+AE25 -> 268.3624685 | AF26: L | CL26: ABS | CM26: % | CN26: 0.075 | CO26: $ | CP26: =CP18+CP25 -> 345.4181764 | CQ26: L
A27: M
A28: H
A29: VH
Z30: 2012-2016 | AA30: INC | AB30: % | AC30: =AC33 -> 0.02810810811 | AD30: $ | AE30: =INDEX('[1]Compact Perf. PC'!$H$379:$X$467,MATCH(AG32,'[1]Compact Perf. PC'!$C$379:$C$467,0),MATCH(Inputs!$C$2,'[1]Compact Perf. PC'!$H$378:$X$378,0))*$B$13 -> 212.9367613 | AF30: 10 | BP30: 2012-2016 | BQ30: INC | BR30: % | BS30: =BS33 -> 0.02810810811 | BT30: $ | BU30: =INDEX('[1]Compact Perf. PC'!$H$379:$X$467,MATCH(BW32,'[1]Compact Perf. PC'!$C$379:$C$467,0),MATCH(Inputs!$C$2,'[1]Compact Perf. PC'!$H$378:$X$378,0))*$B$13 -> 212.9367613 | BV30: 10 | DF30: 2012-2016 | DG30: INC | DH30: % | DI30: =DI33 -> 0.03567567568 | DJ30: $ | DK30: =INDEX('[1]Compact Perf. PC'!$H$379:$X$467,MATCH(DM32,'[1]Compact Perf. PC'!$C$379:$C$467,0),MATCH(Inputs!$C$2,'[1]Compact Perf. PC'!$H$378:$X$378,0))*$B$13 -> 342.7880078 | DL30: 10 | EV30: 2012-2016 | EW30: INC | EX30: % | EY30: =1-((1-EY31)/(1-CN5)) -> 0.0462516665 | EZ30: $ | FA30: =INDEX('[1]Compact Perf. PC'!$H$379:$X$467,MATCH(FC32,'[1]Compact Perf. PC'!$C$379:$C$467,0),MATCH(Inputs!$C$2,'[1]Compact Perf. PC'!$H$378:$X$378,0)) -> 180.8502248 | FB30: 10
AA31: ABS | AB31: % | AC31: =1-((1-AC23)*(1-AC30)) -> 0.0915907772 | AD31: $ | AE31: =AE23+AE30 -> 387.0381321 | AF31: L | BQ31: ABS | BR31: % | BS31: =1-((1-CN23)*(1-BS30)) -> 0.0915907772 | BT31: $ | BU31: =CP23+BU30 -> 464.09384 | BV31: L | DG31: ABS | DH31: % | DI31: =1-((1-CN23)*(1-DI30)) -> 0.09866404145 | DJ31: $ | DK31: =CP23+DK30 -> 593.9450865 | DL31: L | EW31: ABS | EX31: % | EY31: 0.07 | EZ31: $ | FA31: =CP5+FA30 -> 271.8523445 | FB31: L
AB32: Discrete VVL (DVVLS) - TBL | AG32: DVVLS | BR32: Discrete VVL (DVVLD) - TBL | BW32: DVVLD | DH32: Continuous VVL (CVVL) - TBL | DM32: CVVL | EX32: Cylinder Deactivation (DEACO) - TBL | FC32: DEACO
Z33: 2017+ | AA33: INC | AB33: % | AC33: =1-((1-AC34)/(1-AC26)) -> 0.02810810811 | AD33: $ | AE33: =AE30 -> 212.9367613 | AF33: 10 | BP33: 2017+ | BQ33: INC | BR33: % | BS33: =1-((1-BS34)/(1-CN26)) -> 0.02810810811 | BT33: $ | BU33: =BU30 -> 212.9367613 | BV33: 10 | DF33: 2017+ | DG33: INC | DH33: % | DI33: =1-((1-DI34)/(1-CN26)) -> 0.03567567568 | DJ33: $ | DK33: =DK30 -> 342.7880078 | DL33: 10 | EV33: 2017+ | EW33: INC | EX33: % | EY33: =1-((1-EY34)/(1-CN8)) -> 0.04663212435 | EZ33: $ | FA33: =FA30 -> 180.8502248 | FB33: 10
B34: START | AA34: ABS | AB34: % | AC34: 0.101 | AD34: $ | AE34: =AE26+AE33 -> 481.2992298 | AF34: L | BQ34: ABS | BR34: % | BS34: 0.101 | BT34: $ | BU34: =CP26+BU33 -> 558.3549377 | BV34: L | DG34: ABS | DH34: % | DI34: 0.108 | DJ34: $ | DK34: =CP26+DK33 -> 688.2061842 | DL34: L | EW34: ABS | EX34: % | EY34: 0.08 | EZ34: $ | FA34: =CP8+FA33 -> 366.1134422 | FB34: L
A35: Gas Engine Type | B35: I4
A36: Displacement [L] | B36: 2.2
A37: Turbocharger | B37: None
A38: EGR system | B38: External | Z38: 2012-2016 | AA38: INC | AB38: % | AC38: =AC41 -> 0.004449388209 | AD38: $ | AE38: =INDEX('[1]Compact Perf. PC'!$H$379:$X$467,MATCH(AG40,'[1]Compact Perf. PC'!$C$379:$C$467,0),MATCH(Inputs!$C$2,'[1]Compact Perf. PC'!$H$378:$X$378,0)) -> 28.17691074 | AF38: 10 | BP38: 2012-2016 | BQ38: INC | BR38: % | BS38: =BS41 -> 0.004449388209 | BT38: $ | BU38: =INDEX('[1]Compact Perf. PC'!$H$379:$X$467,MATCH(BW40,'[1]Compact Perf. PC'!$C$379:$C$467,0),MATCH(Inputs!$C$2,'[1]Compact Perf. PC'!$H$378:$X$378,0)) -> 28.17691074 | BV38: 10 | DF38: 2012-2016 | DG38: INC | DH38: % | DI38: =DI41 -> 0 | DJ38: $ | DK38: 0 | DL38: 10 | EV38: 2012-2016 | EW38: INC | EX38: % | EY38: =1-((1-EY39)/(1-EY31)) -> 0.02150537634 | EZ38: $ | FA38: =INDEX('[1]Compact Perf. PC'!$H$379:$X$467,MATCH(FC40,'[1]Compact Perf. PC'!$C$379:$C$467,0),MATCH(Inputs!$C$2,'[1]Compact Perf. PC'!$H$378:$X$378,0))*$B$14 -> 90.40923443 | FB38: 10
A39: Valvetrain | B39: SOHC/ DOHC/ OHV | AA39: ABS | AB39: % | AC39: =1-((1-AC31)*(1-AC38)) -> 0.09563264249 | AD39: $ | AE39: =AE31+AE38 -> 415.2150428 | AF39: L | BQ39: ABS | BR39: % | BS39: =1-((1-BS31)*(1-BS38)) -> 0.09563264249 | BT39: $ | BU39: =BU31+BU38 -> 492.2707507 | BV39: L | DG39: ABS | DH39: % | DI39: =1-((1-DI31)*(1-DI38)) -> 0.09866404145 | DJ39: $ | DK39: =DK31+DK38 -> 593.9450865 | DL39: L | EW39: ABS | EX39: % | EY39: 0.09 | EZ39: $ | FA39: =FA31+FA38 -> 362.2615789 | FB39: L
AB40: Cylinder Deactivation (DEACS) - TBL | AG40: DEACS | BR40: Cylinder Deactivation (DEACD) - TBL | BW40: DEACD | DH40: Cylinder Deactivation (DEACD) - TBL | EX40: Coupled Cam Phasing and DVVL (VVA) - TBL | FC40: VVA
Z41: 2017+ | AA41: INC | AB41: % | AC41: =1-((1-AC42)/(1-AC34)) -> 0.004449388209 | AD41: $ | AE41: =AE38 -> 28.17691074 | AF41: 10 | BP41: 2017+ | BQ41: INC | BR41: % | BS41: =1-((1-BS42)/(1-BS34)) -> 0.004449388209 | BT41: $ | BU41: =BU38 -> 28.17691074 | BV41: 10 | DF41: 2017+ | DG41: INC | DH41: % | DI41: =1-((1-DI42)/(1-DI34)) -> 0 | DJ41: $ | DK41: =DK38 -> 0 | DL41: 10 | EV41: 2017+ | EW41: INC | EX41: % | EY41: =1-((1-EY42)/(1-EY34)) -> 0.02717391304 | EZ41: $ | FA41: =FA38 -> 90.40923443 | FB41: 10
AA42: ABS | AB42: % | AC42: 0.105 | AD42: $ | AE42: =AE34+AE41 -> 509.4761406 | AF42: L | BQ42: ABS | BR42: % | BS42: 0.105 | BT42: $ | BU42: =BU34+BU41 -> 586.5318485 | BV42: L | DG42: ABS | DH42: % | DI42: =DI34 -> 0.108 | DJ42: $ | DK42: =DK34+DK41 -> 688.2061842 | DL42: L | EW42: ABS | EX42: % | EY42: 0.105 | EZ42: $ | FA42: =FA34+FA41 -> 456.5226767 | FB42: L
Z46: 2012-2016 | AA46: INC | AB46: % | AC46: =AC49 -> 0.0156424581 | AD46: $ | AE46: =INDEX('[1]Compact Perf. PC'!$H$379:$X$467,MATCH(AG48,'[1]Compact Perf. PC'!$C$379:$C$467,0),MATCH(Inputs!$C$2,'[1]Compact Perf. PC'!$H$378:$X$378,0))*$B$13 -> 349.4179358 | AF46: 10 | BP46: 2012-2016 | BQ46: INC | BR46: % | BS46: =BS49 -> 0.0156424581 | BT46: $ | BU46: =INDEX('[1]Compact Perf. PC'!$H$379:$X$467,MATCH(BW48,'[1]Compact Perf. PC'!$C$379:$C$467,0),MATCH(Inputs!$C$2,'[1]Compact Perf. PC'!$H$378:$X$378,0))*$B$13 -> 349.4179358 | BV46: 10 | DF46: 2012-2016 | DG46: INC | DH46: % | DI46: =DI49 -> 0.01457399103 | DJ46: $ | DK46: =INDEX('[1]Compact Perf. PC'!$H$379:$X$467,MATCH(DM48,'[1]Compact Perf. PC'!$C$379:$C$467,0),MATCH(Inputs!$C$2,'[1]Compact Perf. PC'!$H$378:$X$378,0))*$B$13 -> 349.4179358 | DL46: 10 | EV46: 2012-2016 | EW46: INC | EX46: % | EY46: =1-((1-EY47)/(1-EY39)) -> 0.01538461538 | EZ46: $ | FA46: =INDEX('[1]Compact Perf. PC'!$H$379:$X$467,MATCH(FC48,'[1]Compact Perf. PC'!$C$379:$C$467,0),MATCH(Inputs!$C$2,'[1]Compact Perf. PC'!$H$378:$X$378,0))*$B$13 -> 349.4179358 | FB46: 10
AA47: ABS | AB47: % | AC47: =1-((1-AC39)*(1-AC46)) -> 0.109779171 | AD47: $ | AE47: =AE39+AE46 -> 764.6329786 | AF47: L | BQ47: ABS | BR47: % | BS47: =1-((1-BS39)*(1-BS46)) -> 0.109779171 | BT47: $ | BU47: =BU39+BU46 -> 841.6886865 | BV47: L | DG47: ABS | DH47: % | DI47: =1-((1-DI39)*(1-DI46)) -> 0.1118001036 | DJ47: $ | DK47: =DK39+DK46 -> 943.3630222 | DL47: L | EW47: ABS | EX47: % | EY47: 0.104 | EZ47: $ | FA47: =FA39+FA46 -> 711.6795147 | FB47: L
AB48: Stoichiometric GDI (SGDI) - TBL | AG48: SGDI | BR48: Stoichiometric GDI (SGDI) - TBL | BW48: SGDI | DH48: Stoichiometric GDI (SGDI) - TBL | DM48: SGDI | EX48: Stoichiometric GDI (SGDIO) - TBL | FC48: SGDIO
Z49: 2017+ | AA49: INC | AB49: % | AC49: =1-((1-AC50)/(1-AC42)) -> 0.0156424581 | AD49: $ | AE49: =AE46 -> 349.4179358 | AF49: 10 | BP49: 2017+ | BQ49: INC | BR49: % | BS49: =1-((1-BS50)/(1-BS42)) -> 0.0156424581 | BT49: $ | BU49: =BU46 -> 349.4179358 | BV49: 10 | DF49: 2017+ | DG49: INC | DH49: % | DI49: =1-((1-DI50)/(1-DI42)) -> 0.01457399103 | DJ49: $ | DK49: =DK46 -> 349.4179358 | DL49: 10 | EV49: 2017+ | EW49: INC | EX49: % | EY49: =1-((1-EY50)/(1-EY42)) -> 0.0156424581 | EZ49: $ | FA49: =FA46 -> 349.4179358 | FB49: 10
X50: From SOHC Path | AA50: ABS | AB50: % | AC50: 0.119 | AD50: $ | AE50: =AE42+AE49 -> 858.8940763 | AF50: L | BN50: From DOHC w/ DVVLD Path | BQ50: ABS | BR50: % | BS50: 0.119 | BT50: $ | BU50: =BU42+BU49 -> 935.9497842 | BV50: L | DD50: From DOHC w/ CVVL Path | DG50: ABS | DH50: % | DI50: 0.121 | DJ50: $ | DK50: =DK42+DK49 -> 1037.62412 | DL50: L | ET50: From OHV w/ CDOHC Path | EW50: ABS | EX50: % | EY50: 0.119 | EZ50: $ | FA50: =FA42+FA49 -> 805.9406124 | FB50: L
BE53: =BE54-$O$54 -> 0 | BG53: =BG54-$Q$54 -> -10.3509432 | BS53: =BS54-$AC$54 -> 0 | BU53: =BU54-$AE$54 -> -137.4925796 | CG53: =CG54-$AQ$54 -> 0 | CI53: =CI54-$AS$54 -> -151.06222 | CU53: =CU54-$O$54 -> -0.007173320518 | CW53: =CW54-$Q$54 -> -10.3509432 | DI53: =DI54-$AC$54 -> -0.002122936626 | DK53: =DK54-$AE$54 -> -137.4925796 | DW53: =DW54-$AQ$54 -> -0.002122936626 | DY53: =DY54-$AS$54 -> -151.06222 | EK53: =EK54-$O$54 -> 0.04788051776 | EM53: =EM54-$Q$54 -> -420.0635842 | EY53: =EY54-$AC$54 -> 0 | FA53: =FA54-$AE$54 -> 562.7541357 | FM53: =FM54-$AQ$54 -> 0 | FO53: =FO54-$AS$54 -> 523.9804211
L54: 2012-2016 | M54: INC | N54: % | O54: =O57 -> 0.0720197369 | P54: $ | Q54: =INDEX('[1]Compact Perf. PC'!$H$379:$X$467,MATCH(M56,'[1]Compact Perf. PC'!$C$379:$C$467,0),MATCH(Inputs!$C$2,'[1]Compact Perf. PC'!$H$378:$X$378,0)) +INDEX('[1]Compact Perf. PC'!$H$379:$X$467,MATCH(S56,'[1]Compact Perf. PC'!$C$379:$C$467,0),MATCH(Inputs!$C$2,'[1]Compact Perf. PC'!$H$378:$X$378,0)) -> 420.0635842 | R54: 10 | Z54: 2012-2016 | AA54: INC | AB54: % | AC54: =AC57 -> 0.06696935301 | AD54: $ | AE54: =INDEX('[1]Compact Perf. PC'!$H$379:$X$467,MATCH(AA56,'[1]Compact Perf. PC'!$C$379:$C$467,0),MATCH(Inputs!$C$2,'[1]Compact Perf. PC'!$H$378:$X$378,0)) +INDEX('[1]Compact Perf. PC'!$H$379:$X$467,MATCH(AG56,'[1]Compact Perf. PC'!$C$379:$C$467,0),MATCH(Inputs!$C$2,'[1]Compact Perf. PC'!$H$378:$X$378,0)) -> -29.2678843 | AF54: 10 | AN54: 2012-2016 | AO54: INC | AP54: % | AQ54: =AQ57 -> 0.06696935301 | AR54: $ | AS54: =INDEX('[1]Compact Perf. PC'!$H$379:$X$467,MATCH(AO56,'[1]Compact Perf. PC'!$C$379:$C$467,0),MATCH(Inputs!$C$2,'[1]Compact Perf. PC'!$H$378:$X$378,0)) +INDEX('[1]Compact Perf. PC'!$H$379:$X$467,MATCH(AU56,'[1]Compact Perf. PC'!$C$379:$C$467,0),MATCH(Inputs!$C$2,'[1]Compact Perf. PC'!$H$378:$X$378,0)) -> 523.4808405 | AT54: 10 | BB54: 2012-2016 | BC54: INC | BD54: % | BE54: =BE57 -> 0.0720197369 | BF54: $ | BG54: =INDEX('[1]Subcompact PC'!$H$530:$X$541,MATCH(BC56,'[1]Subcompact PC'!$C$530:$C$541,0),MATCH(Inputs!$C$2,'[1]Subcompact PC'!$H$529:$X$529,0)) +INDEX('[1]Subcompact PC'!$H$530:$X$541,MATCH(BI56,'[1]Subcompact PC'!$C$530:$C$541,0),MATCH(Inputs!$C$2,'[1]Subcompact PC'!$H$529:$X$529,0)) -> 409.712641 | BH54: 10 | BP54: 2012-2016 | BQ54: INC | BR54: % | BS54: =BS57 -> 0.06696935301 | BT54: $ | BU54: =INDEX('[1]Subcompact PC'!$H$530:$X$541,MATCH(BQ56,'[1]Subcompact PC'!$C$530:$C$541,0),MATCH(Inputs!$C$2,'[1]Subcompact PC'!$H$529:$X$529,0)) +INDEX('[1]Subcompact PC'!$H$530:$X$541,MATCH(BW56,'[1]Subcompact PC'!$C$530:$C$541,0),MATCH(Inputs!$C$2,'[1]Subcompact PC'!$H$529:$X$529,0)) -> -166.7604639 | BV54: 10 | CD54: 2012-2016 | CE54: INC | CF54: % | CG54: =CG57 -> 0.06696935301 | CH54: $ | CI54: =INDEX('[1]Subcompact PC'!$H$530:$X$541,MATCH(CE56,'[1]Subcompact PC'!$C$530:$C$541,0),MATCH(Inputs!$C$2,'[1]Subcompact PC'!$H$529:$X$529,0)) +INDEX('[1]Subcompact PC'!$H$530:$X$541,MATCH(CK56,'[1]Subcompact PC'!$C$530:$C$541,0),MATCH(Inputs!$C$2,'[1]Subcompact PC'!$H$529:$X$529,0)) -> 372.4186205 | CJ54: 10 | CR54: 2012-2016 | CS54: INC | CT54: % | CU54: =CU57 -> 0.06484641638 | CV54: $ | CW54: =INDEX('[1]Subcompact PC'!$H$530:$X$541,MATCH(CS56,'[1]Subcompact PC'!$C$530:$C$541,0),MATCH(Inputs!$C$2,'[1]Subcompact PC'!$H$529:$X$529,0)) +INDEX('[1]Subcompact PC'!$H$530:$X$541,MATCH(CY56,'[1]Subcompact PC'!$C$530:$C$541,0),MATCH(Inputs!$C$2,'[1]Subcompact PC'!$H$529:$X$529,0)) -> 409.712641 | CX54: 10 | DF54: 2012-2016 | DG54: INC | DH54: % | DI54: =DI57 -> 0.06484641638 | DJ54: $ | DK54: =INDEX('[1]Subcompact PC'!$H$530:$X$541,MATCH(DG56,'[1]Subcompact PC'!$C$530:$C$541,0),MATCH(Inputs!$C$2,'[1]Subcompact PC'!$H$529:$X$529,0)) +INDEX('[1]Subcompact PC'!$H$530:$X$541,MATCH(DM56,'[1]Subcompact PC'!$C$530:$C$541,0),MATCH(Inputs!$C$2,'[1]Subcompact PC'!$H$529:$X$529,0)) -> -166.7604639 | DL54: 10 | DT54: 2012-2016 | DU54: INC | DV54: % | DW54: =DW57 -> 0.06484641638 | DX54: $ | DY54: =INDEX('[1]Subcompact PC'!$H$530:$X$541,MATCH(DU56,'[1]Subcompact PC'!$C$530:$C$541,0),MATCH(Inputs!$C$2,'[1]Subcompact PC'!$H$529:$X$529,0)) +INDEX('[1]Subcompact PC'!$H$530:$X$541,MATCH(EA56,'[1]Subcompact PC'!$C$530:$C$541,0),MATCH(Inputs!$C$2,'[1]Subcompact PC'!$H$529:$X$529,0)) -> 372.4186205 | DZ54: 10 | EH54: 2012-2016 | EI54: INC | EJ54: % | EK54: =EK57 -> 0.1199002547 | EL54: $ | EM54: =INDEX('[1]Subcompact PC'!$H$530:$X$541,MATCH(EI56,'[1]Subcompact PC'!$C$530:$C$541,0),MATCH(Inputs!$C$2,'[1]Subcompact PC'!$H$529:$X$529,0)) +INDEX('[1]Subcompact PC'!$H$530:$X$541,MATCH(EO56,'[1]Subcompact PC'!$C$530:$C$541,0),MATCH(Inputs!$C$2,'[1]Subcompact PC'!$H$529:$X$529,0)) -> 0 | EN54: 10 | EV54: 2012-2016 | EW54: INC | EX54: % | EY54: =EY57 -> 0.06696935301 | EZ54: $ | FA54: =INDEX('[1]Subcompact PC'!$H$530:$X$541,MATCH(EW56,'[1]Subcompact PC'!$C$530:$C$541,0),MATCH(Inputs!$C$2,'[1]Subcompact PC'!$H$529:$X$529,0)) +INDEX('[1]Subcompact PC'!$H$530:$X$541,MATCH(FC56,'[1]Subcompact PC'!$C$530:$C$541,0),MATCH(Inputs!$C$2,'[1]Subcompact PC'!$H$529:$X$529,0)) -> 533.4862514 | FB54: 10 | FC54: =INDEX('[1]Subcompact PC'!$H$530:$X$541,MATCH(EW56,'[1]Subcompact PC'!$C$530:$C$541,0),MATCH(Inputs!$C$2,'[1]Subcompact PC'!$H$529:$X$529,0)) -> 229.1756154 | FD54: =MATCH(EW56,'[1]Subcompact PC'!$C$530:$C$541,0) -> 9 | FJ54: 2012-2016 | FK54: INC | FL54: % | FM54: =FM57 -> 0.06696935301 | FN54: $ | FO54: =INDEX('[1]Subcompact PC'!$H$530:$X$541,MATCH(FK56,'[1]Subcompact PC'!$C$530:$C$541,0),MATCH(Inputs!$C$2,'[1]Subcompact PC'!$H$529:$X$529,0)) +INDEX('[1]Subcompact PC'!$H$530:$X$541,MATCH(FQ56,'[1]Subcompact PC'!$C$530:$C$541,0),MATCH(Inputs!$C$2,'[1]Subcompact PC'!$H$529:$X$529,0)) -> 1047.461262 | FP54: 10
M55: ABS | N55: % | O55: =1-((1-AC47+AC38)*(1-O54)) -> 0.1697636964 | P55: $ | Q55: =AE47+Q54 -> 1184.696563 | R55: L | AA55: ABS | AB55: % | AC55: =1-((1-AC47)*(1-AC54)) -> 0.1693966839 | AD55: $ | AE55: =AE47+AE54 -> 735.3650943 | AF55: L | AO55: ABS | AP55: % | AQ55: =1-((1-AC47)*(1-AQ54)) -> 0.1693966839 | AR55: $ | AS55: =AE47+AS54 -> 1288.113819 | AT55: L | BC55: ABS | BD55: % | BE55: =1-((1-BS47)*(1-BE54)) -> 0.1738926409 | BF55: $ | BG55: =BU47+BG54 -> 1251.401328 | BH55: L | BQ55: ABS | BR55: % | BS55: =1-((1-BS47)*(1-BS54)) -> 0.1693966839 | BT55: $ | BU55: =BU47+BU54 -> 674.9282225 | BV55: L | CE55: ABS | CF55: % | CG55: =1-((1-BS47)*(1-CG54)) -> 0.1693966839 | CH55: $ | CI55: =BU47+CI54 -> 1214.107307 | CJ55: L | CS55: ABS | CT55: % | CU55: =1-((1-DI47)*(1-CU54)) -> 0.1693966839 | CV55: $ | CW55: =DK47+CW54 -> 1353.075663 | CX55: L | DG55: ABS | DH55: % | DI55: =1-((1-DI47)*(1-DI54)) -> 0.1693966839 | DJ55: $ | DK55: =DK47+DK54 -> 776.6025583 | DL55: L | DU55: ABS | DV55: % | DW55: =1-((1-DI47)*(1-DW54)) -> 0.1693966839 | DX55: $ | DY55: =DK47+DY54 -> 1315.781643 | DZ55: L | EI55: ABS | EJ55: % | EK55: =1-((1-EY47)*(1-EK54)) -> 0.2114306282 | EL55: $ | EM55: =FA47+EM54 -> 711.6795147 | EN55: L | EW55: ABS | EX55: % | EY55: =1-((1-EY47)*(1-EY54)) -> 0.1640045403 | EZ55: $ | FA55: =FA47+FA54 -> 1245.165766 | FB55: L | FK55: ABS | FL55: % | FM55: =1-((1-EY47)*(1-FM54)) -> 0.1640045403 | FN55: $ | FO55: =FA47+FO54 -> 1759.140776 | FP55: L
B56: INTERMEDIATE | M56: TRBDS1_SD_TB | N56: Turbocharging and Downsizing 1 (TRBDS1_SD) - TBL | S56: TRBDS1_SD_DS | AA56: TRBDS1_MD_TB | AB56: Turbocharging and Downsizing 1 (TRBDS1_MD) - TBL | AG56: TRBDS1_MD_DS | AO56: TRBDS1_LD_TB | AP56: Turbocharging and Downsizing 1 (TRBDS1_LD) - TBL | AU56: TRBDS1_LD_DS | BC56: TRBDS1_SD_TB_D | BD56: =$N$56 -> Turbocharging and Downsizing 1 (TRBDS1_SD) - TBL | BI56: TRBDS1_SD_DS_D | BQ56: TRBDS1_MD_TB_D | BR56: Turbocharging and Downsizing 1 (TRBDS1_MD) - TBL | BW56: TRBDS1_MD_DS_D | CE56: TRBDS1_LD_TB_D | CF56: =$AP$56 -> Turbocharging and Downsizing 1 (TRBDS1_LD) - TBL | CK56: TRBDS1_LD_DS_D | CS56: TRBDS1_SD_TB_D | CT56: =$N$56 -> Turbocharging and Downsizing 1 (TRBDS1_SD) - TBL | CY56: TRBDS1_SD_DS_D | DG56: TRBDS1_MD_TB_D | DH56: =$AB$56 -> Turbocharging and Downsizing 1 (TRBDS1_MD) - TBL | DM56: TRBDS1_MD_DS_D | DU56: TRBDS1_LD_TB_D | DV56: =$AP$56 -> Turbocharging and Downsizing 1 (TRBDS1_LD) - TBL | EA56: TRBDS1_LD_DS_D | EI56: TRBDS1_SD_TB_O | EJ56: =$N$56 -> Turbocharging and Downsizing 1 (TRBDS1_SD) - TBL | EO56: TRBDS1_SD_DS_O | EW56: TRBDS1_MD_TB_O | EX56: =$AB$56 -> Turbocharging and Downsizing 1 (TRBDS1_MD) - TBL | FC56: TRBDS1_MD_DS_O | FK56: TRBDS1_LD_TB_O | FL56: =$AP$56 -> Turbocharging and Downsizing 1 (TRBDS1_LD) - TBL | FQ56: TRBDS1_LD_DS_O
A57: Gas Engine Type | B57: I4 | L57: 2017+ | M57: INC | N57: % | O57: =1-((1-O58-AC41)/(1-AC50)) -> 0.0720197369 | P57: $ | Q57: =Q54 -> 420.0635842 | R57: 10 | Z57: 2017+ | AA57: INC | AB57: % | AC57: =1-((1-AC58)/(1-AC50)) -> 0.06696935301 | AD57: $ | AE57: =AE54 -> -29.2678843 | AF57: 10 | AN57: 2017+ | AO57: INC | AP57: % | AQ57: =1-((1-AQ58)/(1-AC50)) -> 0.06696935301 | AR57: $ | AS57: =AS54 -> 523.4808405 | AT57: 10 | BB57: 2017+ | BC57: INC | BD57: % | BE57: =1-((1-BE58-BS41)/(1-BS50)) -> 0.0720197369 | BF57: $ | BG57: =BG54 -> 409.712641 | BH57: 10 | BP57: 2017+ | BQ57: INC | BR57: % | BS57: =1-((1-BS58)/(1-BS50)) -> 0.06696935301 | BT57: $ | BU57: =BU54 -> -166.7604639 | BV57: 10 | CD57: 2017+ | CE57: INC | CF57: % | CG57: =1-((1-CG58)/(1-BS50)) -> 0.06696935301 | CH57: $ | CI57: =CI54 -> 372.4186205 | CJ57: 10 | CR57: 2017+ | CS57: INC | CT57: % | CU57: =1-((1-CU58-DI41)/(1-DI50)) -> 0.06484641638 | CV57: $ | CW57: =CW54 -> 409.712641 | CX57: 10 | DF57: 2017+ | DG57: INC | DH57: % | DI57: =1-((1-DI58)/(1-DI50)) -> 0.06484641638 | DJ57: $ | DK57: =DK54 -> -166.7604639 | DL57: 10 | DT57: 2017+ | DU57: INC | DV57: % | DW57: =1-((1-DW58)/(1-DI50)) -> 0.06484641638 | DX57: $ | DY57: =DY54 -> 372.4186205 | DZ57: 10 | EH57: 2017+ | EI57: INC | EJ57: % | EK57: =1-((1-EK58-EY33)/(1-EY50)) -> 0.1199002547 | EL57: $ | EM57: =EM54 -> 0 | EN57: 10 | EV57: 2017+ | EW57: INC | EX57: % | EY57: =1-((1-EY58)/(1-EY50)) -> 0.06696935301 | EZ57: $ | FA57: =FA54 -> 533.4862514 | FB57: 10 | FJ57: 2017+ | FK57: INC | FL57: % | FM57: =1-((1-FM58)/(1-EY50)) -> 0.06696935301 | FN57: $ | FO57: =FO54 -> 1047.461262 | FP57: 10
A58: Displacement [L] | B58: 1.5 to 2.0 | M58: ABS | N58: % | O58: 0.178 | P58: $ | Q58: =AE50+Q57 -> 1278.957661 | R58: L | AA58: ABS | AB58: % | AC58: =$O58 -> 0.178 | AD58: $ | AE58: =AE50+AE57 -> 829.626192 | AF58: L | AO58: ABS | AP58: % | AQ58: =$O58 -> 0.178 | AR58: $ | AS58: =AE50+AS57 -> 1382.374917 | AT58: L | BC58: ABS | BD58: % | BE58: =$O58 -> 0.178 | BF58: $ | BG58: =BU50+BG57 -> 1345.662425 | BH58: L | BQ58: ABS | BR58: % | BS58: =$O58 -> 0.178 | BT58: $ | BU58: =BU50+BU57 -> 769.1893203 | BV58: L | CE58: ABS | CF58: % | CG58: =$AQ58 -> 0.178 | CH58: $ | CI58: =BU50+CI57 -> 1308.368405 | CJ58: L | CS58: ABS | CT58: % | CU58: =$O58 -> 0.178 | CV58: $ | CW58: =DK50+CW57 -> 1447.336761 | CX58: L | DG58: ABS | DH58: % | DI58: =$AC58 -> 0.178 | DJ58: $ | DK58: =DK50+DK57 -> 870.8636561 | DL58: L | DU58: ABS | DV58: % | DW58: =$AQ58 -> 0.178 | DX58: $ | DY58: =DK50+DY57 -> 1410.04274 | DZ58: L | EI58: ABS | EJ58: % | EK58: =$O58 -> 0.178 | EL58: $ | EM58: =FA50+EM57 -> 805.9406124 | EN58: L | EW58: ABS | EX58: % | EY58: =$AC58 -> 0.178 | EZ58: $ | FA58: =FA50+FA57 -> 1339.426864 | FB58: L | FK58: ABS | FL58: % | FM58: =$AQ58 -> 0.178 | FN58: $ | FO58: =FA50+FO57 -> 1853.401874 | FP58: L
A59: Turbocharger | B59: FGT | BE59: =BE57-$O$57 -> 0 | BG59: =BG57-$Q$57 -> -10.3509432 | BS59: =BS57-$AC$57 -> 0 | BU59: =BU57-$AE$57 -> -137.4925796 | CG59: =CG57-$AQ$57 -> 0 | CI59: =CI57-$AS$57 -> -151.06222 | CU59: =CU57-$O$57 -> -0.007173320518 | CW59: =CW57-$Q$57 -> -10.3509432 | DI59: =DI57-$AC$57 -> -0.002122936626 | DK59: =DK57-$AE$57 -> -137.4925796 | DW59: =DW57-$AQ$57 -> -0.002122936626 | DY59: =DY57-$AS$57 -> -151.06222 | EK59: =EK57-$O$57 -> 0.04788051776 | EM59: =EM57-$Q$57 -> -420.0635842 | EY59: =EY57-$AC$57 -> 0 | FA59: =FA57-$AE$57 -> 562.7541357 | FM59: =FM57-$AQ$57 -> 0 | FO59: =FO57-$AS$57 -> 523.9804211
A60: EGR system | B60: External
A61: Valvetrain | B61: DOHC
A62: After Treatment | B62: 3way cat | L62: 2012-2016 | M62: INC | N62: % | O62: =1-((1-O63)/(1-O55)) -> 0 | P62: $ | Q62: 0 | R62: 0 | Z62: 2012-2016 | AA62: INC | AB62: % | AC62: =1-((1-AC63)/(1-AC55)) -> 0 | AD62: $ | AE62: 0 | AF62: 0 | AN62: 2012-2016 | AO62: INC | AP62: % | AQ62: =1-((1-AQ63)/(1-AQ55)) -> 0 | AR62: $ | AS62: 0 | AT62: 0 | BB62: 2012-2016 | BC62: INC | BD62: % | BE62: =1-((1-BE63)/(1-BE55)) -> 0 | BF62: $ | BG62: =$Q$62 -> 0 | BH62: =$R$62 -> 0 | BP62: 2012-2016 | BQ62: INC | BR62: % | BS62: =1-((1-BS63)/(1-BS55)) -> 0 | BT62: $ | BU62: =$AE$62 -> 0 | BV62: =$AF$62 -> 0 | CD62: 2012-2016 | CE62: INC | CF62: % | CG62: =1-((1-CG63)/(1-CG55)) -> 0 | CH62: $ | CI62: =$AS$62 -> 0 | CJ62: =$AT$62 -> 0 | CR62: 2012-2016 | CS62: INC | CT62: % | CU62: =1-((1-CU63)/(1-CU55)) -> 0 | CV62: $ | CW62: =$Q$62 -> 0 | CX62: =$R$62 -> 0 | DF62: 2012-2016 | DG62: INC | DH62: % | DI62: =1-((1-DI63)/(1-DI55)) -> 0 | DJ62: $ | DK62: =$AE$62 -> 0 | DL62: =$AF$62 -> 0 | DT62: 2012-2016 | DU62: INC | DV62: % | DW62: =1-((1-DW63)/(1-DW55)) -> 0 | DX62: $ | DY62: =$AS$62 -> 0 | DZ62: =$AT$62 -> 0 | EH62: 2012-2016 | EI62: INC | EJ62: % | EK62: =$O$62 -> 0 | EL62: $ | EM62: =$Q$62 -> 0 | EN62: =$R$62 -> 0 | EV62: 2012-2016 | EW62: INC | EX62: % | EY62: =1-((1-EY63)/(1-EY55)) -> 0 | EZ62: $ | FA62: =$AE$62 -> 0 | FB62: =$AF$62 -> 0 | FJ62: 2012-2016 | FK62: INC | FL62: % | FM62: =1-((1-FM63)/(1-FM55)) -> 0 | FN62: $ | FO62: =$AS$62 -> 0 | FP62: =$AT$62 -> 0
M63: ABS | N63: % | O63: =O55 -> 0.1697636964 | P63: $ | Q63: =Q55+Q62 -> 1184.696563 | R63: L | AA63: ABS | AB63: % | AC63: =AC55 -> 0.1693966839 | AD63: $ | AE63: =AE55+AE62 -> 735.3650943 | AF63: L | AO63: ABS | AP63: % | AQ63: =AQ55 -> 0.1693966839 | AR63: $ | AS63: =AS55+AS62 -> 1288.113819 | AT63: L | BC63: ABS | BD63: % | BE63: =BE55 -> 0.1738926409 | BF63: $ | BG63: =BG55+BG62 -> 1251.401328 | BH63: L | BQ63: ABS | BR63: % | BS63: =BS55 -> 0.1693966839 | BT63: $ | BU63: =BU55+BU62 -> 674.9282225 | BV63: L | CE63: ABS | CF63: % | CG63: =CG55 -> 0.1693966839 | CH63: $ | CI63: =CI55+CI62 -> 1214.107307 | CJ63: L | CS63: ABS | CT63: % | CU63: =CU55 -> 0.1693966839 | CV63: $ | CW63: =CW55+CW62 -> 1353.075663 | CX63: L | DG63: ABS | DH63: % | DI63: =DI55 -> 0.1693966839 | DJ63: $ | DK63: =DK55+DK62 -> 776.6025583 | DL63: L | DU63: ABS | DV63: % | DW63: =DW55 -> 0.1693966839 | DX63: $ | DY63: =DY55+DY62 -> 1315.781643 | DZ63: L | EI63: ABS | EJ63: % | EK63: =1-((1-EK55)*(1-EK62)) -> 0.2114306282 | EL63: $ | EM63: =EM55+EM62 -> 711.6795147 | EN63: L | EW63: ABS | EX63: % | EY63: =EY55 -> 0.1640045403 | EZ63: $ | FA63: =FA55+FA62 -> 1245.165766 | FB63: L | FK63: ABS | FL63: % | FM63: =FM55 -> 0.1640045403 | FN63: $ | FO63: =FO55+FO62 -> 1759.140776 | FP63: L
M64: TRBDS2_SD_TB | N64: Turbocharging and Downsizing 2 (TRBDS2_SD) - TBL | S64: TRBDS2_SD_DS | AA64: TRBDS2_MD_TB | AB64: Turbocharging and Downsizing 2 (TRBDS2_MD) - TBL | AG64: TRBDS2_MD_DS | AO64: TRBDS2_LD_TB | AP64: Turbocharging and Downsizing 2 (TRBDS2_LD) - TBL | AU64: TRBDS2_LD_DS | BC64: TRBDS2_SD_TB | BD64: =$N$64 -> Turbocharging and Downsizing 2 (TRBDS2_SD) - TBL | BI64: TRBDS2_SD_DS | BQ64: TRBDS2_MD_TB | BR64: =$AB$64 -> Turbocharging and Downsizing 2 (TRBDS2_MD) - TBL | BW64: TRBDS2_MD_DS | CE64: TRBDS2_LD_TB | CF64: =$AP$64 -> Turbocharging and Downsizing 2 (TRBDS2_LD) - TBL | CK64: TRBDS2_LD_DS | CS64: TRBDS2_SD_TB | CT64: =$N$64 -> Turbocharging and Downsizing 2 (TRBDS2_SD) - TBL | CY64: TRBDS2_SD_DS | DG64: TRBDS2_MD_TB | DH64: =$AB$64 -> Turbocharging and Downsizing 2 (TRBDS2_MD) - TBL | DM64: TRBDS2_MD_DS | DU64: TRBDS2_LD_TB | DV64: Cooled EGR 1 (CEGR1_LD) - TBL | EA64: TRBDS2_LD_DS | EI64: TRBDS2_SD_TB | EJ64: =$N$64 -> Turbocharging and Downsizing 2 (TRBDS2_SD) - TBL | EO64: TRBDS2_SD_DS | EW64: TRBDS2_MD_TB | EX64: =$AB$64 -> Turbocharging and Downsizing 2 (TRBDS2_MD) - TBL | FC64: TRBDS2_MD_DS | FK64: TRBDS2_LD_TB | FL64: Cooled EGR 1 (CEGR1_LD) - TBL | FQ64: TRBDS2_LD_DS
B65: INTERMEDIATE | L65: 2017+ | M65: INC | N65: % | O65: =1-((1-O66)/(1-O58)) -> 0.02919708029 | P65: $ | Q65: =INDEX('[1]Large PC'!$H$379:$X$467,MATCH(M64,'[1]Large PC'!$C$379:$C$467,0),MATCH(Inputs!$C$2,'[1]Large PC'!$H$378:$X$378,0)) +INDEX('[1]Large PC'!$H$379:$X$467,MATCH(S64,'[1]Large PC'!$C$379:$C$467,0),MATCH(Inputs!$C$2,'[1]Large PC'!$H$378:$X$378,0)) -> 19.91424688 | R65: 10 | Z65: 2017+ | AA65: INC | AB65: % | AC65: =1-((1-AC66)/(1-AC58)) -> 0.02919708029 | AD65: $ | AE65: =INDEX('[1]Compact Perf. PC'!$H$379:$X$467,MATCH(AA64,'[1]Compact Perf. PC'!$C$379:$C$467,0),MATCH(Inputs!$C$2,'[1]Compact Perf. PC'!$H$378:$X$378,0)) +INDEX('[1]Compact Perf. PC'!$H$379:$X$467,MATCH(AG64,'[1]Compact Perf. PC'!$C$379:$C$467,0),MATCH(Inputs!$C$2,'[1]Compact Perf. PC'!$H$378:$X$378,0)) -> 247.5936885 | AF65: 10 | AN65: 2017+ | AO65: INC | AP65: % | AQ65: =1-((1-AQ66)/(1-AQ58)) -> 0.02919708029 | AR65: $ | AS65: =INDEX('[1]Compact Perf. PC'!$H$379:$X$467,MATCH(AO64,'[1]Compact Perf. PC'!$C$379:$C$467,0),MATCH(Inputs!$C$2,'[1]Compact Perf. PC'!$H$378:$X$378,0)) +INDEX('[1]Compact Perf. PC'!$H$379:$X$467,MATCH(AU64,'[1]Compact Perf. PC'!$C$379:$C$467,0),MATCH(Inputs!$C$2,'[1]Compact Perf. PC'!$H$378:$X$378,0)) -> 417.3547076 | AT65: 10 | BB65: 2017+ | BC65: INC | BD65: % | BE65: =1-((1-BE66)/(1-BE58)) -> 0.02919708029 | BF65: $ | BG65: =$Q65 -> 19.91424688 | BH65: =$R$65 -> 10 | BP65: 2017+ | BQ65: INC | BR65: % | BS65: =1-((1-BS66)/(1-BS58)) -> 0.02919708029 | BT65: $ | BU65: =$AE$65 -> 247.5936885 | BV65: =$AF$65 -> 10 | CD65: 2017+ | CE65: INC | CF65: % | CG65: =1-((1-CG66)/(1-CG58)) -> 0.02919708029 | CH65: $ | CI65: =$AS$65 -> 417.3547076 | CJ65: =$AT$65 -> 10 | CR65: 2017+ | CS65: INC | CT65: % | CU65: =1-((1-CU66)/(1-CU58)) -> 0.02919708029 | CV65: $ | CW65: =$Q65 -> 19.91424688 | CX65: =$R$65 -> 10 | DF65: 2017+ | DG65: INC | DH65: % | DI65: =1-((1-DI66)/(1-DI58)) -> 0.02919708029 | DJ65: $ | DK65: =$AE$65 -> 247.5936885 | DL65: =$AF$65 -> 10 | DT65: 2017+ | DU65: INC | DV65: % | DW65: =1-((1-DW66)/(1-DW58)) -> 0.02919708029 | DX65: $ | DY65: =$AS$65 -> 417.3547076 | DZ65: =$AT$65 -> 10 | EH65: 2017+ | EI65: INC | EJ65: % | EK65: =1-((1-EK66)/(1-EK58)) -> 0.02919708029 | EL65: $ | EM65: =$Q65 -> 19.91424688 | EN65: =$R$65 -> 10 | EV65: 2017+ | EW65: INC | EX65: % | EY65: =1-((1-EY66)/(1-EY58)) -> 0.02919708029 | EZ65: $ | FA65: =$AE$65 -> 247.5936885 | FB65: =$AF$65 -> 10 | FJ65: 2017+ | FK65: INC | FL65: % | FM65: =1-((1-FM66)/(1-FM58)) -> 0.02919708029 | FN65: $ | FO65: =$AS$65 -> 417.3547076 | FP65: =$AT$65 -> 10
A66: Gas Engine Type | B66: I4 | M66: ABS | N66: % | O66: 0.202 | P66: $ | Q66: =Q58+Q65 -> 1298.871907 | R66: L | AA66: ABS | AB66: % | AC66: =$O66 -> 0.202 | AD66: $ | AE66: =AE58+AE65 -> 1077.219881 | AF66: L | AO66: ABS | AP66: % | AQ66: =$O66 -> 0.202 | AR66: $ | AS66: =AS58+AS65 -> 1799.729624 | AT66: L | BC66: ABS | BD66: % | BE66: =$O66 -> 0.202 | BF66: $ | BG66: =BG58+BG65 -> 1365.576672 | BH66: L | BQ66: ABS | BR66: % | BS66: =$O66 -> 0.202 | BT66: $ | BU66: =BU58+BU65 -> 1016.783009 | BV66: L | CE66: ABS | CF66: % | CG66: =$AQ66 -> 0.202 | CH66: $ | CI66: =CI58+CI65 -> 1725.723112 | CJ66: L | CS66: ABS | CT66: % | CU66: =$O66 -> 0.202 | CV66: $ | CW66: =CW58+CW65 -> 1467.251008 | CX66: L | DG66: ABS | DH66: % | DI66: =$AC66 -> 0.202 | DJ66: $ | DK66: =DK58+DK65 -> 1118.457345 | DL66: L | DU66: ABS | DV66: % | DW66: =$AQ66 -> 0.202 | DX66: $ | DY66: =DY58+DY65 -> 1827.397448 | DZ66: L | EI66: ABS | EJ66: % | EK66: =$O66 -> 0.202 | EL66: $ | EM66: =EM58+EM65 -> 825.8548593 | EN66: L | EW66: ABS | EX66: % | EY66: =$AC66 -> 0.202 | EZ66: $ | FA66: =FA58+FA65 -> 1587.020552 | FB66: L | FK66: ABS | FL66: % | FM66: =$AQ66 -> 0.202 | FN66: $ | FO66: =FO58+FO65 -> 2270.756582 | FP66: L
A67: Displacement [L] | B67: 1
A68: Turbocharger | B68: FGT
A69: EGR system | B69: External
A70: Valvetrain | B70: DOHC | L70: 2012-2016 | M70: INC | N70: % | O70: =1-((1-O71)/(1-O63)) -> 0 | P70: $ | Q70: 0 | R70: 0 | Z70: 2012-2016 | AA70: INC | AB70: % | AC70: =1-((1-AC71)/(1-AC63)) -> 0 | AD70: $ | AE70: 0 | AF70: 0 | AN70: 2012-2016 | AO70: INC | AP70: % | AQ70: =1-((1-AQ71)/(1-AQ63)) -> 0 | AR70: $ | AS70: 0 | AT70: 0 | BB70: 2012-2016 | BC70: INC | BD70: % | BE70: =1-((1-BE71)/(1-BE63)) -> 0 | BF70: $ | BG70: =$Q$70 -> 0 | BH70: =$R$70 -> 0 | BP70: 2012-2016 | BQ70: INC | BR70: % | BS70: =1-((1-BS71)/(1-BS63)) -> 0 | BT70: $ | BU70: =$AE$70 -> 0 | BV70: =$AF$70 -> 0 | CD70: 2012-2016 | CE70: INC | CF70: % | CG70: =1-((1-CG71)/(1-CG63)) -> 0 | CH70: $ | CI70: =$AS$70 -> 0 | CJ70: =$AT$70 -> 0 | CR70: 2012-2016 | CS70: INC | CT70: % | CU70: =1-((1-CU71)/(1-CU63)) -> 0 | CV70: $ | CW70: =$Q$70 -> 0 | CX70: =$R$70 -> 0 | DF70: 2012-2016 | DG70: INC | DH70: % | DI70: =1-((1-DI71)/(1-DI63)) -> 0 | DJ70: $ | DK70: =$AE$70 -> 0 | DL70: =$AF$70 -> 0 | DT70: 2012-2016 | DU70: INC | DV70: % | DW70: =1-((1-DW71)/(1-DW63)) -> 0 | DX70: $ | DY70: =$AS$70 -> 0 | DZ70: =$AT$70 -> 0 | EH70: 2012-2016 | EI70: INC | EJ70: % | EK70: =1-((1-EK71)/(1-EK63)) -> 0 | EL70: $ | EM70: =$Q$70 -> 0 | EN70: =$R$70 -> 0 | EV70: 2012-2016 | EW70: INC | EX70: % | EY70: =1-((1-EY71)/(1-EY63)) -> 0 | EZ70: $ | FA70: =$AE$70 -> 0 | FB70: =$AF$70 -> 0 | FJ70: 2012-2016 | FK70: INC | FL70: % | FM70: =1-((1-FM71)/(1-FM63)) -> 0 | FN70: $ | FO70: =$AS$70 -> 0 | FP70: =$AT$70 -> 0
A71: After Treatment | B71: 3way cat | M71: ABS | N71: % | O71: =O63 -> 0.1697636964 | P71: $ | Q71: =Q63+Q70 -> 1184.696563 | R71: L | AA71: ABS | AB71: % | AC71: =AC63 -> 0.1693966839 | AD71: $ | AE71: =AE63+AE70 -> 735.3650943 | AF71: L | AO71: ABS | AP71: % | AQ71: =AQ63 -> 0.1693966839 | AR71: $ | AS71: =AS63+AS70 -> 1288.113819 | AT71: L | BC71: ABS | BD71: % | BE71: =BE63 -> 0.1738926409 | BF71: $ | BG71: =BG63+BG70 -> 1251.401328 | BH71: L | BQ71: ABS | BR71: % | BS71: =BS63 -> 0.1693966839 | BT71: $ | BU71: =BU63+BU70 -> 674.9282225 | BV71: L | CE71: ABS | CF71: % | CG71: =CG63 -> 0.1693966839 | CH71: $ | CI71: =CI63+CI70 -> 1214.107307 | CJ71: L | CS71: ABS | CT71: % | CU71: =CU63 -> 0.1693966839 | CV71: $ | CW71: =CW63+CW70 -> 1353.075663 | CX71: L | DG71: ABS | DH71: % | DI71: =DI63 -> 0.1693966839 | DJ71: $ | DK71: =DK63+DK70 -> 776.6025583 | DL71: L | DU71: ABS | DV71: % | DW71: =DW63 -> 0.1693966839 | DX71: $ | DY71: =DY63+DY70 -> 1315.781643 | DZ71: L | EI71: ABS | EJ71: % | EK71: =EK63 -> 0.2114306282 | EL71: $ | EM71: =EM63+EM70 -> 711.6795147 | EN71: L | EW71: ABS | EX71: % | EY71: =EY63 -> 0.1640045403 | EZ71: $ | FA71: =FA63+FA70 -> 1245.165766 | FB71: L | FK71: ABS | FL71: % | FM71: =FM63 -> 0.1640045403 | FN71: $ | FO71: =FO63+FO70 -> 1759.140776 | FP71: L
M72: CEGR1_SD_TB | N72: Cooled EGR 1 (CEGR1_SD) - TBL | S72: CEGR1_SD_DS | AA72: CEGR1_MD_TB | AB72: Cooled EGR 1 (CEGR1_MD) - TBL | AG72: CEGR1_MD_DS | AO72: CEGR1_LD_TB | AP72: Cooled EGR 1 (CEGR1_LD) - TBL | AU72: CEGR1_LD_DS | BC72: CEGR1_SD_TB | BD72: =$N$72 -> Cooled EGR 1 (CEGR1_SD) - TBL | BI72: CEGR1_SD_DS | BQ72: CEGR1_MD_TB | BR72: =$AB$72 -> Cooled EGR 1 (CEGR1_MD) - TBL | BW72: CEGR1_MD_DS | CE72: CEGR1_LD_TB | CF72: =$AP$72 -> Cooled EGR 1 (CEGR1_LD) - TBL | CK72: CEGR1_LD_DS | CS72: CEGR1_SD_TB | CT72: =$N$72 -> Cooled EGR 1 (CEGR1_SD) - TBL | CY72: CEGR1_SD_DS | DG72: CEGR1_MD_TB | DH72: =$AB$72 -> Cooled EGR 1 (CEGR1_MD) - TBL | DM72: CEGR1_MD_DS | DU72: CEGR1_LD_TB | DV72: =$AP$72 -> Cooled EGR 1 (CEGR1_LD) - TBL | EA72: CEGR1_LD_DS | EI72: CEGR1_SD_TB | EJ72: =$N$72 -> Cooled EGR 1 (CEGR1_SD) - TBL | EO72: CEGR1_SD_DS | EW72: CEGR1_MD_TB | EX72: =$AB$72 -> Cooled EGR 1 (CEGR1_MD) - TBL | FC72: CEGR1_MD_DS | FK72: CEGR1_LD_TB | FL72: =$AP$72 -> Cooled EGR 1 (CEGR1_LD) - TBL | FQ72: CEGR1_LD_DS
L73: 2017+ | M73: INC | N73: % | O73: =1-((1-O74)/(1-O66)) -> 0.03634085213 | P73: $ | Q73: =INDEX('[1]Large Perf. PC'!$H$379:$X$467,MATCH(M72,'[1]Large Perf. PC'!$C$379:$C$467,0),MATCH(Inputs!$C$2,'[1]Large Perf. PC'!$H$378:$X$378,0)) +INDEX('[1]Large Perf. PC'!$H$379:$X$467,MATCH(S72,'[1]Large Perf. PC'!$C$379:$C$467,0),MATCH(Inputs!$C$2,'[1]Large Perf. PC'!$H$378:$X$378,0)) -> 285.1546693 | R73: 10 | Z73: 2017+ | AA73: INC | AB73: % | AC73: =1-((1-AC74)/(1-AC66)) -> 0.03634085213 | AD73: $ | AE73: =INDEX('[1]Compact Perf. PC'!$H$379:$X$467,MATCH(AA72,'[1]Compact Perf. PC'!$C$379:$C$467,0),MATCH(Inputs!$C$2,'[1]Compact Perf. PC'!$H$378:$X$378,0)) +INDEX('[1]Compact Perf. PC'!$H$379:$X$467,MATCH(AG72,'[1]Compact Perf. PC'!$C$379:$C$467,0),MATCH(Inputs!$C$2,'[1]Compact Perf. PC'!$H$378:$X$378,0)) -> 285.1546693 | AF73: 10 | AN73: 2017+ | AO73: INC | AP73: % | AQ73: =1-((1-AQ74)/(1-AQ66)) -> 0.03634085213 | AR73: $ | AS73: =INDEX('[1]Compact Perf. PC'!$H$379:$X$467,MATCH(AO72,'[1]Compact Perf. PC'!$C$379:$C$467,0),MATCH(Inputs!$C$2,'[1]Compact Perf. PC'!$H$378:$X$378,0)) +INDEX('[1]Compact Perf. PC'!$H$379:$X$467,MATCH(AU72,'[1]Compact Perf. PC'!$C$379:$C$467,0),MATCH(Inputs!$C$2,'[1]Compact Perf. PC'!$H$378:$X$378,0)) -> 285.1546693 | AT73: 10 | BB73: 2017+ | BC73: INC | BD73: % | BE73: =$O$73 -> 0.03634085213 | BF73: $ | BG73: =$Q$73 -> 285.1546693 | BH73: =$R$73 -> 10 | BP73: 2017+ | BQ73: INC | BR73: % | BS73: =$AC$73 -> 0.03634085213 | BT73: $ | BU73: =$AE$73 -> 285.1546693 | BV73: =$AF$73 -> 10 | CD73: 2017+ | CE73: INC | CF73: % | CG73: =$AQ$73 -> 0.03634085213 | CH73: $ | CI73: =$AS$73 -> 285.1546693 | CJ73: =$AT$73 -> 10 | CR73: 2017+ | CS73: INC | CT73: % | CU73: =$O$73 -> 0.03634085213 | CV73: $ | CW73: =$Q$73 -> 285.1546693 | CX73: =$R$73 -> 10 | DF73: 2017+ | DG73: INC | DH73: % | DI73: =$AC$73 -> 0.03634085213 | DJ73: $ | DK73: =$AE$73 -> 285.1546693 | DL73: =$AF$73 -> 10 | DT73: 2017+ | DU73: INC | DV73: % | DW73: =$AQ$73 -> 0.03634085213 | DX73: $ | DY73: =$AS$73 -> 285.1546693 | DZ73: =$AT$73 -> 10 | EH73: 2017+ | EI73: INC | EJ73: % | EK73: =$O$73 -> 0.03634085213 | EL73: $ | EM73: =$Q$73 -> 285.1546693 | EN73: =$R$73 -> 10 | EV73: 2017+ | EW73: INC | EX73: % | EY73: =$AC$73 -> 0.03634085213 | EZ73: $ | FA73: =$AE$73 -> 285.1546693 | FB73: =$AF$73 -> 10 | FJ73: 2017+ | FK73: INC | FL73: % | FM73: =$AQ$73 -> 0.03634085213 | FN73: $ | FO73: =$AS$73 -> 285.1546693 | FP73: =$AT$73 -> 10
M74: ABS | N74: % | O74: 0.231 | P74: $ | Q74: =Q66+Q73 -> 1584.026577 | R74: L | AA74: ABS | AB74: % | AC74: =O74 -> 0.231 | AD74: $ | AE74: =AE66+AE73 -> 1362.37455 | AF74: L | AO74: ABS | AP74: % | AQ74: =O74 -> 0.231 | AR74: $ | AS74: =AS66+AS73 -> 2084.884294 | AT74: L | BC74: ABS | BD74: % | BE74: =1-((1-BE66)*(1-BE73)) -> 0.231 | BF74: $ | BG74: =BG66+BG73 -> 1650.731341 | BH74: L | BQ74: ABS | BR74: % | BS74: =$O74 -> 0.231 | BT74: $ | BU74: =BU66+BU73 -> 1301.937678 | BV74: L | CE74: ABS | CF74: % | CG74: =$AQ74 -> 0.231 | CH74: $ | CI74: =CI66+CI73 -> 2010.877782 | CJ74: L | CS74: ABS | CT74: % | CU74: =$O74 -> 0.231 | CV74: $ | CW74: =CW66+CW73 -> 1752.405677 | CX74: L | DG74: ABS | DH74: % | DI74: =$AC74 -> 0.231 | DJ74: $ | DK74: =DK66+DK73 -> 1403.612014 | DL74: L | DU74: ABS | DV74: % | DW74: =$AQ74 -> 0.231 | DX74: $ | DY74: =DY66+DY73 -> 2112.552117 | DZ74: L | EI74: ABS | EJ74: % | EK74: =$O74 -> 0.231 | EL74: $ | EM74: =EM66+EM73 -> 1111.009529 | EN74: L | EW74: ABS | EX74: % | EY74: =$AC74 -> 0.231 | EZ74: $ | FA74: =FA66+FA73 -> 1872.175222 | FB74: L | FK74: ABS | FL74: % | FM74: =$AQ74 -> 0.231 | FN74: $ | FO74: =FO66+FO73 -> 2555.911251 | FP74: L
L78: 2012-2016 | M78: INC | N78: % | O78: =1-((1-O79)/(1-O71)) -> 0 | P78: $ | Q78: 0 | R78: 0 | Z78: 2012-2016 | AA78: INC | AB78: % | AC78: =1-((1-AC79)/(1-AC71)) -> 0 | AD78: $ | AE78: 0 | AF78: 0 | AN78: 2012-2016 | AO78: INC | AP78: % | AQ78: =1-((1-AQ79)/(1-AQ71)) -> 0 | AR78: $ | AS78: 0 | AT78: 0 | BB78: 2012-2016 | BC78: INC | BD78: % | BE78: =1-((1-BE79)/(1-BE71)) -> 0 | BF78: $ | BG78: =$Q$78 -> 0 | BH78: =$R$78 -> 0 | BP78: 2012-2016 | BQ78: INC | BR78: % | BS78: =1-((1-BS79)/(1-BS71)) -> 0 | BT78: $ | BU78: =$AE$78 -> 0 | BV78: =$AF$78 -> 0 | CD78: 2012-2016 | CE78: INC | CF78: % | CG78: =1-((1-CG79)/(1-CG71)) -> 0 | CH78: $ | CI78: =$AS$78 -> 0 | CJ78: =$AT$78 -> 0 | CR78: 2012-2016 | CS78: INC | CT78: % | CU78: =1-((1-CU79)/(1-CU71)) -> 0 | CV78: $ | CW78: =$Q$78 -> 0 | CX78: =$R$78 -> 0 | DF78: 2012-2016 | DG78: INC | DH78: % | DI78: =1-((1-DI79)/(1-DI71)) -> 0 | DJ78: $ | DK78: =$AE$78 -> 0 | DL78: =$AF$78 -> 0 | DT78: 2012-2016 | DU78: INC | DV78: % | DW78: =1-((1-DW79)/(1-DW71)) -> 0 | DX78: $ | DY78: =$AS$78 -> 0 | DZ78: =$AT$78 -> 0 | EH78: 2012-2016 | EI78: INC | EJ78: % | EK78: =1-((1-EK79)/(1-EK71)) -> 0 | EL78: $ | EM78: =$Q$78 -> 0 | EN78: =$R$78 -> 0 | EV78: 2012-2016 | EW78: INC | EX78: % | EY78: =1-((1-EY79)/(1-EY71)) -> 0 | EZ78: $ | FA78: =$AE$78 -> 0 | FB78: =$AF$78 -> 0 | FJ78: 2012-2016 | FK78: INC | FL78: % | FM78: =1-((1-FM79)/(1-FM71)) -> 0 | FN78: $ | FO78: =$AS$78 -> 0 | FP78: =$AT$78 -> 0
M79: ABS | N79: % | O79: =O71 -> 0.1697636964 | P79: $ | Q79: =Q71+Q78 -> 1184.696563 | R79: L | AA79: ABS | AB79: % | AC79: =AC71 -> 0.1693966839 | AD79: $ | AE79: =AE71+AE78 -> 735.3650943 | AF79: L | AO79: ABS | AP79: % | AQ79: =AQ71 -> 0.1693966839 | AR79: $ | AS79: =AS71+AS78 -> 1288.113819 | AT79: L | BC79: ABS | BD79: % | BE79: =BE71 -> 0.1738926409 | BF79: $ | BG79: =BG71+BG78 -> 1251.401328 | BH79: L | BQ79: ABS | BR79: % | BS79: =BS71 -> 0.1693966839 | BT79: $ | BU79: =BU71+BU78 -> 674.9282225 | BV79: L | CE79: ABS | CF79: % | CG79: =CG71 -> 0.1693966839 | CH79: $ | CI79: =CI71+CI78 -> 1214.107307 | CJ79: L | CS79: ABS | CT79: % | CU79: =CU71 -> 0.1693966839 | CV79: $ | CW79: =CW71+CW78 -> 1353.075663 | CX79: L | DG79: ABS | DH79: % | DI79: =DI71 -> 0.1693966839 | DJ79: $ | DK79: =DK71+DK78 -> 776.6025583 | DL79: L | DU79: ABS | DV79: % | DW79: =DW71 -> 0.1693966839 | DX79: $ | DY79: =DY71+DY78 -> 1315.781643 | DZ79: L | EI79: ABS | EJ79: % | EK79: =EK71 -> 0.2114306282 | EL79: $ | EM79: =EM71+EM78 -> 711.6795147 | EN79: L | EW79: ABS | EX79: % | EY79: =EY71 -> 0.1640045403 | EZ79: $ | FA79: =FA71+FA78 -> 1245.165766 | FB79: L | FK79: ABS | FL79: % | FM79: =FM71 -> 0.1640045403 | FN79: $ | FO79: =FO71+FO78 -> 1759.140776 | FP79: L
M80: CEGR2_SD_TB | N80: Cooled EGR 2 (CEGR2_SD) - TBL | S80: CEGR2_SD_DS | AA80: CEGR2_MD_TB | AB80: Cooled EGR 2 (CEGR2_MD) - TBL | AG80: CEGR2_MD_DS | AO80: CEGR2_LD_TB | AP80: Cooled EGR 2 (CEGR2_LD) - TBL | AU80: CEGR2_LD_DS | BC80: CEGR2_SD_TB | BD80: =$N$80 -> Cooled EGR 2 (CEGR2_SD) - TBL | BI80: CEGR2_SD_DS | BQ80: CEGR2_MD_TB | BR80: =$AB$80 -> Cooled EGR 2 (CEGR2_MD) - TBL | BW80: CEGR2_MD_DS | CE80: CEGR2_LD_TB | CF80: =$AP$80 -> Cooled EGR 2 (CEGR2_LD) - TBL | CK80: CEGR2_LD_DS | CS80: CEGR2_SD_TB | CT80: =$N$80 -> Cooled EGR 2 (CEGR2_SD) - TBL | CY80: CEGR2_SD_DS | DG80: CEGR2_MD_TB | DH80: =$AB$80 -> Cooled EGR 2 (CEGR2_MD) - TBL | DM80: CEGR2_MD_DS | DU80: CEGR2_LD_TB | DV80: =$AP$80 -> Cooled EGR 2 (CEGR2_LD) - TBL | EA80: CEGR2_LD_DS | EI80: CEGR2_SD_TB | EJ80: =$N$80 -> Cooled EGR 2 (CEGR2_SD) - TBL | EO80: CEGR2_SD_DS | EW80: CEGR2_MD_TB | EX80: =$AB$80 -> Cooled EGR 2 (CEGR2_MD) - TBL | FC80: CEGR2_MD_DS | FK80: CEGR2_LD_TB | FL80: =$AP$80 -> Cooled EGR 2 (CEGR2_LD) - TBL | FQ80: CEGR2_LD_DS
B81: STOP | L81: 2017+ | M81: INC | N81: % | O81: =1-((1-O82)/(1-O74)) -> 0.01040312094 | P81: $ | Q81: =INDEX('[1]Compact Perf. PC'!$H$379:$X$467,MATCH(M80,'[1]Compact Perf. PC'!$C$379:$C$467,0),MATCH(Inputs!$C$2,'[1]Compact Perf. PC'!$H$378:$X$378,0)) +INDEX('[1]Compact Perf. PC'!$H$379:$X$467,MATCH(S80,'[1]Compact Perf. PC'!$C$379:$C$467,0),MATCH(Inputs!$C$2,'[1]Compact Perf. PC'!$H$378:$X$378,0)) -> 495.187377 | R81: 10 | Z81: 2017+ | AA81: INC | AB81: % | AC81: =1-((1-AC82)/(1-AC74)) -> 0.01040312094 | AD81: $ | AE81: =INDEX('[1]Compact Perf. PC'!$H$379:$X$467,MATCH(AA80,'[1]Compact Perf. PC'!$C$379:$C$467,0),MATCH(Inputs!$C$2,'[1]Compact Perf. PC'!$H$378:$X$378,0)) +INDEX('[1]Compact Perf. PC'!$H$379:$X$467,MATCH(AG80,'[1]Compact Perf. PC'!$C$379:$C$467,0),MATCH(Inputs!$C$2,'[1]Compact Perf. PC'!$H$378:$X$378,0)) -> 495.187377 | AF81: 10 | AN81: 2017+ | AO81: INC | AP81: % | AQ81: =1-((1-AQ82)/(1-AQ74)) -> 0.01040312094 | AR81: $ | AS81: =INDEX('[1]Compact Perf. PC'!$H$379:$X$467,MATCH(AO80,'[1]Compact Perf. PC'!$C$379:$C$467,0),MATCH(Inputs!$C$2,'[1]Compact Perf. PC'!$H$378:$X$378,0)) +INDEX('[1]Compact Perf. PC'!$H$379:$X$467,MATCH(AU80,'[1]Compact Perf. PC'!$C$379:$C$467,0),MATCH(Inputs!$C$2,'[1]Compact Perf. PC'!$H$378:$X$378,0)) -> -296.6729836 | AT81: 10 | BB81: 2017+ | BC81: INC | BD81: % | BE81: =$O$81 -> 0.01040312094 | BF81: $ | BG81: =$Q$81 -> 495.187377 | BH81: =$R$81 -> 10 | BP81: 2017+ | BQ81: INC | BR81: % | BS81: =$AC$81 -> 0.01040312094 | BT81: $ | BU81: =$AE$81 -> 495.187377 | BV81: =$AF$81 -> 10 | CD81: 2017+ | CE81: INC | CF81: % | CG81: =$AQ$81 -> 0.01040312094 | CH81: $ | CI81: =$AS$81 -> -296.6729836 | CJ81: =$AT$81 -> 10 | CR81: 2017+ | CS81: INC | CT81: % | CU81: =$O$81 -> 0.01040312094 | CV81: $ | CW81: =$Q$81 -> 495.187377 | CX81: =$R$81 -> 10 | DF81: 2017+ | DG81: INC | DH81: % | DI81: =$AC$81 -> 0.01040312094 | DJ81: $ | DK81: =$AE$81 -> 495.187377 | DL81: =$AF$81 -> 10 | DT81: 2017+ | DU81: INC | DV81: % | DW81: =$AQ$81 -> 0.01040312094 | DX81: $ | DY81: =$AS$81 -> -296.6729836 | DZ81: =$AT$81 -> 10 | EH81: 2017+ | EI81: INC | EJ81: % | EK81: =$O$81 -> 0.01040312094 | EL81: $ | EM81: =$Q$81 -> 495.187377 | EN81: =$R$81 -> 10 | EV81: 2017+ | EW81: INC | EX81: % | EY81: =$AC$81 -> 0.01040312094 | EZ81: $ | FA81: =$AE$81 -> 495.187377 | FB81: =$AF$81 -> 10 | FJ81: 2017+ | FK81: INC | FL81: % | FM81: =$AQ$81 -> 0.01040312094 | FN81: $ | FO81: =$AS$81 -> -296.6729836 | FP81: =$AT$81 -> 10
A82: Diesel Engine Type | B82: I4 | M82: ABS | N82: % | O82: 0.239 | P82: $ | Q82: =Q74+Q81 -> 2079.213954 | R82: L | AA82: ABS | AB82: % | AC82: =O82 -> 0.239 | AD82: $ | AE82: =AE74+AE81 -> 1857.561927 | AF82: L | AO82: ABS | AP82: % | AQ82: =O82 -> 0.239 | AR82: $ | AS82: =AS74+AS81 -> 1788.21131 | AT82: L | BC82: ABS | BD82: % | BE82: =1-((1-BE74)*(1-BE81)) -> 0.239 | BF82: $ | BG82: =BG74+BG81 -> 2145.918718 | BH82: L | BQ82: ABS | BR82: % | BS82: =$O82 -> 0.239 | BT82: $ | BU82: =BU74+BU81 -> 1797.125055 | BV82: L | CE82: ABS | CF82: % | CG82: =$AQ82 -> 0.239 | CH82: $ | CI82: =CI74+CI81 -> 1714.204798 | CJ82: L | CS82: ABS | CT82: % | CU82: =$O82 -> 0.239 | CV82: $ | CW82: =CW74+CW81 -> 2247.593054 | CX82: L | DG82: ABS | DH82: % | DI82: =$AC82 -> 0.239 | DJ82: $ | DK82: =DK74+DK81 -> 1898.799391 | DL82: L | DU82: ABS | DV82: % | DW82: =$AQ82 -> 0.239 | DX82: $ | DY82: =DY74+DY81 -> 1815.879134 | DZ82: L | EI82: ABS | EJ82: % | EK82: =$O82 -> 0.239 | EL82: $ | EM82: =EM74+EM81 -> 1606.196906 | EN82: L | EW82: ABS | EX82: % | EY82: =$AC82 -> 0.239 | EZ82: $ | FA82: =FA74+FA81 -> 2367.362599 | FB82: L | FK82: ABS | FL82: % | FM82: =$AQ82 -> 0.239 | FN82: $ | FO82: =FO74+FO81 -> 2259.238267 | FP82: L
A83: Displacement [L] | B83: 1.5 to 2.0
A84: Turbocharger | B84: VNT
A85: EGR system | B85: cooler+vlv+bypass vlv
